Workbook

Sheet Definition
A1: Label | B1: Distribution | C1: Stock | D1: Pipeline | E1: Expiration (month) | F1: NB
A2: Blanket | B2: NFI_Blanket_Track | C2: NFI_Blanket_Stock | D2: NFI_Blanket_Pipeline | E2: 12 | F2: 2
A3: Complementary Kit | B3: NFI_Complementary_Track | C3: NFI_Complementary_Stock | D3: NFI_Complementary_Pipeline | E3: 12 | F3: 1
A4: Hygiene Kit | B4: NFI_Hygiene_Track | C4: NFI_Hygiene_Stock | D4: NFI_Hygiene_Pipeline | E4: 12 | F4: 1
A5: Kitchen Set | B5: NFI_Kitchen_Track | C5: NFI_Kitchen_Stock | D5: NFI_Kitchen_Pipeline | E5: 12 | F5: 1
A6: Mosquito net | B6: NFI_Mosquito_Track | C6: NFI_Mosquito_Stock | D6: NFI_Mosquito_Pipeline | E6: 12 | F6: 2
A7: NFI Core Kit | B7: NFI_Core_Track | C7: NFI_Core_Stock | D7: NFI_Core_Pipeline | E7: 12 | F7: 1
A8: Sanitary Kit | B8: NFI_Sanitary_Track | C8: NFI_Sanitary_Stock | D8: NFI_Sanitary_Pipeline | E8: 12 | F8: 1
A9: Tarpaulin | B9: NFI_Tarpaulin_Track | C9: NFI_Tarpaulin_Stock | D9: NFI_Tarpaulin_Pipeline | E9: 12 | F9: 1
A10: Plastic Bucket | B10: NFI_Plastic_Bucket_Track | C10: NFI_Plastic_Bucket_Stock | D10: NFI_Plastic_Bucket_Pipeline | E10: 12 | F10: 1
A11: Plastic Mat | B11: NFI_Plastic_Mat_Track | C11: NFI_Plastic_Mat_Stock | D11: NFI_Plastic_Mat_Pipeline | E11: 12 | F11: 2
A19: 2013-09-01

Sheet Home
C2: CLUSTER REPORT
C5: =Report_Date -> 2013-09-01
C7: CCCM | F7: Report & Analysis | L7: Dashboards | P7: 3W | T7: Contact List
L9: Rakhine | M9: Kachin | N9: Myanmar | P9: Rakhine | Q9: Kachin | R9: Myanmar | T9: Rakhine | U9: Kachin | V9: Myanmar
C14: Shelter
L16: Rakhine | M16: Kachin | N16: Myanmar | P16: Rakhine | Q16: Kachin | R16: Myanmar | T16: Rakhine | U16: Kachin | V16: Myanmar
C21: NFI
L22: Rakhine | M22: Kachin
L23: Rakhine | M23: Kachin | N23: Myanmar | P23: Rakhine | Q23: Kachin | R23: Myanmar | T23: Rakhine | U23: Kachin | V23: Myanmar

Sheet Camp_List
A2: DETAILED CAMP LIST
A3: =Report_Date -> 2013-09-01
A4: Sr.No | B4: Update Date | C4: Status | D4: State | E4: State_Pcode | F4: District | G4: District_Pcode | H4: TOWNSHIP_NAME | I4: Township_Pcode | J4: VillageTracKTown_Name | K4: VillageTrackTown_Pcode | L4: VillageWard_Name | M4: VillageWard_Pcode | N4: Camp Name | O4: P_Code | P4: Accessibility | Q4: Longitude | R4: Latitude | S4: HH | T4: Total | U4: Avg | V4: Source | W4: Method | X4: Type of Accomodation | Y4: Comment | Z4: Count | AA4: Status2 | AB4: Ethnicity
A5: 246 | B5: 2013-07-30 | C5: Open | D5: Rakhine | E5: MMR012 | H5: Rathedaung | I5: MMR012008 | J5: Chut Pyin | K5: MMR012008006 | L5: Chut Pyin | M5: 197590 | N5: Ah Htet Nan Yar | O5: MMR012CMP034 | P5: Accessible by All | Q5: 92.640022° | R5: 20.569219° | S5: 250 | T5: 1199 | U5: =IF(AND(Table_CampList[[#This Row],[HH]]<>"",Table_CampList[[#This Row],[HH]]>0),Table_CampList[[#This Row],[Total]]/Table_CampList[[#This Row],[HH]],0) -> 4.796 | V5: Camp/Community Leader | W5: Estimate | X5: Individual accommodation | Z5: =COUNTIF(N:N,Table_CampList[[#This Row],[Camp Name]]) -> 1 | AA5: =C5 -> Open | AB5: Muslim
A6: 234 | B6: 2013-07-30 | C6: Open | D6: Rakhine | E6: MMR012 | H6: Kyauktaw | I6: MMR012004 | J6: Ya Da Nar Pon | K6: MMR012004019 | L6: Ah Lel | M6: 196786 | N6: Ah Lel | O6: MMR012CMP022 | P6: Accessible by All | Q6: 93.003205° | R6: 20.921425° | S6: 17 | T6: 136 | U6: =IF(AND(Table_CampList[[#This Row],[HH]]<>"",Table_CampList[[#This Row],[HH]]>0),Table_CampList[[#This Row],[Total]]/Table_CampList[[#This Row],[HH]],0) -> 8 | V6: Camp/Community Leader | W6: Estimate | X6: Individual accommodation | Z6: =COUNTIF(N:N,Table_CampList[[#This Row],[Camp Name]]) -> 1 | AA6: =C6 -> Open | AB6: Muslim
A7: 237 | B7: 2013-07-30 | C7: Open | D7: Rakhine | E7: MMR012 | H7: Kyauktaw | I7: MMR012004 | J7: Ah Lel Kyun | K7: MMR012004031 | L7: Ah Lel Kyun Ku Lar | M7: 196842 | N7: Ah Lel Kyun | O7: MMR012CMP025 | P7: Accessible by All | Q7: 93.014350° | R7: 20.896740° | S7: 14 | T7: 84 | U7: =IF(AND(Table_CampList[[#This Row],[HH]]<>"",Table_CampList[[#This Row],[HH]]>0),Table_CampList[[#This Row],[Total]]/Table_CampList[[#This Row],[HH]],0) -> 6 | V7: Camp/Community Leader | W7: Estimate | X7: Planned Camp | Z7: =COUNTIF(N:N,Table_CampList[[#This Row],[Camp Name]]) -> 1 | AA7: =C7 -> Open | AB7: Muslim
A8: 244 | B8: 2013-07-30 | C8: Open | D8: Rakhine | E8: MMR012 | H8: Rathedaung | I8: MMR012008 | J8: Ah Nauk Pyin | K8: MMR012008072 | L8: Ah Nauk Pyin | M8: 197763 | N8: Ah Nauk Pyin | O8: MMR012CMP032 | P8: Accessible by All | Q8: 92.780916° | R8: 20.399271° | S8: 57 | T8: 291 | U8: =IF(AND(Table_CampList[[#This Row],[HH]]<>"",Table_CampList[[#This Row],[HH]]>0),Table_CampList[[#This Row],[Total]]/Table_CampList[[#This Row],[HH]],0) -> 5.105263158 | V8: Camp/Community Leader | W8: Estimate | X8: Planned Camp | Z8: =COUNTIF(N:N,Table_CampList[[#This Row],[Camp Name]]) -> 1 | AA8: =C8 -> Open | AB8: Muslim
A9: 228 | B9: 2013-07-30 | C9: Open | D9: Rakhine | E9: MMR012 | H9: Pauktaw | I9: MMR012007 | J9: Pein Hne Chaung | K9: MMR012007049 | L9: Kyauk Pyin Seik | M9: 197537 | N9: Ah Nauk Ywe | O9: MMR012CMP016 | P9: Accessible by All | Q9: 92.985095° | R9: 20.108102° | S9: 889 | T9: 3951 | U9: =IF(AND(Table_CampList[[#This Row],[HH]]<>"",Table_CampList[[#This Row],[HH]]>0),Table_CampList[[#This Row],[Total]]/Table_CampList[[#This Row],[HH]],0) -> 4.44431946 | V9: Camp/Community Leader | W9: Estimate | X9: Individual accommodation | Z9: =COUNTIF(N:N,Table_CampList[[#This Row],[Camp Name]]) -> 1 | AA9: =C9 -> Open | AB9: Muslim
A10: 236 | B10: 2013-07-30 | C10: Open | D10: Rakhine | E10: MMR012 | H10: Kyauktaw | I10: MMR012004 | J10: Ah Pauk Wa | K10: MMR012004064 | L10: Ah Pauk Wa | M10: 196946 | N10: Ah Pauk Wa | O10: MMR012CMP024 | P10: Accessible by All | Q10: 92.961841° | R10: 20.720213° | S10: 97 | T10: 860 | U10: =IF(AND(Table_CampList[[#This Row],[HH]]<>"",Table_CampList[[#This Row],[HH]]>0),Table_CampList[[#This Row],[Total]]/Table_CampList[[#This Row],[HH]],0) -> 8.865979381 | V10: Camp/Community Leader | W10: Estimate | X10: Planned Camp | Z10: =COUNTIF(N:N,Table_CampList[[#This Row],[Camp Name]]) -> 1 | AA10: =C10 -> Open | AB10: Muslim
A11: 301 | B11: 2013-07-30 | C11: Close | D11: Rakhine | E11: MMR012 | H11: Maungdaw | I11: MMR012009 | J11: Zaw Ma Tet | K11: MMR012009078 | L11: Hin Thar Ya | M11: 198049 | N11: Alima Fara | O11: MMR012CMP089 | P11: Accessible by All | Q11: 92.435075° | R11: 20.714533° | U11: =IF(AND(Table_CampList[[#This Row],[HH]]<>"",Table_CampList[[#This Row],[HH]]>0),Table_CampList[[#This Row],[Total]]/Table_CampList[[#This Row],[HH]],0) -> 0 | V11: Camp/Community Leader | W11: Estimate | X11: Collective Centre | Z11: =COUNTIF(N:N,Table_CampList[[#This Row],[Camp Name]]) -> 1 | AA11: =C11 -> Close | AB11: Muslim
A12: 281 | B12: 2013-07-30 | C12: Close | D12: Rakhine | E12: MMR012 | H12: Sittwe | I12: MMR012001 | J12: Ywar Gyi (North) Ward | K12: MMR012001701 | M12: MMR012001701515 | N12: Ar Thaw Ka Yone Monastery | O12: MMR012CMP069 | P12: Accessible by All | Q12: 92.895900° | R12: 20.153800° | S12: 0 | T12: 0 | U12: =IF(AND(Table_CampList[[#This Row],[HH]]<>"",Table_CampList[[#This Row],[HH]]>0),Table_CampList[[#This Row],[Total]]/Table_CampList[[#This Row],[HH]],0) -> 0 | V12: Camp/Community Leader | W12: Estimate | X12: Collective Centre | Z12: =COUNTIF(N:N,Table_CampList[[#This Row],[Camp Name]]) -> 1 | AA12: =C12 -> Close
A13: 218 | B13: 2013-07-30 | C13: Open | D13: Rakhine | E13: MMR012 | H13: Minbya | I13: MMR012005 | J13: Sa Par Htar | K13: MMR012005032 | L13: Aung Taing | M13: 197150 | N13: Aung Taing | O13: MMR012CMP006 | P13: Accessible by All | Q13: 93.299485° | R13: 20.480898° | S13: 86 | T13: 600 | U13: =IF(AND(Table_CampList[[#This Row],[HH]]<>"",Table_CampList[[#This Row],[HH]]>0),Table_CampList[[#This Row],[Total]]/Table_CampList[[#This Row],[HH]],0) -> 6.976744186 | V13: Camp/Community Leader | W13: Estimate | X13: Individual accommodation | Z13: =COUNTIF(N:N,Table_CampList[[#This Row],[Camp Name]]) -> 1 | AA13: =C13 -> Open | AB13: Muslim
A14: 227 | B14: 2013-07-30 | C14: Open | D14: Rakhine | E14: MMR012 | H14: Pauktaw | I14: MMR012007 | J14: Urban | K14: MMR012007701 | L14: Ba Wan Chaung Wa Su Ward | M14: MMR012007701504 | N14: Ba Wan Chaung Wa Su | O14: MMR012CMP015 | P14: Accessible by All | Q14: 93.067891° | R14: 20.173468° | S14: 21 | T14: 97 | U14: =IF(AND(Table_CampList[[#This Row],[HH]]<>"",Table_CampList[[#This Row],[HH]]>0),Table_CampList[[#This Row],[Total]]/Table_CampList[[#This Row],[HH]],0) -> 4.619047619 | V14: Camp/Community Leader | W14: Estimate | X14: Individual accommodation | Z14: =COUNTIF(N:N,Table_CampList[[#This Row],[Camp Name]]) -> 1 | AA14: =C14 -> Open | AB14: Rakhine
A15: 251 | B15: 2013-07-30 | C15: Open | D15: Rakhine | E15: MMR012 | H15: Sittwe | I15: MMR012001 | J15: San Pya Ward | K15: MMR012002701 | M15: MMR012002701501 | N15: Basara | O15: MMR012CMP039 | P15: Accessible by All | Q15: 92.875814° | R15: 20.128489° | S15: 395 | T15: 1874 | U15: =IF(AND(Table_CampList[[#This Row],[HH]]<>"",Table_CampList[[#This Row],[HH]]>0),Table_CampList[[#This Row],[Total]]/Table_CampList[[#This Row],[HH]],0) -> 4.744303797 | V15: Camp/Community Leader | W15: Estimate | X15: Individual accommodation | Z15: =COUNTIF(N:N,Table_CampList[[#This Row],[Camp Name]]) -> 1 | AA15: =C15 -> Open | AB15: Muslim
A16: 291 | B16: 2013-07-30 | C16: Close | D16: Rakhine | E16: MMR012 | H16: Maungdaw | I16: MMR012009 | J16: Ba Gone Nar | K16: MMR012009066 | L16: Baw Di Kone(No standard name yet | M16: 217897 | N16: Baw Di Gone | O16: MMR012CMP079 | P16: Accessible by All | Q16: 92.416264° | R16: 20.796128° | U16: =IF(AND(Table_CampList[[#This Row],[HH]]<>"",Table_CampList[[#This Row],[HH]]>0),Table_CampList[[#This Row],[Total]]/Table_CampList[[#This Row],[HH]],0) -> 0 | V16: Camp/Community Leader | W16: Estimate | X16: Planned Camp | Z16: =COUNTIF(N:N,Table_CampList[[#This Row],[Camp Name]]) -> 1 | AA16: =C16 -> Close | AB16: Rakhine
A17: 252 | B17: 2013-07-30 | C17: Open | D17: Rakhine | E17: MMR012 | H17: Sittwe | I17: MMR012001 | J17: Khaung Doke Kar | K17: MMR012001025 | L17: Baw Du Hpa | M17: 196192 | N17: Baw Du Pha | O17: MMR012CMP040 | P17: Accessible by All | Q17: 92.807419° | R17: 20.181238° | S17: 2051 | T17: 10461 | U17: =IF(AND(Table_CampList[[#This Row],[HH]]<>"",Table_CampList[[#This Row],[HH]]>0),Table_CampList[[#This Row],[Total]]/Table_CampList[[#This Row],[HH]],0) -> 5.10043881 | V17: Camp/Community Leader | W17: Estimate | X17: Individual accommodation | Z17: =COUNTIF(N:N,Table_CampList[[#This Row],[Camp Name]]) -> 1 | AA17: =C17 -> Open | AB17: Muslim
B18: 2013-07-30 | C18: Open | D18: Rakhine | E18: MMR012 | H18: Sittwe | I18: MMR012001 | J18: Khaung Doke Kar | K18: MMR012001025 | L18: Baw Du Hpa | M18: 196192 | N18: Baw Du Pha (IDP in host families) | O18: MMR012CMP103 | P18: Accessible by All | Q18: 92.804803° | R18: 20.182987° | S18: 41 | T18: 226 | U18: =IF(AND(Table_CampList[[#This Row],[HH]]<>"",Table_CampList[[#This Row],[HH]]>0),Table_CampList[[#This Row],[Total]]/Table_CampList[[#This Row],[HH]],0) -> 5.512195122 | V18: Camp/Community Leader | W18: Estimate | X18: Planned Camp | Z18: =COUNTIF(N:N,Table_CampList[[#This Row],[Camp Name]]) -> 1 | AA18: =C18 -> Open | AB18: Muslim
A19: 296 | B19: 2013-07-30 | C19: Open | D19: Rakhine | E19: MMR012 | H19: Maungdaw | I19: MMR012009 | J19: Myo Ma (North) Ward | K19: MMR012009701 | M19: MMR012009701503 | N19: Bomu Ywa | O19: MMR012CMP084 | P19: Accessible by All | Q19: 92.365794° | R19: 20.819958° | S19: 10 | T19: 106 | U19: =IF(AND(Table_CampList[[#This Row],[HH]]<>"",Table_CampList[[#This Row],[HH]]>0),Table_CampList[[#This Row],[Total]]/Table_CampList[[#This Row],[HH]],0) -> 10.6 | V19: Camp/Community Leader | W19: Estimate | X19: Planned Camp | Z19: =COUNTIF(N:N,Table_CampList[[#This Row],[Camp Name]]) -> 1 | AA19: =C19 -> Open | AB19: Muslim
B20: 2013-08-31 | C20: Open | D20: Rakhine | E20: MMR012 | H20: Maungdaw | N20: Bomu Ywa 2 | O20: MMR012CMP106 | P20: Accessible by All | Q20: 92.365619° | R20: 20.820317° | S20: 8 | T20: 52 | U20: =IF(AND(Table_CampList[[#This Row],[HH]]<>"",Table_CampList[[#This Row],[HH]]>0),Table_CampList[[#This Row],[Total]]/Table_CampList[[#This Row],[HH]],0) -> 6.5 | V20: Camp/Community Leader | W20: Estimate | X20: Planned Camp | Z20: =COUNTIF(N:N,Table_CampList[[#This Row],[Camp Name]]) -> 1 | AA20: =C20 -> Open | AB20: Rakhine
A21: 263 | B21: 2013-07-30 | C21: Close | D21: Rakhine | E21: MMR012 | H21: Sittwe | I21: MMR012001 | J21: Bu May | K21: MMR012001027 | L21: Thea Chaung Let Tha Mar Kone | M21: 196209 | N21: Bu May Ohn Taw | O21: MMR012CMP051 | P21: Accessible by All | Q21: 92.847967° | R21: 20.147108° | S21: 0 | T21: 0 | U21: =IF(AND(Table_CampList[[#This Row],[HH]]<>"",Table_CampList[[#This Row],[HH]]>0),Table_CampList[[#This Row],[Total]]/Table_CampList[[#This Row],[HH]],0) -> 0 | V21: Camp/Community Leader | W21: Estimate | X21: Self-Settled Camp | Z21: =COUNTIF(N:N,Table_CampList[[#This Row],[Camp Name]]) -> 1 | AA21: =C21 -> Close
A22: 264 | B22: 2013-07-30 | C22: Close | D22: Rakhine | E22: MMR012 | H22: Sittwe | I22: MMR012001 | J22: Bu May | K22: MMR012001027 | L22: Tin Bi | M22: 196216 | N22: Bu May Ohn Taw Shore | O22: MMR012CMP052 | P22: Accessible by All | Q22: 92.848348° | R22: 20.133385° | S22: 0 | T22: 0 | U22: =IF(AND(Table_CampList[[#This Row],[HH]]<>"",Table_CampList[[#This Row],[HH]]>0),Table_CampList[[#This Row],[Total]]/Table_CampList[[#This Row],[HH]],0) -> 0 | V22: Camp/Community Leader | W22: Estimate | X22: Self-Settled Camp | Z22: =COUNTIF(N:N,Table_CampList[[#This Row],[Camp Name]]) -> 1 | AA22: =C22 -> Close
B23: 2013-08-31 | C23: Open | D23: Rakhine | E23: MMR012 | H23: Rathedaung | N23: Chein Khar Li | O23: MMR012CMP033 | P23: Accessible by All | Q23: 92.660361° | R23: 20.408453° | S23: 211 | T23: 1191 | U23: =IF(AND(Table_CampList[[#This Row],[HH]]<>"",Table_CampList[[#This Row],[HH]]>0),Table_CampList[[#This Row],[Total]]/Table_CampList[[#This Row],[HH]],0) -> 5.644549763 | V23: Camp/Community Leader | W23: Estimate | X23: Planned Camp | Z23: =COUNTIF(N:N,Table_CampList[[#This Row],[Camp Name]]) -> 1 | AA23: =C23 -> Open | AB23: Muslim
A24: 271 | B24: 2013-07-30 | C24: Close | D24: Rakhine | E24: MMR012 | H24: Sittwe | I24: MMR012001 | J24: Kyaung Tet Lan Ward | K24: MMR012001701 | M24: MMR012001701519 | N24: Dak Kaung Monastery | O24: MMR012CMP059 | P24: Accessible by All | Q24: 92.894568° | R24: 20.145585° | S24: 0 | T24: 0 | U24: =IF(AND(Table_CampList[[#This Row],[HH]]<>"",Table_CampList[[#This Row],[HH]]>0),Table_CampList[[#This Row],[Total]]/Table_CampList[[#This Row],[HH]],0) -> 0 | V24: Camp/Community Leader | W24: Estimate | X24: Collective Centre | Z24: =COUNTIF(N:N,Table_CampList[[#This Row],[Camp Name]]) -> 1 | AA24: =C24 -> Close
A25: 272 | B25: 2013-07-30 | C25: Close | D25: Rakhine | E25: MMR012 | H25: Sittwe | I25: MMR012001 | J25: Bauk Thee Su Ward | K25: MMR012001701 | M25: MMR012001701518 | N25: Dama Set Kyar Monastery | O25: MMR012CMP060 | P25: Accessible by All | Q25: 92.898398° | R25: 20.152559° | S25: 0 | T25: 0 | U25: =IF(AND(Table_CampList[[#This Row],[HH]]<>"",Table_CampList[[#This Row],[HH]]>0),Table_CampList[[#This Row],[Total]]/Table_CampList[[#This Row],[HH]],0) -> 0 | V25: Camp/Community Leader | W25: Estimate | X25: Collective Centre | Z25: =COUNTIF(N:N,Table_CampList[[#This Row],[Camp Name]]) -> 1 | AA25: =C25 -> Close
A26: 267 | B26: 2013-07-30 | C26: Close | D26: Rakhine | E26: MMR012 | H26: Sittwe | I26: MMR012001 | J26: Baw Lone Kwin Ward | K26: MMR012001701 | M26: MMR012001701528 | N26: Danyawaddy Baw Lone Kwin | O26: MMR012CMP055 | P26: Accessible by All | Q26: 92.889384° | R26: 20.135474° | S26: 0 | T26: 0 | U26: =IF(AND(Table_CampList[[#This Row],[HH]]<>"",Table_CampList[[#This Row],[HH]]>0),Table_CampList[[#This Row],[Total]]/Table_CampList[[#This Row],[HH]],0) -> 0 | V26: Camp/Community Leader | W26: Estimate | X26: Planned Camp | Z26: =COUNTIF(N:N,Table_CampList[[#This Row],[Camp Name]]) -> 1 | AA26: =C26 -> Close
A27: 253 | B27: 2013-07-30 | C27: Open | D27: Rakhine | E27: MMR012 | H27: Sittwe | I27: MMR012001 | J27: Bu May | K27: MMR012001027 | L27: Dar Paing Ywar Thit | M27: 196206 | N27: Dar Pai | O27: MMR012CMP041 | P27: Accessible by All | Q27: 92.827427° | R27: 20.168460° | S27: 1885 | T27: 11154 | U27: =IF(AND(Table_CampList[[#This Row],[HH]]<>"",Table_CampList[[#This Row],[HH]]>0),Table_CampList[[#This Row],[Total]]/Table_CampList[[#This Row],[HH]],0) -> 5.917241379 | V27: Camp/Community Leader | W27: Estimate | X27: Individual accommodation | Z27: =COUNTIF(N:N,Table_CampList[[#This Row],[Camp Name]]) -> 1 | AA27: =C27 -> Open | AB27: Muslim
B28: 2013-07-30 | C28: Open | D28: Rakhine | E28: MMR012 | H28: Sittwe | I28: MMR012001 | J28: Bu May | K28: MMR012001027 | L28: Dar Paing Ywar Thit | M28: 196206 | N28: Dar Pai (IDP in host families) | O28: MMR012CMP097 | P28: Accessible by All | Q28: 92.830075° | R28: 20.167422° | S28: 468 | T28: 2818 | U28: =IF(AND(Table_CampList[[#This Row],[HH]]<>"",Table_CampList[[#This Row],[HH]]>0),Table_CampList[[#This Row],[Total]]/Table_CampList[[#This Row],[HH]],0) -> 6.021367521 | V28: Camp/Community Leader | W28: Estimate | X28: Planned Camp | Z28: =COUNTIF(N:N,Table_CampList[[#This Row],[Camp Name]]) -> 1 | AA28: =C28 -> Open | AB28: Muslim
A29: 269 | B29: 2013-07-30 | C29: Close | D29: Rakhine | E29: MMR012 | H29: Sittwe | I29: MMR012001 | J29: Ywar Gyi (North) Ward | K29: MMR012001701 | M29: MMR012001701515 | N29: Dohn Taik Kwin | O29: MMR012CMP057 | P29: Accessible by All | Q29: 92.897178° | R29: 20.153129° | S29: 0 | T29: 0 | U29: =IF(AND(Table_CampList[[#This Row],[HH]]<>"",Table_CampList[[#This Row],[HH]]>0),Table_CampList[[#This Row],[Total]]/Table_CampList[[#This Row],[HH]],0) -> 0 | V29: Camp/Community Leader | W29: Estimate | X29: Planned Camp | Z29: =COUNTIF(N:N,Table_CampList[[#This Row],[Camp Name]]) -> 1 | AA29: =C29 -> Close
A30: 300 | B30: 2013-07-30 | C30: Open | D30: Rakhine | E30: MMR012 | H30: Maungdaw | I30: MMR012009 | J30: Than Dar | K30: MMR012009075 | L30: Myo Thu Gyi (Yar Zar Bi) | M30: 197988 | N30: Du Than Dar | O30: MMR012CMP088 | P30: Accessible by All | Q30: 92.443428° | R30: 20.714847° | S30: 45 | T30: 291 | U30: =IF(AND(Table_CampList[[#This Row],[HH]]<>"",Table_CampList[[#This Row],[HH]]>0),Table_CampList[[#This Row],[Total]]/Table_CampList[[#This Row],[HH]],0) -> 6.466666667 | V30: Camp/Community Leader | W30: Estimate | X30: Individual accommodation | Z30: =COUNTIF(N:N,Table_CampList[[#This Row],[Camp Name]]) -> 1 | AA30: =C30 -> Open | AB30: Muslim
A31: 239 | B31: 2013-07-30 | C31: Open | D31: Rakhine | E31: MMR012 | H31: Kyauktaw | I31: MMR012004 | J31: Goke Pi Htaunt | K31: MMR012004074 | L31: Goke Pi Htaunt (Ku Lar) | M31: 196972 | N31: Goke Pi Htaunt | O31: MMR012CMP027 | P31: Accessible by All | Q31: 93.014090° | R31: 20.713260° | S31: 116 | T31: 707 | U31: =IF(AND(Table_CampList[[#This Row],[HH]]<>"",Table_CampList[[#This Row],[HH]]>0),Table_CampList[[#This Row],[Total]]/Table_CampList[[#This Row],[HH]],0) -> 6.094827586 | V31: Camp/Community Leader | W31: Estimate | X31: Individual accommodation | Z31: =COUNTIF(N:N,Table_CampList[[#This Row],[Camp Name]]) -> 1 | AA31: =C31 -> Open | AB31: Muslim
A32: 285 | B32: 2013-07-30 | C32: Close | D32: Rakhine | E32: MMR012 | H32: Sittwe | I32: MMR012001 | J32: Kyaung Tet Lan Ward | K32: MMR012001701 | M32: MMR012001701519 | N32: Gyit Bak Monastery | O32: MMR012CMP073 | P32: Accessible by All | Q32: 92.895600° | R32: 20.146917° | S32: 0 | T32: 0 | U32: =IF(AND(Table_CampList[[#This Row],[HH]]<>"",Table_CampList[[#This Row],[HH]]>0),Table_CampList[[#This Row],[Total]]/Table_CampList[[#This Row],[HH]],0) -> 0 | V32: Camp/Community Leader | W32: Estimate | X32: Collective Centre | Z32: =COUNTIF(N:N,Table_CampList[[#This Row],[Camp Name]]) -> 1 | AA32: =C32 -> Close
A33: 273 | B33: 2013-07-30 | C33: Close | D33: Rakhine | E33: MMR012 | H33: Sittwe | I33: MMR012001 | J33: Ywar Gyi (North) Ward | K33: MMR012001701 | M33: MMR012001701515 | N33: Gyit Chay Monastery | O33: MMR012CMP061 | P33: Accessible by All | Q33: 92.896409° | R33: 20.153754° | S33: 0 | T33: 0 | U33: =IF(AND(Table_CampList[[#This Row],[HH]]<>"",Table_CampList[[#This Row],[HH]]>0),Table_CampList[[#This Row],[Total]]/Table_CampList[[#This Row],[HH]],0) -> 0 | V33: Camp/Community Leader | W33: Estimate | X33: Collective Centre | Z33: =COUNTIF(N:N,Table_CampList[[#This Row],[Camp Name]]) -> 1 | AA33: =C33 -> Close
B34: 2013-07-30 | C34: Open | D34: Rakhine | E34: MMR012 | H34: Sittwe | I34: MMR012001 | J34: Khaung Doke Kar | K34: MMR012001025 | N34: Hmanzi | O34: MMR012CMP102 | P34: Accessible by All | Q34: 92.816639° | R34: 20.180194 | S34: 242 | T34: 1518 | U34: =IF(AND(Table_CampList[[#This Row],[HH]]<>"",Table_CampList[[#This Row],[HH]]>0),Table_CampList[[#This Row],[Total]]/Table_CampList[[#This Row],[HH]],0) -> 6.272727273 | V34: Camp/Community Leader | W34: Estimate | X34: Individual accommodation | Z34: =COUNTIF(N:N,Table_CampList[[#This Row],[Camp Name]]) -> 1 | AA34: =C34 -> Open | AB34: Muslim
A35: 261 | B35: 2013-07-30 | C35: Close | D35: Rakhine | E35: MMR012 | H35: Sittwe | I35: MMR012001 | J35: Bu May | K35: MMR012001027 | L35: Hman Zi | M35: 196207 | N35: Hmanzi Junction | O35: MMR012CMP049 | P35: Accessible by All | Q35: 92.826407° | R35: 20.175169° | S35: 0 | T35: 0 | U35: =IF(AND(Table_CampList[[#This Row],[HH]]<>"",Table_CampList[[#This Row],[HH]]>0),Table_CampList[[#This Row],[Total]]/Table_CampList[[#This Row],[HH]],0) -> 0 | V35: Camp/Community Leader | W35: Estimate | X35: Planned Camp | Z35: =COUNTIF(N:N,Table_CampList[[#This Row],[Camp Name]]) -> 1 | AA35: =C35 -> Close
B36: 2013-08-31 | C36: Open | D36: Rakhine | E36: MMR012 | H36: Maungdaw | N36: Honsara (Zaw Ma Tat) | O36: MMR012CMP109 | P36: Accessible by All | Q36: 92.435378° | R36: 20.713883° | S36: 48 | T36: 355 | U36: =IF(AND(Table_CampList[[#This Row],[HH]]<>"",Table_CampList[[#This Row],[HH]]>0),Table_CampList[[#This Row],[Total]]/Table_CampList[[#This Row],[HH]],0) -> 7.395833333 | V36: Camp/Community Leader | W36: Estimate | X36: Individual accommodation | Z36: =COUNTIF(N:N,Table_CampList[[#This Row],[Camp Name]]) -> 1 | AA36: =C36 -> Open | AB36: Muslim
A37: 238 | B37: 2013-07-30 | C37: Open | D37: Rakhine | E37: MMR012 | H37: Kyauktaw | I37: MMR012004 | J37: Doke Kan Chaung | K37: MMR012004063 | L37: In Bar Yi | M37: 196945 | N37: In Bar Yi | O37: MMR012CMP026 | P37: Accessible by All | Q37: 93.009900° | R37: 20.696820° | S37: 230 | T37: 1367 | U37: =IF(AND(Table_CampList[[#This Row],[HH]]<>"",Table_CampList[[#This Row],[HH]]>0),Table_CampList[[#This Row],[Total]]/Table_CampList[[#This Row],[HH]],0) -> 5.943478261 | V37: Camp/Community Leader | W37: Estimate | X37: Planned Camp | Z37: =COUNTIF(N:N,Table_CampList[[#This Row],[Camp Name]]) -> 1 | AA37: =C37 -> Open | AB37: Muslim
A38: 225 | B38: 2013-07-30 | C38: Open | D38: Rakhine | E38: MMR012 | H38: Meybon | I38: MMR012006 | J38: Urban | K38: MMR012006701 | L38: Kan Thar Htwet Wa Ward | M38: MMR012006701502 | N38: Kan Thar Htwat Wa | O38: MMR012CMP013 | P38: Accessible by All | Q38: 93.373951° | R38: 20.041981° | S38: 42 | T38: 222 | U38: =IF(AND(Table_CampList[[#This Row],[HH]]<>"",Table_CampList[[#This Row],[HH]]>0),Table_CampList[[#This Row],[Total]]/Table_CampList[[#This Row],[HH]],0) -> 5.285714286 | V38: Camp/Community Leader | W38: Estimate | X38: Individual accommodation | Z38: =COUNTIF(N:N,Table_CampList[[#This Row],[Camp Name]]) -> 1 | AA38: =C38 -> Open | AB38: Rakhine
A39: 293 | B39: 2013-07-30 | C39: Close | D39: Rakhine | E39: MMR012 | H39: Maungdaw | I39: MMR012009 | J39: Ba Gone Nar | K39: MMR012009066 | L39: Kan Thar Yar(No standard name yet) | M39: 217895 | N39: Kan Thar Yar | O39: MMR012CMP081 | P39: Accessible by All | Q39: 92.423364° | R39: 20.801544° | U39: =IF(AND(Table_CampList[[#This Row],[HH]]<>"",Table_CampList[[#This Row],[HH]]>0),Table_CampList[[#This Row],[Total]]/Table_CampList[[#This Row],[HH]],0) -> 0 | V39: Camp/Community Leader | W39: Estimate | X39: Planned Camp | Z39: =COUNTIF(N:N,Table_CampList[[#This Row],[Camp Name]]) -> 1 | AA39: =C39 -> Close | AB39: Rakhine
A40: 283 | B40: 2013-07-30 | C40: Close | D40: Rakhine | E40: MMR012 | H40: Sittwe | I40: MMR012001 | J40: Ywar Gyi (South) Ward | K40: MMR012001701 | M40: MMR012001701516 | N40: Kha Maung Taw Monastery | O40: MMR012CMP071 | P40: Accessible by All | Q40: 92.894450° | R40: 20.147100° | S40: 0 | T40: 0 | U40: =IF(AND(Table_CampList[[#This Row],[HH]]<>"",Table_CampList[[#This Row],[HH]]>0),Table_CampList[[#This Row],[Total]]/Table_CampList[[#This Row],[HH]],0) -> 0 | V40: Camp/Community Leader | W40: Estimate | X40: Collective Centre | Z40: =COUNTIF(N:N,Table_CampList[[#This Row],[Camp Name]]) -> 1 | AA40: =C40 -> Close
A41: 254 | B41: 2013-07-30 | C41: Open | D41: Rakhine | E41: MMR012 | H41: Sittwe | I41: MMR012001 | J41: Khaung Doke Kar | K41: MMR012001025 | L41: Khaung Doke Kar | M41: 196191 | N41: Khaung Doke Khar | O41: MMR012CMP042 | P41: Accessible by All | Q41: 92.823167° | R41: 20.181778° | S41: 390 | T41: 2096 | U41: =IF(AND(Table_CampList[[#This Row],[HH]]<>"",Table_CampList[[#This Row],[HH]]>0),Table_CampList[[#This Row],[Total]]/Table_CampList[[#This Row],[HH]],0) -> 5.374358974 | V41: Camp/Community Leader | W41: Estimate | X41: Individual accommodation | Z41: =COUNTIF(N:N,Table_CampList[[#This Row],[Camp Name]]) -> 1 | AA41: =C41 -> Open | AB41: Muslim
A42: 242 | B42: 2013-07-30 | C42: Open | D42: Rakhine | E42: MMR012 | H42: Kyauktaw | I42: MMR012004 | J42: Khaung Toke | K42: MMR012004030 | L42: Khaung Toke (Ku Lar) | M42: 196838 | N42: Khaung Htoke | O42: MMR012CMP030 | P42: Accessible by All | Q42: 93.006498° | R42: 20.886998° | S42: 97 | T42: 557 | U42: =IF(AND(Table_CampList[[#This Row],[HH]]<>"",Table_CampList[[#This Row],[HH]]>0),Table_CampList[[#This Row],[Total]]/Table_CampList[[#This Row],[HH]],0) -> 5.742268041 | V42: Camp/Community Leader | W42: Estimate | X42: Planned Camp | Z42: =COUNTIF(N:N,Table_CampList[[#This Row],[Camp Name]]) -> 1 | AA42: =C42 -> Open | AB42: Muslim
A43: 292 | B43: 2013-07-30 | C43: Close | D43: Rakhine | E43: MMR012 | H43: Maungdaw | I43: MMR012009 | J43: (Du) Chee Yar Tan | K43: MMR012009069 | L43: King Chaung(No standard name yet) | M43: 217898 | N43: Kin Chaung | O43: MMR012CMP080 | P43: Accessible by All | Q43: 92.424139° | R43: 20.762731° | U43: =IF(AND(Table_CampList[[#This Row],[HH]]<>"",Table_CampList[[#This Row],[HH]]>0),Table_CampList[[#This Row],[Total]]/Table_CampList[[#This Row],[HH]],0) -> 0 | V43: Camp/Community Leader | W43: Estimate | X43: Individual accommodation | Z43: =COUNTIF(N:N,Table_CampList[[#This Row],[Camp Name]]) -> 1 | AA43: =C43 -> Close | AB43: Rakhine
B44: 2013-08-31 | C44: Open | D44: Rakhine | E44: MMR012 | H44: Rathedaung | N44: Koe Tan Kauk | O44: MMR012CMP110 | P44: Accessible by All | Q44: 92.639589° | R44: 20.447261° | S44: 202 | T44: 928 | U44: =IF(AND(Table_CampList[[#This Row],[HH]]<>"",Table_CampList[[#This Row],[HH]]>0),Table_CampList[[#This Row],[Total]]/Table_CampList[[#This Row],[HH]],0) -> 4.594059406 | V44: Camp/Community Leader | W44: Estimate | X44: Planned Camp | Z44: =COUNTIF(N:N,Table_CampList[[#This Row],[Camp Name]]) -> 1 | AA44: =C44 -> Open | AB44: Muslim
A45: 245 | B45: 2013-07-30 | C45: Close | D45: Rakhine | E45: MMR012 | H45: Rathedaung | I45: MMR012008 | J45: Koe Tan Kauk | K45: MMR012008031 | L45: Chein Khar Li (Ku Lar) | M45: 197651 | N45: Koe Tan Kauk/Chein Khar Li | O45: MMR012CMP033 | P45: Accessible by All | Q45: 92.650180° | R45: 20.432280° | S45: 0 | T45: 0 | U45: =IF(AND(Table_CampList[[#This Row],[HH]]<>"",Table_CampList[[#This Row],[HH]]>0),Table_CampList[[#This Row],[Total]]/Table_CampList[[#This Row],[HH]],0) -> 0 | V45: Camp/Community Leader | W45: Estimate | X45: Individual accommodation | Z45: =COUNTIF(N:N,Table_CampList[[#This Row],[Camp Name]]) -> 1 | AA45: =C45 -> Close | AB45: Muslim
A46: 290 | B46: 2013-07-30 | C46: Close | D46: Rakhine | E46: MMR012 | H46: Maungdaw | I46: MMR012009 | J46: NA | K46: NA | L46: NA | M46: NA | N46: Kyaing Gyi | O46: MMR012CMP078 | P46: Accessible by All | Q46: NA | R46: NA | S46: 0 | T46: 0 | U46: =IF(AND(Table_CampList[[#This Row],[HH]]<>"",Table_CampList[[#This Row],[HH]]>0),Table_CampList[[#This Row],[Total]]/Table_CampList[[#This Row],[HH]],0) -> 0 | V46: Camp/Community Leader | W46: Estimate | X46: Planned Camp | Z46: =COUNTIF(N:N,Table_CampList[[#This Row],[Camp Name]]) -> 1 | AA46: =C46 -> Close
A47: 247 | B47: 2013-07-30 | C47: Open | D47: Rakhine | E47: MMR012 | H47: Kyauk_Phyu | I47: MMR012011 | J47: Gone Chein | K47: MMR012011006 | L47: Say Poke Kay | M47: 198486 | N47: Kyauk Ta Lone | O47: MMR012CMP035 | P47: Accessible by All | Q47: 93.512326° | R47: 19.424577° | S47: 427 | T47: 1549 | U47: =IF(AND(Table_CampList[[#This Row],[HH]]<>"",Table_CampList[[#This Row],[HH]]>0),Table_CampList[[#This Row],[Total]]/Table_CampList[[#This Row],[HH]],0) -> 3.62763466 | V47: Camp/Community Leader | W47: Estimate | X47: Individual accommodation | Z47: =COUNTIF(N:N,Table_CampList[[#This Row],[Camp Name]]) -> 1 | AA47: =C47 -> Open | AB47: Muslim
A48: 230 | B48: 2013-07-30 | C48: Open | D48: Rakhine | E48: MMR012 | H48: Pauktaw | I48: MMR012007 | J48: Pein Hne Chaung | K48: MMR012007049 | L48: Kyein Ni Pyin | M48: 197533 | N48: Kyein Ni Pyin | O48: MMR012CMP018 | P48: Accessible by All | Q48: 93.010369° | R48: 20.090183° | S48: 923 | T48: 4554 | U48: =IF(AND(Table_CampList[[#This Row],[HH]]<>"",Table_CampList[[#This Row],[HH]]>0),Table_CampList[[#This Row],[Total]]/Table_CampList[[#This Row],[HH]],0) -> 4.933911159 | V48: Camp/Community Leader | W48: Estimate | X48: Planned Camp | Z48: =COUNTIF(N:N,Table_CampList[[#This Row],[Camp Name]]) -> 1 | AA48: =C48 -> Open | AB48: Muslim
A49: 299 | B49: 2013-07-30 | C49: Close | D49: Rakhine | E49: MMR012 | H49: Maungdaw | I49: MMR012009 | J49: Zaw Ma Tet | K49: MMR012009078 | L49: Zaw Ma Tet | M49: 198045 | N49: Lamber Gone Nah | O49: MMR012CMP087 | P49: Accessible by All | Q49: 92.426886° | R49: 20.717331° | U49: =IF(AND(Table_CampList[[#This Row],[HH]]<>"",Table_CampList[[#This Row],[HH]]>0),Table_CampList[[#This Row],[Total]]/Table_CampList[[#This Row],[HH]],0) -> 0 | V49: Camp/Community Leader | W49: Estimate | X49: Individual accommodation | Z49: =COUNTIF(N:N,Table_CampList[[#This Row],[Camp Name]]) -> 1 | AA49: =C49 -> Close | AB49: Muslim
A50: 274 | B50: 2013-07-30 | C50: Close | D50: Rakhine | E50: MMR012 | H50: Sittwe | I50: MMR012001 | J50: Sin Ku Lan Ward | K50: MMR012001701 | M50: MMR012001701512 | N50: Layaungwin Monastery | O50: MMR012CMP062 | P50: Accessible by All | Q50: 92.896006° | R50: 20.154331° | S50: 0 | T50: 0 | U50: =IF(AND(Table_CampList[[#This Row],[HH]]<>"",Table_CampList[[#This Row],[HH]]>0),Table_CampList[[#This Row],[Total]]/Table_CampList[[#This Row],[HH]],0) -> 0 | V50: Camp/Community Leader | W50: Estimate | X50: Collective Centre | Z50: =COUNTIF(N:N,Table_CampList[[#This Row],[Camp Name]]) -> 1 | AA50: =C50 -> Close
A51: 232 | B51: 2013-07-30 | C51: Open | D51: Rakhine | E51: MMR012 | H51: Kyauktaw | I51: MMR012004 | J51: Hpa Yar Paung | K51: MMR012004046 | L51: Taung Pauk | M51: 196873 | N51: Let Saung Kauk | O51: MMR012CMP020 | P51: Accessible by All | Q51: 92.982676° | R51: 20.805734° | S51: 18 | T51: 157 | U51: =IF(AND(Table_CampList[[#This Row],[HH]]<>"",Table_CampList[[#This Row],[HH]]>0),Table_CampList[[#This Row],[Total]]/Table_CampList[[#This Row],[HH]],0) -> 8.722222222 | V51: Camp/Community Leader | W51: Estimate | X51: Individual accommodation | Z51: =COUNTIF(N:N,Table_CampList[[#This Row],[Camp Name]]) -> 1 | AA51: =C51 -> Open | AB51: Muslim
A52: 265 | B52: 2013-07-30 | C52: Close | D52: Rakhine | E52: MMR012 | H52: Sittwe | I52: MMR012001 | J52: Ye New Su Ward | K52: MMR012001701 | M52: MMR012001701523 | N52: Ma Gyi Myaing | O52: MMR012CMP053 | P52: Accessible by All | Q52: 92.886890° | R52: 20.132695° | S52: 0 | T52: 0 | U52: =IF(AND(Table_CampList[[#This Row],[HH]]<>"",Table_CampList[[#This Row],[HH]]>0),Table_CampList[[#This Row],[Total]]/Table_CampList[[#This Row],[HH]],0) -> 0 | V52: Camp/Community Leader | W52: Estimate | X52: Planned Camp | Z52: =COUNTIF(N:N,Table_CampList[[#This Row],[Camp Name]]) -> 1 | AA52: =C52 -> Close
A53: 284 | B53: 2013-07-30 | C53: Close | D53: Rakhine | E53: MMR012 | H53: Sittwe | I53: MMR012001 | N53: Ma Ni Yadanar Monastery | O53: MMR012CMP072 | P53: Accessible by All | Q53: 92.893904° | R53: 20.146673° | S53: 0 | T53: 0 | U53: =IF(AND(Table_CampList[[#This Row],[HH]]<>"",Table_CampList[[#This Row],[HH]]>0),Table_CampList[[#This Row],[Total]]/Table_CampList[[#This Row],[HH]],0) -> 0 | V53: Camp/Community Leader | W53: Estimate | X53: Collective Centre | Z53: =COUNTIF(N:N,Table_CampList[[#This Row],[Camp Name]]) -> 1 | AA53: =C53 -> Close
A54: 305 | B54: 2013-07-30 | C54: Open | D54: Rakhine | E54: MMR012 | H54: Sittwe | I54: MMR012001 | J54: Bu May | K54: MMR012001027 | L54: Bu May | M54: 196200 | N54: Maw Ti Ngar (TKP west) | O54: MMR012CMP092 | P54: Accessible by All | Q54: 92.831000° | R54: 20.185917° | S54: 512 | T54: 3066 | U54: =IF(AND(Table_CampList[[#This Row],[HH]]<>"",Table_CampList[[#This Row],[HH]]>0),Table_CampList[[#This Row],[Total]]/Table_CampList[[#This Row],[HH]],0) -> 5.98828125 | V54: Camp/Community Leader | W54: Estimate | X54: Individual accommodation | Z54: =COUNTIF(N:N,Table_CampList[[#This Row],[Camp Name]]) -> 1 | AA54: =C54 -> Open | AB54: Muslim
A55: 288 | B55: 2013-07-30 | C55: Close | D55: Rakhine | E55: MMR012 | H55: Maungdaw | I55: MMR012009 | J55: NA | K55: NA | L55: NA | M55: NA | N55: Maw Ya Waddy | O55: MMR012CMP076 | P55: Accessible by All | Q55: NA | R55: NA | S55: 0 | T55: 0 | U55: =IF(AND(Table_CampList[[#This Row],[HH]]<>"",Table_CampList[[#This Row],[HH]]>0),Table_CampList[[#This Row],[Total]]/Table_CampList[[#This Row],[HH]],0) -> 0 | V55: Camp/Community Leader | W55: Estimate | X55: Planned Camp | Z55: =COUNTIF(N:N,Table_CampList[[#This Row],[Camp Name]]) -> 1 | AA55: =C55 -> Close
A56: 266 | B56: 2013-07-30 | C56: Close | D56: Rakhine | E56: MMR012 | H56: Sittwe | I56: MMR012001 | J56: Min Gan Ward | K56: MMR012001701 | M56: MMR012001701532 | N56: Mingan | O56: MMR012CMP054 | P56: Accessible by All | Q56: 92.860599° | R56: 20.154343° | U56: =IF(AND(Table_CampList[[#This Row],[HH]]<>"",Table_CampList[[#This Row],[HH]]>0),Table_CampList[[#This Row],[Total]]/Table_CampList[[#This Row],[HH]],0) -> 0 | V56: Camp/Community Leader | W56: Estimate | X56: Planned Camp | Z56: =COUNTIF(N:N,Table_CampList[[#This Row],[Camp Name]]) -> 1 | AA56: =C56 -> Close
A57: 223 | B57: 2013-07-30 | C57: Open | D57: Rakhine | E57: MMR012 | H57: Mrauk_U | I57: MMR012003 | J57: Urban | K57: MMR012003701 | N57: Myat Buddha Mandine Monastery | O57: MMR012CMP011 | P57: Accessible by All | Q57: 93.187996° | R57: 20.589569° | S57: 31 | T57: 164 | U57: =IF(AND(Table_CampList[[#This Row],[HH]]<>"",Table_CampList[[#This Row],[HH]]>0),Table_CampList[[#This Row],[Total]]/Table_CampList[[#This Row],[HH]],0) -> 5.290322581 | V57: Camp/Community Leader | W57: Estimate | X57: Individual accommodation | Y57: Ward Name not available | Z57: =COUNTIF(N:N,Table_CampList[[#This Row],[Camp Name]]) -> 1 | AA57: =C57 -> Open | AB57: Rakhine
A58: 275 | B58: 2013-07-30 | C58: Close | D58: Rakhine | E58: MMR012 | H58: Sittwe | I58: MMR012001 | J58: Bauk Thee Su Ward | K58: MMR012001701 | M58: MMR012001701518 | N58: Myo Ma Monastery | O58: MMR012CMP063 | P58: Accessible by All | Q58: 92.897783° | R58: 20.151050° | S58: 0 | T58: 0 | U58: =IF(AND(Table_CampList[[#This Row],[HH]]<>"",Table_CampList[[#This Row],[HH]]>0),Table_CampList[[#This Row],[Total]]/Table_CampList[[#This Row],[HH]],0) -> 0 | V58: Camp/Community Leader | W58: Estimate | X58: Collective Centre | Z58: =COUNTIF(N:N,Table_CampList[[#This Row],[Camp Name]]) -> 1 | AA58: =C58 -> Close
A59: 295 | B59: 2013-07-30 | C59: Open | D59: Rakhine | E59: MMR012 | H59: Maungdaw | I59: MMR012009 | J59: Myo Ma (North) Ward | K59: MMR012009701 | M59: MMR012009701503 | N59: Myoma Myauk | O59: MMR012CMP083 | P59: Accessible by All | Q59: 92.362933° | R59: 20.827044° | S59: 80 | T59: 585 | U59: =IF(AND(Table_CampList[[#This Row],[HH]]<>"",Table_CampList[[#This Row],[HH]]>0),Table_CampList[[#This Row],[Total]]/Table_CampList[[#This Row],[HH]],0) -> 7.3125 | V59: Camp/Community Leader | W59: Estimate | X59: Individual accommodation | Z59: =COUNTIF(N:N,Table_CampList[[#This Row],[Camp Name]]) -> 1 | AA59: =C59 -> Open | AB59: Muslim
A60: 216 | B60: 2013-07-30 | C60: Close | D60: Rakhine | E60: MMR012 | H60: Minbya | I60: MMR012005 | J60: Shwe Ta Mar | K60: MMR012005018 | L60: Na Ga Yar Pyin | M60: 197063 | N60: Nagara Pauktaw | O60: MMR012CMP004 | P60: Accessible by All | Q60: 93.258476° | R60: 20.554084° | S60: 0 | T60: 0 | U60: =IF(AND(Table_CampList[[#This Row],[HH]]<>"",Table_CampList[[#This Row],[HH]]>0),Table_CampList[[#This Row],[Total]]/Table_CampList[[#This Row],[HH]],0) -> 0 | V60: Camp/Community Leader | W60: Estimate | X60: Privately Hosted | Z60: =COUNTIF(N:N,Table_CampList[[#This Row],[Camp Name]]) -> 1 | AA60: =C60 -> Close
A61: 229 | B61: 2013-07-30 | C61: Open | D61: Rakhine | E61: MMR012 | H61: Pauktaw | I61: MMR012007 | J61: Pon Nar Gyi | K61: MMR012007012 | L61: Cha Eik | M61: 197414 | N61: Nget Chaung | O61: MMR012CMP017 | P61: Accessible by All | Q61: 93.154552° | R61: 20.073438° | S61: 236 | T61: 1340 | U61: =IF(AND(Table_CampList[[#This Row],[HH]]<>"",Table_CampList[[#This Row],[HH]]>0),Table_CampList[[#This Row],[Total]]/Table_CampList[[#This Row],[HH]],0) -> 5.677966102 | V61: Camp/Community Leader | W61: Estimate | X61: Individual accommodation | Z61: =COUNTIF(N:N,Table_CampList[[#This Row],[Camp Name]]) -> 1 | AA61: =C61 -> Open | AB61: Muslim
A62: 235 | B62: 2013-07-30 | C62: Open | D62: Rakhine | E62: MMR012 | H62: Kyauktaw | I62: MMR012004 | J62: Wa Kin | K62: MMR012004028 | L62: Ni Din | M62: 196829 | N62: Nidin | O62: MMR012CMP023 | P62: Accessible by All | Q62: 92.965981° | R62: 20.865687° | S62: 83 | T62: 516 | U62: =IF(AND(Table_CampList[[#This Row],[HH]]<>"",Table_CampList[[#This Row],[HH]]>0),Table_CampList[[#This Row],[Total]]/Table_CampList[[#This Row],[HH]],0) -> 6.21686747 | V62: Camp/Community Leader | W62: Estimate | X62: Individual (non hosted) | Z62: =COUNTIF(N:N,Table_CampList[[#This Row],[Camp Name]]) -> 1 | AA62: =C62 -> Open | AB62: Muslim
A63: 243 | B63: 2013-07-30 | C63: Open | D63: Rakhine | E63: MMR012 | H63: Rathedaung | I63: MMR012008 | J63: Nyaung Pin Gyi | K63: MMR012008082 | L63: Nyaung Pin Gyi (Ku Lar) | M63: 197780 | N63: Nyaung Pin Gyi | O63: MMR012CMP031 | P63: Accessible by All | Q63: 92.786301° | R63: 20.336254° | S63: 62 | T63: 372 | U63: =IF(AND(Table_CampList[[#This Row],[HH]]<>"",Table_CampList[[#This Row],[HH]]>0),Table_CampList[[#This Row],[Total]]/Table_CampList[[#This Row],[HH]],0) -> 6 | V63: Camp/Community Leader | W63: Estimate | X63: Individual (non hosted) | Z63: =COUNTIF(N:N,Table_CampList[[#This Row],[Camp Name]]) -> 1 | AA63: =C63 -> Open | AB63: Muslim
A64: 294 | B64: 2013-07-30 | C64: Open | D64: Rakhine | E64: MMR012 | H64: Maungdaw | I64: MMR012009 | J64: Urban | K64: MMR012009701 | N64: Nyaung Pin Hla | O64: MMR012CMP082 | P64: Accessible by All | Q64: 92.362197° | R64: 20.824778° | S64: 4 | T64: 20 | U64: =IF(AND(Table_CampList[[#This Row],[HH]]<>"",Table_CampList[[#This Row],[HH]]>0),Table_CampList[[#This Row],[Total]]/Table_CampList[[#This Row],[HH]],0) -> 5 | V64: Camp/Community Leader | W64: Estimate | X64: Individual (non hosted) | Y64: Ward Name not available | Z64: =COUNTIF(N:N,Table_CampList[[#This Row],[Camp Name]]) -> 1 | AA64: =C64 -> Open | AB64: Muslim
A65: 255 | B65: 2013-07-30 | C65: Open | D65: Rakhine | E65: MMR012 | H65: Sittwe | I65: MMR012001 | J65: Khaung Doke Kar | K65: MMR012001025 | L65: Baw Du Hpa | M65: 196192 | N65: Ohn Taw Gyi 1 | O65: MMR012CMP043 | P65: Accessible by All | Q65: 92.798677° | R65: 20.187751° | S65: 1076 | T65: 6225 | U65: =IF(AND(Table_CampList[[#This Row],[HH]]<>"",Table_CampList[[#This Row],[HH]]>0),Table_CampList[[#This Row],[Total]]/Table_CampList[[#This Row],[HH]],0) -> 5.785315985 | V65: Camp/Community Leader | W65: Estimate | X65: Planned Camp | Z65: =COUNTIF(N:N,Table_CampList[[#This Row],[Camp Name]]) -> 1 | AA65: =C65 -> Open | AB65: Muslim
B66: 2013-07-30 | C66: Open | D66: Rakhine | E66: MMR012 | H66: Sittwe | I66: MMR012001 | J66: Say Tha Mar | K66: MMR012001010 | L66: Ohn Taw Shey | M66: 196158 | N66: Ohn Taw Gyi 2 | O66: MMR012CMP098 | P66: Accessible by All | Q66: 92.774194° | R66: 20.206778° | S66: 626 | T66: 2937 | U66: =IF(AND(Table_CampList[[#This Row],[HH]]<>"",Table_CampList[[#This Row],[HH]]>0),Table_CampList[[#This Row],[Total]]/Table_CampList[[#This Row],[HH]],0) -> 4.691693291 | V66: Camp/Community Leader | W66: Estimate | X66: Planned Camp | Z66: =COUNTIF(N:N,Table_CampList[[#This Row],[Camp Name]]) -> 1 | AA66: =C66 -> Open | AB66: Muslim
A67: 303 | B67: 2013-07-30 | C67: Open | D67: Rakhine | E67: MMR012 | H67: Sittwe | I67: MMR012001 | J67: Khaung Doke Kar | K67: MMR012001025 | L67: Baw Du Hpa | M67: 196192 | N67: Ohn Taw Gyi 3 | O67: MMR012CMP090 | P67: Accessible by All | Q67: 92.800694° | R67: 20.190056° | S67: 342 | T67: 1796 | U67: =IF(AND(Table_CampList[[#This Row],[HH]]<>"",Table_CampList[[#This Row],[HH]]>0),Table_CampList[[#This Row],[Total]]/Table_CampList[[#This Row],[HH]],0) -> 5.251461988 | V67: Camp/Community Leader | W67: Estimate | X67: Planned Camp | Z67: =COUNTIF(N:N,Table_CampList[[#This Row],[Camp Name]]) -> 1 | AA67: =C67 -> Open | AB67: Muslim
B68: 2013-07-30 | C68: Open | D68: Rakhine | E68: MMR012 | H68: Sittwe | I68: MMR012001 | J68: Khaung Doke Kar | K68: MMR012001025 | L68: Baw Du Hpa | M68: 196192 | N68: Ohn Taw Gyi 4 | O68: MMR012CMP099 | P68: Accessible by All | Q68: 92.800528° | R68: 20.185583° | S68: 891 | T68: 4914 | U68: =IF(AND(Table_CampList[[#This Row],[HH]]<>"",Table_CampList[[#This Row],[HH]]>0),Table_CampList[[#This Row],[Total]]/Table_CampList[[#This Row],[HH]],0) -> 5.515151515 | V68: Camp/Community Leader | W68: Estimate | X68: Planned Camp | Y68: This HH and Total population is for Both camps Ohn Taw Gyi 4 and 5 because information is only possible to get combine information for 2 camps. | Z68: =COUNTIF(N:N,Table_CampList[[#This Row],[Camp Name]]) -> 1 | AA68: =C68 -> Open | AB68: Muslim
B69: 2013-07-30 | C69: Open | D69: Rakhine | E69: MMR012 | H69: Sittwe | I69: MMR012001 | J69: Khaung Doke Kar | K69: MMR012001025 | L69: Baw Du Hpa | M69: 196192 | N69: Ohn Taw Gyi 5 | O69: MMR012CMP100 | P69: Accessible by All | Q69: 92.799861° | R69: 20.185194° | S69: 809 | T69: 4675 | U69: =IF(AND(Table_CampList[[#This Row],[HH]]<>"",Table_CampList[[#This Row],[HH]]>0),Table_CampList[[#This Row],[Total]]/Table_CampList[[#This Row],[HH]],0) -> 5.778739184 | V69: Camp/Community Leader | W69: Estimate | X69: Planned Camp | Z69: =COUNTIF(N:N,Table_CampList[[#This Row],[Camp Name]]) -> 1 | AA69: =C69 -> Open | AB69: Muslim
A70: 262 | B70: 2013-07-30 | C70: Close | D70: Rakhine | E70: MMR012 | H70: Sittwe | I70: MMR012001 | J70: Say Tha Mar | K70: MMR012001010 | L70: Say Tha Mar Gyi | M70: 196154 | N70: Pa Lin Pyin Ywar Thit | O70: MMR012CMP050 | P70: Accessible by All | Q70: 92.792959° | R70: 20.205295° | S70: 0 | T70: 0 | U70: =IF(AND(Table_CampList[[#This Row],[HH]]<>"",Table_CampList[[#This Row],[HH]]>0),Table_CampList[[#This Row],[Total]]/Table_CampList[[#This Row],[HH]],0) -> 0 | V70: Camp/Community Leader | W70: Estimate | X70: Self-Settled Camp | Z70: =COUNTIF(N:N,Table_CampList[[#This Row],[Camp Name]]) -> 1 | AA70: =C70 -> Close
A71: 221 | B71: 2013-07-30 | C71: Open | D71: Rakhine | E71: MMR012 | H71: Mrauk_U | I71: MMR012003 | J71: Pu Rein | K71: MMR012003004 | L71: Pu Rein | M71: 196428 | N71: Pa Rein | O71: MMR012CMP009 | P71: Accessible by All | Q71: 93.245551° | R71: 20.576577° | S71: 240 | T71: 1228 | U71: =IF(AND(Table_CampList[[#This Row],[HH]]<>"",Table_CampList[[#This Row],[HH]]>0),Table_CampList[[#This Row],[Total]]/Table_CampList[[#This Row],[HH]],0) -> 5.116666667 | V71: Camp/Community Leader | W71: Estimate | X71: Individual (non hosted) | Z71: =COUNTIF(N:N,Table_CampList[[#This Row],[Camp Name]]) -> 1 | AA71: =C71 -> Open | AB71: Muslim
A72: 213 | B72: 2013-07-30 | C72: Open | D72: Rakhine | E72: MMR012 | H72: Minbya | I72: MMR012005 | J72: Kin Seik | K72: MMR012005001 | L72: Kin Seik | M72: 196984 | N72: Paik Thay | O72: MMR012CMP001 | P72: Accessible by All | Q72: 93.271642° | R72: 20.377523° | S72: 19 | T72: 143 | U72: =IF(AND(Table_CampList[[#This Row],[HH]]<>"",Table_CampList[[#This Row],[HH]]>0),Table_CampList[[#This Row],[Total]]/Table_CampList[[#This Row],[HH]],0) -> 7.526315789 | V72: Camp/Community Leader | W72: Estimate | X72: Individual (non hosted) | Z72: =COUNTIF(N:N,Table_CampList[[#This Row],[Camp Name]]) -> 1 | AA72: =C72 -> Open | AB72: Muslim
A73: 248 | B73: 2013-07-30 | C73: Open | D73: Rakhine | E73: MMR012 | H73: Kyauk_Phyu | I73: MMR012011 | J73: Taung Yin | K73: MMR012011002 | L73: Ka Nyin Taw | M73: 198469 | N73: Pha Yar Gyi Kwin | O73: MMR012CMP036 | P73: Accessible by All | Q73: 93.552452° | R73: 19.421102° | S73: 65 | T73: 318 | U73: =IF(AND(Table_CampList[[#This Row],[HH]]<>"",Table_CampList[[#This Row],[HH]]>0),Table_CampList[[#This Row],[Total]]/Table_CampList[[#This Row],[HH]],0) -> 4.892307692 | V73: Camp/Community Leader | W73: Estimate | X73: Planned Camp | Z73: =COUNTIF(N:N,Table_CampList[[#This Row],[Camp Name]]) -> 1 | AA73: =C73 -> Open | AB73: Rakhine
A74: 256 | B74: 2013-07-30 | C74: Open | D74: Rakhine | E74: MMR012 | H74: Sittwe | I74: MMR012001 | J74: Aung Daing | K74: MMR012001005 | L74: Hpwe Ywar Kone | M74: 196157 | N74: Phwe Yar Kone | O74: MMR012CMP044 | P74: Accessible by All | Q74: 92.788177° | R74: 20.207285° | S74: 350 | T74: 2115 | U74: =IF(AND(Table_CampList[[#This Row],[HH]]<>"",Table_CampList[[#This Row],[HH]]>0),Table_CampList[[#This Row],[Total]]/Table_CampList[[#This Row],[HH]],0) -> 6.042857143 | V74: Camp/Community Leader | W74: Estimate | X74: Planned Camp | Z74: =COUNTIF(N:N,Table_CampList[[#This Row],[Camp Name]]) -> 1 | AA74: =C74 -> Open | AB74: Muslim
A75: 276 | B75: 2013-07-30 | C75: Close | D75: Rakhine | E75: MMR012 | H75: Sittwe | I75: MMR012001 | J75: Baung Dut Ward | K75: MMR012001701 | M75: MMR012001701517 | N75: Pyin Nyar Mandine Monastery | O75: MMR012CMP064 | P75: Accessible by All | Q75: 92.896944° | R75: 20.150892° | S75: 0 | T75: 0 | U75: =IF(AND(Table_CampList[[#This Row],[HH]]<>"",Table_CampList[[#This Row],[HH]]>0),Table_CampList[[#This Row],[Total]]/Table_CampList[[#This Row],[HH]],0) -> 0 | V75: Camp/Community Leader | W75: Estimate | X75: Collective Centre | Z75: =COUNTIF(N:N,Table_CampList[[#This Row],[Camp Name]]) -> 1 | AA75: =C75 -> Close
A76: 250 | B76: 2013-07-30 | C76: Open | D76: Rakhine | E76: MMR012 | H76: Ramree | I76: MMR012013 | J76: Kha Maung Chi Taing | K76: MMR012013020 | N76: Ramree Town | O76: MMR012CMP038 | P76: Accessible by All | Q76: 93.865170° | R76: 19.091054° | S76: 12 | T76: 44 | U76: =IF(AND(Table_CampList[[#This Row],[HH]]<>"",Table_CampList[[#This Row],[HH]]>0),Table_CampList[[#This Row],[Total]]/Table_CampList[[#This Row],[HH]],0) -> 3.666666667 | V76: Camp/Community Leader | W76: Estimate | X76: Privately Hosted | Y76: Urban | Z76: =COUNTIF(N:N,Table_CampList[[#This Row],[Camp Name]]) -> 1 | AA76: =C76 -> Open | AB76: Rakhine
A77: 249 | B77: 2013-07-30 | C77: Open | D77: Rakhine | E77: MMR012 | H77: Ramree | I77: MMR012013 | J77: Kha Maung Chi Taing | K77: MMR012013020 | N77: Ramree Ward 6 | O77: MMR012CMP037 | P77: Accessible by All | Q77: 93.857593° | R77: 19.088283° | S77: 57 | T77: 183 | U77: =IF(AND(Table_CampList[[#This Row],[HH]]<>"",Table_CampList[[#This Row],[HH]]>0),Table_CampList[[#This Row],[Total]]/Table_CampList[[#This Row],[HH]],0) -> 3.210526316 | V77: Camp/Community Leader | W77: Estimate | X77: Planned Camp | Y77: Urban | Z77: =COUNTIF(N:N,Table_CampList[[#This Row],[Camp Name]]) -> 1 | AA77: =C77 -> Open | AB77: Muslim
A78: 224 | B78: 2013-07-30 | C78: Open | D78: Rakhine | E78: MMR012 | H78: Mrauk_U | I78: MMR012003 | J78: Sin Oe | K78: MMR012003006 | L78: Raw Ma Ni | M78: 196441 | N78: Raw Ma Ni Sin Oe | O78: MMR012CMP012 | P78: Accessible by All | Q78: 93.239520° | R78: 20.616920° | S78: 15 | T78: 64 | U78: =IF(AND(Table_CampList[[#This Row],[HH]]<>"",Table_CampList[[#This Row],[HH]]>0),Table_CampList[[#This Row],[Total]]/Table_CampList[[#This Row],[HH]],0) -> 4.266666667 | V78: Camp/Community Leader | W78: Estimate | X78: Collective Centre | Z78: =COUNTIF(N:N,Table_CampList[[#This Row],[Camp Name]]) -> 1 | AA78: =C78 -> Open | AB78: Maramargyi
A79: 220 | B79: 2013-07-30 | C79: Open | D79: Rakhine | E79: MMR012 | H79: Minbya | I79: MMR012005 | J79: San Bar Lay | K79: MMR012005009 | L79: Zi War | M79: 197025 | N79: Sam Ba Le | O79: MMR012CMP008 | P79: Accessible by All | Q79: 93.313628° | R79: 20.407971° | S79: 225 | T79: 1317 | U79: =IF(AND(Table_CampList[[#This Row],[HH]]<>"",Table_CampList[[#This Row],[HH]]>0),Table_CampList[[#This Row],[Total]]/Table_CampList[[#This Row],[HH]],0) -> 5.853333333 | V79: Camp/Community Leader | W79: Estimate | X79: Individual (non hosted) | Z79: =COUNTIF(N:N,Table_CampList[[#This Row],[Camp Name]]) -> 1 | AA79: =C79 -> Open | AB79: Muslim
A80: 215 | B80: 2013-07-30 | C80: Open | D80: Rakhine | E80: MMR012 | H80: Minbya | I80: MMR012005 | J80: Chaik Taung | K80: MMR012005003 | L80: San Htoe Tan | M80: 196995 | N80: San Htoe Tan | O80: MMR012CMP003 | P80: Accessible by All | Q80: 93.249670° | R80: 20.399020° | S80: 124 | T80: 475 | U80: =IF(AND(Table_CampList[[#This Row],[HH]]<>"",Table_CampList[[#This Row],[HH]]>0),Table_CampList[[#This Row],[Total]]/Table_CampList[[#This Row],[HH]],0) -> 3.830645161 | V80: Camp/Community Leader | W80: Estimate | X80: Individual (non hosted) | Z80: =COUNTIF(N:N,Table_CampList[[#This Row],[Camp Name]]) -> 1 | AA80: =C80 -> Open | AB80: Muslim
B81: 2013-07-30 | C81: Open | D81: Rakhine | E81: MMR012 | H81: Sittwe | I81: MMR012001 | J81: Urban | K81: MMR012001701 | L81: Sut Yoe Kya Ward | M81: MMR012001701531 | N81: Sat Roe Kya | O81: MMR012CMP105 | P81: Accessible by All | Q81: 92.887278° | R81: 20.151472° | S81: 630 | T81: 3014 | U81: =IF(AND(Table_CampList[[#This Row],[HH]]<>"",Table_CampList[[#This Row],[HH]]>0),Table_CampList[[#This Row],[Total]]/Table_CampList[[#This Row],[HH]],0) -> 4.784126984 | V81: Camp/Community Leader | W81: Estimate | X81: Individual (non hosted) | Z81: =COUNTIF(N:N,Table_CampList[[#This Row],[Camp Name]]) -> 1 | AA81: =C81 -> Open | AB81: Rakhine
B82: 2013-07-30 | C82: Open | D82: Rakhine | E82: MMR012 | H82: Sittwe | I82: MMR012001 | J82: Say Tha Mar | K82: MMR012001010 | L82: Say Tha Mar Gyi | M82: 196154 | N82: Say Tha Mar Gyi | O82: MMR012CMP045 | P82: Accessible by All | Q82: 92.792480° | R82: 20.202525° | S82: 2160 | T82: 11710 | U82: =IF(AND(Table_CampList[[#This Row],[HH]]<>"",Table_CampList[[#This Row],[HH]]>0),Table_CampList[[#This Row],[Total]]/Table_CampList[[#This Row],[HH]],0) -> 5.421296296 | V82: Camp/Community Leader | W82: Estimate | X82: Planned Camp | Z82: =COUNTIF(N:N,Table_CampList[[#This Row],[Camp Name]]) -> 1 | AA82: =C82 -> Open | AB82: Muslim
B83: 2013-07-30 | C83: Open | D83: Rakhine | E83: MMR012 | H83: Minbya | I83: MMR012005 | J83: Na Yan | K83: MMR012005010 | L83: Sat Yon Maw (Ku Lar) | M83: 197023 | N83: Set Yone Maw | O83: MMR012CMP104 | P83: Accessible by All | Q83: 93.314695° | R83: 20.409645° | S83: 17 | T83: 79 | U83: =IF(AND(Table_CampList[[#This Row],[HH]]<>"",Table_CampList[[#This Row],[HH]]>0),Table_CampList[[#This Row],[Total]]/Table_CampList[[#This Row],[HH]],0) -> 4.647058824 | V83: Camp/Community Leader | W83: Estimate | X83: Individual (non hosted) | Z83: =COUNTIF(N:N,Table_CampList[[#This Row],[Camp Name]]) -> 1 | AA83: =C83 -> Open | AB83: Rakhine
B84: 2013-07-30 | C84: Open | D84: Rakhine | E84: MMR012 | H84: Sittwe | I84: MMR012001 | J84: Set Yon Su Ward | K84: MMR012001701 | M84: MMR012001701526 | N84: Set Yone Su | O84: MMR012CMP056 | P84: Accessible by All | Q84: 92.880320° | R84: 20.148584° | S84: 74 | T84: 435 | U84: =IF(AND(Table_CampList[[#This Row],[HH]]<>"",Table_CampList[[#This Row],[HH]]>0),Table_CampList[[#This Row],[Total]]/Table_CampList[[#This Row],[HH]],0) -> 5.878378378 | V84: Camp/Community Leader | W84: Estimate | X84: Planned Camp | Z84: =COUNTIF(N:N,Table_CampList[[#This Row],[Camp Name]]) -> 1 | AA84: =C84 -> Open | AB84: Maramargyi
B85: 2013-07-30 | C85: Open | D85: Rakhine | E85: MMR012 | H85: Sittwe | I85: MMR012001 | J85: Set Yon Su Ward | K85: MMR012001701 | M85: MMR012001701526 | N85: Set Yone Su 3 | O85: MMR012CMP093 | P85: Accessible by All | Q85: 92.879139° | R85: 20.155806° | S85: 176 | T85: 779 | U85: =IF(AND(Table_CampList[[#This Row],[HH]]<>"",Table_CampList[[#This Row],[HH]]>0),Table_CampList[[#This Row],[Total]]/Table_CampList[[#This Row],[HH]],0) -> 4.426136364 | V85: Camp/Community Leader | W85: Estimate | X85: Planned Camp | Z85: =COUNTIF(N:N,Table_CampList[[#This Row],[Camp Name]]) -> 1 | AA85: =C85 -> Open | AB85: Rakhine
B86: 2013-07-30 | C86: Open | D86: Rakhine | E86: MMR012 | H86: Kyauktaw | I86: MMR012004 | J86: Sin Oe Chaing | K86: MMR012004069 | L86: Shwe Hlaing Ku Lar | M86: 196868 | N86: Shwe Hlaing | O86: MMR012CMP029 | P86: Accessible by All | Q86: 92.987400° | R86: 20.783320° | S86: 174 | T86: 920 | U86: =IF(AND(Table_CampList[[#This Row],[HH]]<>"",Table_CampList[[#This Row],[HH]]>0),Table_CampList[[#This Row],[Total]]/Table_CampList[[#This Row],[HH]],0) -> 5.287356322 | V86: Camp/Community Leader | W86: Estimate | X86: Individual (non hosted) | Z86: =COUNTIF(N:N,Table_CampList[[#This Row],[Camp Name]]) -> 1 | AA86: =C86 -> Open | AB86: Muslim
B87: 2013-07-30 | C87: Close | D87: Rakhine | E87: MMR012 | H87: Sittwe | I87: MMR012001 | J87: Ywar Gyi (North) Ward | K87: MMR012001701 | M87: MMR012001701515 | N87: Shwe Zay Ti Monastery | O87: MMR012CMP065 | P87: Accessible by All | Q87: 92.894500° | R87: 20.146200° | S87: 0 | T87: 0 | U87: =IF(AND(Table_CampList[[#This Row],[HH]]<>"",Table_CampList[[#This Row],[HH]]>0),Table_CampList[[#This Row],[Total]]/Table_CampList[[#This Row],[HH]],0) -> 0 | V87: Camp/Community Leader | W87: Estimate | X87: Collective Centre | Z87: =COUNTIF(N:N,Table_CampList[[#This Row],[Camp Name]]) -> 1 | AA87: =C87 -> Close
B88: 2013-07-30 | C88: Close | D88: Rakhine | E88: MMR012 | H88: Sittwe | I88: MMR012001 | J88: Sin Ku Lan Ward | K88: MMR012001701 | M88: MMR012001701512 | N88: Sin Ku Lann Monastery | O88: MMR012CMP068 | P88: Accessible by All | Q88: 92.897933° | R88: 20.155850° | S88: 0 | T88: 0 | U88: =IF(AND(Table_CampList[[#This Row],[HH]]<>"",Table_CampList[[#This Row],[HH]]>0),Table_CampList[[#This Row],[Total]]/Table_CampList[[#This Row],[HH]],0) -> 0 | V88: Camp/Community Leader | W88: Estimate | X88: Collective Centre | Z88: =COUNTIF(N:N,Table_CampList[[#This Row],[Camp Name]]) -> 1 | AA88: =C88 -> Close
B89: 2013-07-30 | C89: Open | D89: Rakhine | E89: MMR012 | H89: Pauktaw | I89: MMR012007 | J89: Sin Tet Maw | K89: MMR012007051 | L89: Sin Tet Maw (Ku Lar) | M89: 197548 | N89: Sin Tet Maw | O89: MMR012CMP019 | P89: Accessible by All | Q89: 92.993759° | R89: 20.064226° | S89: 783 | T89: 3060 | U89: =IF(AND(Table_CampList[[#This Row],[HH]]<>"",Table_CampList[[#This Row],[HH]]>0),Table_CampList[[#This Row],[Total]]/Table_CampList[[#This Row],[HH]],0) -> 3.908045977 | V89: Camp/Community Leader | W89: Estimate | X89: Planned Camp | Z89: =COUNTIF(N:N,Table_CampList[[#This Row],[Camp Name]]) -> 1 | AA89: =C89 -> Open | AB89: Muslim
B90: 2013-07-30 | C90: Open | D90: Rakhine | E90: MMR012 | H90: Pauktaw | I90: MMR012007 | J90: Sin Tet Maw | K90: MMR012007051 | L90: Sin Tet Maw (Ku Lar) | M90: 197548 | N90: Sin Tet Maw (from Nget Chaung) | O90: MMR012CMP096 | P90: Accessible by All | Q90: 92.993360° | R90: 20.063098° | S90: 1165 | T90: 7052 | U90: =IF(AND(Table_CampList[[#This Row],[HH]]<>"",Table_CampList[[#This Row],[HH]]>0),Table_CampList[[#This Row],[Total]]/Table_CampList[[#This Row],[HH]],0) -> 6.053218884 | V90: Camp/Community Leader | W90: Estimate | X90: Individual (non hosted) | Z90: =COUNTIF(N:N,Table_CampList[[#This Row],[Camp Name]]) -> 1 | AA90: =C90 -> Open | AB90: Muslim
B91: 2013-07-30 | C91: Open | D91: Rakhine | E91: MMR012 | H91: Maungdaw | I91: MMR012009 | J91: Laung Don | K91: MMR012009025 | L91: Laung Done Zay Di Pyin | M91: 197868 | N91: Sin Thay Pyin | O91: MMR012CMP094 | P91: Accessible by All | Q91: 92.338031° | R91: 21.066664° | S91: 8 | T91: 53 | U91: =IF(AND(Table_CampList[[#This Row],[HH]]<>"",Table_CampList[[#This Row],[HH]]>0),Table_CampList[[#This Row],[Total]]/Table_CampList[[#This Row],[HH]],0) -> 6.625 | V91: Camp/Community Leader | W91: Estimate | X91: Privately Hosted | Z91: =COUNTIF(N:N,Table_CampList[[#This Row],[Camp Name]]) -> 1 | AA91: =C91 -> Open | AB91: Muslim
B92: 2013-07-30 | C92: Close | D92: Rakhine | E92: MMR012 | H92: Sittwe | I92: MMR012001 | J92: Pyi Taw Thar Ward | K92: MMR012001701 | M92: MMR012001701520 | N92: Su Taung Pyae Monastery | O92: MMR012CMP066 | P92: Accessible by All | Q92: 92.888950° | R92: 20.125033° | S92: 0 | T92: 0 | U92: =IF(AND(Table_CampList[[#This Row],[HH]]<>"",Table_CampList[[#This Row],[HH]]>0),Table_CampList[[#This Row],[Total]]/Table_CampList[[#This Row],[HH]],0) -> 0 | V92: Camp/Community Leader | W92: Estimate | X92: Collective Centre | Z92: =COUNTIF(N:N,Table_CampList[[#This Row],[Camp Name]]) -> 1 | AA92: =C92 -> Close
B93: 2013-07-30 | C93: Open | D93: Rakhine | E93: MMR012 | H93: Kyauktaw | I93: MMR012004 | J93: Ya Da Nar Pon | K93: MMR012004019 | L93: Ku Lar Taung Bway | M93: 196789 | N93: Taung Bwe | O93: MMR012CMP021 | P93: Accessible by All | Q93: 93.000815° | R93: 20.929649° | S93: 64 | T93: 512 | U93: =IF(AND(Table_CampList[[#This Row],[HH]]<>"",Table_CampList[[#This Row],[HH]]>0),Table_CampList[[#This Row],[Total]]/Table_CampList[[#This Row],[HH]],0) -> 8 | V93: Camp/Community Leader | W93: Estimate | X93: Individual (non hosted) | Z93: =COUNTIF(N:N,Table_CampList[[#This Row],[Camp Name]]) -> 1 | AA93: =C93 -> Open | AB93: Muslim
B94: 2013-07-30 | C94: Open | D94: Rakhine | E94: MMR012 | H94: Meybon | I94: MMR012006 | J94: Ah Ngu | K94: MMR012006001 | L94: Pyin Taw Che | M94: 217973 | N94: Taung Paw | O94: MMR012CMP014 | P94: Accessible by All | Q94: 93.370038° | R94: 20.037655° | S94: 632 | T94: 3844 | U94: =IF(AND(Table_CampList[[#This Row],[HH]]<>"",Table_CampList[[#This Row],[HH]]>0),Table_CampList[[#This Row],[Total]]/Table_CampList[[#This Row],[HH]],0) -> 6.082278481 | V94: Camp/Community Leader | W94: Estimate | X94: Planned Camp | Z94: =COUNTIF(N:N,Table_CampList[[#This Row],[Camp Name]]) -> 1 | AA94: =C94 -> Open | AB94: Muslim
B95: 2013-07-30 | C95: Open | D95: Rakhine | E95: MMR012 | H95: Minbya | I95: MMR012005 | J95: Kin Seik | K95: MMR012005001 | L95: Thar Dar | M95: 196997 | N95: Tha Dar | O95: MMR012CMP002 | P95: Accessible by All | Q95: 93.257272° | R95: 20.392138° | S95: 203 | T95: 1008 | U95: =IF(AND(Table_CampList[[#This Row],[HH]]<>"",Table_CampList[[#This Row],[HH]]>0),Table_CampList[[#This Row],[Total]]/Table_CampList[[#This Row],[HH]],0) -> 4.965517241 | V95: Camp/Community Leader | W95: Estimate | X95: Individual (non hosted) | Z95: =COUNTIF(N:N,Table_CampList[[#This Row],[Camp Name]]) -> 1 | AA95: =C95 -> Open | AB95: Muslim
B96: 2013-07-30 | C96: Close | D96: Rakhine | E96: MMR012 | H96: Maungdaw | I96: MMR012009 | J96: Tha Yae Kone Tan | K96: MMR012009080 | L96: Tha Ray Kon Baung | M96: 198016 | N96: Tha Yay Kone Baung | O96: MMR012CMP077 | P96: Accessible by All | Q96: 92.429600° | R96: 20.729867° | U96: =IF(AND(Table_CampList[[#This Row],[HH]]<>"",Table_CampList[[#This Row],[HH]]>0),Table_CampList[[#This Row],[Total]]/Table_CampList[[#This Row],[HH]],0) -> 0 | V96: Camp/Community Leader | W96: Estimate | X96: Planned Camp | Z96: =COUNTIF(N:N,Table_CampList[[#This Row],[Camp Name]]) -> 1 | AA96: =C96 -> Close | AB96: Rakhine
B97: 2013-07-30 | C97: Open | D97: Rakhine | E97: MMR012 | H97: Minbya | I97: MMR012005 | J97: Tha Yet Oke | K97: MMR012005017 | L97: Tha Yet Oke | M97: 197062 | N97: Tha Yet Oak | O97: MMR012CMP005 | P97: Accessible by All | Q97: 93.258574° | R97: 20.587142° | S97: 275 | T97: 1585 | U97: =IF(AND(Table_CampList[[#This Row],[HH]]<>"",Table_CampList[[#This Row],[HH]]>0),Table_CampList[[#This Row],[Total]]/Table_CampList[[#This Row],[HH]],0) -> 5.763636364 | V97: Camp/Community Leader | W97: Estimate | X97: Individual (non hosted) | Z97: =COUNTIF(N:N,Table_CampList[[#This Row],[Camp Name]]) -> 1 | AA97: =C97 -> Open | AB97: Muslim
B98: 2013-07-30 | C98: Open | D98: Rakhine | E98: MMR012 | H98: Sittwe | I98: MMR012001 | J98: Bu May | K98: MMR012001027 | L98: Thea Chaung Ku Lar | M98: 196211 | N98: Thae Chaung | O98: MMR012CMP046 | P98: Accessible by All | Q98: 92.839417° | R98: 20.158500° | S98: 1505 | T98: 8107 | U98: =IF(AND(Table_CampList[[#This Row],[HH]]<>"",Table_CampList[[#This Row],[HH]]>0),Table_CampList[[#This Row],[Total]]/Table_CampList[[#This Row],[HH]],0) -> 5.386710963 | V98: Camp/Community Leader | W98: Estimate | X98: Planned Camp | Z98: =COUNTIF(N:N,Table_CampList[[#This Row],[Camp Name]]) -> 1 | AA98: =C98 -> Open | AB98: Muslim
B99: 2013-07-30 | C99: Open | D99: Rakhine | E99: MMR012 | H99: Sittwe | I99: MMR012001 | J99: Bu May | K99: MMR012001027 | L99: Thea Chaung Ku Lar | M99: 196211 | N99: Thae Chaung (IDP in host families) | O99: MMR012CMP101 | P99: Accessible by All | Q99: 92.837577° | R99: 20.156842° | S99: 438 | T99: 1728 | U99: =IF(AND(Table_CampList[[#This Row],[HH]]<>"",Table_CampList[[#This Row],[HH]]>0),Table_CampList[[#This Row],[Total]]/Table_CampList[[#This Row],[HH]],0) -> 3.945205479 | V99: Camp/Community Leader | W99: Estimate | X99: Individual (non hosted) | Z99: =COUNTIF(N:N,Table_CampList[[#This Row],[Camp Name]]) -> 1 | AA99: =C99 -> Open | AB99: Muslim
B100: 2013-07-30 | C100: Open | D100: Rakhine | E100: MMR012 | H100: Sittwe | I100: MMR012001 | J100: Bu May | K100: MMR012001027 | L100: Thea Chaung Ku Lar | M100: 196211 | N100: Thae Chaung (Kyaukphyu) | O100: MMR012CMP047 | P100: Accessible by All | Q100: 92.839166° | R100: 20.157311° | S100: 377 | T100: 1982 | U100: =IF(AND(Table_CampList[[#This Row],[HH]]<>"",Table_CampList[[#This Row],[HH]]>0),Table_CampList[[#This Row],[Total]]/Table_CampList[[#This Row],[HH]],0) -> 5.25729443 | V100: Camp/Community Leader | W100: Estimate | X100: Individual (non hosted) | Z100: =COUNTIF(N:N,Table_CampList[[#This Row],[Camp Name]]) -> 1 | AA100: =C100 -> Open | AB100: Muslim
B101: 2013-07-30 | C101: Close | D101: Rakhine | E101: MMR012 | H101: Sittwe | I101: MMR012001 | J101: Ywar Gyi (South) Ward | K101: MMR012001701 | M101: MMR012001701516 | N101: Thangga Yarzar Monastery | O101: MMR012CMP070 | P101: Accessible by All | Q101: 92.892432° | R101: 20.146041° | S101: 0 | T101: 0 | U101: =IF(AND(Table_CampList[[#This Row],[HH]]<>"",Table_CampList[[#This Row],[HH]]>0),Table_CampList[[#This Row],[Total]]/Table_CampList[[#This Row],[HH]],0) -> 0 | V101: Camp/Community Leader | W101: Estimate | X101: Collective Centre | Z101: =COUNTIF(N:N,Table_CampList[[#This Row],[Camp Name]]) -> 1 | AA101: =C101 -> Close
B102: 2013-07-30 | C102: Open | D102: Rakhine | E102: MMR012 | H102: Maungdaw | I102: MMR012009 | J102: Myo Thu Gyi | K102: MMR012009063 | L102: Ywar Haung | M102: 197990 | N102: Thaung Paing Nyar | O102: MMR012CMP086 | P102: Accessible by All | Q102: 92.401294° | R102: 20.824517° | S102: 15 | T102: 69 | U102: =IF(AND(Table_CampList[[#This Row],[HH]]<>"",Table_CampList[[#This Row],[HH]]>0),Table_CampList[[#This Row],[Total]]/Table_CampList[[#This Row],[HH]],0) -> 4.6 | V102: Camp/Community Leader | W102: Estimate | X102: Individual (non hosted) | Z102: =COUNTIF(N:N,Table_CampList[[#This Row],[Camp Name]]) -> 1 | AA102: =C102 -> Open | AB102: Muslim
B103: 2013-07-30 | C103: Close | D103: Rakhine | E103: MMR012 | H103: Minbya | I103: MMR012005 | J103: San Bar Lay | K103: MMR012005009 | L103: Thay Kan | M103: 197021 | N103: Thay Kan | O103: MMR012CMP007 | P103: Accessible by All | Q103: 93.321957° | R103: 20.403736° | S103: 0 | T103: 0 | U103: =IF(AND(Table_CampList[[#This Row],[HH]]<>"",Table_CampList[[#This Row],[HH]]>0),Table_CampList[[#This Row],[Total]]/Table_CampList[[#This Row],[HH]],0) -> 0 | V103: Camp/Community Leader | W103: Estimate | X103: Individual (non hosted) | Z103: =COUNTIF(N:N,Table_CampList[[#This Row],[Camp Name]]) -> 1 | AA103: =C103 -> Close
B104: 2013-07-30 | C104: Close | D104: Rakhine | E104: MMR012 | H104: Sittwe | I104: MMR012001 | J104: Ywar Gyi (North) Ward | K104: MMR012001701 | M104: MMR012001701515 | N104: Theit Di Kar Yone Monastery | O104: MMR012CMP067 | P104: Accessible by All | Q104: 92.896418° | R104: 20.152895° | S104: 0 | T104: 0 | U104: =IF(AND(Table_CampList[[#This Row],[HH]]<>"",Table_CampList[[#This Row],[HH]]>0),Table_CampList[[#This Row],[Total]]/Table_CampList[[#This Row],[HH]],0) -> 0 | V104: Camp/Community Leader | W104: Estimate | X104: Collective Centre | Z104: =COUNTIF(N:N,Table_CampList[[#This Row],[Camp Name]]) -> 1 | AA104: =C104 -> Close
B105: 2013-07-30 | C105: Open | D105: Rakhine | E105: MMR012 | H105: Sittwe | I105: MMR012001 | J105: Bu May | K105: MMR012001027 | L105: Kha War De Ywar Haung | M105: 196186 | N105: Thet Kae Pyin | O105: MMR012CMP048 | P105: Accessible by All | Q105: 92.831879° | R105: 20.179940° | S105: 581 | T105: 3379 | U105: =IF(AND(Table_CampList[[#This Row],[HH]]<>"",Table_CampList[[#This Row],[HH]]>0),Table_CampList[[#This Row],[Total]]/Table_CampList[[#This Row],[HH]],0) -> 5.815834768 | V105: Camp/Community Leader | W105: Estimate | X105: Planned Camp | Z105: =COUNTIF(N:N,Table_CampList[[#This Row],[Camp Name]]) -> 1 | AA105: =C105 -> Open | AB105: Muslim
B106: 2013-07-30 | C106: Open | D106: Rakhine | E106: MMR012 | H106: Sittwe | I106: MMR012001 | J106: Bu May | K106: MMR012001027 | L106: Kha War De Ywar Haung | M106: 196186 | N106: Thet Kae Pyin (IDPs in host family) | O106: MMR012CMP091 | P106: Accessible by All | Q106: 92.842230° | R106: 20.181742° | S106: 614 | T106: 4843 | U106: =IF(AND(Table_CampList[[#This Row],[HH]]<>"",Table_CampList[[#This Row],[HH]]>0),Table_CampList[[#This Row],[Total]]/Table_CampList[[#This Row],[HH]],0) -> 7.88762215 | V106: Camp/Community Leader | W106: Estimate | X106: Individual (non hosted) | Z106: =COUNTIF(N:N,Table_CampList[[#This Row],[Camp Name]]) -> 1 | AA106: =C106 -> Open | AB106: Muslim
B107: 2013-07-30 | C107: Open | D107: Rakhine | E107: MMR012 | H107: Sittwe | I107: MMR012001 | J107: Thin Pone Tan | K107: MMR012001002 | L107: Thin Pone Tan | M107: 196129 | N107: Thin Pone Tan | O107: MMR012CMP058 | P107: Accessible by All | Q107: 92.836861° | R107: 20.226865° | S107: 7 | T107: 29 | U107: =IF(AND(Table_CampList[[#This Row],[HH]]<>"",Table_CampList[[#This Row],[HH]]>0),Table_CampList[[#This Row],[Total]]/Table_CampList[[#This Row],[HH]],0) -> 4.142857143 | V107: Camp/Community Leader | W107: Estimate | X107: Privately Hosted | Z107: =COUNTIF(N:N,Table_CampList[[#This Row],[Camp Name]]) -> 1 | AA107: =C107 -> Open | AB107: Rakhine
B108: 2013-07-30 | C108: Open | D108: Rakhine | E108: MMR012 | H108: Maungdaw | I108: MMR012009 | J108: Myo Thu Gyi | K108: MMR012009063 | N108: Ward-6 | O108: MMR012CMP095 | P108: Accessible by All | Q108: 92.416683° | R108: 20.833831° | S108: 52 | T108: 369 | U108: =IF(AND(Table_CampList[[#This Row],[HH]]<>"",Table_CampList[[#This Row],[HH]]>0),Table_CampList[[#This Row],[Total]]/Table_CampList[[#This Row],[HH]],0) -> 7.096153846 | V108: Camp/Community Leader | W108: Estimate | X108: Privately Hosted | Z108: =COUNTIF(N:N,Table_CampList[[#This Row],[Camp Name]]) -> 1 | AA108: =C108 -> Open | AB108: Muslim
B109: 2013-07-30 | C109: Close | D109: Rakhine | E109: MMR012 | H109: Sittwe | I109: MMR012001 | J109: Sin Ku Lan Ward | K109: MMR012001701 | M109: MMR012001701512 | N109: Weikzar Thaikdi Monastery | O109: MMR012CMP075 | P109: Accessible by All | Q109: 92.896533° | R109: 20.154650° | S109: 0 | T109: 0 | U109: =IF(AND(Table_CampList[[#This Row],[HH]]<>"",Table_CampList[[#This Row],[HH]]>0),Table_CampList[[#This Row],[Total]]/Table_CampList[[#This Row],[HH]],0) -> 0 | V109: Camp/Community Leader | W109: Estimate | X109: Collective Centre | Z109: =COUNTIF(N:N,Table_CampList[[#This Row],[Camp Name]]) -> 1 | AA109: =C109 -> Close
B110: 2013-07-30 | C110: Close | D110: Rakhine | E110: MMR012 | H110: Sittwe | I110: MMR012001 | J110: Ywar Gyi (South) Ward | K110: MMR012001701 | M110: MMR012001701516 | N110: Ya Tayar Monastery | O110: MMR012CMP074 | P110: Accessible by All | Q110: 92.893333° | R110: 20.146117° | S110: 0 | T110: 0 | U110: =IF(AND(Table_CampList[[#This Row],[HH]]<>"",Table_CampList[[#This Row],[HH]]>0),Table_CampList[[#This Row],[Total]]/Table_CampList[[#This Row],[HH]],0) -> 0 | V110: Camp/Community Leader | W110: Estimate | X110: Collective Centre | Z110: =COUNTIF(N:N,Table_CampList[[#This Row],[Camp Name]]) -> 1 | AA110: =C110 -> Close
B111: 2013-07-30 | C111: Open | D111: Rakhine | E111: MMR012 | H111: Mrauk_U | I111: MMR012003 | J111: Yin Thei | K111: MMR012003026 | L111: Yin Thei | M111: 196507 | N111: Yai Thei-Muslim | O111: MMR012CMP010 | P111: Accessible by All | Q111: 93.217040° | R111: 20.501758° | S111: 399 | T111: 2542 | U111: =IF(AND(Table_CampList[[#This Row],[HH]]<>"",Table_CampList[[#This Row],[HH]]>0),Table_CampList[[#This Row],[Total]]/Table_CampList[[#This Row],[HH]],0) -> 6.370927318 | V111: Camp/Community Leader | W111: Estimate | X111: Individual (non hosted) | Z111: =COUNTIF(N:N,Table_CampList[[#This Row],[Camp Name]]) -> 1 | AA111: =C111 -> Open | AB111: Muslim
B112: 2013-07-30 | C112: Open | D112: Rakhine | E112: MMR012 | H112: Kyauktaw | I112: MMR012004 | J112: Ah Pauk Wa | K112: MMR012004064 | L112: Yun Nyar | M112: 196952 | N112: Yun Nyar | O112: MMR012CMP028 | P112: Accessible by All | Q112: 92.969350° | R112: 20.727590° | S112: 143 | T112: 738 | U112: =IF(AND(Table_CampList[[#This Row],[HH]]<>"",Table_CampList[[#This Row],[HH]]>0),Table_CampList[[#This Row],[Total]]/Table_CampList[[#This Row],[HH]],0) -> 5.160839161 | V112: Camp/Community Leader | W112: Estimate | X112: Individual (non hosted) | Z112: =COUNTIF(N:N,Table_CampList[[#This Row],[Camp Name]]) -> 1 | AA112: =C112 -> Open | AB112: Muslim
B113: 2013-07-30 | C113: Open | D113: Rakhine | E113: MMR012 | H113: Maungdaw | I113: MMR012009 | J113: Ywar Thit Kay Ward | K113: MMR012009701 | M113: MMR012009701505 | N113: Ywa thit Kay | O113: MMR012CMP085 | P113: Accessible by All | Q113: 92.367853° | R113: 20.825306° | S113: 8 | T113: 62 | U113: =IF(AND(Table_CampList[[#This Row],[HH]]<>"",Table_CampList[[#This Row],[HH]]>0),Table_CampList[[#This Row],[Total]]/Table_CampList[[#This Row],[HH]],0) -> 7.75 | V113: Camp/Community Leader | W113: Estimate | X113: Individual (non hosted) | Z113: =COUNTIF(N:N,Table_CampList[[#This Row],[Camp Name]]) -> 1 | AA113: =C113 -> Open | AB113: Muslim
B114: 2013-08-31 | C114: Open | D114: Rakhine | E114: MMR012 | H114: Maungdaw | N114: Ywa thit Kay 2 | O114: MMR012CMP107 | P114: Accessible by All | Q114: 92.367536° | R114: 20.825500° | S114: 6 | T114: 43 | U114: =IF(AND(Table_CampList[[#This Row],[HH]]<>"",Table_CampList[[#This Row],[HH]]>0),Table_CampList[[#This Row],[Total]]/Table_CampList[[#This Row],[HH]],0) -> 7.166666667 | V114: Camp/Community Leader | W114: Estimate | X114: Planned Camp | Z114: =COUNTIF(N:N,Table_CampList[[#This Row],[Camp Name]]) -> 1 | AA114: =C114 -> Open | AB114: Rakhine
B115: 2013-08-31 | C115: Open | D115: Rakhine | E115: MMR012 | H115: Maungdaw | N115: Ywa thit Kay 3 | O115: MMR012CMP108 | P115: Accessible by All | Q115: 92.367933° | R115: 20.825417° | S115: 4 | T115: 41 | U115: =IF(AND(Table_CampList[[#This Row],[HH]]<>"",Table_CampList[[#This Row],[HH]]>0),Table_CampList[[#This Row],[Total]]/Table_CampList[[#This Row],[HH]],0) -> 10.25 | V115: Camp/Community Leader | W115: Estimate | X115: Individual accommodation | Z115: =COUNTIF(N:N,Table_CampList[[#This Row],[Camp Name]]) -> 1 | AA115: =C115 -> Open | AB115: Hindu

Sheet Camp List (print)
A2: Rakhine - IDPs CAMP LIST
A3: =Report_Date -> 2013-09-01
A6: Status | B6: Open
A8: TOWNSHIP_NAME | B8: Camp Name | C8: Type of Accomodation | D8: P_Code | E8: Longitude | F8: Latitude | G8: HH | H8: Ind
A9: Maungdaw | B9: Bomu Ywa | C9: Planned Camp | D9: MMR012CMP084 | E9: 92.365794° | F9: 20.819958° | G9: 10 | H9: 106
B10: Du Than Dar | C10: Individual accommodation | D10: MMR012CMP088 | E10: 92.443428° | F10: 20.714847° | G10: 45 | H10: 291
B11: Myoma Myauk | C11: Individual accommodation | D11: MMR012CMP083 | E11: 92.362933° | F11: 20.827044° | G11: 80 | H11: 585
B12: Nyaung Pin Hla | C12: Individual (non hosted) | D12: MMR012CMP082 | E12: 92.362197° | F12: 20.824778° | G12: 4 | H12: 20
B13: Sin Thay Pyin | C13: Privately Hosted | D13: MMR012CMP094 | E13: 92.338031° | F13: 21.066664° | G13: 8 | H13: 53
B14: Thaung Paing Nyar | C14: Individual (non hosted) | D14: MMR012CMP086 | E14: 92.401294° | F14: 20.824517° | G14: 15 | H14: 69
B15: Ward-6 | C15: Privately Hosted | D15: MMR012CMP095 | E15: 92.416683° | F15: 20.833831° | G15: 52 | H15: 369
B16: Ywa thit Kay | C16: Individual (non hosted) | D16: MMR012CMP085 | E16: 92.367853° | F16: 20.825306° | G16: 8 | H16: 62
B17: Ywa thit Kay 2 | C17: Planned Camp | D17: MMR012CMP107 | E17: 92.367536° | F17: 20.825500° | G17: 6 | H17: 43
B18: Ywa thit Kay 3 | C18: Individual accommodation | D18: MMR012CMP108 | E18: 92.367933° | F18: 20.825417° | G18: 4 | H18: 41
B19: Bomu Ywa 2 | C19: Planned Camp | D19: MMR012CMP106 | E19: 92.365619° | F19: 20.820317° | G19: 8 | H19: 52
B20: Honsara (Zaw Ma Tat) | C20: Individual accommodation | D20: MMR012CMP109 | E20: 92.435378° | F20: 20.713883° | G20: 48 | H20: 355
A21: Maungdaw Total | G21: 288 | H21: 2046
A22: Grand Total | G22: 288 | H22: 2046

Sheet CampAnalysis
A2: CAMPS SUMMARY
A3: =Report_Date -> 2013-09-01
A5: Rakhine State # of IDPs /Township
A7: State | B7: Rakhine | C7: (Select State)
A9: Row Labels | B9: # of Camps | C9: Households | D9: Population | P9: State | Q9: Rakhine | R9: (Select State)
A10: Close | B10: 36 | C10: 0 | D10: 0
A11: Maungdaw | B11: 8 | C11: 0 | D11: 0 | P11: Row Labels | Q11: Population
A12: Minbya | B12: 2 | C12: 0 | D12: 0 | P12: Sittwe | Q12: 91881
A13: Rathedaung | B13: 1 | C13: 0 | D13: 0 | P13: Pauktaw | Q13: 20054
A14: Sittwe | B14: 25 | C14: 0 | D14: 0 | P14: Kyauktaw | Q14: 6554
A15: Open | B15: 75 | C15: 25649 | D15: 139881 | P15: Minbya | Q15: 5207
A16: Kyauk_Phyu | B16: 2 | C16: 492 | D16: 1867 | P16: Meybon | Q16: 4066
A17: Kyauktaw | B17: 11 | C17: 1053 | D17: 6554 | P17: Mrauk_U | Q17: 3998
A18: Maungdaw | B18: 12 | C18: 288 | D18: 2046 | P18: Rathedaung | Q18: 3981
A19: Meybon | B19: 2 | C19: 674 | D19: 4066 | P19: Maungdaw | Q19: 2046
A20: Minbya | B20: 7 | C20: 949 | D20: 5207 | P20: Kyauk_Phyu | Q20: 1867
A21: Mrauk_U | B21: 4 | C21: 685 | D21: 3998 | P21: Ramree | Q21: 227
A22: Pauktaw | B22: 6 | C22: 4017 | D22: 20054 | P22: Grand Total | Q22: 139881
A23: Ramree | B23: 2 | C23: 69 | D23: 227
A24: Rathedaung | B24: 5 | C24: 782 | D24: 3981
A25: Sittwe | B25: 24 | C25: 16640 | D25: 91881
A26: Grand Total | B26: 111 | C26: 25649 | D26: 139881
A33: Status | B33: Open
A35: Row Labels | B35: Sum of Total
A36: Collective Centre | B36: 64
A37: Individual (non hosted) | B37: 30205
A38: Planned Camp | B38: 67554
A39: Privately Hosted | B39: 495
A40: Individual accommodation | B40: 41563
A41: Grand Total | B41: 139881
A45: Status | B45: Open
B47: Column Labels
B48: Hindu | C48: Maramargyi | D48: Muslim | E48: Rakhine | F48: Grand Total
A49: Sum of Total | B49: 41 | C49: 499 | D49: 134500 | E49: 4841 | F49: 139881

Sheet Rakhine_CCCM_D
A2: Rakhine CCCM Dashboard
A3: 2013-08-01
AH4: Township | AI4: 1-1k | AJ4: 1k-5k | AK4: 5k-10k | AL4: Over 10k
AH5: Kyauk_Phyu | AI5: =SUMIFS(Camplist_Popl,Camplist_Township,AH5,Camplist_Popl,">0",Camplist_Popl,"<=1000") -> 318 | AJ5: =SUMIFS(Camplist_Popl,Camplist_Township,AH5,Camplist_Popl,">1000",Camplist_Popl,"<=5000") -> 1549 | AK5: =SUMIFS(Camplist_Popl,Camplist_Township,AH5,Camplist_Popl,">5000",Camplist_Popl,"<=10000") -> 0 | AL5: =SUMIFS(Camplist_Popl,Camplist_Township,AH5,Camplist_Popl,">10000") -> 0
AH6: Kyauktaw | AI6: 5187 | AJ6: =SUMIFS(Camplist_Popl,Camplist_Township,AH6,Camplist_Popl,">1000",Camplist_Popl,"<=5000") -> 1367 | AK6: =SUMIFS(Camplist_Popl,Camplist_Township,AH6,Camplist_Popl,">5000",Camplist_Popl,"<=10000") -> 0 | AL6: 0
AH7: Maungdaw | AI7: 2046 | AJ7: 0 | AK7: =SUMIFS(Camplist_Popl,Camplist_Township,AH7,Camplist_Popl,">5000",Camplist_Popl,"<=10000") -> 0 | AL7: 0
AH8: Meybon | AI8: 222 | AJ8: 3844 | AK8: 0 | AL8: 0
AH9: Minbya | AI9: 1297 | AJ9: 3910 | AK9: 0 | AL9: 0
AH10: Mrauk_U | AI10: 228 | AJ10: 3770 | AK10: 0 | AL10: 0
A11: Township | B11: # of HH | C11: # of IDPs | D11: # of Camp | AH11: Pauktaw | AI11: 97 | AJ11: 12905 | AK11: 7052 | AL11: 0
A12: Kyauk_Phyu | B12: =SUMIFS(Camplist_HH,Camplist_Township,Rakhine_CCCM_D!$A12,CampList_Status,"Open") -> 492 | C12: =SUMIFS(Camplist_Popl,Camplist_Township,Rakhine_CCCM_D!$A12,CampList_Status,"Open") -> 1867 | D12: =COUNTIFS(Camplist_Township,Rakhine_CCCM_D!A12,CampList_Status,"open") -> 2 | AH12: Ramree | AI12: 227 | AJ12: 0 | AK12: 0 | AL12: 0
A13: Kyauktaw | B13: =SUMIFS(Camplist_HH,Camplist_Township,Rakhine_CCCM_D!$A13,CampList_Status,"Open") -> 1053 | C13: =SUMIFS(Camplist_Popl,Camplist_Township,Rakhine_CCCM_D!$A13,CampList_Status,"Open") -> 6554 | D13: =COUNTIFS(Camplist_Township,Rakhine_CCCM_D!A13,CampList_Status,"open") -> 11 | AH13: Rathedaung | AI13: 1591 | AJ13: 2390 | AK13: 0 | AL13: 0
A14: Maungdaw | B14: =SUMIFS(Camplist_HH,Camplist_Township,Rakhine_CCCM_D!$A14,CampList_Status,"Open") -> 288 | C14: =SUMIFS(Camplist_Popl,Camplist_Township,Rakhine_CCCM_D!$A14,CampList_Status,"Open") -> 2046 | D14: =COUNTIFS(Camplist_Township,Rakhine_CCCM_D!A14,CampList_Status,"open") -> 12 | AH14: Sittwe | AI14: 1469 | AJ14: 42755 | AK14: 14332 | AL14: 33325
A15: Meybon | B15: =SUMIFS(Camplist_HH,Camplist_Township,Rakhine_CCCM_D!$A15,CampList_Status,"Open") -> 674 | C15: =SUMIFS(Camplist_Popl,Camplist_Township,Rakhine_CCCM_D!$A15,CampList_Status,"Open") -> 4066 | D15: =COUNTIFS(Camplist_Township,Rakhine_CCCM_D!A15,CampList_Status,"open") -> 2 | AH15: Total | AI15: =SUM(AI5:AI14) -> 12682 | AJ15: =SUM(AJ5:AJ14) -> 72490 | AK15: 21384 | AL15: 33325 | AN15: =SUM(AI15:AL15) -> 139881
A16: Minbya | B16: =SUMIFS(Camplist_HH,Camplist_Township,Rakhine_CCCM_D!$A16,CampList_Status,"Open") -> 949 | C16: =SUMIFS(Camplist_Popl,Camplist_Township,Rakhine_CCCM_D!$A16,CampList_Status,"Open") -> 5207 | D16: =COUNTIFS(Camplist_Township,Rakhine_CCCM_D!A16,CampList_Status,"open") -> 7 | AH16: % of IDP | AI16: =AI15/$AN$15 -> 0.09066277765 | AJ16: =AJ15/$AN$15 -> 0.5182262066 | AK16: =AK15/$AN$15 -> 0.152872799 | AL16: =AL15/$AN$15 -> 0.2382382168
A17: Mrauk_U | B17: =SUMIFS(Camplist_HH,Camplist_Township,Rakhine_CCCM_D!$A17,CampList_Status,"Open") -> 685 | C17: =SUMIFS(Camplist_Popl,Camplist_Township,Rakhine_CCCM_D!$A17,CampList_Status,"Open") -> 3998 | D17: =COUNTIFS(Camplist_Township,Rakhine_CCCM_D!A17,CampList_Status,"open") -> 4
A18: Pauktaw | B18: =SUMIFS(Camplist_HH,Camplist_Township,Rakhine_CCCM_D!$A18,CampList_Status,"Open") -> 4017 | C18: =SUMIFS(Camplist_Popl,Camplist_Township,Rakhine_CCCM_D!$A18,CampList_Status,"Open") -> 20054 | D18: =COUNTIFS(Camplist_Township,Rakhine_CCCM_D!A18,CampList_Status,"open") -> 6
A19: Ramree | B19: =SUMIFS(Camplist_HH,Camplist_Township,Rakhine_CCCM_D!$A19,CampList_Status,"Open") -> 69 | C19: =SUMIFS(Camplist_Popl,Camplist_Township,Rakhine_CCCM_D!$A19,CampList_Status,"Open") -> 227 | D19: =COUNTIFS(Camplist_Township,Rakhine_CCCM_D!A19,CampList_Status,"open") -> 2
A20: Rathedaung | B20: =SUMIFS(Camplist_HH,Camplist_Township,Rakhine_CCCM_D!$A20,CampList_Status,"Open") -> 782 | C20: =SUMIFS(Camplist_Popl,Camplist_Township,Rakhine_CCCM_D!$A20,CampList_Status,"Open") -> 3981 | D20: =COUNTIFS(Camplist_Township,Rakhine_CCCM_D!A20,CampList_Status,"open") -> 5 | AI20: # of camps by Size of Population
A21: Sittwe | B21: =SUMIFS(Camplist_HH,Camplist_Township,Rakhine_CCCM_D!$A21,CampList_Status,"Open") -> 16640 | C21: =SUMIFS(Camplist_Popl,Camplist_Township,Rakhine_CCCM_D!$A21,CampList_Status,"Open") -> 91881 | D21: =COUNTIFS(Camplist_Township,Rakhine_CCCM_D!A21,CampList_Status,"open") -> 24 | AH21: Township | AI21: 1-1k | AJ21: 1k - 5k | AK21: 5k-10k | AL21: >10k | AM21: Unknown
A22: Total | B22: =SUM(B12:B21) -> 25649 | C22: =SUM(C12:C21) -> 139881 | D22: =SUM(D12:D21) -> 75 | AH22: Kyauk_Phyu | AI22: =COUNTIFS(Camplist_Township,Rakhine_CCCM_D!$AH22,Camplist_Popl,">0",Camplist_Popl,"<=1000") -> 1 | AJ22: =COUNTIFS(Camplist_Township,Rakhine_CCCM_D!$AH22,Camplist_Popl,">1000",Camplist_Popl,"<=5000") -> 1 | AK22: =COUNTIFS(Camplist_Township,Rakhine_CCCM_D!$AH22,Camplist_Popl,">5000",Camplist_Popl,"<=10000") -> 0 | AL22: =COUNTIFS(Camplist_Township,Rakhine_CCCM_D!$AH22,Camplist_Popl,">10000") -> 0 | AM22: =COUNTIFS(Camplist_Township,Rakhine_CCCM_D!$AH22,Camplist_Popl,"=0",CampList_Status,"Open") -> 0
AH23: Kyauktaw | AI23: =COUNTIFS(Camplist_Township,Rakhine_CCCM_D!$AH23,Camplist_Popl,">0",Camplist_Popl,"<=1000") -> 10 | AJ23: =COUNTIFS(Camplist_Township,Rakhine_CCCM_D!$AH23,Camplist_Popl,">1000",Camplist_Popl,"<=5000") -> 1 | AK23: =COUNTIFS(Camplist_Township,Rakhine_CCCM_D!$AH23,Camplist_Popl,">5000",Camplist_Popl,"<=10000") -> 0 | AL23: =COUNTIFS(Camplist_Township,Rakhine_CCCM_D!$AH23,Camplist_Popl,">10000") -> 0 | AM23: =COUNTIFS(Camplist_Township,Rakhine_CCCM_D!$AH23,Camplist_Popl,"=0",CampList_Status,"Open") -> 0
AH24: Maungdaw | AI24: =COUNTIFS(Camplist_Township,Rakhine_CCCM_D!$AH24,Camplist_Popl,">0",Camplist_Popl,"<=1000") -> 12 | AJ24: =COUNTIFS(Camplist_Township,Rakhine_CCCM_D!$AH24,Camplist_Popl,">1000",Camplist_Popl,"<=5000") -> 0 | AK24: =COUNTIFS(Camplist_Township,Rakhine_CCCM_D!$AH24,Camplist_Popl,">5000",Camplist_Popl,"<=10000") -> 0 | AL24: =COUNTIFS(Camplist_Township,Rakhine_CCCM_D!$AH24,Camplist_Popl,">10000") -> 0 | AM24: =COUNTIFS(Camplist_Township,Rakhine_CCCM_D!$AH24,Camplist_Popl,"=0",CampList_Status,"Open") -> 0
AH25: Meybon | AI25: =COUNTIFS(Camplist_Township,Rakhine_CCCM_D!$AH25,Camplist_Popl,">0",Camplist_Popl,"<=1000") -> 1 | AJ25: =COUNTIFS(Camplist_Township,Rakhine_CCCM_D!$AH25,Camplist_Popl,">1000",Camplist_Popl,"<=5000") -> 1 | AK25: =COUNTIFS(Camplist_Township,Rakhine_CCCM_D!$AH25,Camplist_Popl,">5000",Camplist_Popl,"<=10000") -> 0 | AL25: =COUNTIFS(Camplist_Township,Rakhine_CCCM_D!$AH25,Camplist_Popl,">10000") -> 0 | AM25: =COUNTIFS(Camplist_Township,Rakhine_CCCM_D!$AH25,Camplist_Popl,"=0",CampList_Status,"Open") -> 0
AH26: Minbya | AI26: =COUNTIFS(Camplist_Township,Rakhine_CCCM_D!$AH26,Camplist_Popl,">0",Camplist_Popl,"<=1000") -> 4 | AJ26: =COUNTIFS(Camplist_Township,Rakhine_CCCM_D!$AH26,Camplist_Popl,">1000",Camplist_Popl,"<=5000") -> 3 | AK26: =COUNTIFS(Camplist_Township,Rakhine_CCCM_D!$AH26,Camplist_Popl,">5000",Camplist_Popl,"<=10000") -> 0 | AL26: =COUNTIFS(Camplist_Township,Rakhine_CCCM_D!$AH26,Camplist_Popl,">10000") -> 0 | AM26: =COUNTIFS(Camplist_Township,Rakhine_CCCM_D!$AH26,Camplist_Popl,"=0",CampList_Status,"Open") -> 0
AH27: Mrauk_U | AI27: =COUNTIFS(Camplist_Township,Rakhine_CCCM_D!$AH27,Camplist_Popl,">0",Camplist_Popl,"<=1000") -> 2 | AJ27: =COUNTIFS(Camplist_Township,Rakhine_CCCM_D!$AH27,Camplist_Popl,">1000",Camplist_Popl,"<=5000") -> 2 | AK27: =COUNTIFS(Camplist_Township,Rakhine_CCCM_D!$AH27,Camplist_Popl,">5000",Camplist_Popl,"<=10000") -> 0 | AL27: =COUNTIFS(Camplist_Township,Rakhine_CCCM_D!$AH27,Camplist_Popl,">10000") -> 0 | AM27: =COUNTIFS(Camplist_Township,Rakhine_CCCM_D!$AH27,Camplist_Popl,"=0",CampList_Status,"Open") -> 0
AH28: Pauktaw | AI28: =COUNTIFS(Camplist_Township,Rakhine_CCCM_D!$AH28,Camplist_Popl,">0",Camplist_Popl,"<=1000") -> 1 | AJ28: =COUNTIFS(Camplist_Township,Rakhine_CCCM_D!$AH28,Camplist_Popl,">1000",Camplist_Popl,"<=5000") -> 4 | AK28: =COUNTIFS(Camplist_Township,Rakhine_CCCM_D!$AH28,Camplist_Popl,">5000",Camplist_Popl,"<=10000") -> 1 | AL28: =COUNTIFS(Camplist_Township,Rakhine_CCCM_D!$AH28,Camplist_Popl,">10000") -> 0 | AM28: =COUNTIFS(Camplist_Township,Rakhine_CCCM_D!$AH28,Camplist_Popl,"=0",CampList_Status,"Open") -> 0
AH29: Ramree | AI29: =COUNTIFS(Camplist_Township,Rakhine_CCCM_D!$AH29,Camplist_Popl,">0",Camplist_Popl,"<=1000") -> 2 | AJ29: =COUNTIFS(Camplist_Township,Rakhine_CCCM_D!$AH29,Camplist_Popl,">1000",Camplist_Popl,"<=5000") -> 0 | AK29: =COUNTIFS(Camplist_Township,Rakhine_CCCM_D!$AH29,Camplist_Popl,">5000",Camplist_Popl,"<=10000") -> 0 | AL29: =COUNTIFS(Camplist_Township,Rakhine_CCCM_D!$AH29,Camplist_Popl,">10000") -> 0 | AM29: =COUNTIFS(Camplist_Township,Rakhine_CCCM_D!$AH29,Camplist_Popl,"=0",CampList_Status,"Open") -> 0
AH30: Rathedaung | AI30: =COUNTIFS(Camplist_Township,Rakhine_CCCM_D!$AH30,Camplist_Popl,">0",Camplist_Popl,"<=1000") -> 3 | AJ30: =COUNTIFS(Camplist_Township,Rakhine_CCCM_D!$AH30,Camplist_Popl,">1000",Camplist_Popl,"<=5000") -> 2 | AK30: =COUNTIFS(Camplist_Township,Rakhine_CCCM_D!$AH30,Camplist_Popl,">5000",Camplist_Popl,"<=10000") -> 0 | AL30: =COUNTIFS(Camplist_Township,Rakhine_CCCM_D!$AH30,Camplist_Popl,">10000") -> 0 | AM30: =COUNTIFS(Camplist_Township,Rakhine_CCCM_D!$AH30,Camplist_Popl,"=0",CampList_Status,"Open") -> 0
AH31: Sittwe | AI31: =COUNTIFS(Camplist_Township,Rakhine_CCCM_D!$AH31,Camplist_Popl,">0",Camplist_Popl,"<=1000") -> 4 | AJ31: =COUNTIFS(Camplist_Township,Rakhine_CCCM_D!$AH31,Camplist_Popl,">1000",Camplist_Popl,"<=5000") -> 15 | AK31: =COUNTIFS(Camplist_Township,Rakhine_CCCM_D!$AH31,Camplist_Popl,">5000",Camplist_Popl,"<=10000") -> 2 | AL31: =COUNTIFS(Camplist_Township,Rakhine_CCCM_D!$AH31,Camplist_Popl,">10000") -> 3 | AM31: =COUNTIFS(Camplist_Township,Rakhine_CCCM_D!$AH31,Camplist_Popl,"=0",CampList_Status,"Open") -> 0
AH32: Total | AI32: =SUM(AI22:AI31) -> 40 | AJ32: =SUM(AJ22:AJ31) -> 29 | AK32: 3 | AL32: 3 | AM32: 0
E33: Size of camps
F34: 1-1k | G34: 1k-5k | H34: 5k-10k | I34: Over 10k | J34: Unknown
E35: # of Camps | F35: =AI32 -> 40 | G35: =AJ32 -> 29 | H35: =AK32 -> 3 | I35: =AL32 -> 3 | J35: =AM32 -> 0
E36: # of IDP | F36: =AI15 -> 12682 | G36: =AJ15 -> 72490 | H36: 21384 | I36: 33325 | J36: 0

Sheet Sheet3
C3: Status | D3: Open
C5: Row Labels | D5: Sum of HH | E5: Sum of Total | F5: Sum of HHCovered
C6: Sittwe | D6: 16340 | E6: 95372 | F6: 16151
C7: Basare | D7: 395 | E7: 1790 | F7: 416
C8: Baw Du Pha | D8: 2051 | E8: 10461 | F8: 3008
C9: Baw Du Pha (IDP in host families) | D9: 41 | E9: 226
C10: Dar Pai | D10: 1885 | E10: 11154 | F10: 1456
C11: Dar Pai (IDP in host families) | D11: 468 | E11: 2818
C12: Hmanzi | D12: 212 | E12: 1354 | F12: 400
C13: Khaung Doke Khar | D13: 384 | E13: 2050 | F13: 400
C14: Maw Ti Ngar (TKP west) | D14: 312 | E14: 1992 | F14: 624
C15: Ohn Taw Gyi 1 | D15: 1076 | E15: 6225 | F15: 1200
C16: Ohn Taw Gyi 2 | D16: 526 | E16: 3031 | F16: 640
C17: Ohn Taw Gyi 3 | D17: 380 | E17: 1828 | F17: 960
C18: Ohn Taw Gyi 4 | D18: 849 | E18: 5974 | F18: 960
C19: Ohn Taw Gyi 5 | D19: 849 | E19: 5973 | F19: 808
C20: Phwe Yar Kone | D20: 350 | E20: 2115 | F20: 800
C21: Sat Roe Kya | D21: 500 | E21: 2989 | F21: 819
C22: Say Tha Mar Gyi | D22: 2268 | E22: 13963 | F22: 2280
C23: Set Yone Su | D23: 74 | E23: 435 | F23: 220
C24: Set Yone Su 3 | D24: 176 | E24: 776 | F24: 176
C25: Thae Chaung | D25: 1505 | E25: 8107
C26: Thae Chaung (IDP in host families) | D26: 377 | E26: 1982
C27: Thae Chaung (Kyaukphyu) | D27: 460 | E27: 1879
C28: Thet Kae Pyin | D28: 581 | E28: 3379 | F28: 984
C29: Thet Kae Pyin (IDPs in host family) | D29: 614 | E29: 4843
C30: Thin Pone Tan | D30: 7 | E30: 28
C31: Grand Total | D31: 16340 | E31: 95372 | F31: 16151

Sheet Shelter Tracking
A2: SHELTERTRACKINGSHEET
A3: =Report_Date -> 2013-09-01
A4: DateUpdated | B4: Organization | C4: ImplementingPartner | D4: State | E4: Township | F4: CampName | G4: HHperShelter | H4: #ofFamilyTentPlanned(Target) | I4: #ofFamilyTentDistributed | J4: #ofTemporaryShelterPlanned(Target) | K4: #ofTemporaryShelterBuilt | L4: #ofTemporaryShelterUnderConstruction | M4: #ofPermanentHousePlanned(Target) | N4: #ofPermanentHouseBuilt | O4: #ofPermanentHouseUnderConstruction | P4: HHCovered | Q4: Pcode | R4: Status | S4: Coverage/Camp
A5: 2013-08-02 | B5: Government | C5: Government | D5: Rakhine | E5: Minbya | F5: Paik Thay | G5: 8 | J5: 2 | K5: 1 | L5: 1 | P5: =Table_Shelter[[#This Row],[HHperShelter]]*(Table_Shelter[[#This Row],['#ofTemporaryShelterBuilt]]+Table_Shelter[[#This Row],['#ofTemporaryShelterUnderConstruction]]+Table_Shelter[[#This Row],['#ofPermanentHouseBuilt]]+Table_Shelter[[#This Row],['#ofPermanentHouseUnderConstruction]]) -> 16 | Q5: =VLOOKUP(Table_Shelter[[#This Row],[CampName]],Camp_List!N$5:O$302,2,0) -> MMR012CMP001 | R5: =VLOOKUP(Table_Shelter[[#This Row],[CampName]],Camp_List!N$5:AA$302,14,0) -> Open | S5: =Table_Shelter[[#This Row],[HHCovered]]/VLOOKUP(Table_Shelter[[#This Row],[CampName]],Camp_List!N$5:AA$302,6,0) -> 0.8421052632
A6: 2013-08-02 | B6: Government | C6: Government | D6: Rakhine | E6: Minbya | F6: Tha Dar | G6: 8 | J6: 14 | K6: 13 | L6: 1 | P6: =Table_Shelter[[#This Row],[HHperShelter]]*(Table_Shelter[[#This Row],['#ofTemporaryShelterBuilt]]+Table_Shelter[[#This Row],['#ofTemporaryShelterUnderConstruction]]+Table_Shelter[[#This Row],['#ofPermanentHouseBuilt]]+Table_Shelter[[#This Row],['#ofPermanentHouseUnderConstruction]]) -> 112 | Q6: =VLOOKUP(Table_Shelter[[#This Row],[CampName]],Camp_List!N$5:O$302,2,0) -> MMR012CMP002 | R6: =VLOOKUP(Table_Shelter[[#This Row],[CampName]],Camp_List!N$5:AA$302,14,0) -> Open | S6: =Table_Shelter[[#This Row],[HHCovered]]/VLOOKUP(Table_Shelter[[#This Row],[CampName]],Camp_List!N$5:AA$302,6,0) -> 0.5517241379
A7: 2013-08-02 | B7: Government | C7: Government | D7: Rakhine | E7: Minbya | F7: San Htoe Tan | G7: 8 | J7: 10 | K7: 10 | P7: =Table_Shelter[[#This Row],[HHperShelter]]*(Table_Shelter[[#This Row],['#ofTemporaryShelterBuilt]]+Table_Shelter[[#This Row],['#ofTemporaryShelterUnderConstruction]]+Table_Shelter[[#This Row],['#ofPermanentHouseBuilt]]+Table_Shelter[[#This Row],['#ofPermanentHouseUnderConstruction]]) -> 80 | Q7: =VLOOKUP(Table_Shelter[[#This Row],[CampName]],Camp_List!N$5:O$302,2,0) -> MMR012CMP003 | R7: =VLOOKUP(Table_Shelter[[#This Row],[CampName]],Camp_List!N$5:AA$302,14,0) -> Open | S7: =Table_Shelter[[#This Row],[HHCovered]]/VLOOKUP(Table_Shelter[[#This Row],[CampName]],Camp_List!N$5:AA$302,6,0) -> 0.6451612903
A8: 2013-08-02 | B8: Government | C8: Government | D8: Rakhine | E8: Minbya | F8: Tha Yet Oak | G8: 8 | J8: 20 | K8: 20 | P8: =Table_Shelter[[#This Row],[HHperShelter]]*(Table_Shelter[[#This Row],['#ofTemporaryShelterBuilt]]+Table_Shelter[[#This Row],['#ofTemporaryShelterUnderConstruction]]+Table_Shelter[[#This Row],['#ofPermanentHouseBuilt]]+Table_Shelter[[#This Row],['#ofPermanentHouseUnderConstruction]]) -> 160 | Q8: =VLOOKUP(Table_Shelter[[#This Row],[CampName]],Camp_List!N$5:O$302,2,0) -> MMR012CMP005 | R8: =VLOOKUP(Table_Shelter[[#This Row],[CampName]],Camp_List!N$5:AA$302,14,0) -> Open | S8: =Table_Shelter[[#This Row],[HHCovered]]/VLOOKUP(Table_Shelter[[#This Row],[CampName]],Camp_List!N$5:AA$302,6,0) -> 0.5818181818
A9: 2013-08-02 | B9: Government | C9: Government | D9: Rakhine | E9: Minbya | F9: Aung Taing | G9: 8 | J9: 10 | K9: 10 | P9: =Table_Shelter[[#This Row],[HHperShelter]]*(Table_Shelter[[#This Row],['#ofTemporaryShelterBuilt]]+Table_Shelter[[#This Row],['#ofTemporaryShelterUnderConstruction]]+Table_Shelter[[#This Row],['#ofPermanentHouseBuilt]]+Table_Shelter[[#This Row],['#ofPermanentHouseUnderConstruction]]) -> 80 | Q9: =VLOOKUP(Table_Shelter[[#This Row],[CampName]],Camp_List!N$5:O$302,2,0) -> MMR012CMP006 | R9: =VLOOKUP(Table_Shelter[[#This Row],[CampName]],Camp_List!N$5:AA$302,14,0) -> Open | S9: =Table_Shelter[[#This Row],[HHCovered]]/VLOOKUP(Table_Shelter[[#This Row],[CampName]],Camp_List!N$5:AA$302,6,0) -> 0.9302325581
A10: 2013-08-02 | B10: Government | C10: Government | D10: Rakhine | E10: Minbya | F10: Sam Ba Le | G10: 8 | J10: 28 | K10: 25 | L10: 3 | P10: =Table_Shelter[[#This Row],[HHperShelter]]*(Table_Shelter[[#This Row],['#ofTemporaryShelterBuilt]]+Table_Shelter[[#This Row],['#ofTemporaryShelterUnderConstruction]]+Table_Shelter[[#This Row],['#ofPermanentHouseBuilt]]+Table_Shelter[[#This Row],['#ofPermanentHouseUnderConstruction]]) -> 224 | Q10: =VLOOKUP(Table_Shelter[[#This Row],[CampName]],Camp_List!N$5:O$302,2,0) -> MMR012CMP008 | R10: =VLOOKUP(Table_Shelter[[#This Row],[CampName]],Camp_List!N$5:AA$302,14,0) -> Open | S10: =Table_Shelter[[#This Row],[HHCovered]]/VLOOKUP(Table_Shelter[[#This Row],[CampName]],Camp_List!N$5:AA$302,6,0) -> 0.9955555556
A11: 2013-08-02 | B11: Government | C11: Government | D11: Rakhine | E11: Mrauk_U | F11: Pa Rein | G11: 8 | J11: 26 | K11: 26 | P11: =Table_Shelter[[#This Row],[HHperShelter]]*(Table_Shelter[[#This Row],['#ofTemporaryShelterBuilt]]+Table_Shelter[[#This Row],['#ofTemporaryShelterUnderConstruction]]+Table_Shelter[[#This Row],['#ofPermanentHouseBuilt]]+Table_Shelter[[#This Row],['#ofPermanentHouseUnderConstruction]]) -> 208 | Q11: =VLOOKUP(Table_Shelter[[#This Row],[CampName]],Camp_List!N$5:O$302,2,0) -> MMR012CMP009 | R11: =VLOOKUP(Table_Shelter[[#This Row],[CampName]],Camp_List!N$5:AA$302,14,0) -> Open | S11: =Table_Shelter[[#This Row],[HHCovered]]/VLOOKUP(Table_Shelter[[#This Row],[CampName]],Camp_List!N$5:AA$302,6,0) -> 0.8666666667
A12: 2013-08-02 | B12: Government | C12: Government | D12: Rakhine | E12: Mrauk_U | F12: Yai Thei-Muslim | G12: 8 | J12: 46 | K12: 46 | P12: =Table_Shelter[[#This Row],[HHperShelter]]*(Table_Shelter[[#This Row],['#ofTemporaryShelterBuilt]]+Table_Shelter[[#This Row],['#ofTemporaryShelterUnderConstruction]]+Table_Shelter[[#This Row],['#ofPermanentHouseBuilt]]+Table_Shelter[[#This Row],['#ofPermanentHouseUnderConstruction]]) -> 368 | Q12: =VLOOKUP(Table_Shelter[[#This Row],[CampName]],Camp_List!N$5:O$302,2,0) -> MMR012CMP010 | R12: =VLOOKUP(Table_Shelter[[#This Row],[CampName]],Camp_List!N$5:AA$302,14,0) -> Open | S12: =Table_Shelter[[#This Row],[HHCovered]]/VLOOKUP(Table_Shelter[[#This Row],[CampName]],Camp_List!N$5:AA$302,6,0) -> 0.9223057644
A13: 2013-08-02 | B13: UNHCR | C13: UNHCR | D13: Rakhine | E13: Meybon | F13: Kan Thar Htwat Wa | G13: 8 | J13: 6 | K13: 6 | L13: 0 | P13: =Table_Shelter[[#This Row],[HHperShelter]]*(Table_Shelter[[#This Row],['#ofTemporaryShelterBuilt]]+Table_Shelter[[#This Row],['#ofTemporaryShelterUnderConstruction]]+Table_Shelter[[#This Row],['#ofPermanentHouseBuilt]]+Table_Shelter[[#This Row],['#ofPermanentHouseUnderConstruction]]) -> 48 | Q13: =VLOOKUP(Table_Shelter[[#This Row],[CampName]],Camp_List!N$5:O$302,2,0) -> MMR012CMP013 | R13: =VLOOKUP(Table_Shelter[[#This Row],[CampName]],Camp_List!N$5:AA$302,14,0) -> Open | S13: =Table_Shelter[[#This Row],[HHCovered]]/VLOOKUP(Table_Shelter[[#This Row],[CampName]],Camp_List!N$5:AA$302,6,0) -> 1.142857143
A14: 2013-08-02 | B14: UNHCR | C14: UNHCR | D14: Rakhine | E14: Meybon | F14: Taung Paw | G14: 8 | J14: 89 | K14: 89 | P14: =Table_Shelter[[#This Row],[HHperShelter]]*(Table_Shelter[[#This Row],['#ofTemporaryShelterBuilt]]+Table_Shelter[[#This Row],['#ofTemporaryShelterUnderConstruction]]+Table_Shelter[[#This Row],['#ofPermanentHouseBuilt]]+Table_Shelter[[#This Row],['#ofPermanentHouseUnderConstruction]]) -> 712 | Q14: =VLOOKUP(Table_Shelter[[#This Row],[CampName]],Camp_List!N$5:O$302,2,0) -> MMR012CMP014 | R14: =VLOOKUP(Table_Shelter[[#This Row],[CampName]],Camp_List!N$5:AA$302,14,0) -> Open | S14: =Table_Shelter[[#This Row],[HHCovered]]/VLOOKUP(Table_Shelter[[#This Row],[CampName]],Camp_List!N$5:AA$302,6,0) -> 1.126582278
A15: 2013-08-02 | B15: Government | C15: Government | D15: Rakhine | E15: Pauktaw | F15: Ba Wan Chaung Wa Su | G15: 10 | J15: 3 | K15: 3 | P15: =Table_Shelter[[#This Row],[HHperShelter]]*(Table_Shelter[[#This Row],['#ofTemporaryShelterBuilt]]+Table_Shelter[[#This Row],['#ofTemporaryShelterUnderConstruction]]+Table_Shelter[[#This Row],['#ofPermanentHouseBuilt]]+Table_Shelter[[#This Row],['#ofPermanentHouseUnderConstruction]]) -> 30 | Q15: =VLOOKUP(Table_Shelter[[#This Row],[CampName]],Camp_List!N$5:O$302,2,0) -> MMR012CMP015 | R15: =VLOOKUP(Table_Shelter[[#This Row],[CampName]],Camp_List!N$5:AA$302,14,0) -> Open | S15: =Table_Shelter[[#This Row],[HHCovered]]/VLOOKUP(Table_Shelter[[#This Row],[CampName]],Camp_List!N$5:AA$302,6,0) -> 1.428571429
A16: 2013-08-02 | B16: DRC | C16: DRC | D16: Rakhine | E16: Pauktaw | F16: Ah Nauk Ywe | G16: 8 | J16: 96 | K16: 65 | L16: 31 | P16: =Table_Shelter[[#This Row],[HHperShelter]]*(Table_Shelter[[#This Row],['#ofTemporaryShelterBuilt]]+Table_Shelter[[#This Row],['#ofTemporaryShelterUnderConstruction]]+Table_Shelter[[#This Row],['#ofPermanentHouseBuilt]]+Table_Shelter[[#This Row],['#ofPermanentHouseUnderConstruction]]) -> 768 | Q16: =VLOOKUP(Table_Shelter[[#This Row],[CampName]],Camp_List!N$5:O$302,2,0) -> MMR012CMP016 | R16: =VLOOKUP(Table_Shelter[[#This Row],[CampName]],Camp_List!N$5:AA$302,14,0) -> Open | S16: =Table_Shelter[[#This Row],[HHCovered]]/VLOOKUP(Table_Shelter[[#This Row],[CampName]],Camp_List!N$5:AA$302,6,0) -> 0.8638920135
A17: 2013-08-02 | B17: UNHCR | C17: UNHCR | D17: Rakhine | E17: Pauktaw | F17: Nget Chaung | G17: 8 | J17: 169 | K17: 169 | P17: =Table_Shelter[[#This Row],[HHperShelter]]*(Table_Shelter[[#This Row],['#ofTemporaryShelterBuilt]]+Table_Shelter[[#This Row],['#ofTemporaryShelterUnderConstruction]]+Table_Shelter[[#This Row],['#ofPermanentHouseBuilt]]+Table_Shelter[[#This Row],['#ofPermanentHouseUnderConstruction]]) -> 1352 | Q17: =VLOOKUP(Table_Shelter[[#This Row],[CampName]],Camp_List!N$5:O$302,2,0) -> MMR012CMP017 | R17: =VLOOKUP(Table_Shelter[[#This Row],[CampName]],Camp_List!N$5:AA$302,14,0) -> Open | S17: =Table_Shelter[[#This Row],[HHCovered]]/VLOOKUP(Table_Shelter[[#This Row],[CampName]],Camp_List!N$5:AA$302,6,0) -> 5.728813559
A18: 2013-08-02 | B18: Government | C18: Government | D18: Rakhine | E18: Pauktaw | F18: Kyein Ni Pyin | G18: 8 | J18: 13 | K18: 0 | L18: 13 | P18: =Table_Shelter[[#This Row],[HHperShelter]]*(Table_Shelter[[#This Row],['#ofTemporaryShelterBuilt]]+Table_Shelter[[#This Row],['#ofTemporaryShelterUnderConstruction]]+Table_Shelter[[#This Row],['#ofPermanentHouseBuilt]]+Table_Shelter[[#This Row],['#ofPermanentHouseUnderConstruction]]) -> 104 | Q18: =VLOOKUP(Table_Shelter[[#This Row],[CampName]],Camp_List!N$5:O$302,2,0) -> MMR012CMP018 | R18: =VLOOKUP(Table_Shelter[[#This Row],[CampName]],Camp_List!N$5:AA$302,14,0) -> Open | S18: =Table_Shelter[[#This Row],[HHCovered]]/VLOOKUP(Table_Shelter[[#This Row],[CampName]],Camp_List!N$5:AA$302,6,0) -> 0.1126760563
A19: 2013-08-02 | B19: UNHCR | C19: UNHCR | D19: Rakhine | E19: Pauktaw | F19: Kyein Ni Pyin | G19: 8 | J19: 98 | K19: 80 | L19: 18 | P19: =Table_Shelter[[#This Row],[HHperShelter]]*(Table_Shelter[[#This Row],['#ofTemporaryShelterBuilt]]+Table_Shelter[[#This Row],['#ofTemporaryShelterUnderConstruction]]+Table_Shelter[[#This Row],['#ofPermanentHouseBuilt]]+Table_Shelter[[#This Row],['#ofPermanentHouseUnderConstruction]]) -> 784 | Q19: =VLOOKUP(Table_Shelter[[#This Row],[CampName]],Camp_List!N$5:O$302,2,0) -> MMR012CMP018 | R19: =VLOOKUP(Table_Shelter[[#This Row],[CampName]],Camp_List!N$5:AA$302,14,0) -> Open | S19: =Table_Shelter[[#This Row],[HHCovered]]/VLOOKUP(Table_Shelter[[#This Row],[CampName]],Camp_List!N$5:AA$302,6,0) -> 0.849404117
A20: 2013-08-02 | B20: DRC | C20: DRC | D20: Rakhine | E20: Pauktaw | F20: Sin Tet Maw | G20: 8 | J20: 106 | K20: 73 | L20: 33 | P20: =Table_Shelter[[#This Row],[HHperShelter]]*(Table_Shelter[[#This Row],['#ofTemporaryShelterBuilt]]+Table_Shelter[[#This Row],['#ofTemporaryShelterUnderConstruction]]+Table_Shelter[[#This Row],['#ofPermanentHouseBuilt]]+Table_Shelter[[#This Row],['#ofPermanentHouseUnderConstruction]]) -> 848 | Q20: =VLOOKUP(Table_Shelter[[#This Row],[CampName]],Camp_List!N$5:O$302,2,0) -> MMR012CMP019 | R20: =VLOOKUP(Table_Shelter[[#This Row],[CampName]],Camp_List!N$5:AA$302,14,0) -> Open | S20: =Table_Shelter[[#This Row],[HHCovered]]/VLOOKUP(Table_Shelter[[#This Row],[CampName]],Camp_List!N$5:AA$302,6,0) -> 1.083014049
A21: 2013-08-02 | B21: Government | C21: Government | D21: Rakhine | E21: Kyauktaw | F21: Let Saung Kauk | G21: 8 | J21: 2 | K21: 2 | P21: =Table_Shelter[[#This Row],[HHperShelter]]*(Table_Shelter[[#This Row],['#ofTemporaryShelterBuilt]]+Table_Shelter[[#This Row],['#ofTemporaryShelterUnderConstruction]]+Table_Shelter[[#This Row],['#ofPermanentHouseBuilt]]+Table_Shelter[[#This Row],['#ofPermanentHouseUnderConstruction]]) -> 16 | Q21: =VLOOKUP(Table_Shelter[[#This Row],[CampName]],Camp_List!N$5:O$302,2,0) -> MMR012CMP020 | R21: =VLOOKUP(Table_Shelter[[#This Row],[CampName]],Camp_List!N$5:AA$302,14,0) -> Open | S21: =Table_Shelter[[#This Row],[HHCovered]]/VLOOKUP(Table_Shelter[[#This Row],[CampName]],Camp_List!N$5:AA$302,6,0) -> 0.8888888889
A22: 2013-08-02 | B22: Government | C22: Government | D22: Rakhine | E22: Kyauktaw | F22: Taung Bwe | G22: 8 | J22: 8 | K22: 8 | P22: =Table_Shelter[[#This Row],[HHperShelter]]*(Table_Shelter[[#This Row],['#ofTemporaryShelterBuilt]]+Table_Shelter[[#This Row],['#ofTemporaryShelterUnderConstruction]]+Table_Shelter[[#This Row],['#ofPermanentHouseBuilt]]+Table_Shelter[[#This Row],['#ofPermanentHouseUnderConstruction]]) -> 64 | Q22: =VLOOKUP(Table_Shelter[[#This Row],[CampName]],Camp_List!N$5:O$302,2,0) -> MMR012CMP021 | R22: =VLOOKUP(Table_Shelter[[#This Row],[CampName]],Camp_List!N$5:AA$302,14,0) -> Open | S22: =Table_Shelter[[#This Row],[HHCovered]]/VLOOKUP(Table_Shelter[[#This Row],[CampName]],Camp_List!N$5:AA$302,6,0) -> 1
A23: 2013-08-02 | B23: Government | C23: Government | D23: Rakhine | E23: Kyauktaw | F23: Ah Lel | G23: 8 | J23: 2 | K23: 2 | P23: =Table_Shelter[[#This Row],[HHperShelter]]*(Table_Shelter[[#This Row],['#ofTemporaryShelterBuilt]]+Table_Shelter[[#This Row],['#ofTemporaryShelterUnderConstruction]]+Table_Shelter[[#This Row],['#ofPermanentHouseBuilt]]+Table_Shelter[[#This Row],['#ofPermanentHouseUnderConstruction]]) -> 16 | Q23: =VLOOKUP(Table_Shelter[[#This Row],[CampName]],Camp_List!N$5:O$302,2,0) -> MMR012CMP022 | R23: =VLOOKUP(Table_Shelter[[#This Row],[CampName]],Camp_List!N$5:AA$302,14,0) -> Open | S23: =Table_Shelter[[#This Row],[HHCovered]]/VLOOKUP(Table_Shelter[[#This Row],[CampName]],Camp_List!N$5:AA$302,6,0) -> 0.9411764706
A24: 2013-08-02 | B24: Government | C24: Government | D24: Rakhine | E24: Kyauktaw | F24: Nidin | G24: 8 | J24: 9 | K24: 9 | P24: =Table_Shelter[[#This Row],[HHperShelter]]*(Table_Shelter[[#This Row],['#ofTemporaryShelterBuilt]]+Table_Shelter[[#This Row],['#ofTemporaryShelterUnderConstruction]]+Table_Shelter[[#This Row],['#ofPermanentHouseBuilt]]+Table_Shelter[[#This Row],['#ofPermanentHouseUnderConstruction]]) -> 72 | Q24: =VLOOKUP(Table_Shelter[[#This Row],[CampName]],Camp_List!N$5:O$302,2,0) -> MMR012CMP023 | R24: =VLOOKUP(Table_Shelter[[#This Row],[CampName]],Camp_List!N$5:AA$302,14,0) -> Open | S24: =Table_Shelter[[#This Row],[HHCovered]]/VLOOKUP(Table_Shelter[[#This Row],[CampName]],Camp_List!N$5:AA$302,6,0) -> 0.8674698795
A25: 2013-08-02 | B25: Government | C25: Government | D25: Rakhine | E25: Kyauktaw | F25: Ah Pauk Wa | G25: 8 | J25: 7 | K25: 7 | P25: =Table_Shelter[[#This Row],[HHperShelter]]*(Table_Shelter[[#This Row],['#ofTemporaryShelterBuilt]]+Table_Shelter[[#This Row],['#ofTemporaryShelterUnderConstruction]]+Table_Shelter[[#This Row],['#ofPermanentHouseBuilt]]+Table_Shelter[[#This Row],['#ofPermanentHouseUnderConstruction]]) -> 56 | Q25: =VLOOKUP(Table_Shelter[[#This Row],[CampName]],Camp_List!N$5:O$302,2,0) -> MMR012CMP024 | R25: =VLOOKUP(Table_Shelter[[#This Row],[CampName]],Camp_List!N$5:AA$302,14,0) -> Open | S25: =Table_Shelter[[#This Row],[HHCovered]]/VLOOKUP(Table_Shelter[[#This Row],[CampName]],Camp_List!N$5:AA$302,6,0) -> 0.5773195876
A26: 2013-08-02 | B26: Government | C26: Government | D26: Rakhine | E26: Kyauktaw | F26: Ah Lel Kyun | G26: 8 | J26: 2 | K26: 2 | P26: =Table_Shelter[[#This Row],[HHperShelter]]*(Table_Shelter[[#This Row],['#ofTemporaryShelterBuilt]]+Table_Shelter[[#This Row],['#ofTemporaryShelterUnderConstruction]]+Table_Shelter[[#This Row],['#ofPermanentHouseBuilt]]+Table_Shelter[[#This Row],['#ofPermanentHouseUnderConstruction]]) -> 16 | Q26: =VLOOKUP(Table_Shelter[[#This Row],[CampName]],Camp_List!N$5:O$302,2,0) -> MMR012CMP025 | R26: =VLOOKUP(Table_Shelter[[#This Row],[CampName]],Camp_List!N$5:AA$302,14,0) -> Open | S26: =Table_Shelter[[#This Row],[HHCovered]]/VLOOKUP(Table_Shelter[[#This Row],[CampName]],Camp_List!N$5:AA$302,6,0) -> 1.142857143
A27: 2013-08-02 | B27: Government | C27: Government | D27: Rakhine | E27: Kyauktaw | F27: In Bar Yi | G27: 8 | J27: 29 | K27: 29 | P27: =Table_Shelter[[#This Row],[HHperShelter]]*(Table_Shelter[[#This Row],['#ofTemporaryShelterBuilt]]+Table_Shelter[[#This Row],['#ofTemporaryShelterUnderConstruction]]+Table_Shelter[[#This Row],['#ofPermanentHouseBuilt]]+Table_Shelter[[#This Row],['#ofPermanentHouseUnderConstruction]]) -> 232 | Q27: =VLOOKUP(Table_Shelter[[#This Row],[CampName]],Camp_List!N$5:O$302,2,0) -> MMR012CMP026 | R27: =VLOOKUP(Table_Shelter[[#This Row],[CampName]],Camp_List!N$5:AA$302,14,0) -> Open | S27: =Table_Shelter[[#This Row],[HHCovered]]/VLOOKUP(Table_Shelter[[#This Row],[CampName]],Camp_List!N$5:AA$302,6,0) -> 1.008695652
A28: 2013-08-02 | B28: Government | C28: Government | D28: Rakhine | E28: Kyauktaw | F28: Goke Pi Htaunt | G28: 8 | J28: 10 | K28: 10 | P28: =Table_Shelter[[#This Row],[HHperShelter]]*(Table_Shelter[[#This Row],['#ofTemporaryShelterBuilt]]+Table_Shelter[[#This Row],['#ofTemporaryShelterUnderConstruction]]+Table_Shelter[[#This Row],['#ofPermanentHouseBuilt]]+Table_Shelter[[#This Row],['#ofPermanentHouseUnderConstruction]]) -> 80 | Q28: =VLOOKUP(Table_Shelter[[#This Row],[CampName]],Camp_List!N$5:O$302,2,0) -> MMR012CMP027 | R28: =VLOOKUP(Table_Shelter[[#This Row],[CampName]],Camp_List!N$5:AA$302,14,0) -> Open | S28: =Table_Shelter[[#This Row],[HHCovered]]/VLOOKUP(Table_Shelter[[#This Row],[CampName]],Camp_List!N$5:AA$302,6,0) -> 0.6896551724
A29: 2013-08-02 | B29: Government | C29: Government | D29: Rakhine | E29: Kyauktaw | F29: Yun Nyar | G29: 8 | J29: 14 | K29: 14 | P29: =Table_Shelter[[#This Row],[HHperShelter]]*(Table_Shelter[[#This Row],['#ofTemporaryShelterBuilt]]+Table_Shelter[[#This Row],['#ofTemporaryShelterUnderConstruction]]+Table_Shelter[[#This Row],['#ofPermanentHouseBuilt]]+Table_Shelter[[#This Row],['#ofPermanentHouseUnderConstruction]]) -> 112 | Q29: =VLOOKUP(Table_Shelter[[#This Row],[CampName]],Camp_List!N$5:O$302,2,0) -> MMR012CMP028 | R29: =VLOOKUP(Table_Shelter[[#This Row],[CampName]],Camp_List!N$5:AA$302,14,0) -> Open | S29: =Table_Shelter[[#This Row],[HHCovered]]/VLOOKUP(Table_Shelter[[#This Row],[CampName]],Camp_List!N$5:AA$302,6,0) -> 0.7832167832
A30: 2013-08-02 | B30: Government | C30: Government | D30: Rakhine | E30: Kyauktaw | F30: Shwe Hlaing | G30: 8 | J30: 18 | K30: 18 | P30: =Table_Shelter[[#This Row],[HHperShelter]]*(Table_Shelter[[#This Row],['#ofTemporaryShelterBuilt]]+Table_Shelter[[#This Row],['#ofTemporaryShelterUnderConstruction]]+Table_Shelter[[#This Row],['#ofPermanentHouseBuilt]]+Table_Shelter[[#This Row],['#ofPermanentHouseUnderConstruction]]) -> 144 | Q30: =VLOOKUP(Table_Shelter[[#This Row],[CampName]],Camp_List!N$5:O$302,2,0) -> MMR012CMP029 | R30: =VLOOKUP(Table_Shelter[[#This Row],[CampName]],Camp_List!N$5:AA$302,14,0) -> Open | S30: =Table_Shelter[[#This Row],[HHCovered]]/VLOOKUP(Table_Shelter[[#This Row],[CampName]],Camp_List!N$5:AA$302,6,0) -> 0.8275862069
A31: 2013-08-02 | B31: Government | C31: Government | D31: Rakhine | E31: Kyauktaw | F31: Khaung Htoke | G31: 8 | J31: 10 | K31: 10 | P31: =Table_Shelter[[#This Row],[HHperShelter]]*(Table_Shelter[[#This Row],['#ofTemporaryShelterBuilt]]+Table_Shelter[[#This Row],['#ofTemporaryShelterUnderConstruction]]+Table_Shelter[[#This Row],['#ofPermanentHouseBuilt]]+Table_Shelter[[#This Row],['#ofPermanentHouseUnderConstruction]]) -> 80 | Q31: =VLOOKUP(Table_Shelter[[#This Row],[CampName]],Camp_List!N$5:O$302,2,0) -> MMR012CMP030 | R31: =VLOOKUP(Table_Shelter[[#This Row],[CampName]],Camp_List!N$5:AA$302,14,0) -> Open | S31: =Table_Shelter[[#This Row],[HHCovered]]/VLOOKUP(Table_Shelter[[#This Row],[CampName]],Camp_List!N$5:AA$302,6,0) -> 0.824742268
A32: 2013-08-02 | B32: Government | C32: Government | D32: Rakhine | E32: Rathedaung | F32: Nyaung Pin Gyi | G32: 8 | J32: 7 | K32: 7 | P32: =Table_Shelter[[#This Row],[HHperShelter]]*(Table_Shelter[[#This Row],['#ofTemporaryShelterBuilt]]+Table_Shelter[[#This Row],['#ofTemporaryShelterUnderConstruction]]+Table_Shelter[[#This Row],['#ofPermanentHouseBuilt]]+Table_Shelter[[#This Row],['#ofPermanentHouseUnderConstruction]]) -> 56 | Q32: =VLOOKUP(Table_Shelter[[#This Row],[CampName]],Camp_List!N$5:O$302,2,0) -> MMR012CMP031 | R32: =VLOOKUP(Table_Shelter[[#This Row],[CampName]],Camp_List!N$5:AA$302,14,0) -> Open | S32: =Table_Shelter[[#This Row],[HHCovered]]/VLOOKUP(Table_Shelter[[#This Row],[CampName]],Camp_List!N$5:AA$302,6,0) -> 0.9032258065
A33: 2013-08-02 | B33: UNHCR | C33: UNHCR | D33: Rakhine | E33: Rathedaung | F33: Nyaung Pin Gyi | G33: 1 | I33: 2 | P33: =Table_Shelter[[#This Row],[HHperShelter]]*(Table_Shelter[[#This Row],['#ofTemporaryShelterBuilt]]+Table_Shelter[[#This Row],['#ofTemporaryShelterUnderConstruction]]+Table_Shelter[[#This Row],['#ofPermanentHouseBuilt]]+Table_Shelter[[#This Row],['#ofPermanentHouseUnderConstruction]]) -> 0 | Q33: =VLOOKUP(Table_Shelter[[#This Row],[CampName]],Camp_List!N$5:O$302,2,0) -> MMR012CMP031 | R33: =VLOOKUP(Table_Shelter[[#This Row],[CampName]],Camp_List!N$5:AA$302,14,0) -> Open | S33: =Table_Shelter[[#This Row],[HHCovered]]/VLOOKUP(Table_Shelter[[#This Row],[CampName]],Camp_List!N$5:AA$302,6,0) -> 0
A34: 2013-08-02 | B34: Government | C34: Government | D34: Rakhine | E34: Rathedaung | F34: Ah Nauk Pyin | G34: 8 | J34: 4 | K34: 4 | P34: =Table_Shelter[[#This Row],[HHperShelter]]*(Table_Shelter[[#This Row],['#ofTemporaryShelterBuilt]]+Table_Shelter[[#This Row],['#ofTemporaryShelterUnderConstruction]]+Table_Shelter[[#This Row],['#ofPermanentHouseBuilt]]+Table_Shelter[[#This Row],['#ofPermanentHouseUnderConstruction]]) -> 32 | Q34: =VLOOKUP(Table_Shelter[[#This Row],[CampName]],Camp_List!N$5:O$302,2,0) -> MMR012CMP032 | R34: =VLOOKUP(Table_Shelter[[#This Row],[CampName]],Camp_List!N$5:AA$302,14,0) -> Open | S34: =Table_Shelter[[#This Row],[HHCovered]]/VLOOKUP(Table_Shelter[[#This Row],[CampName]],Camp_List!N$5:AA$302,6,0) -> 0.5614035088
A35: 2013-08-02 | B35: Government | C35: Government | D35: Rakhine | E35: Rathedaung | F35: Koe Tan Kauk/Chein Khar Li | G35: 8 | J35: 53 | K35: 53 | P35: =Table_Shelter[[#This Row],[HHperShelter]]*(Table_Shelter[[#This Row],['#ofTemporaryShelterBuilt]]+Table_Shelter[[#This Row],['#ofTemporaryShelterUnderConstruction]]+Table_Shelter[[#This Row],['#ofPermanentHouseBuilt]]+Table_Shelter[[#This Row],['#ofPermanentHouseUnderConstruction]]) -> 424 | Q35: =VLOOKUP(Table_Shelter[[#This Row],[CampName]],Camp_List!N$5:O$302,2,0) -> MMR012CMP033 | R35: =VLOOKUP(Table_Shelter[[#This Row],[CampName]],Camp_List!N$5:AA$302,14,0) -> Close | S35: =Table_Shelter[[#This Row],[HHCovered]]/VLOOKUP(Table_Shelter[[#This Row],[CampName]],Camp_List!N$5:AA$302,6,0) -> 
A36: 2013-08-02 | B36: UNHCR | C36: UNHCR | D36: Rakhine | E36: Rathedaung | F36: Koe Tan Kauk/Chein Khar Li | G36: 1 | H36: 414 | I36: 414 | P36: =Table_Shelter[[#This Row],[HHperShelter]]*(Table_Shelter[[#This Row],['#ofTemporaryShelterBuilt]]+Table_Shelter[[#This Row],['#ofTemporaryShelterUnderConstruction]]+Table_Shelter[[#This Row],['#ofPermanentHouseBuilt]]+Table_Shelter[[#This Row],['#ofPermanentHouseUnderConstruction]]) -> 0 | Q36: =VLOOKUP(Table_Shelter[[#This Row],[CampName]],Camp_List!N$5:O$302,2,0) -> MMR012CMP033 | R36: =VLOOKUP(Table_Shelter[[#This Row],[CampName]],Camp_List!N$5:AA$302,14,0) -> Close | S36: =Table_Shelter[[#This Row],[HHCovered]]/VLOOKUP(Table_Shelter[[#This Row],[CampName]],Camp_List!N$5:AA$302,6,0) -> 
A37: 2013-08-02 | B37: Government | C37: Government | D37: Rakhine | E37: Kyauk_Phyu | F37: Kyauk Ta Lone | G37: 8 | J37: 22 | K37: 22 | P37: =Table_Shelter[[#This Row],[HHperShelter]]*(Table_Shelter[[#This Row],['#ofTemporaryShelterBuilt]]+Table_Shelter[[#This Row],['#ofTemporaryShelterUnderConstruction]]+Table_Shelter[[#This Row],['#ofPermanentHouseBuilt]]+Table_Shelter[[#This Row],['#ofPermanentHouseUnderConstruction]]) -> 176 | Q37: =VLOOKUP(Table_Shelter[[#This Row],[CampName]],Camp_List!N$5:O$302,2,0) -> MMR012CMP035 | R37: =VLOOKUP(Table_Shelter[[#This Row],[CampName]],Camp_List!N$5:AA$302,14,0) -> Open | S37: =Table_Shelter[[#This Row],[HHCovered]]/VLOOKUP(Table_Shelter[[#This Row],[CampName]],Camp_List!N$5:AA$302,6,0) -> 0.4121779859
A38: 2013-08-02 | B38: Service City | C38: Service City | D38: Rakhine | E38: Kyauk_Phyu | F38: Kyauk Ta Lone | G38: 8 | J38: 7 | K38: 7 | P38: =Table_Shelter[[#This Row],[HHperShelter]]*(Table_Shelter[[#This Row],['#ofTemporaryShelterBuilt]]+Table_Shelter[[#This Row],['#ofTemporaryShelterUnderConstruction]]+Table_Shelter[[#This Row],['#ofPermanentHouseBuilt]]+Table_Shelter[[#This Row],['#ofPermanentHouseUnderConstruction]]) -> 56 | Q38: =VLOOKUP(Table_Shelter[[#This Row],[CampName]],Camp_List!N$5:O$302,2,0) -> MMR012CMP035 | R38: =VLOOKUP(Table_Shelter[[#This Row],[CampName]],Camp_List!N$5:AA$302,14,0) -> Open | S38: =Table_Shelter[[#This Row],[HHCovered]]/VLOOKUP(Table_Shelter[[#This Row],[CampName]],Camp_List!N$5:AA$302,6,0) -> 0.131147541
A39: 2013-08-02 | B39: Service City | C39: Service City | D39: Rakhine | E39: Kyauk_Phyu | F39: Pha Yar Gyi Kwin | G39: 8 | J39: 31 | K39: 31 | P39: =Table_Shelter[[#This Row],[HHperShelter]]*(Table_Shelter[[#This Row],['#ofTemporaryShelterBuilt]]+Table_Shelter[[#This Row],['#ofTemporaryShelterUnderConstruction]]+Table_Shelter[[#This Row],['#ofPermanentHouseBuilt]]+Table_Shelter[[#This Row],['#ofPermanentHouseUnderConstruction]]) -> 248 | Q39: =VLOOKUP(Table_Shelter[[#This Row],[CampName]],Camp_List!N$5:O$302,2,0) -> MMR012CMP036 | R39: =VLOOKUP(Table_Shelter[[#This Row],[CampName]],Camp_List!N$5:AA$302,14,0) -> Open | S39: =Table_Shelter[[#This Row],[HHCovered]]/VLOOKUP(Table_Shelter[[#This Row],[CampName]],Camp_List!N$5:AA$302,6,0) -> 3.815384615
A40: 2013-08-02 | B40: Government | C40: Government | D40: Rakhine | E40: Ramree | F40: Ramree Town | G40: 8 | J40: 12 | K40: 12 | P40: =Table_Shelter[[#This Row],[HHperShelter]]*(Table_Shelter[[#This Row],['#ofTemporaryShelterBuilt]]+Table_Shelter[[#This Row],['#ofTemporaryShelterUnderConstruction]]+Table_Shelter[[#This Row],['#ofPermanentHouseBuilt]]+Table_Shelter[[#This Row],['#ofPermanentHouseUnderConstruction]]) -> 96 | Q40: =VLOOKUP(Table_Shelter[[#This Row],[CampName]],Camp_List!N$5:O$302,2,0) -> MMR012CMP038 | R40: =VLOOKUP(Table_Shelter[[#This Row],[CampName]],Camp_List!N$5:AA$302,14,0) -> Open | S40: =Table_Shelter[[#This Row],[HHCovered]]/VLOOKUP(Table_Shelter[[#This Row],[CampName]],Camp_List!N$5:AA$302,6,0) -> 8
A41: 2013-08-02 | B41: Government | C41: Government | D41: Rakhine | E41: Sittwe | F41: Basare | G41: 8 | J41: 52 | K41: 52 | P41: =Table_Shelter[[#This Row],[HHperShelter]]*(Table_Shelter[[#This Row],['#ofTemporaryShelterBuilt]]+Table_Shelter[[#This Row],['#ofTemporaryShelterUnderConstruction]]+Table_Shelter[[#This Row],['#ofPermanentHouseBuilt]]+Table_Shelter[[#This Row],['#ofPermanentHouseUnderConstruction]]) -> 416 | Q41: =VLOOKUP(Table_Shelter[[#This Row],[CampName]],Camp_List!N$5:O$302,2,0) ->  | R41: =VLOOKUP(Table_Shelter[[#This Row],[CampName]],Camp_List!N$5:AA$302,14,0) ->  | S41: =Table_Shelter[[#This Row],[HHCovered]]/VLOOKUP(Table_Shelter[[#This Row],[CampName]],Camp_List!N$5:AA$302,6,0) -> 
A42: 2013-08-02 | B42: CARE | C42: CARE | D42: Rakhine | E42: Sittwe | F42: Baw Du Pha | G42: 8 | J42: 50 | K42: 35 | L42: 15 | P42: =Table_Shelter[[#This Row],[HHperShelter]]*(Table_Shelter[[#This Row],['#ofTemporaryShelterBuilt]]+Table_Shelter[[#This Row],['#ofTemporaryShelterUnderConstruction]]+Table_Shelter[[#This Row],['#ofPermanentHouseBuilt]]+Table_Shelter[[#This Row],['#ofPermanentHouseUnderConstruction]]) -> 400 | Q42: =VLOOKUP(Table_Shelter[[#This Row],[CampName]],Camp_List!N$5:O$302,2,0) -> MMR012CMP040 | R42: =VLOOKUP(Table_Shelter[[#This Row],[CampName]],Camp_List!N$5:AA$302,14,0) -> Open | S42: =Table_Shelter[[#This Row],[HHCovered]]/VLOOKUP(Table_Shelter[[#This Row],[CampName]],Camp_List!N$5:AA$302,6,0) -> 0.1950268162
A43: 2013-08-02 | B43: Government | C43: Government | D43: Rakhine | E43: Sittwe | F43: Baw Du Pha | G43: 10 | J43: 20 | K43: 20 | P43: =Table_Shelter[[#This Row],[HHperShelter]]*(Table_Shelter[[#This Row],['#ofTemporaryShelterBuilt]]+Table_Shelter[[#This Row],['#ofTemporaryShelterUnderConstruction]]+Table_Shelter[[#This Row],['#ofPermanentHouseBuilt]]+Table_Shelter[[#This Row],['#ofPermanentHouseUnderConstruction]]) -> 200 | Q43: =VLOOKUP(Table_Shelter[[#This Row],[CampName]],Camp_List!N$5:O$302,2,0) -> MMR012CMP040 | R43: =VLOOKUP(Table_Shelter[[#This Row],[CampName]],Camp_List!N$5:AA$302,14,0) -> Open | S43: =Table_Shelter[[#This Row],[HHCovered]]/VLOOKUP(Table_Shelter[[#This Row],[CampName]],Camp_List!N$5:AA$302,6,0) -> 0.09751340809
A44: 2013-08-02 | B44: Government | C44: Government | D44: Rakhine | E44: Sittwe | F44: Baw Du Pha | G44: 8 | J44: 200 | K44: 140 | L44: 60 | P44: =Table_Shelter[[#This Row],[HHperShelter]]*(Table_Shelter[[#This Row],['#ofTemporaryShelterBuilt]]+Table_Shelter[[#This Row],['#ofTemporaryShelterUnderConstruction]]+Table_Shelter[[#This Row],['#ofPermanentHouseBuilt]]+Table_Shelter[[#This Row],['#ofPermanentHouseUnderConstruction]]) -> 1600 | Q44: =VLOOKUP(Table_Shelter[[#This Row],[CampName]],Camp_List!N$5:O$302,2,0) -> MMR012CMP040 | R44: =VLOOKUP(Table_Shelter[[#This Row],[CampName]],Camp_List!N$5:AA$302,14,0) -> Open | S44: =Table_Shelter[[#This Row],[HHCovered]]/VLOOKUP(Table_Shelter[[#This Row],[CampName]],Camp_List!N$5:AA$302,6,0) -> 0.7801072647
A45: 2013-08-02 | B45: ICRC | C45: ICRC | D45: Rakhine | E45: Sittwe | F45: Baw Du Pha | G45: 8 | J45: 19 | K45: 0 | L45: 19 | P45: =Table_Shelter[[#This Row],[HHperShelter]]*(Table_Shelter[[#This Row],['#ofTemporaryShelterBuilt]]+Table_Shelter[[#This Row],['#ofTemporaryShelterUnderConstruction]]+Table_Shelter[[#This Row],['#ofPermanentHouseBuilt]]+Table_Shelter[[#This Row],['#ofPermanentHouseUnderConstruction]]) -> 152 | Q45: =VLOOKUP(Table_Shelter[[#This Row],[CampName]],Camp_List!N$5:O$302,2,0) -> MMR012CMP040 | R45: =VLOOKUP(Table_Shelter[[#This Row],[CampName]],Camp_List!N$5:AA$302,14,0) -> Open | S45: =Table_Shelter[[#This Row],[HHCovered]]/VLOOKUP(Table_Shelter[[#This Row],[CampName]],Camp_List!N$5:AA$302,6,0) -> 0.07411019015
A46: 2013-08-02 | B46: MAUK | C46: MAUK | D46: Rakhine | E46: Sittwe | F46: Baw Du Pha | G46: 8 | J46: 32 | K46: 25 | L46: 7 | P46: =Table_Shelter[[#This Row],[HHperShelter]]*(Table_Shelter[[#This Row],['#ofTemporaryShelterBuilt]]+Table_Shelter[[#This Row],['#ofTemporaryShelterUnderConstruction]]+Table_Shelter[[#This Row],['#ofPermanentHouseBuilt]]+Table_Shelter[[#This Row],['#ofPermanentHouseUnderConstruction]]) -> 256 | Q46: =VLOOKUP(Table_Shelter[[#This Row],[CampName]],Camp_List!N$5:O$302,2,0) -> MMR012CMP040 | R46: =VLOOKUP(Table_Shelter[[#This Row],[CampName]],Camp_List!N$5:AA$302,14,0) -> Open | S46: =Table_Shelter[[#This Row],[HHCovered]]/VLOOKUP(Table_Shelter[[#This Row],[CampName]],Camp_List!N$5:AA$302,6,0) -> 0.1248171624
A47: 2013-08-02 | B47: WFP | C47: WFP | D47: Rakhine | E47: Sittwe | F47: Baw Du Pha | G47: 10 | J47: 40 | K47: 40 | P47: =Table_Shelter[[#This Row],[HHperShelter]]*(Table_Shelter[[#This Row],['#ofTemporaryShelterBuilt]]+Table_Shelter[[#This Row],['#ofTemporaryShelterUnderConstruction]]+Table_Shelter[[#This Row],['#ofPermanentHouseBuilt]]+Table_Shelter[[#This Row],['#ofPermanentHouseUnderConstruction]]) -> 400 | Q47: =VLOOKUP(Table_Shelter[[#This Row],[CampName]],Camp_List!N$5:O$302,2,0) -> MMR012CMP040 | R47: =VLOOKUP(Table_Shelter[[#This Row],[CampName]],Camp_List!N$5:AA$302,14,0) -> Open | S47: =Table_Shelter[[#This Row],[HHCovered]]/VLOOKUP(Table_Shelter[[#This Row],[CampName]],Camp_List!N$5:AA$302,6,0) -> 0.1950268162
A48: 2013-08-02 | B48: CARE | C48: CARE | D48: Rakhine | E48: Sittwe | F48: Dar Pai | G48: 8 | J48: 41 | K48: 35 | L48: 6 | P48: =Table_Shelter[[#This Row],[HHperShelter]]*(Table_Shelter[[#This Row],['#ofTemporaryShelterBuilt]]+Table_Shelter[[#This Row],['#ofTemporaryShelterUnderConstruction]]+Table_Shelter[[#This Row],['#ofPermanentHouseBuilt]]+Table_Shelter[[#This Row],['#ofPermanentHouseUnderConstruction]]) -> 328 | Q48: =VLOOKUP(Table_Shelter[[#This Row],[CampName]],Camp_List!N$5:O$302,2,0) -> MMR012CMP041 | R48: =VLOOKUP(Table_Shelter[[#This Row],[CampName]],Camp_List!N$5:AA$302,14,0) -> Open | S48: =Table_Shelter[[#This Row],[HHCovered]]/VLOOKUP(Table_Shelter[[#This Row],[CampName]],Camp_List!N$5:AA$302,6,0) -> 0.174005305
A49: 2013-08-02 | B49: Government | C49: Government | D49: Rakhine | E49: Sittwe | F49: Dar Pai | G49: 8 | J49: 141 | K49: 141 | P49: =Table_Shelter[[#This Row],[HHperShelter]]*(Table_Shelter[[#This Row],['#ofTemporaryShelterBuilt]]+Table_Shelter[[#This Row],['#ofTemporaryShelterUnderConstruction]]+Table_Shelter[[#This Row],['#ofPermanentHouseBuilt]]+Table_Shelter[[#This Row],['#ofPermanentHouseUnderConstruction]]) -> 1128 | Q49: =VLOOKUP(Table_Shelter[[#This Row],[CampName]],Camp_List!N$5:O$302,2,0) -> MMR012CMP041 | R49: =VLOOKUP(Table_Shelter[[#This Row],[CampName]],Camp_List!N$5:AA$302,14,0) -> Open | S49: =Table_Shelter[[#This Row],[HHCovered]]/VLOOKUP(Table_Shelter[[#This Row],[CampName]],Camp_List!N$5:AA$302,6,0) -> 0.5984084881
A50: 2013-08-02 | B50: Government | C50: Government | D50: Rakhine | E50: Sittwe | F50: Khaung Doke Khar | G50: 8 | J50: 50 | K50: 50 | P50: =Table_Shelter[[#This Row],[HHperShelter]]*(Table_Shelter[[#This Row],['#ofTemporaryShelterBuilt]]+Table_Shelter[[#This Row],['#ofTemporaryShelterUnderConstruction]]+Table_Shelter[[#This Row],['#ofPermanentHouseBuilt]]+Table_Shelter[[#This Row],['#ofPermanentHouseUnderConstruction]]) -> 400 | Q50: =VLOOKUP(Table_Shelter[[#This Row],[CampName]],Camp_List!N$5:O$302,2,0) -> MMR012CMP042 | R50: =VLOOKUP(Table_Shelter[[#This Row],[CampName]],Camp_List!N$5:AA$302,14,0) -> Open | S50: =Table_Shelter[[#This Row],[HHCovered]]/VLOOKUP(Table_Shelter[[#This Row],[CampName]],Camp_List!N$5:AA$302,6,0) -> 1.025641026
A51: 2013-08-02 | B51: UNHCR | C51: UNHCR | D51: Rakhine | E51: Sittwe | F51: Ohn Taw Gyi 1 | G51: 8 | J51: 150 | K51: 150 | P51: =Table_Shelter[[#This Row],[HHperShelter]]*(Table_Shelter[[#This Row],['#ofTemporaryShelterBuilt]]+Table_Shelter[[#This Row],['#ofTemporaryShelterUnderConstruction]]+Table_Shelter[[#This Row],['#ofPermanentHouseBuilt]]+Table_Shelter[[#This Row],['#ofPermanentHouseUnderConstruction]]) -> 1200 | Q51: =VLOOKUP(Table_Shelter[[#This Row],[CampName]],Camp_List!N$5:O$302,2,0) -> MMR012CMP043 | R51: =VLOOKUP(Table_Shelter[[#This Row],[CampName]],Camp_List!N$5:AA$302,14,0) -> Open | S51: =Table_Shelter[[#This Row],[HHCovered]]/VLOOKUP(Table_Shelter[[#This Row],[CampName]],Camp_List!N$5:AA$302,6,0) -> 1.115241636
A52: 2013-08-02 | B52: Government | C52: Government | D52: Rakhine | E52: Sittwe | F52: Phwe Yar Kone | G52: 10 | J52: 40 | K52: 40 | P52: =Table_Shelter[[#This Row],[HHperShelter]]*(Table_Shelter[[#This Row],['#ofTemporaryShelterBuilt]]+Table_Shelter[[#This Row],['#ofTemporaryShelterUnderConstruction]]+Table_Shelter[[#This Row],['#ofPermanentHouseBuilt]]+Table_Shelter[[#This Row],['#ofPermanentHouseUnderConstruction]]) -> 400 | Q52: =VLOOKUP(Table_Shelter[[#This Row],[CampName]],Camp_List!N$5:O$302,2,0) -> MMR012CMP044 | R52: =VLOOKUP(Table_Shelter[[#This Row],[CampName]],Camp_List!N$5:AA$302,14,0) -> Open | S52: =Table_Shelter[[#This Row],[HHCovered]]/VLOOKUP(Table_Shelter[[#This Row],[CampName]],Camp_List!N$5:AA$302,6,0) -> 1.142857143
A53: 2013-08-02 | B53: Government | C53: Government | D53: Rakhine | E53: Sittwe | F53: Phwe Yar Kone | G53: 10 | J53: 40 | K53: 40 | P53: =Table_Shelter[[#This Row],[HHperShelter]]*(Table_Shelter[[#This Row],['#ofTemporaryShelterBuilt]]+Table_Shelter[[#This Row],['#ofTemporaryShelterUnderConstruction]]+Table_Shelter[[#This Row],['#ofPermanentHouseBuilt]]+Table_Shelter[[#This Row],['#ofPermanentHouseUnderConstruction]]) -> 400 | Q53: =VLOOKUP(Table_Shelter[[#This Row],[CampName]],Camp_List!N$5:O$302,2,0) -> MMR012CMP044 | R53: =VLOOKUP(Table_Shelter[[#This Row],[CampName]],Camp_List!N$5:AA$302,14,0) -> Open | S53: =Table_Shelter[[#This Row],[HHCovered]]/VLOOKUP(Table_Shelter[[#This Row],[CampName]],Camp_List!N$5:AA$302,6,0) -> 1.142857143
A54: 2013-08-02 | B54: DRC | C54: DRC | D54: Rakhine | E54: Sittwe | F54: Say Tha Mar Gyi | G54: 8 | J54: 27 | K54: 27 | P54: =Table_Shelter[[#This Row],[HHperShelter]]*(Table_Shelter[[#This Row],['#ofTemporaryShelterBuilt]]+Table_Shelter[[#This Row],['#ofTemporaryShelterUnderConstruction]]+Table_Shelter[[#This Row],['#ofPermanentHouseBuilt]]+Table_Shelter[[#This Row],['#ofPermanentHouseUnderConstruction]]) -> 216 | Q54: =VLOOKUP(Table_Shelter[[#This Row],[CampName]],Camp_List!N$5:O$302,2,0) -> MMR012CMP045 | R54: =VLOOKUP(Table_Shelter[[#This Row],[CampName]],Camp_List!N$5:AA$302,14,0) -> Open | S54: =Table_Shelter[[#This Row],[HHCovered]]/VLOOKUP(Table_Shelter[[#This Row],[CampName]],Camp_List!N$5:AA$302,6,0) -> 0.1
A55: 2013-08-02 | B55: Government | C55: Government | D55: Rakhine | E55: Sittwe | F55: Say Tha Mar Gyi | G55: 10 | J55: 23 | K55: 23 | P55: =Table_Shelter[[#This Row],[HHperShelter]]*(Table_Shelter[[#This Row],['#ofTemporaryShelterBuilt]]+Table_Shelter[[#This Row],['#ofTemporaryShelterUnderConstruction]]+Table_Shelter[[#This Row],['#ofPermanentHouseBuilt]]+Table_Shelter[[#This Row],['#ofPermanentHouseUnderConstruction]]) -> 230 | Q55: =VLOOKUP(Table_Shelter[[#This Row],[CampName]],Camp_List!N$5:O$302,2,0) -> MMR012CMP045 | R55: =VLOOKUP(Table_Shelter[[#This Row],[CampName]],Camp_List!N$5:AA$302,14,0) -> Open | S55: =Table_Shelter[[#This Row],[HHCovered]]/VLOOKUP(Table_Shelter[[#This Row],[CampName]],Camp_List!N$5:AA$302,6,0) -> 0.1064814815
A56: 2013-08-02 | B56: IRW | C56: IRW | D56: Rakhine | E56: Sittwe | F56: Say Tha Mar Gyi | G56: 8 | J56: 40 | K56: 40 | P56: =Table_Shelter[[#This Row],[HHperShelter]]*(Table_Shelter[[#This Row],['#ofTemporaryShelterBuilt]]+Table_Shelter[[#This Row],['#ofTemporaryShelterUnderConstruction]]+Table_Shelter[[#This Row],['#ofPermanentHouseBuilt]]+Table_Shelter[[#This Row],['#ofPermanentHouseUnderConstruction]]) -> 320 | Q56: =VLOOKUP(Table_Shelter[[#This Row],[CampName]],Camp_List!N$5:O$302,2,0) -> MMR012CMP045 | R56: =VLOOKUP(Table_Shelter[[#This Row],[CampName]],Camp_List!N$5:AA$302,14,0) -> Open | S56: =Table_Shelter[[#This Row],[HHCovered]]/VLOOKUP(Table_Shelter[[#This Row],[CampName]],Camp_List!N$5:AA$302,6,0) -> 0.1481481481
A57: 2013-08-02 | B57: MRCS | C57: MRCS | D57: Rakhine | E57: Sittwe | F57: Say Tha Mar Gyi | G57: 8 | J57: 60 | K57: 60 | P57: =Table_Shelter[[#This Row],[HHperShelter]]*(Table_Shelter[[#This Row],['#ofTemporaryShelterBuilt]]+Table_Shelter[[#This Row],['#ofTemporaryShelterUnderConstruction]]+Table_Shelter[[#This Row],['#ofPermanentHouseBuilt]]+Table_Shelter[[#This Row],['#ofPermanentHouseUnderConstruction]]) -> 480 | Q57: =VLOOKUP(Table_Shelter[[#This Row],[CampName]],Camp_List!N$5:O$302,2,0) -> MMR012CMP045 | R57: =VLOOKUP(Table_Shelter[[#This Row],[CampName]],Camp_List!N$5:AA$302,14,0) -> Open | S57: =Table_Shelter[[#This Row],[HHCovered]]/VLOOKUP(Table_Shelter[[#This Row],[CampName]],Camp_List!N$5:AA$302,6,0) -> 0.2222222222
A58: 2013-08-02 | B58: MRF/ACT | C58: MRF/ACT | D58: Rakhine | E58: Sittwe | F58: Say Tha Mar Gyi | G58: 10 | J58: 77 | K58: 77 | P58: =Table_Shelter[[#This Row],[HHperShelter]]*(Table_Shelter[[#This Row],['#ofTemporaryShelterBuilt]]+Table_Shelter[[#This Row],['#ofTemporaryShelterUnderConstruction]]+Table_Shelter[[#This Row],['#ofPermanentHouseBuilt]]+Table_Shelter[[#This Row],['#ofPermanentHouseUnderConstruction]]) -> 770 | Q58: =VLOOKUP(Table_Shelter[[#This Row],[CampName]],Camp_List!N$5:O$302,2,0) -> MMR012CMP045 | R58: =VLOOKUP(Table_Shelter[[#This Row],[CampName]],Camp_List!N$5:AA$302,14,0) -> Open | S58: =Table_Shelter[[#This Row],[HHCovered]]/VLOOKUP(Table_Shelter[[#This Row],[CampName]],Camp_List!N$5:AA$302,6,0) -> 0.3564814815
A59: 2013-08-02 | B59: UNHCR | C59: UNHCR | D59: Rakhine | E59: Sittwe | F59: Say Tha Mar Gyi | G59: 8 | J59: 33 | K59: 33 | P59: =Table_Shelter[[#This Row],[HHperShelter]]*(Table_Shelter[[#This Row],['#ofTemporaryShelterBuilt]]+Table_Shelter[[#This Row],['#ofTemporaryShelterUnderConstruction]]+Table_Shelter[[#This Row],['#ofPermanentHouseBuilt]]+Table_Shelter[[#This Row],['#ofPermanentHouseUnderConstruction]]) -> 264 | Q59: =VLOOKUP(Table_Shelter[[#This Row],[CampName]],Camp_List!N$5:O$302,2,0) -> MMR012CMP045 | R59: =VLOOKUP(Table_Shelter[[#This Row],[CampName]],Camp_List!N$5:AA$302,14,0) -> Open | S59: =Table_Shelter[[#This Row],[HHCovered]]/VLOOKUP(Table_Shelter[[#This Row],[CampName]],Camp_List!N$5:AA$302,6,0) -> 0.1222222222
A60: 2013-08-02 | B60: CARE | C60: CARE | D60: Rakhine | E60: Sittwe | F60: Thet Kae Pyin | G60: 8 | J60: 63 | K60: 63 | P60: =Table_Shelter[[#This Row],[HHperShelter]]*(Table_Shelter[[#This Row],['#ofTemporaryShelterBuilt]]+Table_Shelter[[#This Row],['#ofTemporaryShelterUnderConstruction]]+Table_Shelter[[#This Row],['#ofPermanentHouseBuilt]]+Table_Shelter[[#This Row],['#ofPermanentHouseUnderConstruction]]) -> 504 | Q60: =VLOOKUP(Table_Shelter[[#This Row],[CampName]],Camp_List!N$5:O$302,2,0) -> MMR012CMP048 | R60: =VLOOKUP(Table_Shelter[[#This Row],[CampName]],Camp_List!N$5:AA$302,14,0) -> Open | S60: =Table_Shelter[[#This Row],[HHCovered]]/VLOOKUP(Table_Shelter[[#This Row],[CampName]],Camp_List!N$5:AA$302,6,0) -> 0.8674698795
A61: 2013-08-02 | B61: Government | C61: Government | D61: Rakhine | E61: Sittwe | F61: Thet Kae Pyin | G61: 8 | J61: 60 | K61: 17 | L61: 43 | P61: =Table_Shelter[[#This Row],[HHperShelter]]*(Table_Shelter[[#This Row],['#ofTemporaryShelterBuilt]]+Table_Shelter[[#This Row],['#ofTemporaryShelterUnderConstruction]]+Table_Shelter[[#This Row],['#ofPermanentHouseBuilt]]+Table_Shelter[[#This Row],['#ofPermanentHouseUnderConstruction]]) -> 480 | Q61: =VLOOKUP(Table_Shelter[[#This Row],[CampName]],Camp_List!N$5:O$302,2,0) -> MMR012CMP048 | R61: =VLOOKUP(Table_Shelter[[#This Row],[CampName]],Camp_List!N$5:AA$302,14,0) -> Open | S61: =Table_Shelter[[#This Row],[HHCovered]]/VLOOKUP(Table_Shelter[[#This Row],[CampName]],Camp_List!N$5:AA$302,6,0) -> 0.82616179
A62: 2013-08-02 | B62: UNHCR | C62: UNHCR | D62: Rakhine | E62: Sittwe | F62: Ma Gyi Myaing | G62: 8 | J62: 15 | K62: 15 | P62: =Table_Shelter[[#This Row],[HHperShelter]]*(Table_Shelter[[#This Row],['#ofTemporaryShelterBuilt]]+Table_Shelter[[#This Row],['#ofTemporaryShelterUnderConstruction]]+Table_Shelter[[#This Row],['#ofPermanentHouseBuilt]]+Table_Shelter[[#This Row],['#ofPermanentHouseUnderConstruction]]) -> 120 | Q62: =VLOOKUP(Table_Shelter[[#This Row],[CampName]],Camp_List!N$5:O$302,2,0) -> MMR012CMP053 | R62: =VLOOKUP(Table_Shelter[[#This Row],[CampName]],Camp_List!N$5:AA$302,14,0) -> Close | S62: =Table_Shelter[[#This Row],[HHCovered]]/VLOOKUP(Table_Shelter[[#This Row],[CampName]],Camp_List!N$5:AA$302,6,0) -> 
A63: 2013-08-02 | B63: Government | C63: Government | D63: Rakhine | E63: Sittwe | F63: Mingan | G63: 10 | J63: 8 | K63: 8 | P63: =Table_Shelter[[#This Row],[HHperShelter]]*(Table_Shelter[[#This Row],['#ofTemporaryShelterBuilt]]+Table_Shelter[[#This Row],['#ofTemporaryShelterUnderConstruction]]+Table_Shelter[[#This Row],['#ofPermanentHouseBuilt]]+Table_Shelter[[#This Row],['#ofPermanentHouseUnderConstruction]]) -> 80 | Q63: =VLOOKUP(Table_Shelter[[#This Row],[CampName]],Camp_List!N$5:O$302,2,0) -> MMR012CMP054 | R63: =VLOOKUP(Table_Shelter[[#This Row],[CampName]],Camp_List!N$5:AA$302,14,0) -> Close | S63: =Table_Shelter[[#This Row],[HHCovered]]/VLOOKUP(Table_Shelter[[#This Row],[CampName]],Camp_List!N$5:AA$302,6,0) -> 
A64: 2013-08-02 | B64: Government | C64: Government | D64: Rakhine | E64: Sittwe | F64: Danyawaddy Baw Lone Kwin | G64: 10 | J64: 7 | K64: 7 | P64: =Table_Shelter[[#This Row],[HHperShelter]]*(Table_Shelter[[#This Row],['#ofTemporaryShelterBuilt]]+Table_Shelter[[#This Row],['#ofTemporaryShelterUnderConstruction]]+Table_Shelter[[#This Row],['#ofPermanentHouseBuilt]]+Table_Shelter[[#This Row],['#ofPermanentHouseUnderConstruction]]) -> 70 | Q64: =VLOOKUP(Table_Shelter[[#This Row],[CampName]],Camp_List!N$5:O$302,2,0) -> MMR012CMP055 | R64: =VLOOKUP(Table_Shelter[[#This Row],[CampName]],Camp_List!N$5:AA$302,14,0) -> Close | S64: =Table_Shelter[[#This Row],[HHCovered]]/VLOOKUP(Table_Shelter[[#This Row],[CampName]],Camp_List!N$5:AA$302,6,0) -> 
A65: 2013-08-02 | B65: Government | C65: Government | D65: Rakhine | E65: Sittwe | F65: Set Yone Su | G65: 10 | J65: 22 | K65: 22 | P65: =Table_Shelter[[#This Row],[HHperShelter]]*(Table_Shelter[[#This Row],['#ofTemporaryShelterBuilt]]+Table_Shelter[[#This Row],['#ofTemporaryShelterUnderConstruction]]+Table_Shelter[[#This Row],['#ofPermanentHouseBuilt]]+Table_Shelter[[#This Row],['#ofPermanentHouseUnderConstruction]]) -> 220 | Q65: =VLOOKUP(Table_Shelter[[#This Row],[CampName]],Camp_List!N$5:O$302,2,0) -> MMR012CMP056 | R65: =VLOOKUP(Table_Shelter[[#This Row],[CampName]],Camp_List!N$5:AA$302,14,0) -> Open | S65: =Table_Shelter[[#This Row],[HHCovered]]/VLOOKUP(Table_Shelter[[#This Row],[CampName]],Camp_List!N$5:AA$302,6,0) -> 2.972972973
A66: 2013-08-02 | B66: WFP | C66: WFP | D66: Rakhine | E66: Sittwe | F66: Dohn Taik Kwin | G66: 10 | J66: 20 | K66: 20 | P66: =Table_Shelter[[#This Row],[HHperShelter]]*(Table_Shelter[[#This Row],['#ofTemporaryShelterBuilt]]+Table_Shelter[[#This Row],['#ofTemporaryShelterUnderConstruction]]+Table_Shelter[[#This Row],['#ofPermanentHouseBuilt]]+Table_Shelter[[#This Row],['#ofPermanentHouseUnderConstruction]]) -> 200 | Q66: =VLOOKUP(Table_Shelter[[#This Row],[CampName]],Camp_List!N$5:O$302,2,0) -> MMR012CMP057 | R66: =VLOOKUP(Table_Shelter[[#This Row],[CampName]],Camp_List!N$5:AA$302,14,0) -> Close | S66: =Table_Shelter[[#This Row],[HHCovered]]/VLOOKUP(Table_Shelter[[#This Row],[CampName]],Camp_List!N$5:AA$302,6,0) -> 
A67: 2013-08-02 | B67: Government | C67: Government | D67: Rakhine | E67: Maungdaw | F67: Maw Ya Waddy | G67: 1 | M67: 11 | N67: 11 | P67: =Table_Shelter[[#This Row],[HHperShelter]]*(Table_Shelter[[#This Row],['#ofTemporaryShelterBuilt]]+Table_Shelter[[#This Row],['#ofTemporaryShelterUnderConstruction]]+Table_Shelter[[#This Row],['#ofPermanentHouseBuilt]]+Table_Shelter[[#This Row],['#ofPermanentHouseUnderConstruction]]) -> 11 | Q67: =VLOOKUP(Table_Shelter[[#This Row],[CampName]],Camp_List!N$5:O$302,2,0) -> MMR012CMP076 | R67: =VLOOKUP(Table_Shelter[[#This Row],[CampName]],Camp_List!N$5:AA$302,14,0) -> Close | S67: =Table_Shelter[[#This Row],[HHCovered]]/VLOOKUP(Table_Shelter[[#This Row],[CampName]],Camp_List!N$5:AA$302,6,0) -> 
A68: 2013-08-02 | B68: UNHCR | C68: UNHCR | D68: Rakhine | E68: Maungdaw | F68: Maw Ya Waddy | G68: 1 | M68: 102 | N68: 98 | O68: 4 | P68: =Table_Shelter[[#This Row],[HHperShelter]]*(Table_Shelter[[#This Row],['#ofTemporaryShelterBuilt]]+Table_Shelter[[#This Row],['#ofTemporaryShelterUnderConstruction]]+Table_Shelter[[#This Row],['#ofPermanentHouseBuilt]]+Table_Shelter[[#This Row],['#ofPermanentHouseUnderConstruction]]) -> 102 | Q68: =VLOOKUP(Table_Shelter[[#This Row],[CampName]],Camp_List!N$5:O$302,2,0) -> MMR012CMP076 | R68: =VLOOKUP(Table_Shelter[[#This Row],[CampName]],Camp_List!N$5:AA$302,14,0) -> Close | S68: =Table_Shelter[[#This Row],[HHCovered]]/VLOOKUP(Table_Shelter[[#This Row],[CampName]],Camp_List!N$5:AA$302,6,0) -> 
A69: 2013-08-02 | B69: CARE | C69: CARE | D69: Rakhine | E69: Maungdaw | F69: Tha Yay Kone Baung | G69: 1 | M69: 103 | N69: 103 | P69: =Table_Shelter[[#This Row],[HHperShelter]]*(Table_Shelter[[#This Row],['#ofTemporaryShelterBuilt]]+Table_Shelter[[#This Row],['#ofTemporaryShelterUnderConstruction]]+Table_Shelter[[#This Row],['#ofPermanentHouseBuilt]]+Table_Shelter[[#This Row],['#ofPermanentHouseUnderConstruction]]) -> 103 | Q69: =VLOOKUP(Table_Shelter[[#This Row],[CampName]],Camp_List!N$5:O$302,2,0) -> MMR012CMP077 | R69: =VLOOKUP(Table_Shelter[[#This Row],[CampName]],Camp_List!N$5:AA$302,14,0) -> Close | S69: =Table_Shelter[[#This Row],[HHCovered]]/VLOOKUP(Table_Shelter[[#This Row],[CampName]],Camp_List!N$5:AA$302,6,0) -> 
A70: 2013-08-02 | B70: Government | C70: Government | D70: Rakhine | E70: Maungdaw | F70: Tha Yay Kone Baung | G70: 1 | M70: 12 | N70: 12 | P70: =Table_Shelter[[#This Row],[HHperShelter]]*(Table_Shelter[[#This Row],['#ofTemporaryShelterBuilt]]+Table_Shelter[[#This Row],['#ofTemporaryShelterUnderConstruction]]+Table_Shelter[[#This Row],['#ofPermanentHouseBuilt]]+Table_Shelter[[#This Row],['#ofPermanentHouseUnderConstruction]]) -> 12 | Q70: =VLOOKUP(Table_Shelter[[#This Row],[CampName]],Camp_List!N$5:O$302,2,0) -> MMR012CMP077 | R70: =VLOOKUP(Table_Shelter[[#This Row],[CampName]],Camp_List!N$5:AA$302,14,0) -> Close | S70: =Table_Shelter[[#This Row],[HHCovered]]/VLOOKUP(Table_Shelter[[#This Row],[CampName]],Camp_List!N$5:AA$302,6,0) -> 
A71: 2013-08-02 | B71: Government | C71: Government | D71: Rakhine | E71: Maungdaw | F71: Kyaing Gyi | G71: 1 | M71: 36 | N71: 36 | P71: =Table_Shelter[[#This Row],[HHperShelter]]*(Table_Shelter[[#This Row],['#ofTemporaryShelterBuilt]]+Table_Shelter[[#This Row],['#ofTemporaryShelterUnderConstruction]]+Table_Shelter[[#This Row],['#ofPermanentHouseBuilt]]+Table_Shelter[[#This Row],['#ofPermanentHouseUnderConstruction]]) -> 36 | Q71: =VLOOKUP(Table_Shelter[[#This Row],[CampName]],Camp_List!N$5:O$302,2,0) -> MMR012CMP078 | R71: =VLOOKUP(Table_Shelter[[#This Row],[CampName]],Camp_List!N$5:AA$302,14,0) -> Close | S71: =Table_Shelter[[#This Row],[HHCovered]]/VLOOKUP(Table_Shelter[[#This Row],[CampName]],Camp_List!N$5:AA$302,6,0) -> 
A72: 2013-08-02 | B72: UNHCR | C72: UNHCR | D72: Rakhine | E72: Maungdaw | F72: Kyaing Gyi | G72: 1 | M72: 36 | N72: 36 | P72: =Table_Shelter[[#This Row],[HHperShelter]]*(Table_Shelter[[#This Row],['#ofTemporaryShelterBuilt]]+Table_Shelter[[#This Row],['#ofTemporaryShelterUnderConstruction]]+Table_Shelter[[#This Row],['#ofPermanentHouseBuilt]]+Table_Shelter[[#This Row],['#ofPermanentHouseUnderConstruction]]) -> 36 | Q72: =VLOOKUP(Table_Shelter[[#This Row],[CampName]],Camp_List!N$5:O$302,2,0) -> MMR012CMP078 | R72: =VLOOKUP(Table_Shelter[[#This Row],[CampName]],Camp_List!N$5:AA$302,14,0) -> Close | S72: =Table_Shelter[[#This Row],[HHCovered]]/VLOOKUP(Table_Shelter[[#This Row],[CampName]],Camp_List!N$5:AA$302,6,0) -> 
A73: 2013-08-02 | B73: Government | C73: Government | D73: Rakhine | E73: Maungdaw | F73: Baw Di Gone | G73: 1 | M73: 10 | N73: 10 | P73: =Table_Shelter[[#This Row],[HHperShelter]]*(Table_Shelter[[#This Row],['#ofTemporaryShelterBuilt]]+Table_Shelter[[#This Row],['#ofTemporaryShelterUnderConstruction]]+Table_Shelter[[#This Row],['#ofPermanentHouseBuilt]]+Table_Shelter[[#This Row],['#ofPermanentHouseUnderConstruction]]) -> 10 | Q73: =VLOOKUP(Table_Shelter[[#This Row],[CampName]],Camp_List!N$5:O$302,2,0) -> MMR012CMP079 | R73: =VLOOKUP(Table_Shelter[[#This Row],[CampName]],Camp_List!N$5:AA$302,14,0) -> Close | S73: =Table_Shelter[[#This Row],[HHCovered]]/VLOOKUP(Table_Shelter[[#This Row],[CampName]],Camp_List!N$5:AA$302,6,0) -> 
A74: 2013-08-02 | B74: UNHCR | C74: UNHCR | D74: Rakhine | E74: Maungdaw | F74: Baw Di Gone | G74: 1 | M74: 31 | N74: 27 | P74: =Table_Shelter[[#This Row],[HHperShelter]]*(Table_Shelter[[#This Row],['#ofTemporaryShelterBuilt]]+Table_Shelter[[#This Row],['#ofTemporaryShelterUnderConstruction]]+Table_Shelter[[#This Row],['#ofPermanentHouseBuilt]]+Table_Shelter[[#This Row],['#ofPermanentHouseUnderConstruction]]) -> 27 | Q74: =VLOOKUP(Table_Shelter[[#This Row],[CampName]],Camp_List!N$5:O$302,2,0) -> MMR012CMP079 | R74: =VLOOKUP(Table_Shelter[[#This Row],[CampName]],Camp_List!N$5:AA$302,14,0) -> Close | S74: =Table_Shelter[[#This Row],[HHCovered]]/VLOOKUP(Table_Shelter[[#This Row],[CampName]],Camp_List!N$5:AA$302,6,0) -> 
A75: 2013-08-02 | B75: CARE | C75: CARE | D75: Rakhine | E75: Maungdaw | F75: Kin Chaung | G75: 1 | M75: 25 | N75: 25 | P75: =Table_Shelter[[#This Row],[HHperShelter]]*(Table_Shelter[[#This Row],['#ofTemporaryShelterBuilt]]+Table_Shelter[[#This Row],['#ofTemporaryShelterUnderConstruction]]+Table_Shelter[[#This Row],['#ofPermanentHouseBuilt]]+Table_Shelter[[#This Row],['#ofPermanentHouseUnderConstruction]]) -> 25 | Q75: =VLOOKUP(Table_Shelter[[#This Row],[CampName]],Camp_List!N$5:O$302,2,0) -> MMR012CMP080 | R75: =VLOOKUP(Table_Shelter[[#This Row],[CampName]],Camp_List!N$5:AA$302,14,0) -> Close | S75: =Table_Shelter[[#This Row],[HHCovered]]/VLOOKUP(Table_Shelter[[#This Row],[CampName]],Camp_List!N$5:AA$302,6,0) -> 
A76: 2013-08-02 | B76: Government | C76: Government | D76: Rakhine | E76: Maungdaw | F76: Kan Thar Yar | G76: 1 | M76: 10 | N76: 10 | P76: =Table_Shelter[[#This Row],[HHperShelter]]*(Table_Shelter[[#This Row],['#ofTemporaryShelterBuilt]]+Table_Shelter[[#This Row],['#ofTemporaryShelterUnderConstruction]]+Table_Shelter[[#This Row],['#ofPermanentHouseBuilt]]+Table_Shelter[[#This Row],['#ofPermanentHouseUnderConstruction]]) -> 10 | Q76: =VLOOKUP(Table_Shelter[[#This Row],[CampName]],Camp_List!N$5:O$302,2,0) -> MMR012CMP081 | R76: =VLOOKUP(Table_Shelter[[#This Row],[CampName]],Camp_List!N$5:AA$302,14,0) -> Close | S76: =Table_Shelter[[#This Row],[HHCovered]]/VLOOKUP(Table_Shelter[[#This Row],[CampName]],Camp_List!N$5:AA$302,6,0) -> 
A77: 2013-08-02 | B77: UNHCR | C77: UNHCR | D77: Rakhine | E77: Maungdaw | F77: Kan Thar Yar | G77: 1 | M77: 21 | N77: 21 | P77: =Table_Shelter[[#This Row],[HHperShelter]]*(Table_Shelter[[#This Row],['#ofTemporaryShelterBuilt]]+Table_Shelter[[#This Row],['#ofTemporaryShelterUnderConstruction]]+Table_Shelter[[#This Row],['#ofPermanentHouseBuilt]]+Table_Shelter[[#This Row],['#ofPermanentHouseUnderConstruction]]) -> 21 | Q77: =VLOOKUP(Table_Shelter[[#This Row],[CampName]],Camp_List!N$5:O$302,2,0) -> MMR012CMP081 | R77: =VLOOKUP(Table_Shelter[[#This Row],[CampName]],Camp_List!N$5:AA$302,14,0) -> Close | S77: =Table_Shelter[[#This Row],[HHCovered]]/VLOOKUP(Table_Shelter[[#This Row],[CampName]],Camp_List!N$5:AA$302,6,0) -> 
A78: 2013-08-02 | B78: MRF/ACT | C78: MRF/ACT | D78: Rakhine | E78: Sittwe | F78: Ohn Taw Gyi 3 | G78: 8 | J78: 120 | K78: 65 | L78: 55 | P78: =Table_Shelter[[#This Row],[HHperShelter]]*(Table_Shelter[[#This Row],['#ofTemporaryShelterBuilt]]+Table_Shelter[[#This Row],['#ofTemporaryShelterUnderConstruction]]+Table_Shelter[[#This Row],['#ofPermanentHouseBuilt]]+Table_Shelter[[#This Row],['#ofPermanentHouseUnderConstruction]]) -> 960 | Q78: =VLOOKUP(Table_Shelter[[#This Row],[CampName]],Camp_List!N$5:O$302,2,0) -> MMR012CMP090 | R78: =VLOOKUP(Table_Shelter[[#This Row],[CampName]],Camp_List!N$5:AA$302,14,0) -> Open | S78: =Table_Shelter[[#This Row],[HHCovered]]/VLOOKUP(Table_Shelter[[#This Row],[CampName]],Camp_List!N$5:AA$302,6,0) -> 2.807017544
A79: 2013-08-02 | B79: Government | C79: Government | D79: Rakhine | E79: Sittwe | F79: Maw Ti Ngar (TKP west) | G79: 8 | J79: 78 | K79: 39 | L79: 39 | P79: =Table_Shelter[[#This Row],[HHperShelter]]*(Table_Shelter[[#This Row],['#ofTemporaryShelterBuilt]]+Table_Shelter[[#This Row],['#ofTemporaryShelterUnderConstruction]]+Table_Shelter[[#This Row],['#ofPermanentHouseBuilt]]+Table_Shelter[[#This Row],['#ofPermanentHouseUnderConstruction]]) -> 624 | Q79: =VLOOKUP(Table_Shelter[[#This Row],[CampName]],Camp_List!N$5:O$302,2,0) -> MMR012CMP092 | R79: =VLOOKUP(Table_Shelter[[#This Row],[CampName]],Camp_List!N$5:AA$302,14,0) -> Open | S79: =Table_Shelter[[#This Row],[HHCovered]]/VLOOKUP(Table_Shelter[[#This Row],[CampName]],Camp_List!N$5:AA$302,6,0) -> 1.21875
A80: 2013-08-02 | B80: UNHCR | C80: UNHCR | D80: Rakhine | E80: Sittwe | F80: Set Yone Su 3 | G80: 8 | J80: 22 | K80: 22 | P80: =Table_Shelter[[#This Row],[HHperShelter]]*(Table_Shelter[[#This Row],['#ofTemporaryShelterBuilt]]+Table_Shelter[[#This Row],['#ofTemporaryShelterUnderConstruction]]+Table_Shelter[[#This Row],['#ofPermanentHouseBuilt]]+Table_Shelter[[#This Row],['#ofPermanentHouseUnderConstruction]]) -> 176 | Q80: =VLOOKUP(Table_Shelter[[#This Row],[CampName]],Camp_List!N$5:O$302,2,0) -> MMR012CMP093 | R80: =VLOOKUP(Table_Shelter[[#This Row],[CampName]],Camp_List!N$5:AA$302,14,0) -> Open | S80: =Table_Shelter[[#This Row],[HHCovered]]/VLOOKUP(Table_Shelter[[#This Row],[CampName]],Camp_List!N$5:AA$302,6,0) -> 1
A81: 2013-08-02 | B81: UNHCR | C81: UNHCR | D81: Rakhine | E81: Sittwe | F81: Ohn Taw Gyi 2 | G81: 8 | J81: 80 | K81: 80 | P81: =Table_Shelter[[#This Row],[HHperShelter]]*(Table_Shelter[[#This Row],['#ofTemporaryShelterBuilt]]+Table_Shelter[[#This Row],['#ofTemporaryShelterUnderConstruction]]+Table_Shelter[[#This Row],['#ofPermanentHouseBuilt]]+Table_Shelter[[#This Row],['#ofPermanentHouseUnderConstruction]]) -> 640 | Q81: =VLOOKUP(Table_Shelter[[#This Row],[CampName]],Camp_List!N$5:O$302,2,0) -> MMR012CMP098 | R81: =VLOOKUP(Table_Shelter[[#This Row],[CampName]],Camp_List!N$5:AA$302,14,0) -> Open | S81: =Table_Shelter[[#This Row],[HHCovered]]/VLOOKUP(Table_Shelter[[#This Row],[CampName]],Camp_List!N$5:AA$302,6,0) -> 1.022364217
A82: 2013-08-02 | B82: Government | C82: Government | D82: Rakhine | E82: Sittwe | F82: Ohn Taw Gyi 4 | G82: 8 | J82: 120 | K82: 120 | P82: =Table_Shelter[[#This Row],[HHperShelter]]*(Table_Shelter[[#This Row],['#ofTemporaryShelterBuilt]]+Table_Shelter[[#This Row],['#ofTemporaryShelterUnderConstruction]]+Table_Shelter[[#This Row],['#ofPermanentHouseBuilt]]+Table_Shelter[[#This Row],['#ofPermanentHouseUnderConstruction]]) -> 960 | Q82: =VLOOKUP(Table_Shelter[[#This Row],[CampName]],Camp_List!N$5:O$302,2,0) -> MMR012CMP099 | R82: =VLOOKUP(Table_Shelter[[#This Row],[CampName]],Camp_List!N$5:AA$302,14,0) -> Open | S82: =Table_Shelter[[#This Row],[HHCovered]]/VLOOKUP(Table_Shelter[[#This Row],[CampName]],Camp_List!N$5:AA$302,6,0) -> 1.077441077
A83: 2013-08-02 | B83: Government | C83: Government | D83: Rakhine | E83: Sittwe | F83: Ohn Taw Gyi 5 | G83: 8 | H83: ` | J83: 101 | K83: 101 | P83: =Table_Shelter[[#This Row],[HHperShelter]]*(Table_Shelter[[#This Row],['#ofTemporaryShelterBuilt]]+Table_Shelter[[#This Row],['#ofTemporaryShelterUnderConstruction]]+Table_Shelter[[#This Row],['#ofPermanentHouseBuilt]]+Table_Shelter[[#This Row],['#ofPermanentHouseUnderConstruction]]) -> 808 | Q83: =VLOOKUP(Table_Shelter[[#This Row],[CampName]],Camp_List!N$5:O$302,2,0) -> MMR012CMP100 | R83: =VLOOKUP(Table_Shelter[[#This Row],[CampName]],Camp_List!N$5:AA$302,14,0) -> Open | S83: =Table_Shelter[[#This Row],[HHCovered]]/VLOOKUP(Table_Shelter[[#This Row],[CampName]],Camp_List!N$5:AA$302,6,0) -> 0.9987639061
A84: 2013-08-02 | B84: CARE | C84: CARE | D84: Rakhine | E84: Sittwe | F84: Hmanzi | G84: 8 | J84: 25 | K84: 14 | L84: 11 | P84: =Table_Shelter[[#This Row],[HHperShelter]]*(Table_Shelter[[#This Row],['#ofTemporaryShelterBuilt]]+Table_Shelter[[#This Row],['#ofTemporaryShelterUnderConstruction]]+Table_Shelter[[#This Row],['#ofPermanentHouseBuilt]]+Table_Shelter[[#This Row],['#ofPermanentHouseUnderConstruction]]) -> 200 | Q84: =VLOOKUP(Table_Shelter[[#This Row],[CampName]],Camp_List!N$5:O$302,2,0) -> MMR012CMP102 | R84: =VLOOKUP(Table_Shelter[[#This Row],[CampName]],Camp_List!N$5:AA$302,14,0) -> Open | S84: =Table_Shelter[[#This Row],[HHCovered]]/VLOOKUP(Table_Shelter[[#This Row],[CampName]],Camp_List!N$5:AA$302,6,0) -> 0.826446281
A85: 2013-08-02 | B85: Government | C85: Government | D85: Rakhine | E85: Sittwe | F85: Hmanzi | G85: 8 | J85: 25 | K85: 25 | P85: =Table_Shelter[[#This Row],[HHperShelter]]*(Table_Shelter[[#This Row],['#ofTemporaryShelterBuilt]]+Table_Shelter[[#This Row],['#ofTemporaryShelterUnderConstruction]]+Table_Shelter[[#This Row],['#ofPermanentHouseBuilt]]+Table_Shelter[[#This Row],['#ofPermanentHouseUnderConstruction]]) -> 200 | Q85: =VLOOKUP(Table_Shelter[[#This Row],[CampName]],Camp_List!N$5:O$302,2,0) -> MMR012CMP102 | R85: =VLOOKUP(Table_Shelter[[#This Row],[CampName]],Camp_List!N$5:AA$302,14,0) -> Open | S85: =Table_Shelter[[#This Row],[HHCovered]]/VLOOKUP(Table_Shelter[[#This Row],[CampName]],Camp_List!N$5:AA$302,6,0) -> 0.826446281
A86: 2013-07-01 | B86: Government | D86: Rakhine | E86: Sittwe | F86: Sat Roe Kya | G86: 1 | M86: 819 | N86: 669 | O86: 150 | P86: =Table_Shelter[[#This Row],[HHperShelter]]*(Table_Shelter[[#This Row],['#ofTemporaryShelterBuilt]]+Table_Shelter[[#This Row],['#ofTemporaryShelterUnderConstruction]]+Table_Shelter[[#This Row],['#ofPermanentHouseBuilt]]+Table_Shelter[[#This Row],['#ofPermanentHouseUnderConstruction]]) -> 819 | Q86: =VLOOKUP(Table_Shelter[[#This Row],[CampName]],Camp_List!N$5:O$302,2,0) -> MMR012CMP105 | R86: =VLOOKUP(Table_Shelter[[#This Row],[CampName]],Camp_List!N$5:AA$302,14,0) -> Open | S86: =Table_Shelter[[#This Row],[HHCovered]]/VLOOKUP(Table_Shelter[[#This Row],[CampName]],Camp_List!N$5:AA$302,6,0) -> 1.3
A87: 2013-08-02 | B87: CARE | C87: CARE | D87: Rakhine | E87: Sittwe | F87: Ohn Taw Gyi 6 | G87: 8 | J87: 45 | K87: 45 | Q87: =VLOOKUP(Table_Shelter[[#This Row],[CampName]],Camp_List!N$5:O$302,2,0) ->  | R87: =VLOOKUP(Table_Shelter[[#This Row],[CampName]],Camp_List!N$5:AA$302,14,0) ->  | S87: =Table_Shelter[[#This Row],[HHCovered]]/VLOOKUP(Table_Shelter[[#This Row],[CampName]],Camp_List!N$5:AA$302,6,0) -> 
A88: 2013-08-02 | B88: Government | C88: Government | D88: Rakhine | E88: Maungdaw | F88: Kha Yay Myaing( DPA) | G88: 1 | M88: 2 | N88: 2 | Q88: =VLOOKUP(Table_Shelter[[#This Row],[CampName]],Camp_List!N$5:O$302,2,0) ->  | R88: =VLOOKUP(Table_Shelter[[#This Row],[CampName]],Camp_List!N$5:AA$302,14,0) ->  | S88: =Table_Shelter[[#This Row],[HHCovered]]/VLOOKUP(Table_Shelter[[#This Row],[CampName]],Camp_List!N$5:AA$302,6,0) -> 
A89: 2013-08-02 | B89: Government | C89: Government | D89: Rakhine | E89: Maungdaw | F89: Wai Thar Li | G89: 1 | M89: 9 | N89: 9 | Q89: =VLOOKUP(Table_Shelter[[#This Row],[CampName]],Camp_List!N$5:O$302,2,0) ->  | R89: =VLOOKUP(Table_Shelter[[#This Row],[CampName]],Camp_List!N$5:AA$302,14,0) ->  | S89: =Table_Shelter[[#This Row],[HHCovered]]/VLOOKUP(Table_Shelter[[#This Row],[CampName]],Camp_List!N$5:AA$302,6,0) -> 
A90: 2013-08-02 | B90: Government | C90: Government | D90: Rakhine | E90: Maungdaw | F90: Kan Pyin Thar Si | G90: 1 | M90: 15 | N90: 15 | Q90: =VLOOKUP(Table_Shelter[[#This Row],[CampName]],Camp_List!N$5:O$302,2,0) ->  | R90: =VLOOKUP(Table_Shelter[[#This Row],[CampName]],Camp_List!N$5:AA$302,14,0) ->  | S90: =Table_Shelter[[#This Row],[HHCovered]]/VLOOKUP(Table_Shelter[[#This Row],[CampName]],Camp_List!N$5:AA$302,6,0) -> 
A91: 2013-08-02 | B91: Government | C91: Government | D91: Rakhine | E91: Maungdaw | F91: Kha Yay Myaing(short legged) | G91: 1 | M91: 22 | N91: 22 | Q91: =VLOOKUP(Table_Shelter[[#This Row],[CampName]],Camp_List!N$5:O$302,2,0) ->  | R91: =VLOOKUP(Table_Shelter[[#This Row],[CampName]],Camp_List!N$5:AA$302,14,0) ->  | S91: =Table_Shelter[[#This Row],[HHCovered]]/VLOOKUP(Table_Shelter[[#This Row],[CampName]],Camp_List!N$5:AA$302,6,0) -> 
A92: 2013-08-02 | B92: Government | C92: Government | D92: Rakhine | E92: Maungdaw | F92: Shwe Yin Aye | G92: 1 | M92: 77 | N92: 77 | Q92: =VLOOKUP(Table_Shelter[[#This Row],[CampName]],Camp_List!N$5:O$302,2,0) ->  | R92: =VLOOKUP(Table_Shelter[[#This Row],[CampName]],Camp_List!N$5:AA$302,14,0) ->  | S92: =Table_Shelter[[#This Row],[HHCovered]]/VLOOKUP(Table_Shelter[[#This Row],[CampName]],Camp_List!N$5:AA$302,6,0) -> 
A93: 2013-07-01 | B93: Government | D93: Rakhine | E93: Pauktaw | G93: 8 | M93: 3 | O93: 3 | Q93: =VLOOKUP(Table_Shelter[[#This Row],[CampName]],Camp_List!N$5:O$302,2,0) ->  | R93: =VLOOKUP(Table_Shelter[[#This Row],[CampName]],Camp_List!N$5:AA$302,14,0) ->  | S93: =Table_Shelter[[#This Row],[HHCovered]]/VLOOKUP(Table_Shelter[[#This Row],[CampName]],Camp_List!N$5:AA$302,6,0) -> 
A94: 2013-08-02 | B94: UNHCR | C94: UNHCR | D94: Rakhine | E94: Maungdaw | F94: Kan Pyin Thar Si | G94: 1 | M94: 11 | O94: 11 | Q94: =VLOOKUP(Table_Shelter[[#This Row],[CampName]],Camp_List!N$5:O$302,2,0) ->  | R94: =VLOOKUP(Table_Shelter[[#This Row],[CampName]],Camp_List!N$5:AA$302,14,0) ->  | S94: =Table_Shelter[[#This Row],[HHCovered]]/VLOOKUP(Table_Shelter[[#This Row],[CampName]],Camp_List!N$5:AA$302,6,0) -> 
A95: 2013-08-02 | B95: UNHCR | C95: UNHCR | D95: Rakhine | E95: Maungdaw | F95: Kha Yay Myaing(short legged) | G95: 1 | M95: 25 | N95: 25 | Q95: =VLOOKUP(Table_Shelter[[#This Row],[CampName]],Camp_List!N$5:O$302,2,0) ->  | R95: =VLOOKUP(Table_Shelter[[#This Row],[CampName]],Camp_List!N$5:AA$302,14,0) ->  | S95: =Table_Shelter[[#This Row],[HHCovered]]/VLOOKUP(Table_Shelter[[#This Row],[CampName]],Camp_List!N$5:AA$302,6,0) -> 

Sheet Shelter_Progress
A2: SHELTER PROGRESS
A3: =Report_Date -> 2013-09-01
A5: Rakhine
A6: Township | B6: Total # of HH | C6: Total # of Population | D6: Tents Distributed | E6: Temporary Shelter Built | F6: Temporary Shelter Under Construction | G6: Temporary Shelter Planned | H6: Permanent Shelter Built | I6: Permament Shelter Under Construction | J6: Permanent Shelter Planned | K6: Coverage (HH) | L6: Coverage (in Pop) | M6: Gap - HH | N6: Covered | O6: Ind. Not covered
A7: Kyauk_Phyu | B7: =SUMIF(Camplist_Township,Shelter_Progress!$A7,Camplist_HH) -> 492 | C7: =SUMIF(Camplist_Township,Shelter_Progress!$A7,Camplist_Popl) -> 1867 | D7: =SUMIF(Col_Shelter_Township,$A7,Col_Shelter_Tent_Dist) -> 0 | E7: =SUMIF(Col_Shelter_Township,$A7,Col_Shelter_Temp_B) -> 60 | F7: =SUMIF(Col_Shelter_Township,$A7,Col_Shelter_Temp_U) -> 0 | G7: =SUMIF(Col_Shelter_Township,$A7,Col_Shelter_Temp_P) -> 60 | H7: =SUMIF(Col_Shelter_Township,$A7,Col_Shelter_Perm_B) -> 0 | I7: =SUMIF(Col_Shelter_Township,$A7,Col_Shelter_Perm_U) -> 0 | J7: =SUMIF(Col_Shelter_Township,$A7,Col_Shelter_Perm_P) -> 0 | K7: =SUMIF(Col_Shelter_Township,$A7,Shelter_HH_Covered) -> 480 | L7: =K7*P7 -> 1821.463415 | M7: =B7-K7 -> 12 | N7: =K7/B7 -> 0.9756097561 | O7: =MAX(0,C7-L7) -> 45.53658537 | P7: =C7/B7 -> 3.794715447
A8: Kyauktaw | B8: =SUMIF(Camplist_Township,Shelter_Progress!$A8,Camplist_HH) -> 1053 | C8: =SUMIF(Camplist_Township,Shelter_Progress!$A8,Camplist_Popl) -> 6554 | D8: 0 | E8: 111 | F8: 0 | G8: 111 | H8: 0 | I8: 0 | J8: 0 | K8: 888 | L8: =K8*P8 -> 5527.019943 | M8: 165 | N8: 0.8433048433 | O8: 1026.980057 | P8: 6.224121557
A9: Maungdaw | B9: =SUMIF(Camplist_Township,Shelter_Progress!$A9,Camplist_HH) -> 288 | C9: =SUMIF(Camplist_Township,Shelter_Progress!$A9,Camplist_Popl) -> 2046 | D9: 0 | E9: 0 | F9: 0 | G9: 0 | H9: 539 | I9: 15 | J9: 558 | K9: 393 | L9: 2791.9375 | M9: -105 | N9: 1.364583333 | O9: 0 | P9: 7.104166667
A10: Meybon | B10: =SUMIF(Camplist_Township,Shelter_Progress!$A10,Camplist_HH) -> 674 | C10: =SUMIF(Camplist_Township,Shelter_Progress!$A10,Camplist_Popl) -> 4066 | D10: 0 | E10: 95 | F10: 0 | G10: 95 | H10: 0 | I10: 0 | J10: 0 | K10: 760 | L10: 4584.807122 | M10: -86 | N10: 1.127596439 | O10: 0 | P10: 6.03264095
A11: Minbya | B11: =SUMIF(Camplist_Township,Shelter_Progress!$A11,Camplist_HH) -> 949 | C11: =SUMIF(Camplist_Township,Shelter_Progress!$A11,Camplist_Popl) -> 5207 | D11: 0 | E11: 79 | F11: 5 | G11: 84 | H11: 0 | I11: 0 | J11: 0 | K11: 672 | L11: 3687.148577 | M11: 277 | N11: 0.708113804 | O11: 1519.851423 | P11: 5.48682824
A12: Mrauk_U | B12: =SUMIF(Camplist_Township,Shelter_Progress!$A12,Camplist_HH) -> 685 | C12: =SUMIF(Camplist_Township,Shelter_Progress!$A12,Camplist_Popl) -> 3998 | D12: 0 | E12: 72 | F12: 0 | G12: 72 | H12: 0 | I12: 0 | J12: 0 | K12: 576 | L12: 3361.821898 | M12: 109 | N12: 0.8408759124 | O12: 636.1781022 | P12: 5.83649635
A13: Pauktaw | B13: =SUMIF(Camplist_Township,Shelter_Progress!$A13,Camplist_HH) -> 4017 | C13: =SUMIF(Camplist_Township,Shelter_Progress!$A13,Camplist_Popl) -> 20054 | D13: 0 | E13: 390 | F13: 95 | G13: 485 | H13: 0 | I13: 3 | J13: 3 | K13: 3886 | L13: 19400.01095 | M13: 131 | N13: 0.9673885985 | O13: 653.9890466 | P13: 4.992282798
A14: Ramree | B14: =SUMIF(Camplist_Township,Shelter_Progress!$A14,Camplist_HH) -> 69 | C14: =SUMIF(Camplist_Township,Shelter_Progress!$A14,Camplist_Popl) -> 227 | D14: 0 | E14: 12 | F14: 0 | G14: 12 | H14: 0 | I14: 0 | J14: 0 | K14: 96 | L14: 315.826087 | M14: -27 | N14: 1.391304348 | O14: 0 | P14: 3.289855072
A15: Rathedaung | B15: =SUMIF(Camplist_Township,Shelter_Progress!$A15,Camplist_HH) -> 782 | C15: =SUMIF(Camplist_Township,Shelter_Progress!$A15,Camplist_Popl) -> 3981 | D15: 416 | E15: 64 | F15: 0 | G15: 64 | H15: 0 | I15: 0 | J15: 0 | K15: 512 | L15: 2606.485934 | M15: 270 | N15: 0.6547314578 | O15: 1374.514066 | P15: 5.090792839
A16: Sittwe | B16: =SUMIF(Camplist_Township,Shelter_Progress!$A16,Camplist_HH) -> 16640 | C16: =SUMIF(Camplist_Township,Shelter_Progress!$A16,Camplist_Popl) -> 91881 | D16: 0 | E16: 1691 | F16: 255 | G16: 1946 | H16: 669 | I16: 150 | J16: 819 | K16: 16621 | L16: 91776.0878 | M16: 19 | N16: 0.9988581731 | O16: 104.9121995 | P16: 5.521694712
A17: Total | B17: =SUM(B7:B16) -> 25649 | C17: 139881 | D17: 416 | E17: 2574 | F17: 355 | G17: 2929 | H17: 1208 | I17: 168 | J17: 1380 | K17: 24884 | L17: 135872.6092 | M17: 765 | N17: 0.9701742758 | O17: =SUM(O7:O16) -> 5361.96148 | P17: 5.453662911
A22: Rakhine
A48: State | B48: Rakhine | H48: State | I48: Rakhine
A50: Row Labels | B50: Sum of HHCovered | H50: Row Labels | I50: Count of #ofTemporaryShelterBuilt
A51: CARE | B51: 1920 | H51: CARE | I51: 5
A52: DRC | B52: 1832 | H52: Maungdaw
A53: Government | B53: 12317 | H53: Kin Chaung
A54: IRW | B54: 320 | H54: Tha Yay Kone Baung
A55: MAUK | B55: 256 | H55: Sittwe | I55: 5
A56: MRCS | B56: 480 | H56: Baw Du Pha | I56: 1
A57: MRF/ACT | B57: 1730 | H57: Dar Pai | I57: 1
A58: Service City | B58: 304 | H58: Hmanzi | I58: 1
A59: UNHCR | B59: 5518 | H59: Ohn Taw Gyi 6 | I59: 1
A60: WFP | B60: 600 | H60: Thet Kae Pyin | I60: 1
A61: ICRC | B61: 152 | H61: DRC | I61: 3
A62: Grand Total | B62: 25429 | H62: Pauktaw | I62: 2
H63: Ah Nauk Ywe | I63: 1
H64: Sin Tet Maw | I64: 1
H65: Sittwe | I65: 1
H66: Say Tha Mar Gyi | I66: 1
H67: Government | I67: 42
H68: Kyauk_Phyu | I68: 1
H69: Kyauk Ta Lone | I69: 1
H70: Kyauktaw | I70: 11
H71: Ah Lel | I71: 1
H72: Ah Lel Kyun | I72: 1
H73: Ah Pauk Wa | I73: 1
H74: Goke Pi Htaunt | I74: 1
H75: In Bar Yi | I75: 1
H76: Khaung Htoke | I76: 1
H77: Let Saung Kauk | I77: 1
H78: Nidin | I78: 1
H79: Shwe Hlaing | I79: 1
H80: Taung Bwe | I80: 1
H81: Yun Nyar | I81: 1
H82: Maungdaw
H83: Baw Di Gone
H84: Kan Pyin Thar Si
H85: Kan Thar Yar
H86: Kha Yay Myaing( DPA)
H87: Kha Yay Myaing(short legged)
H88: Kyaing Gyi
H89: Maw Ya Waddy
H90: Shwe Yin Aye
H91: Tha Yay Kone Baung
H92: Wai Thar Li
H93: Minbya | I93: 6
H94: Aung Taing | I94: 1
H95: Paik Thay | I95: 1
H96: Sam Ba Le | I96: 1
H97: San Htoe Tan | I97: 1
H98: Tha Dar | I98: 1
H99: Tha Yet Oak | I99: 1
H100: Mrauk_U | I100: 2
H101: Pa Rein | I101: 1
H102: Yai Thei-Muslim | I102: 1
H103: Pauktaw | I103: 2
H104: Ba Wan Chaung Wa Su | I104: 1
H105: Kyein Ni Pyin | I105: 1
H106: (blank)
H107: Ramree | I107: 1
H108: Ramree Town | I108: 1
H109: Rathedaung | I109: 3
H110: Ah Nauk Pyin | I110: 1
H111: Koe Tan Kauk/Chein Khar Li | I111: 1
H112: Nyaung Pin Gyi | I112: 1
H113: Sittwe | I113: 16
H114: Basare | I114: 1
H115: Baw Du Pha | I115: 2
H116: Danyawaddy Baw Lone Kwin | I116: 1
H117: Dar Pai | I117: 1
H118: Hmanzi | I118: 1
H119: Khaung Doke Khar | I119: 1
H120: Maw Ti Ngar (TKP west) | I120: 1
H121: Mingan | I121: 1
H122: Ohn Taw Gyi 4 | I122: 1
H123: Ohn Taw Gyi 5 | I123: 1
H124: Phwe Yar Kone | I124: 2
H125: Sat Roe Kya
H126: Say Tha Mar Gyi | I126: 1
H127: Set Yone Su | I127: 1
H128: Thet Kae Pyin | I128: 1
H129: IRW | I129: 1
H130: Sittwe | I130: 1
H131: Say Tha Mar Gyi | I131: 1
H132: MAUK | I132: 1
H133: Sittwe | I133: 1
H134: Baw Du Pha | I134: 1
H135: MRCS | I135: 1
H136: Sittwe | I136: 1
H137: Say Tha Mar Gyi | I137: 1
H138: MRF/ACT | I138: 2
H139: Sittwe | I139: 2
H140: Ohn Taw Gyi 3 | I140: 1
H141: Say Tha Mar Gyi | I141: 1
H142: Service City | I142: 2
H143: Kyauk_Phyu | I143: 2
H144: Kyauk Ta Lone | I144: 1
H145: Pha Yar Gyi Kwin | I145: 1
H146: UNHCR | I146: 9
H147: Maungdaw
H148: Baw Di Gone
H149: Kan Pyin Thar Si
H150: Kan Thar Yar
H151: Kha Yay Myaing(short legged)
H152: Kyaing Gyi
H153: Maw Ya Waddy
H154: Meybon | I154: 2
H155: Kan Thar Htwat Wa | I155: 1
H156: Taung Paw | I156: 1
H157: Pauktaw | I157: 2
H158: Kyein Ni Pyin | I158: 1
H159: Nget Chaung | I159: 1
H160: Rathedaung
H161: Koe Tan Kauk/Chein Khar Li
H162: Nyaung Pin Gyi
H163: Sittwe | I163: 5
H164: Ma Gyi Myaing | I164: 1
H165: Ohn Taw Gyi 1 | I165: 1
H166: Ohn Taw Gyi 2 | I166: 1
H167: Say Tha Mar Gyi | I167: 1
H168: Set Yone Su 3 | I168: 1
H169: WFP | I169: 2
H170: Sittwe | I170: 2
H171: Baw Du Pha | I171: 1
H172: Dohn Taik Kwin | I172: 1
H173: ICRC | I173: 1
H174: Sittwe | I174: 1
H175: Baw Du Pha | I175: 1
H176: Grand Total | I176: 69

Sheet ShelterAgency
A2: SHELTER SUMMARY BY AGENCY
A3: =Report_Date -> 2013-09-01
A5: State | B5: Rakhine | C5: (Select State)
A7: Row Labels | B7: Temporary Shelter Built | C7: Temporary Shelter Under Construction | D7: Permanent House Built | E7: Permanent House Under Construction
A8: CARE | B8: 192 | C8: 32 | D8: 128
A9: DRC | B9: 165 | C9: 64
A10: Government | B10: 1208 | C10: 160 | D10: 873 | E10: 153
A11: ICRC | B11: 0 | C11: 19
A12: IRW | B12: 40
A13: MAUK | B13: 25 | C13: 7
A14: MRCS | B14: 60
A15: MRF/ACT | B15: 142 | C15: 55
A16: Service City | B16: 38
A17: UNHCR | B17: 644 | C17: 18 | D17: 207 | E17: 15
A18: WFP | B18: 60
A19: Grand Total | B19: 2574 | C19: 355 | D19: 1208 | E19: 168
A22: State | B22: Rakhine
A24: Row Labels | B24: Sum of HHCovered
A25: CARE | B25: 1920
A26: DRC | B26: 1832
A27: Government | B27: 12317
A28: ICRC | B28: 152
A29: IRW | B29: 320
A30: MAUK | B30: 256
A31: MRCS | B31: 480
A32: MRF/ACT | B32: 1730
A33: Service City | B33: 304
A34: UNHCR | B34: 5518
A35: WFP | B35: 600
A36: Grand Total | B36: 25429
A40: State | B40: Rakhine
A42: Row Labels | B42: Sum of HHCovered
A43: Kyauk_Phyu | B43: 480
A44: Kyauktaw | B44: 888
A45: Maungdaw | B45: 554
A46: Meybon | B46: 760
A47: Minbya | B47: 672
A48: Mrauk_U | B48: 576
A49: Pauktaw | B49: 3910
A50: Ramree | B50: 96
A51: Rathedaung | B51: 512
A52: Sittwe | B52: 16981
A53: Grand Total | B53: 25429

Sheet Rakhine_Shelter_D
A2: Rakhine Shelter Coverage & Gaps
A3: =Report_Date -> 2013-09-01
B16: Population | E16: Shelter
A17: Township | B17: # of HH | C17: # of Ind. | D17: # of Camp | E17: # Ind. Covered | F17: # Ind. Not Covered | G17: % Coverage
A18: Kyauk_Phyu | B18: =SUMIFS(Camplist_HH,Camplist_Township,Rakhine_Shelter_D!$A18,CampList_Status,"Open") -> 492 | C18: =SUMIFS(Camplist_Popl,Camplist_Township,Rakhine_Shelter_D!$A18,CampList_Status,"Open") -> 1867 | D18: =COUNTIFS(Camplist_Township,Rakhine_Shelter_D!A18,CampList_Status,"open") -> 2 | E18: =Shelter_Progress!L7 -> 1821.463415 | F18: =Shelter_Progress!O7 -> 45.53658537 | G18: =IF(E18>0,E18/(E18+F18),0.00000001) -> 0.9756097561
A19: Kyauktaw | B19: =SUMIFS(Camplist_HH,Camplist_Township,Rakhine_Shelter_D!$A19,CampList_Status,"Open") -> 1053 | C19: =SUMIFS(Camplist_Popl,Camplist_Township,Rakhine_Shelter_D!$A19,CampList_Status,"Open") -> 6554 | D19: =COUNTIFS(Camplist_Township,Rakhine_Shelter_D!A19,CampList_Status,"open") -> 11 | E19: =Shelter_Progress!L8 -> 5527.019943 | F19: =Shelter_Progress!O8 -> 1026.980057 | G19: 0.8433048433
A20: Maungdaw | B20: =SUMIFS(Camplist_HH,Camplist_Township,Rakhine_Shelter_D!$A20,CampList_Status,"Open") -> 288 | C20: =SUMIFS(Camplist_Popl,Camplist_Township,Rakhine_Shelter_D!$A20,CampList_Status,"Open") -> 2046 | D20: =COUNTIFS(Camplist_Township,Rakhine_Shelter_D!A20,CampList_Status,"open") -> 12 | E20: =Shelter_Progress!L9 -> 2791.9375 | F20: =Shelter_Progress!O9 -> 0 | G20: 1
A21: Meybon | B21: =SUMIFS(Camplist_HH,Camplist_Township,Rakhine_Shelter_D!$A21,CampList_Status,"Open") -> 674 | C21: =SUMIFS(Camplist_Popl,Camplist_Township,Rakhine_Shelter_D!$A21,CampList_Status,"Open") -> 4066 | D21: =COUNTIFS(Camplist_Township,Rakhine_Shelter_D!A21,CampList_Status,"open") -> 2 | E21: =Shelter_Progress!L10 -> 4584.807122 | F21: =Shelter_Progress!O10 -> 0 | G21: 1
A22: Minbya | B22: =SUMIFS(Camplist_HH,Camplist_Township,Rakhine_Shelter_D!$A22,CampList_Status,"Open") -> 949 | C22: =SUMIFS(Camplist_Popl,Camplist_Township,Rakhine_Shelter_D!$A22,CampList_Status,"Open") -> 5207 | D22: =COUNTIFS(Camplist_Township,Rakhine_Shelter_D!A22,CampList_Status,"open") -> 7 | E22: =Shelter_Progress!L11 -> 3687.148577 | F22: =Shelter_Progress!O11 -> 1519.851423 | G22: 0.708113804
A23: Mrauk_U | B23: =SUMIFS(Camplist_HH,Camplist_Township,Rakhine_Shelter_D!$A23,CampList_Status,"Open") -> 685 | C23: =SUMIFS(Camplist_Popl,Camplist_Township,Rakhine_Shelter_D!$A23,CampList_Status,"Open") -> 3998 | D23: =COUNTIFS(Camplist_Township,Rakhine_Shelter_D!A23,CampList_Status,"open") -> 4 | E23: =Shelter_Progress!L12 -> 3361.821898 | F23: =Shelter_Progress!O12 -> 636.1781022 | G23: 0.8408759124
A24: Pauktaw | B24: =SUMIFS(Camplist_HH,Camplist_Township,Rakhine_Shelter_D!$A24,CampList_Status,"Open") -> 4017 | C24: =SUMIFS(Camplist_Popl,Camplist_Township,Rakhine_Shelter_D!$A24,CampList_Status,"Open") -> 20054 | D24: =COUNTIFS(Camplist_Township,Rakhine_Shelter_D!A24,CampList_Status,"open") -> 6 | E24: =Shelter_Progress!L13 -> 19400.01095 | F24: =Shelter_Progress!O13 -> 653.9890466 | G24: 0.9673885985
A25: Ramree | B25: =SUMIFS(Camplist_HH,Camplist_Township,Rakhine_Shelter_D!$A25,CampList_Status,"Open") -> 69 | C25: =SUMIFS(Camplist_Popl,Camplist_Township,Rakhine_Shelter_D!$A25,CampList_Status,"Open") -> 227 | D25: =COUNTIFS(Camplist_Township,Rakhine_Shelter_D!A25,CampList_Status,"open") -> 2 | E25: =Shelter_Progress!L14 -> 315.826087 | F25: =Shelter_Progress!O14 -> 0 | G25: 1
A26: Rathedaung | B26: =SUMIFS(Camplist_HH,Camplist_Township,Rakhine_Shelter_D!$A26,CampList_Status,"Open") -> 782 | C26: =SUMIFS(Camplist_Popl,Camplist_Township,Rakhine_Shelter_D!$A26,CampList_Status,"Open") -> 3981 | D26: =COUNTIFS(Camplist_Township,Rakhine_Shelter_D!A26,CampList_Status,"open") -> 5 | E26: =Shelter_Progress!L15 -> 2606.485934 | F26: =Shelter_Progress!O15 -> 1374.514066 | G26: 0.6547314578
A27: Sittwe | B27: =SUMIFS(Camplist_HH,Camplist_Township,Rakhine_Shelter_D!$A27,CampList_Status,"Open") -> 16640 | C27: =SUMIFS(Camplist_Popl,Camplist_Township,Rakhine_Shelter_D!$A27,CampList_Status,"Open") -> 91881 | D27: =COUNTIFS(Camplist_Township,Rakhine_Shelter_D!A27,CampList_Status,"open") -> 24 | E27: =Shelter_Progress!L16 -> 91776.0878 | F27: =Shelter_Progress!O16 -> 104.9121995 | G27: 0.9988581731
A28: Total | B28: =SUM(B18:B27) -> 25649 | C28: =SUM(C18:C27) -> 139881 | D28: =SUM(D18:D27) -> 75 | E28: =Shelter_Progress!L17 -> 135872.6092 | F28: =Shelter_Progress!O17 -> 5361.96148 | G28: 0.9620350637

Sheet Kachin (hidden)
A1: Camp | H1: Shelter | I1: NFI | L1: Pos | M1: 130
A2: Pcode | B2: Township | C2: Long. | D2: Lat. | E2: HS | F2: Pop | G2: N_cps | H2: Coverage | I2: Hygiene | J2: Core | K2: Sanitary | L2: Y | M2: X | N2: Column1
A3: MMR012011 | B3: Kyauk_Phyu | C3: 93.45 | D3: 19.31533074 | E3: 492 | F3: 1793 | G3: =CONCATENATE(N3, " camp",IF(N3>1,"s","")) -> 13 camps | H3: 0.9756097561 | I3: 0.993902439 | J3: 0 | K3: 0 | L3: =1300-ROUND((D3-19)*$M$1,0) -> 1259 | M3: =ROUND((C3-93)*$M$1,0)+300 -> 359 | N3: 13
A4: MMR012004 | B4: Kyauktaw | C4: 92.95405622 | D4: 20.83554217 | E4: 989 | F4: 6518 | G4: 6 camps | H4: 0.8978766431 | I4: 0 | J4: 1 | K4: 0.06066734075 | L4: 1061 | M4: 294 | N4: 6
A5: MMR012009 | B5: Maungdaw | C5: 92.44 | D5: 20.89 | E5: 398 | F5: 2354 | G5: 23 camps | H5: 1 | I5: 1 | J5: 0.7914572864 | K5: 1 | L5: 1054 | M5: 227 | N5: 23
A6: MMR012006 | B6: Meybon | C6: 93.45 | D6: 19.9 | E6: 674 | F6: 4066 | G6: 1 camp | H6: 1 | I6: 1 | J6: 0 | K6: 0 | L6: 1183 | M6: 359 | N6: 1
A7: MMR012005 | B7: Minbya | C7: 93.42 | D7: 20.39 | E7: 865 | F7: 5212 | G7: 1 camp | H7: 0.7768786127 | I7: 1 | J7: 1 | K7: 0 | L7: 1119 | M7: 355 | N7: 1
A8: MMR012003 | B8: Mrauk_U | C8: 93.17174468 | D8: 20.58093617 | E8: 644 | F8: 3926 | G8: 8 camps | H8: 0.8944099379 | I8: 0.9937888199 | J8: 1 | K8: 0 | L8: 1094 | M8: 322 | N8: 8
A9: MMR012007 | B9: Pauktaw | C9: 93.05 | D9: 19.985 | E9: 3886 | F9: 19690 | G9: 11 camps | H9: 1 | I9: 1 | J9: 0 | K9: 0 | L9: 1172 | M9: 306 | N9: 11
A10: MMR012013 | B10: Ramree | C10: 93.65 | D10: 19.03304598 | E10: 70 | F10: 263 | G10: 3 camps | H10: 1 | I10: 1 | J10: 0 | K10: 0 | L10: 1296 | M10: 385 | N10: 3
A11: MMR012008 | B11: Rathedaung | C11: 92.74 | D11: 20.4 | E11: 771 | F11: 3973 | G11: 3 camps | H11: 0.6640726329 | I11: 0 | J11: 0.1712062257 | K11: 0.3424124514 | L11: 1118 | M11: 266 | N11: 3
A12: MMR012001 | B12: Sittwe | C12: 92.8 | D12: 20.11 | E12: 16340 | F12: 95372 | G12: 3 camps | H12: 1 | I12: 1 | J12: 0.3635250918 | K12: 0 | L12: 1156 | M12: 274 | N12: 3
B13: Rakhine | C13: 96.00 | D13: 27.00 | E13: =SUBTOTAL(109,Table58[HS]) -> 25129 | F13: =SUBTOTAL(109,Table58[Pop]) -> 143167 | G13: =CONCATENATE(Table58[[#Totals],[Column1]]," camps") -> 164 camps | H13: =SUMPRODUCT(Table58[Pop]*Table58[Coverage])/Table58[[#Totals],[Pop]] -> 0.9747046007 | I13: =SUMPRODUCT(Table58[Pop]*Table58[Hygiene])/Table58[[#Totals],[Pop]] -> 0.926475249 | J13: =SUMPRODUCT(Table58[Pop]*Table58[Core])/Table58[[#Totals],[Pop]] -> 0.369284876 | K13: =SUMPRODUCT(Table58[Pop]*Table58[Sanitary])/Table58[[#Totals],[Pop]] -> 0.02870657621 | L13: =1000-ROUND((D13-23.5)*$M$1,0) -> 545 | M13: =ROUND((C13-96.5)*$M$1,0)+100 -> 35 | N13: 164

Sheet Rakhine (hidden)
A1: Camp | H1: Shelter | I1: NFI | L1: Pos | M1: 500
A2: Pcode | B2: Township | C2: Long. | D2: Lat. | E2: HS | F2: Pop | G2: N_camps | H2: Coverage | I2: Hygiene | J2: Core | K2: Sanitary | L2: Y | M2: X
A3: MMR012011 | B3: Kyauk_Phyu | C3: 93.45 | D3: 19.31533074 | E3: 492 | F3: 1793 | G3: =CONCATENATE(N3, " camp",IF(N3>1,"s","")) -> 2 camps | H3: 0.9756097561 | I3: 0.993902439 | J3: 0 | K3: 0 | L3: =1300-ROUND((D3-19)*$M$1,0) -> 1142 | M3: =ROUND((C3-93)*$M$1,0)+300 -> 525 | N3: 2
A4: MMR012004 | B4: Kyauktaw | C4: 92.95405622 | D4: 20.83554217 | E4: 989 | F4: 6518 | G4: 11 camps | H4: 0.8978766431 | I4: 0 | J4: 1 | K4: 0.06066734075 | L4: 382 | M4: 277 | N4: 11
A5: MMR012009 | B5: Maungdaw | C5: 92.44 | D5: 20.89 | E5: 398 | F5: 2354 | G5: 14 camps | H5: 1 | I5: 1 | J5: 0.7914572864 | K5: 1 | L5: 355 | M5: 20 | N5: 14
A6: MMR012006 | B6: Meybon | C6: 93.45 | D6: 19.9 | E6: 674 | F6: 4066 | G6: 2 camps | H6: 1 | I6: 1 | J6: 0 | K6: 0 | L6: 850 | M6: 525 | N6: 2
A7: MMR012005 | B7: Minbya | C7: 93.42 | D7: 20.39 | E7: 865 | F7: 5212 | G7: 7 camps | H7: 0.7768786127 | I7: 1 | J7: 1 | K7: 0 | L7: 605 | M7: 510 | N7: 7
A8: MMR012003 | B8: Mrauk_U | C8: 93.17174468 | D8: 20.58093617 | E8: 644 | F8: 3926 | G8: 4 camps | H8: 0.8944099379 | I8: 0.9937888199 | J8: 1 | K8: 0 | L8: 510 | M8: 386 | N8: 4
A9: MMR012007 | B9: Pauktaw | C9: 93.05 | D9: 19.985 | E9: 3886 | F9: 19690 | G9: 6 camps | H9: 1 | I9: 1 | J9: 0 | K9: 0 | L9: 807 | M9: 325 | N9: 6
A10: MMR012013 | B10: Ramree | C10: 93.65 | D10: 19.03304598 | E10: 70 | F10: 263 | G10: 2 camps | H10: 1 | I10: 1 | J10: 0 | K10: 0 | L10: 1283 | M10: 625 | N10: 2
A11: MMR012008 | B11: Rathedaung | C11: 92.74 | D11: 20.4 | E11: 771 | F11: 3973 | G11: 4 camps | H11: 0.6640726329 | I11: 0 | J11: 0.1712062257 | K11: 0.3424124514 | L11: 600 | M11: 170 | N11: 4
A12: MMR012001 | B12: Sittwe | C12: 92.8 | D12: 20.11 | E12: 16340 | F12: 95372 | G12: 24 camps | H12: 1 | I12: 1 | J12: 0.3635250918 | K12: 0 | L12: 745 | M12: 200 | N12: 24
B13: Rakhine | E13: =SUBTOTAL(109,Table5[HS]) -> 25129 | F13: =SUBTOTAL(109,Table5[Pop]) -> 143167 | G13: =CONCATENATE(SUM(N3:N12)," camps") -> 76 camps | H13: =SUMPRODUCT(Table5[Pop]*Table5[Coverage])/Table5[[#Totals],[Pop]] -> 0.9747046007 | I13: =SUMPRODUCT(Table5[Pop]*Table5[Hygiene])/Table5[[#Totals],[Pop]] -> 0.926475249 | J13: =SUMPRODUCT(Table5[Pop]*Table5[Core])/Table5[[#Totals],[Pop]] -> 0.369284876 | K13: =SUMPRODUCT(Table5[Pop]*Table5[Sanitary])/Table5[[#Totals],[Pop]] -> 0.02870657621 | L13: 1200 | M13: 50

Sheet Sheet2 (hidden)
L1: Row Labels
F2: State | G2: Rakhine | L2: Rakhine
A3: Row Labels | F3: Status | G3: Open | L3: (blank)
A4: Rakhine | D4: 1 Ward, Sein Yadanar Company(Lon Khin) | L4: Kyauk_Phyu
A5: Kyauk_Phyu | D5: AD-2000 Tharthana Compound | F5: Sum of Total | G5: Column Labels | L5: Kyauktaw
A6: Kyauktaw | D6: Anglican Church, Hmaw Si Sar | F6: Row Labels | G6: Accessible by All | H6: Grand Total | L6: Maungdaw
A7: Maungdaw | D7: Away Yar Rama Monastery, Ka Day village | F7: (blank) | G7: 139881 | H7: 139881 | L7: Meybon
A8: Meybon | D8: Aye Mya Tharyar Church of Christ | F8: Grand Total | G8: 139881 | H8: 139881 | L8: Minbya
A9: Minbya | D9: Belehem | L9: Mrauk_U
A10: Mrauk_U | D10: Border Post 10 | L10: Pauktaw
A11: Pauktaw | D11: Border Post 8 | L11: Ramree
A12: Ramree | D12: Chin(Zomi) Baptist Church | L12: Rathedaung
A13: Rathedaung | D13: Dap Kawng/Tak Kone | L13: Sittwe
A14: Sittwe | D14: Du Kahtawng Qtr. 14 | L14: Grand Total
A15: Grand Total | D15: Du Kahtawng Qtr. 4
D16: Du Kahtawng Qtr. 5
D17: Dum Bung
D18: Dumbung
D19: Ei Wan Gali Asso., Ward 1, Seik Mu
D20: Free Christian Asso., Ward 1, Seik Mu
D21: Galile
D22: Hkat Cho
D23: Hkau Shau (BP 12)
D24: Hmaw Wan, Baptist Christian Church
D25: Howa
D26: Howa/Mungbaw/Namhkawng
D27: Hpun Lum Yang
D28: Jan Mai (Pa Jau)
D29: Jan Mai Kawng
D30: Jan Mai Kawng Baptist Church
D31: Jan Mai Kawng Catholic church
D32: Je Yang Hka
D33: Kyun Pin Thar Baptist Church
D34: Kyun Pyin Tar (maisakwang)
D35: Kyun Taw Baptist Church
D36: Lana Zup Ja
D37: Le Kone Bethlehem Church
D38: Le Kone Ziun Baptist Church
D39: Lhaovao Baptist Church (LBC)
D40: Lisu Boarding-House
D41: Loi Je Baptist Church
D42: Loi Je Catholic Church
D43: Loi Je Lisu Camp
D44: Ma Mon Buddhist Monastery
D45: Mading Baptist Church
D46: Maga Yang
D47: Maina AG Church
D48: Maina Catholic Church (St. Joseph)
D49: Maina Catholic Church (St.Joseph)
D50: Maina KBC (Bawng Ring)
D51: Maina KBC Camp
D52: Maina Lawang Baptist Church
D53: Maina Lawang BC
D54: Mali Yang
D55: Maliyang Baptist Church
D56: Man Bung Catholic compound
D57: Man Dung
D58: Man Hkring Baptist Church
D59: Man Wing Baptist Church
D60: Man Wing Catholic Church
D61: Mandung - Jinghpaw
D62: Mang Hawng Baptist Church
D63: Manhkring
D64: Mansi Baptist Church
D66: Mashi Kahtawng Baptist Church
D67: Mashi Kahtawng Catholic Church
D68: Mashi Kahtawng Evangelical Church
D69: Mashi Kahtawng Municipal Dammar Yone
D70: Mashi Kahtawng Myo Oo Taw Ya Monestry
D71: Mashi Kahtawng Rakhine traditional group
D72: Mashi Kahtawng Shan Traditional Monestry
D73: Mashi Kahtawng Yaung Chi Oo Thi la shin Monestry
D74: Maw Hpawng Hka Nan Baptist Church
D75: Maw Hpawng Lhaovo Baptist Church
D76: Maw Si Zar, Thiriyardanar Sein, Damma Compound, Lone Khin
D77: Maw Wan, Catholic Church
D79: Maw Wan, Kachin Baptist Church
D80: Maw Wan, Kyauk Hlaing Gu Pagoda Compound
D81: Maw Wan, Myo Oo Pagoda
D82: May Di Ka Rama Monastery(Lon Khin)
D83: Mogawng Kyungtaw Camp
D84: Mogawng Mahawng Camp
D85: Mogawng Natkyikone Camp
D86: Moke Lwe Village / Hkar Shi
D87: Momauk Baptist Church
D88: Mung Ding Pa
D89: Mungga Zup/Zai Awng
D90: N Jang Dung
D91: Nam Hkam - Nay Win Ni (Palawng)
D92: Nam Hkam (KBC Jaw Wang)
D93: Nam Lim Pa - Scattered IDPs in forest
D94: Nam Tu
D95: Namdu Camp
D96: Namphaka
D97: Nan Kway St. John Catholic Church
D98: Nant Hlaing Church
D99: Nat Gyi Kone Baptist Church
D100: Nawng Ing (Indawgyi) Baptist Church
D101: Nawng Ing Camp
D102: Nawng Si Paw Village / Inn Lay
D103: Nga Pyaw Taw Baptist Nursery School
D104: Nga Pyaw Taw Roman Catholic Church
D105: Ni Thaw Ka Monestry
D106: Njang Dung Baptist Church
D107: Nong Pong
D108: Nong Pong Camp
D109: Nyaung Na Pin
D110: Pa Kahtawng
D111: Padauk Mying (Palana)
D112: Pajau / Jan Mai
D113: Parami, Charity Office, MyoMa Quarter
D114: Phan Khar Kone
D115: Post 6 Camp
D116: Qtr. 2 Lhaovo Baptist Church
D117: Qtr. 2 Myoma Baptist Church
D118: Qtr. 3 Mu-yin Baptist Church
D119: Qtr. 4 Monestry (Thargaya Thayett Taw)
D120: Robert Church
D121: Sa Baw Sarsana Parla Monastery
D122: San Kyel, Masoe Yein Monestry
D123: San Pra
D124: Seng Ja
D125: Shatapru
D126: Shatapru Sut Ngai Tawng
D127: Shing Jai
D128: Shingchyai
D129: Shwe Gu Catholic Church
D130: Shwe Zet
D131: Shwe Zet Baptist Church
D132: St.Patrick catholic church
D133: Ta Gun Taing Monastery (Shwe Kyi Na)
D134: Tar Ma Hkan Buddhist Monastery, Haung Par
D135: Tat Kone Baptist Church
D136: Tat Kone COC Baptist / Tat Kone Htoi San
D137: Tat Kone Emanuel Church
D138: Tat Kone Galile Baptist Church
D139: Tat Kone San Pya Baptist Church
D140: Thargaya Lisu Baptist Church
D141: Thiri Mingalar Manizay Yone, Myoma Quarter
D142: W.M Baptist Association
D143: Waing Maw Town Church
D144: Waingmaw AG Church
D145: Waingmaw Baptist Zonal Office
D146: Wrad(5) Christian Association
D147: Wun Tho Buddhist Monastery
D148: Yumar Baptist Church
D149: Zai Awng / Mung Ga Zup
D150: Ziun
D151: Zomee Baptist Church camp, Hmaw Wan

Sheet NFI_Tracking
I1: =NFISummary!P1 -> 1
A2: NFI TRACKING SHEET
A3: =Report_Date -> 2013-09-01
A5: Months | B5: Distribution Date | C5: Organization | D5: Implementing Partner | E5: State | F5: Township | G5: Camp Name | H5: Hygiene Kit | I5: NFI Core Kit | J5: Sanitary Kit | K5: Mosquito net | L5: Tarpaulin | M5: Blanket | N5: Kitchen Set | O5: Complementary Kit | P5: Plastic Bucket | Q5: Plastic Mat | R5: Hygiene Kit2 | S5: NFI Core Kit3 | T5: Sanitary Kit4 | U5: Mosquito net5 | V5: Tarpaulin6 | W5: Blanket7 | X5: Kitchen Set8 | Y5: Complementary Kit9 | Z5: Plastic Bucket | AA5: Plastic Mat | AB5: Pcode | AC5: Status | AD5: Column1
A6: =IF(ISBLANK(B6),"",(Report_Date-B6)/30) -> 8.733333333 | B6: 2012-12-13 | C6: UNHCR | E6: Rakhine | F6: Minbya | G6: Paik Thay | M6: 2 | R6: =IF(NFI_Expiration=1,IF($A6<VLOOKUP(H$5,NFI,5,0),1,0)*Table_NFI[[#This Row],[Hygiene Kit]],0) -> 0 | S6: =IF(NFI_Expiration=1,IF($A6<VLOOKUP(I$5,NFI,5,0),1,0)*Table_NFI[[#This Row],[NFI Core Kit]],0) -> 0 | T6: =IF(NFI_Expiration=1,IF($A6<VLOOKUP(J$5,NFI,5,0),1,0)*Table_NFI[[#This Row],[Sanitary Kit]],0) -> 0 | U6: =IF(NFI_Expiration=1,IF($A6<VLOOKUP(K$5,NFI,5,0),1,0)*Table_NFI[[#This Row],[Mosquito net]],0) -> 0 | V6: =IF(NFI_Expiration=1,IF($A6<VLOOKUP(L$5,NFI,5,0),1,0)*Table_NFI[[#This Row],[Tarpaulin]],0) -> 0 | W6: =IF(NFI_Expiration=1,IF($A6<VLOOKUP(M$5,NFI,5,0),1,0)*Table_NFI[[#This Row],[Blanket]],0) -> 2 | X6: =IF(NFI_Expiration=1,IF($A6<VLOOKUP(N$5,NFI,5,0),1,0)*Table_NFI[[#This Row],[Kitchen Set]],0) -> 0 | Y6: =IF(NFI_Expiration=1,IF($A6<VLOOKUP(O$5,NFI,5,0),1,0)*Table_NFI[[#This Row],[Complementary Kit]],0) -> 0 | Z6: =IF(NFI_Expiration=1,IF($A6<VLOOKUP(P$5,NFI,5,0),1,0)*Table_NFI[[#This Row],[Plastic Bucket]],0) -> 0 | AA6: =IF(NFI_Expiration=1,IF($A6<VLOOKUP(Q$5,NFI,5,0),1,0)*Table_NFI[[#This Row],[Plastic Mat]],0) -> 0 | AB6: =VLOOKUP(Table_NFI[[#This Row],[Camp Name]],Camp_List!N$5:AA$254,2,0) -> MMR012CMP001 | AC6: =VLOOKUP(Table_NFI[[#This Row],[Camp Name]],Camp_List!N$5:AA$254,14,0) -> Open | AD6: =VLOOKUP(Table_NFI[[#This Row],[Camp Name]],Camp_List!N$5:AC$254,1,1) -> Paik Thay
A7: 6.6 | B7: 2013-02-15 | C7: UNICEF | E7: Rakhine | F7: Minbya | G7: Paik Thay | H7: 20 | R7: =IF(NFI_Expiration=1,IF($A7<VLOOKUP(H$5,NFI,5,0),1,0)*Table_NFI[[#This Row],[Hygiene Kit]],0) -> 20 | S7: =IF(NFI_Expiration=1,IF($A7<VLOOKUP(I$5,NFI,5,0),1,0)*Table_NFI[[#This Row],[NFI Core Kit]],0) -> 0 | T7: =IF(NFI_Expiration=1,IF($A7<VLOOKUP(J$5,NFI,5,0),1,0)*Table_NFI[[#This Row],[Sanitary Kit]],0) -> 0 | U7: =IF(NFI_Expiration=1,IF($A7<VLOOKUP(K$5,NFI,5,0),1,0)*Table_NFI[[#This Row],[Mosquito net]],0) -> 0 | V7: =IF(NFI_Expiration=1,IF($A7<VLOOKUP(L$5,NFI,5,0),1,0)*Table_NFI[[#This Row],[Tarpaulin]],0) -> 0 | W7: =IF(NFI_Expiration=1,IF($A7<VLOOKUP(M$5,NFI,5,0),1,0)*Table_NFI[[#This Row],[Blanket]],0) -> 0 | X7: =IF(NFI_Expiration=1,IF($A7<VLOOKUP(N$5,NFI,5,0),1,0)*Table_NFI[[#This Row],[Kitchen Set]],0) -> 0 | Y7: =IF(NFI_Expiration=1,IF($A7<VLOOKUP(O$5,NFI,5,0),1,0)*Table_NFI[[#This Row],[Complementary Kit]],0) -> 0 | Z7: =IF(NFI_Expiration=1,IF($A7<VLOOKUP(P$5,NFI,5,0),1,0)*Table_NFI[[#This Row],[Plastic Bucket]],0) -> 0 | AA7: =IF(NFI_Expiration=1,IF($A7<VLOOKUP(Q$5,NFI,5,0),1,0)*Table_NFI[[#This Row],[Plastic Mat]],0) -> 0 | AB7: =VLOOKUP(Table_NFI[[#This Row],[Camp Name]],Camp_List!N$5:AA$254,2,0) -> MMR012CMP001 | AC7: =VLOOKUP(Table_NFI[[#This Row],[Camp Name]],Camp_List!N$5:AA$254,14,0) -> Open | AD7: =VLOOKUP(Table_NFI[[#This Row],[Camp Name]],Camp_List!N$5:AC$254,1,1) -> Paik Thay
A8: 1.8 | B8: 2013-07-09 | C8: UNHCR | D8: UNHCR | E8: Rakhine | F8: Minbya | G8: Paik Thay | R8: =IF(NFI_Expiration=1,IF($A8<VLOOKUP(H$5,NFI,5,0),1,0)*Table_NFI[[#This Row],[Hygiene Kit]],0) -> 0 | S8: =IF(NFI_Expiration=1,IF($A8<VLOOKUP(I$5,NFI,5,0),1,0)*Table_NFI[[#This Row],[NFI Core Kit]],0) -> 0 | T8: =IF(NFI_Expiration=1,IF($A8<VLOOKUP(J$5,NFI,5,0),1,0)*Table_NFI[[#This Row],[Sanitary Kit]],0) -> 0 | U8: =IF(NFI_Expiration=1,IF($A8<VLOOKUP(K$5,NFI,5,0),1,0)*Table_NFI[[#This Row],[Mosquito net]],0) -> 0 | V8: =IF(NFI_Expiration=1,IF($A8<VLOOKUP(L$5,NFI,5,0),1,0)*Table_NFI[[#This Row],[Tarpaulin]],0) -> 0 | W8: =IF(NFI_Expiration=1,IF($A8<VLOOKUP(M$5,NFI,5,0),1,0)*Table_NFI[[#This Row],[Blanket]],0) -> 0 | X8: =IF(NFI_Expiration=1,IF($A8<VLOOKUP(N$5,NFI,5,0),1,0)*Table_NFI[[#This Row],[Kitchen Set]],0) -> 0 | Y8: =IF(NFI_Expiration=1,IF($A8<VLOOKUP(O$5,NFI,5,0),1,0)*Table_NFI[[#This Row],[Complementary Kit]],0) -> 0 | Z8: =IF(NFI_Expiration=1,IF($A8<VLOOKUP(P$5,NFI,5,0),1,0)*Table_NFI[[#This Row],[Plastic Bucket]],0) -> 0 | AA8: =IF(NFI_Expiration=1,IF($A8<VLOOKUP(Q$5,NFI,5,0),1,0)*Table_NFI[[#This Row],[Plastic Mat]],0) -> 0 | AB8: =VLOOKUP(Table_NFI[[#This Row],[Camp Name]],Camp_List!N$5:AA$254,2,0) -> MMR012CMP001 | AC8: =VLOOKUP(Table_NFI[[#This Row],[Camp Name]],Camp_List!N$5:AA$254,14,0) -> Open | AD8: =VLOOKUP(Table_NFI[[#This Row],[Camp Name]],Camp_List!N$5:AC$254,1,1) -> Paik Thay
A9: 1.8 | B9: 2013-07-09 | C9: UNHCR | D9: UNHCR | E9: Rakhine | F9: Minbya | G9: Paik Thay | I9: 65 | K9: 130 | L9: 65 | M9: 130 | N9: 65 | O9: 65 | P9: 65 | Q9: 130 | R9: =IF(NFI_Expiration=1,IF($A9<VLOOKUP(H$5,NFI,5,0),1,0)*Table_NFI[[#This Row],[Hygiene Kit]],0) -> 0 | S9: =IF(NFI_Expiration=1,IF($A9<VLOOKUP(I$5,NFI,5,0),1,0)*Table_NFI[[#This Row],[NFI Core Kit]],0) -> 65 | T9: =IF(NFI_Expiration=1,IF($A9<VLOOKUP(J$5,NFI,5,0),1,0)*Table_NFI[[#This Row],[Sanitary Kit]],0) -> 0 | U9: =IF(NFI_Expiration=1,IF($A9<VLOOKUP(K$5,NFI,5,0),1,0)*Table_NFI[[#This Row],[Mosquito net]],0) -> 130 | V9: =IF(NFI_Expiration=1,IF($A9<VLOOKUP(L$5,NFI,5,0),1,0)*Table_NFI[[#This Row],[Tarpaulin]],0) -> 65 | W9: =IF(NFI_Expiration=1,IF($A9<VLOOKUP(M$5,NFI,5,0),1,0)*Table_NFI[[#This Row],[Blanket]],0) -> 130 | X9: =IF(NFI_Expiration=1,IF($A9<VLOOKUP(N$5,NFI,5,0),1,0)*Table_NFI[[#This Row],[Kitchen Set]],0) -> 65 | Y9: =IF(NFI_Expiration=1,IF($A9<VLOOKUP(O$5,NFI,5,0),1,0)*Table_NFI[[#This Row],[Complementary Kit]],0) -> 65 | Z9: =IF(NFI_Expiration=1,IF($A9<VLOOKUP(P$5,NFI,5,0),1,0)*Table_NFI[[#This Row],[Plastic Bucket]],0) -> 65 | AA9: =IF(NFI_Expiration=1,IF($A9<VLOOKUP(Q$5,NFI,5,0),1,0)*Table_NFI[[#This Row],[Plastic Mat]],0) -> 130 | AB9: =VLOOKUP(Table_NFI[[#This Row],[Camp Name]],Camp_List!N$5:AA$254,2,0) -> MMR012CMP001 | AC9: =VLOOKUP(Table_NFI[[#This Row],[Camp Name]],Camp_List!N$5:AA$254,14,0) -> Open | AD9: =VLOOKUP(Table_NFI[[#This Row],[Camp Name]],Camp_List!N$5:AC$254,1,1) -> Paik Thay
A10: 9.466666667 | B10: 2012-11-21 | C10: UNHCR | E10: Rakhine | F10: Minbya | G10: Tha Dar | L10: 145 | R10: =IF(NFI_Expiration=1,IF($A10<VLOOKUP(H$5,NFI,5,0),1,0)*Table_NFI[[#This Row],[Hygiene Kit]],0) -> 0 | S10: =IF(NFI_Expiration=1,IF($A10<VLOOKUP(I$5,NFI,5,0),1,0)*Table_NFI[[#This Row],[NFI Core Kit]],0) -> 0 | T10: =IF(NFI_Expiration=1,IF($A10<VLOOKUP(J$5,NFI,5,0),1,0)*Table_NFI[[#This Row],[Sanitary Kit]],0) -> 0 | U10: =IF(NFI_Expiration=1,IF($A10<VLOOKUP(K$5,NFI,5,0),1,0)*Table_NFI[[#This Row],[Mosquito net]],0) -> 0 | V10: =IF(NFI_Expiration=1,IF($A10<VLOOKUP(L$5,NFI,5,0),1,0)*Table_NFI[[#This Row],[Tarpaulin]],0) -> 145 | W10: =IF(NFI_Expiration=1,IF($A10<VLOOKUP(M$5,NFI,5,0),1,0)*Table_NFI[[#This Row],[Blanket]],0) -> 0 | X10: =IF(NFI_Expiration=1,IF($A10<VLOOKUP(N$5,NFI,5,0),1,0)*Table_NFI[[#This Row],[Kitchen Set]],0) -> 0 | Y10: =IF(NFI_Expiration=1,IF($A10<VLOOKUP(O$5,NFI,5,0),1,0)*Table_NFI[[#This Row],[Complementary Kit]],0) -> 0 | Z10: =IF(NFI_Expiration=1,IF($A10<VLOOKUP(P$5,NFI,5,0),1,0)*Table_NFI[[#This Row],[Plastic Bucket]],0) -> 0 | AA10: =IF(NFI_Expiration=1,IF($A10<VLOOKUP(Q$5,NFI,5,0),1,0)*Table_NFI[[#This Row],[Plastic Mat]],0) -> 0 | AB10: =VLOOKUP(Table_NFI[[#This Row],[Camp Name]],Camp_List!N$5:AA$254,2,0) -> MMR012CMP002 | AC10: =VLOOKUP(Table_NFI[[#This Row],[Camp Name]],Camp_List!N$5:AA$254,14,0) -> Open | AD10: =VLOOKUP(Table_NFI[[#This Row],[Camp Name]],Camp_List!N$5:AC$254,1,1) -> Tha Dar
A11: 8.733333333 | B11: 2012-12-13 | C11: UNHCR | E11: Rakhine | F11: Minbya | G11: Tha Dar | M11: 153 | R11: =IF(NFI_Expiration=1,IF($A11<VLOOKUP(H$5,NFI,5,0),1,0)*Table_NFI[[#This Row],[Hygiene Kit]],0) -> 0 | S11: =IF(NFI_Expiration=1,IF($A11<VLOOKUP(I$5,NFI,5,0),1,0)*Table_NFI[[#This Row],[NFI Core Kit]],0) -> 0 | T11: =IF(NFI_Expiration=1,IF($A11<VLOOKUP(J$5,NFI,5,0),1,0)*Table_NFI[[#This Row],[Sanitary Kit]],0) -> 0 | U11: =IF(NFI_Expiration=1,IF($A11<VLOOKUP(K$5,NFI,5,0),1,0)*Table_NFI[[#This Row],[Mosquito net]],0) -> 0 | V11: =IF(NFI_Expiration=1,IF($A11<VLOOKUP(L$5,NFI,5,0),1,0)*Table_NFI[[#This Row],[Tarpaulin]],0) -> 0 | W11: =IF(NFI_Expiration=1,IF($A11<VLOOKUP(M$5,NFI,5,0),1,0)*Table_NFI[[#This Row],[Blanket]],0) -> 153 | X11: =IF(NFI_Expiration=1,IF($A11<VLOOKUP(N$5,NFI,5,0),1,0)*Table_NFI[[#This Row],[Kitchen Set]],0) -> 0 | Y11: =IF(NFI_Expiration=1,IF($A11<VLOOKUP(O$5,NFI,5,0),1,0)*Table_NFI[[#This Row],[Complementary Kit]],0) -> 0 | Z11: =IF(NFI_Expiration=1,IF($A11<VLOOKUP(P$5,NFI,5,0),1,0)*Table_NFI[[#This Row],[Plastic Bucket]],0) -> 0 | AA11: =IF(NFI_Expiration=1,IF($A11<VLOOKUP(Q$5,NFI,5,0),1,0)*Table_NFI[[#This Row],[Plastic Mat]],0) -> 0 | AB11: =VLOOKUP(Table_NFI[[#This Row],[Camp Name]],Camp_List!N$5:AA$254,2,0) -> MMR012CMP002 | AC11: =VLOOKUP(Table_NFI[[#This Row],[Camp Name]],Camp_List!N$5:AA$254,14,0) -> Open | AD11: =VLOOKUP(Table_NFI[[#This Row],[Camp Name]],Camp_List!N$5:AC$254,1,1) -> Tha Dar
A12: 6.6 | B12: 2013-02-15 | C12: UNICEF | E12: Rakhine | F12: Minbya | G12: Tha Dar | H12: 205 | R12: =IF(NFI_Expiration=1,IF($A12<VLOOKUP(H$5,NFI,5,0),1,0)*Table_NFI[[#This Row],[Hygiene Kit]],0) -> 205 | S12: =IF(NFI_Expiration=1,IF($A12<VLOOKUP(I$5,NFI,5,0),1,0)*Table_NFI[[#This Row],[NFI Core Kit]],0) -> 0 | T12: =IF(NFI_Expiration=1,IF($A12<VLOOKUP(J$5,NFI,5,0),1,0)*Table_NFI[[#This Row],[Sanitary Kit]],0) -> 0 | U12: =IF(NFI_Expiration=1,IF($A12<VLOOKUP(K$5,NFI,5,0),1,0)*Table_NFI[[#This Row],[Mosquito net]],0) -> 0 | V12: =IF(NFI_Expiration=1,IF($A12<VLOOKUP(L$5,NFI,5,0),1,0)*Table_NFI[[#This Row],[Tarpaulin]],0) -> 0 | W12: =IF(NFI_Expiration=1,IF($A12<VLOOKUP(M$5,NFI,5,0),1,0)*Table_NFI[[#This Row],[Blanket]],0) -> 0 | X12: =IF(NFI_Expiration=1,IF($A12<VLOOKUP(N$5,NFI,5,0),1,0)*Table_NFI[[#This Row],[Kitchen Set]],0) -> 0 | Y12: =IF(NFI_Expiration=1,IF($A12<VLOOKUP(O$5,NFI,5,0),1,0)*Table_NFI[[#This Row],[Complementary Kit]],0) -> 0 | Z12: =IF(NFI_Expiration=1,IF($A12<VLOOKUP(P$5,NFI,5,0),1,0)*Table_NFI[[#This Row],[Plastic Bucket]],0) -> 0 | AA12: =IF(NFI_Expiration=1,IF($A12<VLOOKUP(Q$5,NFI,5,0),1,0)*Table_NFI[[#This Row],[Plastic Mat]],0) -> 0 | AB12: =VLOOKUP(Table_NFI[[#This Row],[Camp Name]],Camp_List!N$5:AA$254,2,0) -> MMR012CMP002 | AC12: =VLOOKUP(Table_NFI[[#This Row],[Camp Name]],Camp_List!N$5:AA$254,14,0) -> Open | AD12: =VLOOKUP(Table_NFI[[#This Row],[Camp Name]],Camp_List!N$5:AC$254,1,1) -> Tha Dar
A13: 1.766666667 | B13: 2013-07-10 | C13: UNHCR | D13: UNHCR | E13: Rakhine | F13: Minbya | G13: Tha Dar | R13: =IF(NFI_Expiration=1,IF($A13<VLOOKUP(H$5,NFI,5,0),1,0)*Table_NFI[[#This Row],[Hygiene Kit]],0) -> 0 | S13: =IF(NFI_Expiration=1,IF($A13<VLOOKUP(I$5,NFI,5,0),1,0)*Table_NFI[[#This Row],[NFI Core Kit]],0) -> 0 | T13: =IF(NFI_Expiration=1,IF($A13<VLOOKUP(J$5,NFI,5,0),1,0)*Table_NFI[[#This Row],[Sanitary Kit]],0) -> 0 | U13: =IF(NFI_Expiration=1,IF($A13<VLOOKUP(K$5,NFI,5,0),1,0)*Table_NFI[[#This Row],[Mosquito net]],0) -> 0 | V13: =IF(NFI_Expiration=1,IF($A13<VLOOKUP(L$5,NFI,5,0),1,0)*Table_NFI[[#This Row],[Tarpaulin]],0) -> 0 | W13: =IF(NFI_Expiration=1,IF($A13<VLOOKUP(M$5,NFI,5,0),1,0)*Table_NFI[[#This Row],[Blanket]],0) -> 0 | X13: =IF(NFI_Expiration=1,IF($A13<VLOOKUP(N$5,NFI,5,0),1,0)*Table_NFI[[#This Row],[Kitchen Set]],0) -> 0 | Y13: =IF(NFI_Expiration=1,IF($A13<VLOOKUP(O$5,NFI,5,0),1,0)*Table_NFI[[#This Row],[Complementary Kit]],0) -> 0 | Z13: =IF(NFI_Expiration=1,IF($A13<VLOOKUP(P$5,NFI,5,0),1,0)*Table_NFI[[#This Row],[Plastic Bucket]],0) -> 0 | AA13: =IF(NFI_Expiration=1,IF($A13<VLOOKUP(Q$5,NFI,5,0),1,0)*Table_NFI[[#This Row],[Plastic Mat]],0) -> 0 | AB13: =VLOOKUP(Table_NFI[[#This Row],[Camp Name]],Camp_List!N$5:AA$254,2,0) -> MMR012CMP002 | AC13: =VLOOKUP(Table_NFI[[#This Row],[Camp Name]],Camp_List!N$5:AA$254,14,0) -> Open | AD13: =VLOOKUP(Table_NFI[[#This Row],[Camp Name]],Camp_List!N$5:AC$254,1,1) -> Tha Dar
A14: 1.766666667 | B14: 2013-07-10 | C14: UNHCR | D14: UNHCR | E14: Rakhine | F14: Minbya | G14: Tha Dar | I14: 214 | K14: 428 | L14: 214 | M14: 428 | N14: 214 | O14: 214 | P14: 214 | Q14: 428 | R14: =IF(NFI_Expiration=1,IF($A14<VLOOKUP(H$5,NFI,5,0),1,0)*Table_NFI[[#This Row],[Hygiene Kit]],0) -> 0 | S14: =IF(NFI_Expiration=1,IF($A14<VLOOKUP(I$5,NFI,5,0),1,0)*Table_NFI[[#This Row],[NFI Core Kit]],0) -> 214 | T14: =IF(NFI_Expiration=1,IF($A14<VLOOKUP(J$5,NFI,5,0),1,0)*Table_NFI[[#This Row],[Sanitary Kit]],0) -> 0 | U14: =IF(NFI_Expiration=1,IF($A14<VLOOKUP(K$5,NFI,5,0),1,0)*Table_NFI[[#This Row],[Mosquito net]],0) -> 428 | V14: =IF(NFI_Expiration=1,IF($A14<VLOOKUP(L$5,NFI,5,0),1,0)*Table_NFI[[#This Row],[Tarpaulin]],0) -> 214 | W14: =IF(NFI_Expiration=1,IF($A14<VLOOKUP(M$5,NFI,5,0),1,0)*Table_NFI[[#This Row],[Blanket]],0) -> 428 | X14: =IF(NFI_Expiration=1,IF($A14<VLOOKUP(N$5,NFI,5,0),1,0)*Table_NFI[[#This Row],[Kitchen Set]],0) -> 214 | Y14: =IF(NFI_Expiration=1,IF($A14<VLOOKUP(O$5,NFI,5,0),1,0)*Table_NFI[[#This Row],[Complementary Kit]],0) -> 214 | Z14: =IF(NFI_Expiration=1,IF($A14<VLOOKUP(P$5,NFI,5,0),1,0)*Table_NFI[[#This Row],[Plastic Bucket]],0) -> 214 | AA14: =IF(NFI_Expiration=1,IF($A14<VLOOKUP(Q$5,NFI,5,0),1,0)*Table_NFI[[#This Row],[Plastic Mat]],0) -> 428 | AB14: =VLOOKUP(Table_NFI[[#This Row],[Camp Name]],Camp_List!N$5:AA$254,2,0) -> MMR012CMP002 | AC14: =VLOOKUP(Table_NFI[[#This Row],[Camp Name]],Camp_List!N$5:AA$254,14,0) -> Open | AD14: =VLOOKUP(Table_NFI[[#This Row],[Camp Name]],Camp_List!N$5:AC$254,1,1) -> Tha Dar
A15: 9.466666667 | B15: 2012-11-21 | C15: UNHCR | E15: Rakhine | F15: Minbya | G15: San Htoe Tan | L15: 10 | R15: =IF(NFI_Expiration=1,IF($A15<VLOOKUP(H$5,NFI,5,0),1,0)*Table_NFI[[#This Row],[Hygiene Kit]],0) -> 0 | S15: =IF(NFI_Expiration=1,IF($A15<VLOOKUP(I$5,NFI,5,0),1,0)*Table_NFI[[#This Row],[NFI Core Kit]],0) -> 0 | T15: =IF(NFI_Expiration=1,IF($A15<VLOOKUP(J$5,NFI,5,0),1,0)*Table_NFI[[#This Row],[Sanitary Kit]],0) -> 0 | U15: =IF(NFI_Expiration=1,IF($A15<VLOOKUP(K$5,NFI,5,0),1,0)*Table_NFI[[#This Row],[Mosquito net]],0) -> 0 | V15: =IF(NFI_Expiration=1,IF($A15<VLOOKUP(L$5,NFI,5,0),1,0)*Table_NFI[[#This Row],[Tarpaulin]],0) -> 10 | W15: =IF(NFI_Expiration=1,IF($A15<VLOOKUP(M$5,NFI,5,0),1,0)*Table_NFI[[#This Row],[Blanket]],0) -> 0 | X15: =IF(NFI_Expiration=1,IF($A15<VLOOKUP(N$5,NFI,5,0),1,0)*Table_NFI[[#This Row],[Kitchen Set]],0) -> 0 | Y15: =IF(NFI_Expiration=1,IF($A15<VLOOKUP(O$5,NFI,5,0),1,0)*Table_NFI[[#This Row],[Complementary Kit]],0) -> 0 | Z15: =IF(NFI_Expiration=1,IF($A15<VLOOKUP(P$5,NFI,5,0),1,0)*Table_NFI[[#This Row],[Plastic Bucket]],0) -> 0 | AA15: =IF(NFI_Expiration=1,IF($A15<VLOOKUP(Q$5,NFI,5,0),1,0)*Table_NFI[[#This Row],[Plastic Mat]],0) -> 0 | AB15: =VLOOKUP(Table_NFI[[#This Row],[Camp Name]],Camp_List!N$5:AA$254,2,0) -> MMR012CMP003 | AC15: =VLOOKUP(Table_NFI[[#This Row],[Camp Name]],Camp_List!N$5:AA$254,14,0) -> Open | AD15: =VLOOKUP(Table_NFI[[#This Row],[Camp Name]],Camp_List!N$5:AC$254,1,1) -> San Htoe Tan
A16: 8.666666667 | B16: 2012-12-15 | C16: UNHCR | E16: Rakhine | F16: Minbya | G16: San Htoe Tan | M16: 53 | R16: =IF(NFI_Expiration=1,IF($A16<VLOOKUP(H$5,NFI,5,0),1,0)*Table_NFI[[#This Row],[Hygiene Kit]],0) -> 0 | S16: =IF(NFI_Expiration=1,IF($A16<VLOOKUP(I$5,NFI,5,0),1,0)*Table_NFI[[#This Row],[NFI Core Kit]],0) -> 0 | T16: =IF(NFI_Expiration=1,IF($A16<VLOOKUP(J$5,NFI,5,0),1,0)*Table_NFI[[#This Row],[Sanitary Kit]],0) -> 0 | U16: =IF(NFI_Expiration=1,IF($A16<VLOOKUP(K$5,NFI,5,0),1,0)*Table_NFI[[#This Row],[Mosquito net]],0) -> 0 | V16: =IF(NFI_Expiration=1,IF($A16<VLOOKUP(L$5,NFI,5,0),1,0)*Table_NFI[[#This Row],[Tarpaulin]],0) -> 0 | W16: =IF(NFI_Expiration=1,IF($A16<VLOOKUP(M$5,NFI,5,0),1,0)*Table_NFI[[#This Row],[Blanket]],0) -> 53 | X16: =IF(NFI_Expiration=1,IF($A16<VLOOKUP(N$5,NFI,5,0),1,0)*Table_NFI[[#This Row],[Kitchen Set]],0) -> 0 | Y16: =IF(NFI_Expiration=1,IF($A16<VLOOKUP(O$5,NFI,5,0),1,0)*Table_NFI[[#This Row],[Complementary Kit]],0) -> 0 | Z16: =IF(NFI_Expiration=1,IF($A16<VLOOKUP(P$5,NFI,5,0),1,0)*Table_NFI[[#This Row],[Plastic Bucket]],0) -> 0 | AA16: =IF(NFI_Expiration=1,IF($A16<VLOOKUP(Q$5,NFI,5,0),1,0)*Table_NFI[[#This Row],[Plastic Mat]],0) -> 0 | AB16: =VLOOKUP(Table_NFI[[#This Row],[Camp Name]],Camp_List!N$5:AA$254,2,0) -> MMR012CMP003 | AC16: =VLOOKUP(Table_NFI[[#This Row],[Camp Name]],Camp_List!N$5:AA$254,14,0) -> Open | AD16: =VLOOKUP(Table_NFI[[#This Row],[Camp Name]],Camp_List!N$5:AC$254,1,1) -> San Htoe Tan
A17: 6.6 | B17: 2013-02-15 | C17: UNICEF | E17: Rakhine | F17: Minbya | G17: San Htoe Tan | H17: 90 | R17: =IF(NFI_Expiration=1,IF($A17<VLOOKUP(H$5,NFI,5,0),1,0)*Table_NFI[[#This Row],[Hygiene Kit]],0) -> 90 | S17: =IF(NFI_Expiration=1,IF($A17<VLOOKUP(I$5,NFI,5,0),1,0)*Table_NFI[[#This Row],[NFI Core Kit]],0) -> 0 | T17: =IF(NFI_Expiration=1,IF($A17<VLOOKUP(J$5,NFI,5,0),1,0)*Table_NFI[[#This Row],[Sanitary Kit]],0) -> 0 | U17: =IF(NFI_Expiration=1,IF($A17<VLOOKUP(K$5,NFI,5,0),1,0)*Table_NFI[[#This Row],[Mosquito net]],0) -> 0 | V17: =IF(NFI_Expiration=1,IF($A17<VLOOKUP(L$5,NFI,5,0),1,0)*Table_NFI[[#This Row],[Tarpaulin]],0) -> 0 | W17: =IF(NFI_Expiration=1,IF($A17<VLOOKUP(M$5,NFI,5,0),1,0)*Table_NFI[[#This Row],[Blanket]],0) -> 0 | X17: =IF(NFI_Expiration=1,IF($A17<VLOOKUP(N$5,NFI,5,0),1,0)*Table_NFI[[#This Row],[Kitchen Set]],0) -> 0 | Y17: =IF(NFI_Expiration=1,IF($A17<VLOOKUP(O$5,NFI,5,0),1,0)*Table_NFI[[#This Row],[Complementary Kit]],0) -> 0 | Z17: =IF(NFI_Expiration=1,IF($A17<VLOOKUP(P$5,NFI,5,0),1,0)*Table_NFI[[#This Row],[Plastic Bucket]],0) -> 0 | AA17: =IF(NFI_Expiration=1,IF($A17<VLOOKUP(Q$5,NFI,5,0),1,0)*Table_NFI[[#This Row],[Plastic Mat]],0) -> 0 | AB17: =VLOOKUP(Table_NFI[[#This Row],[Camp Name]],Camp_List!N$5:AA$254,2,0) -> MMR012CMP003 | AC17: =VLOOKUP(Table_NFI[[#This Row],[Camp Name]],Camp_List!N$5:AA$254,14,0) -> Open | AD17: =VLOOKUP(Table_NFI[[#This Row],[Camp Name]],Camp_List!N$5:AC$254,1,1) -> San Htoe Tan
A18: 1.766666667 | B18: 2013-07-10 | C18: UNHCR | D18: UNHCR | E18: Rakhine | F18: Minbya | G18: San Htoe Tan | R18: =IF(NFI_Expiration=1,IF($A18<VLOOKUP(H$5,NFI,5,0),1,0)*Table_NFI[[#This Row],[Hygiene Kit]],0) -> 0 | S18: =IF(NFI_Expiration=1,IF($A18<VLOOKUP(I$5,NFI,5,0),1,0)*Table_NFI[[#This Row],[NFI Core Kit]],0) -> 0 | T18: =IF(NFI_Expiration=1,IF($A18<VLOOKUP(J$5,NFI,5,0),1,0)*Table_NFI[[#This Row],[Sanitary Kit]],0) -> 0 | U18: =IF(NFI_Expiration=1,IF($A18<VLOOKUP(K$5,NFI,5,0),1,0)*Table_NFI[[#This Row],[Mosquito net]],0) -> 0 | V18: =IF(NFI_Expiration=1,IF($A18<VLOOKUP(L$5,NFI,5,0),1,0)*Table_NFI[[#This Row],[Tarpaulin]],0) -> 0 | W18: =IF(NFI_Expiration=1,IF($A18<VLOOKUP(M$5,NFI,5,0),1,0)*Table_NFI[[#This Row],[Blanket]],0) -> 0 | X18: =IF(NFI_Expiration=1,IF($A18<VLOOKUP(N$5,NFI,5,0),1,0)*Table_NFI[[#This Row],[Kitchen Set]],0) -> 0 | Y18: =IF(NFI_Expiration=1,IF($A18<VLOOKUP(O$5,NFI,5,0),1,0)*Table_NFI[[#This Row],[Complementary Kit]],0) -> 0 | Z18: =IF(NFI_Expiration=1,IF($A18<VLOOKUP(P$5,NFI,5,0),1,0)*Table_NFI[[#This Row],[Plastic Bucket]],0) -> 0 | AA18: =IF(NFI_Expiration=1,IF($A18<VLOOKUP(Q$5,NFI,5,0),1,0)*Table_NFI[[#This Row],[Plastic Mat]],0) -> 0 | AB18: =VLOOKUP(Table_NFI[[#This Row],[Camp Name]],Camp_List!N$5:AA$254,2,0) -> MMR012CMP003 | AC18: =VLOOKUP(Table_NFI[[#This Row],[Camp Name]],Camp_List!N$5:AA$254,14,0) -> Open | AD18: =VLOOKUP(Table_NFI[[#This Row],[Camp Name]],Camp_List!N$5:AC$254,1,1) -> San Htoe Tan
A19: 1.766666667 | B19: 2013-07-10 | C19: UNHCR | D19: UNHCR | E19: Rakhine | F19: Minbya | G19: San Htoe Tan | I19: 100 | K19: 200 | L19: 100 | M19: 200 | N19: 100 | O19: 100 | P19: 100 | Q19: 200 | R19: =IF(NFI_Expiration=1,IF($A19<VLOOKUP(H$5,NFI,5,0),1,0)*Table_NFI[[#This Row],[Hygiene Kit]],0) -> 0 | S19: =IF(NFI_Expiration=1,IF($A19<VLOOKUP(I$5,NFI,5,0),1,0)*Table_NFI[[#This Row],[NFI Core Kit]],0) -> 100 | T19: =IF(NFI_Expiration=1,IF($A19<VLOOKUP(J$5,NFI,5,0),1,0)*Table_NFI[[#This Row],[Sanitary Kit]],0) -> 0 | U19: =IF(NFI_Expiration=1,IF($A19<VLOOKUP(K$5,NFI,5,0),1,0)*Table_NFI[[#This Row],[Mosquito net]],0) -> 200 | V19: =IF(NFI_Expiration=1,IF($A19<VLOOKUP(L$5,NFI,5,0),1,0)*Table_NFI[[#This Row],[Tarpaulin]],0) -> 100 | W19: =IF(NFI_Expiration=1,IF($A19<VLOOKUP(M$5,NFI,5,0),1,0)*Table_NFI[[#This Row],[Blanket]],0) -> 200 | X19: =IF(NFI_Expiration=1,IF($A19<VLOOKUP(N$5,NFI,5,0),1,0)*Table_NFI[[#This Row],[Kitchen Set]],0) -> 100 | Y19: =IF(NFI_Expiration=1,IF($A19<VLOOKUP(O$5,NFI,5,0),1,0)*Table_NFI[[#This Row],[Complementary Kit]],0) -> 100 | Z19: =IF(NFI_Expiration=1,IF($A19<VLOOKUP(P$5,NFI,5,0),1,0)*Table_NFI[[#This Row],[Plastic Bucket]],0) -> 100 | AA19: =IF(NFI_Expiration=1,IF($A19<VLOOKUP(Q$5,NFI,5,0),1,0)*Table_NFI[[#This Row],[Plastic Mat]],0) -> 200 | AB19: =VLOOKUP(Table_NFI[[#This Row],[Camp Name]],Camp_List!N$5:AA$254,2,0) -> MMR012CMP003 | AC19: =VLOOKUP(Table_NFI[[#This Row],[Camp Name]],Camp_List!N$5:AA$254,14,0) -> Open | AD19: =VLOOKUP(Table_NFI[[#This Row],[Camp Name]],Camp_List!N$5:AC$254,1,1) -> San Htoe Tan
A20: 10.16666667 | B20: 2012-10-31 | C20: UNHCR | E20: Rakhine | F20: Minbya | G20: Nagara Pauktaw | L20: 100 | R20: =IF(NFI_Expiration=1,IF($A20<VLOOKUP(H$5,NFI,5,0),1,0)*Table_NFI[[#This Row],[Hygiene Kit]],0) -> 0 | S20: =IF(NFI_Expiration=1,IF($A20<VLOOKUP(I$5,NFI,5,0),1,0)*Table_NFI[[#This Row],[NFI Core Kit]],0) -> 0 | T20: =IF(NFI_Expiration=1,IF($A20<VLOOKUP(J$5,NFI,5,0),1,0)*Table_NFI[[#This Row],[Sanitary Kit]],0) -> 0 | U20: =IF(NFI_Expiration=1,IF($A20<VLOOKUP(K$5,NFI,5,0),1,0)*Table_NFI[[#This Row],[Mosquito net]],0) -> 0 | V20: =IF(NFI_Expiration=1,IF($A20<VLOOKUP(L$5,NFI,5,0),1,0)*Table_NFI[[#This Row],[Tarpaulin]],0) -> 100 | W20: =IF(NFI_Expiration=1,IF($A20<VLOOKUP(M$5,NFI,5,0),1,0)*Table_NFI[[#This Row],[Blanket]],0) -> 0 | X20: =IF(NFI_Expiration=1,IF($A20<VLOOKUP(N$5,NFI,5,0),1,0)*Table_NFI[[#This Row],[Kitchen Set]],0) -> 0 | Y20: =IF(NFI_Expiration=1,IF($A20<VLOOKUP(O$5,NFI,5,0),1,0)*Table_NFI[[#This Row],[Complementary Kit]],0) -> 0 | Z20: =IF(NFI_Expiration=1,IF($A20<VLOOKUP(P$5,NFI,5,0),1,0)*Table_NFI[[#This Row],[Plastic Bucket]],0) -> 0 | AA20: =IF(NFI_Expiration=1,IF($A20<VLOOKUP(Q$5,NFI,5,0),1,0)*Table_NFI[[#This Row],[Plastic Mat]],0) -> 0 | AB20: =VLOOKUP(Table_NFI[[#This Row],[Camp Name]],Camp_List!N$5:AA$254,2,0) -> MMR012CMP004 | AC20: =VLOOKUP(Table_NFI[[#This Row],[Camp Name]],Camp_List!N$5:AA$254,14,0) -> Close | AD20: =VLOOKUP(Table_NFI[[#This Row],[Camp Name]],Camp_List!N$5:AC$254,1,1) -> Nagara Pauktaw
A21: 9.466666667 | B21: 2012-11-21 | C21: UNHCR | E21: Rakhine | F21: Minbya | G21: Nagara Pauktaw | L21: 129 | R21: =IF(NFI_Expiration=1,IF($A21<VLOOKUP(H$5,NFI,5,0),1,0)*Table_NFI[[#This Row],[Hygiene Kit]],0) -> 0 | S21: =IF(NFI_Expiration=1,IF($A21<VLOOKUP(I$5,NFI,5,0),1,0)*Table_NFI[[#This Row],[NFI Core Kit]],0) -> 0 | T21: =IF(NFI_Expiration=1,IF($A21<VLOOKUP(J$5,NFI,5,0),1,0)*Table_NFI[[#This Row],[Sanitary Kit]],0) -> 0 | U21: =IF(NFI_Expiration=1,IF($A21<VLOOKUP(K$5,NFI,5,0),1,0)*Table_NFI[[#This Row],[Mosquito net]],0) -> 0 | V21: =IF(NFI_Expiration=1,IF($A21<VLOOKUP(L$5,NFI,5,0),1,0)*Table_NFI[[#This Row],[Tarpaulin]],0) -> 129 | W21: =IF(NFI_Expiration=1,IF($A21<VLOOKUP(M$5,NFI,5,0),1,0)*Table_NFI[[#This Row],[Blanket]],0) -> 0 | X21: =IF(NFI_Expiration=1,IF($A21<VLOOKUP(N$5,NFI,5,0),1,0)*Table_NFI[[#This Row],[Kitchen Set]],0) -> 0 | Y21: =IF(NFI_Expiration=1,IF($A21<VLOOKUP(O$5,NFI,5,0),1,0)*Table_NFI[[#This Row],[Complementary Kit]],0) -> 0 | Z21: =IF(NFI_Expiration=1,IF($A21<VLOOKUP(P$5,NFI,5,0),1,0)*Table_NFI[[#This Row],[Plastic Bucket]],0) -> 0 | AA21: =IF(NFI_Expiration=1,IF($A21<VLOOKUP(Q$5,NFI,5,0),1,0)*Table_NFI[[#This Row],[Plastic Mat]],0) -> 0 | AB21: =VLOOKUP(Table_NFI[[#This Row],[Camp Name]],Camp_List!N$5:AA$254,2,0) -> MMR012CMP004 | AC21: =VLOOKUP(Table_NFI[[#This Row],[Camp Name]],Camp_List!N$5:AA$254,14,0) -> Close | AD21: =VLOOKUP(Table_NFI[[#This Row],[Camp Name]],Camp_List!N$5:AC$254,1,1) -> Nagara Pauktaw
A22: 8.666666667 | B22: 2012-12-15 | C22: UNHCR | E22: Rakhine | F22: Minbya | G22: Nagara Pauktaw | M22: 156 | R22: =IF(NFI_Expiration=1,IF($A22<VLOOKUP(H$5,NFI,5,0),1,0)*Table_NFI[[#This Row],[Hygiene Kit]],0) -> 0 | S22: =IF(NFI_Expiration=1,IF($A22<VLOOKUP(I$5,NFI,5,0),1,0)*Table_NFI[[#This Row],[NFI Core Kit]],0) -> 0 | T22: =IF(NFI_Expiration=1,IF($A22<VLOOKUP(J$5,NFI,5,0),1,0)*Table_NFI[[#This Row],[Sanitary Kit]],0) -> 0 | U22: =IF(NFI_Expiration=1,IF($A22<VLOOKUP(K$5,NFI,5,0),1,0)*Table_NFI[[#This Row],[Mosquito net]],0) -> 0 | V22: =IF(NFI_Expiration=1,IF($A22<VLOOKUP(L$5,NFI,5,0),1,0)*Table_NFI[[#This Row],[Tarpaulin]],0) -> 0 | W22: =IF(NFI_Expiration=1,IF($A22<VLOOKUP(M$5,NFI,5,0),1,0)*Table_NFI[[#This Row],[Blanket]],0) -> 156 | X22: =IF(NFI_Expiration=1,IF($A22<VLOOKUP(N$5,NFI,5,0),1,0)*Table_NFI[[#This Row],[Kitchen Set]],0) -> 0 | Y22: =IF(NFI_Expiration=1,IF($A22<VLOOKUP(O$5,NFI,5,0),1,0)*Table_NFI[[#This Row],[Complementary Kit]],0) -> 0 | Z22: =IF(NFI_Expiration=1,IF($A22<VLOOKUP(P$5,NFI,5,0),1,0)*Table_NFI[[#This Row],[Plastic Bucket]],0) -> 0 | AA22: =IF(NFI_Expiration=1,IF($A22<VLOOKUP(Q$5,NFI,5,0),1,0)*Table_NFI[[#This Row],[Plastic Mat]],0) -> 0 | AB22: =VLOOKUP(Table_NFI[[#This Row],[Camp Name]],Camp_List!N$5:AA$254,2,0) -> MMR012CMP004 | AC22: =VLOOKUP(Table_NFI[[#This Row],[Camp Name]],Camp_List!N$5:AA$254,14,0) -> Close | AD22: =VLOOKUP(Table_NFI[[#This Row],[Camp Name]],Camp_List!N$5:AC$254,1,1) -> Nagara Pauktaw
A23: 6.6 | B23: 2013-02-15 | C23: UNICEF | E23: Rakhine | F23: Minbya | G23: Nagara Pauktaw | H23: 230 | R23: =IF(NFI_Expiration=1,IF($A23<VLOOKUP(H$5,NFI,5,0),1,0)*Table_NFI[[#This Row],[Hygiene Kit]],0) -> 230 | S23: =IF(NFI_Expiration=1,IF($A23<VLOOKUP(I$5,NFI,5,0),1,0)*Table_NFI[[#This Row],[NFI Core Kit]],0) -> 0 | T23: =IF(NFI_Expiration=1,IF($A23<VLOOKUP(J$5,NFI,5,0),1,0)*Table_NFI[[#This Row],[Sanitary Kit]],0) -> 0 | U23: =IF(NFI_Expiration=1,IF($A23<VLOOKUP(K$5,NFI,5,0),1,0)*Table_NFI[[#This Row],[Mosquito net]],0) -> 0 | V23: =IF(NFI_Expiration=1,IF($A23<VLOOKUP(L$5,NFI,5,0),1,0)*Table_NFI[[#This Row],[Tarpaulin]],0) -> 0 | W23: =IF(NFI_Expiration=1,IF($A23<VLOOKUP(M$5,NFI,5,0),1,0)*Table_NFI[[#This Row],[Blanket]],0) -> 0 | X23: =IF(NFI_Expiration=1,IF($A23<VLOOKUP(N$5,NFI,5,0),1,0)*Table_NFI[[#This Row],[Kitchen Set]],0) -> 0 | Y23: =IF(NFI_Expiration=1,IF($A23<VLOOKUP(O$5,NFI,5,0),1,0)*Table_NFI[[#This Row],[Complementary Kit]],0) -> 0 | Z23: =IF(NFI_Expiration=1,IF($A23<VLOOKUP(P$5,NFI,5,0),1,0)*Table_NFI[[#This Row],[Plastic Bucket]],0) -> 0 | AA23: =IF(NFI_Expiration=1,IF($A23<VLOOKUP(Q$5,NFI,5,0),1,0)*Table_NFI[[#This Row],[Plastic Mat]],0) -> 0 | AB23: =VLOOKUP(Table_NFI[[#This Row],[Camp Name]],Camp_List!N$5:AA$254,2,0) -> MMR012CMP004 | AC23: =VLOOKUP(Table_NFI[[#This Row],[Camp Name]],Camp_List!N$5:AA$254,14,0) -> Close | AD23: =VLOOKUP(Table_NFI[[#This Row],[Camp Name]],Camp_List!N$5:AC$254,1,1) -> Nagara Pauktaw
A24: 8.666666667 | B24: 2012-12-15 | C24: UNHCR | E24: Rakhine | F24: Minbya | G24: Tha Yet Oak | M24: 35 | R24: =IF(NFI_Expiration=1,IF($A24<VLOOKUP(H$5,NFI,5,0),1,0)*Table_NFI[[#This Row],[Hygiene Kit]],0) -> 0 | S24: =IF(NFI_Expiration=1,IF($A24<VLOOKUP(I$5,NFI,5,0),1,0)*Table_NFI[[#This Row],[NFI Core Kit]],0) -> 0 | T24: =IF(NFI_Expiration=1,IF($A24<VLOOKUP(J$5,NFI,5,0),1,0)*Table_NFI[[#This Row],[Sanitary Kit]],0) -> 0 | U24: =IF(NFI_Expiration=1,IF($A24<VLOOKUP(K$5,NFI,5,0),1,0)*Table_NFI[[#This Row],[Mosquito net]],0) -> 0 | V24: =IF(NFI_Expiration=1,IF($A24<VLOOKUP(L$5,NFI,5,0),1,0)*Table_NFI[[#This Row],[Tarpaulin]],0) -> 0 | W24: =IF(NFI_Expiration=1,IF($A24<VLOOKUP(M$5,NFI,5,0),1,0)*Table_NFI[[#This Row],[Blanket]],0) -> 35 | X24: =IF(NFI_Expiration=1,IF($A24<VLOOKUP(N$5,NFI,5,0),1,0)*Table_NFI[[#This Row],[Kitchen Set]],0) -> 0 | Y24: =IF(NFI_Expiration=1,IF($A24<VLOOKUP(O$5,NFI,5,0),1,0)*Table_NFI[[#This Row],[Complementary Kit]],0) -> 0 | Z24: =IF(NFI_Expiration=1,IF($A24<VLOOKUP(P$5,NFI,5,0),1,0)*Table_NFI[[#This Row],[Plastic Bucket]],0) -> 0 | AA24: =IF(NFI_Expiration=1,IF($A24<VLOOKUP(Q$5,NFI,5,0),1,0)*Table_NFI[[#This Row],[Plastic Mat]],0) -> 0 | AB24: =VLOOKUP(Table_NFI[[#This Row],[Camp Name]],Camp_List!N$5:AA$254,2,0) -> MMR012CMP005 | AC24: =VLOOKUP(Table_NFI[[#This Row],[Camp Name]],Camp_List!N$5:AA$254,14,0) -> Open | AD24: =VLOOKUP(Table_NFI[[#This Row],[Camp Name]],Camp_List!N$5:AC$254,1,1) -> Tha Yet Oak
A25: =IF(ISBLANK(B25),"",(Report_Date-B25)/30) -> 1.9 | B25: 2013-07-06 | C25: UNHCR | D25: UNHCR | E25: Rakhine | F25: Minbya | G25: Tha Yet Oak | R25: =IF(NFI_Expiration=1,IF($A25<VLOOKUP(H$5,NFI,5,0),1,0)*Table_NFI[[#This Row],[Hygiene Kit]],0) -> 0 | S25: =IF(NFI_Expiration=1,IF($A25<VLOOKUP(I$5,NFI,5,0),1,0)*Table_NFI[[#This Row],[NFI Core Kit]],0) -> 0 | T25: =IF(NFI_Expiration=1,IF($A25<VLOOKUP(J$5,NFI,5,0),1,0)*Table_NFI[[#This Row],[Sanitary Kit]],0) -> 0 | U25: =IF(NFI_Expiration=1,IF($A25<VLOOKUP(K$5,NFI,5,0),1,0)*Table_NFI[[#This Row],[Mosquito net]],0) -> 0 | V25: =IF(NFI_Expiration=1,IF($A25<VLOOKUP(L$5,NFI,5,0),1,0)*Table_NFI[[#This Row],[Tarpaulin]],0) -> 0 | W25: =IF(NFI_Expiration=1,IF($A25<VLOOKUP(M$5,NFI,5,0),1,0)*Table_NFI[[#This Row],[Blanket]],0) -> 0 | X25: =IF(NFI_Expiration=1,IF($A25<VLOOKUP(N$5,NFI,5,0),1,0)*Table_NFI[[#This Row],[Kitchen Set]],0) -> 0 | Y25: =IF(NFI_Expiration=1,IF($A25<VLOOKUP(O$5,NFI,5,0),1,0)*Table_NFI[[#This Row],[Complementary Kit]],0) -> 0 | Z25: =IF(NFI_Expiration=1,IF($A25<VLOOKUP(P$5,NFI,5,0),1,0)*Table_NFI[[#This Row],[Plastic Bucket]],0) -> 0 | AA25: =IF(NFI_Expiration=1,IF($A25<VLOOKUP(Q$5,NFI,5,0),1,0)*Table_NFI[[#This Row],[Plastic Mat]],0) -> 0 | AB25: =VLOOKUP(Table_NFI[[#This Row],[Camp Name]],Camp_List!N$5:AA$254,2,0) -> MMR012CMP005 | AC25: =VLOOKUP(Table_NFI[[#This Row],[Camp Name]],Camp_List!N$5:AA$254,14,0) -> Open | AD25: =VLOOKUP(Table_NFI[[#This Row],[Camp Name]],Camp_List!N$5:AC$254,1,1) -> Tha Yet Oak
A26: 1.9 | B26: 2013-07-06 | C26: UNHCR | D26: UNHCR | E26: Rakhine | F26: Minbya | G26: Tha Yet Oak | I26: 229 | K26: 458 | L26: 229 | M26: 458 | N26: 229 | O26: 229 | P26: 229 | Q26: 458 | R26: =IF(NFI_Expiration=1,IF($A26<VLOOKUP(H$5,NFI,5,0),1,0)*Table_NFI[[#This Row],[Hygiene Kit]],0) -> 0 | S26: =IF(NFI_Expiration=1,IF($A26<VLOOKUP(I$5,NFI,5,0),1,0)*Table_NFI[[#This Row],[NFI Core Kit]],0) -> 229 | T26: =IF(NFI_Expiration=1,IF($A26<VLOOKUP(J$5,NFI,5,0),1,0)*Table_NFI[[#This Row],[Sanitary Kit]],0) -> 0 | U26: =IF(NFI_Expiration=1,IF($A26<VLOOKUP(K$5,NFI,5,0),1,0)*Table_NFI[[#This Row],[Mosquito net]],0) -> 458 | V26: =IF(NFI_Expiration=1,IF($A26<VLOOKUP(L$5,NFI,5,0),1,0)*Table_NFI[[#This Row],[Tarpaulin]],0) -> 229 | W26: =IF(NFI_Expiration=1,IF($A26<VLOOKUP(M$5,NFI,5,0),1,0)*Table_NFI[[#This Row],[Blanket]],0) -> 458 | X26: =IF(NFI_Expiration=1,IF($A26<VLOOKUP(N$5,NFI,5,0),1,0)*Table_NFI[[#This Row],[Kitchen Set]],0) -> 229 | Y26: =IF(NFI_Expiration=1,IF($A26<VLOOKUP(O$5,NFI,5,0),1,0)*Table_NFI[[#This Row],[Complementary Kit]],0) -> 229 | Z26: =IF(NFI_Expiration=1,IF($A26<VLOOKUP(P$5,NFI,5,0),1,0)*Table_NFI[[#This Row],[Plastic Bucket]],0) -> 229 | AA26: =IF(NFI_Expiration=1,IF($A26<VLOOKUP(Q$5,NFI,5,0),1,0)*Table_NFI[[#This Row],[Plastic Mat]],0) -> 458 | AB26: =VLOOKUP(Table_NFI[[#This Row],[Camp Name]],Camp_List!N$5:AA$254,2,0) -> MMR012CMP005 | AC26: =VLOOKUP(Table_NFI[[#This Row],[Camp Name]],Camp_List!N$5:AA$254,14,0) -> Open | AD26: =VLOOKUP(Table_NFI[[#This Row],[Camp Name]],Camp_List!N$5:AC$254,1,1) -> Tha Yet Oak
A27: 10.16666667 | B27: 2012-10-31 | C27: UNHCR | E27: Rakhine | F27: Minbya | G27: Aung Taing | L27: 40 | R27: =IF(NFI_Expiration=1,IF($A27<VLOOKUP(H$5,NFI,5,0),1,0)*Table_NFI[[#This Row],[Hygiene Kit]],0) -> 0 | S27: =IF(NFI_Expiration=1,IF($A27<VLOOKUP(I$5,NFI,5,0),1,0)*Table_NFI[[#This Row],[NFI Core Kit]],0) -> 0 | T27: =IF(NFI_Expiration=1,IF($A27<VLOOKUP(J$5,NFI,5,0),1,0)*Table_NFI[[#This Row],[Sanitary Kit]],0) -> 0 | U27: =IF(NFI_Expiration=1,IF($A27<VLOOKUP(K$5,NFI,5,0),1,0)*Table_NFI[[#This Row],[Mosquito net]],0) -> 0 | V27: =IF(NFI_Expiration=1,IF($A27<VLOOKUP(L$5,NFI,5,0),1,0)*Table_NFI[[#This Row],[Tarpaulin]],0) -> 40 | W27: =IF(NFI_Expiration=1,IF($A27<VLOOKUP(M$5,NFI,5,0),1,0)*Table_NFI[[#This Row],[Blanket]],0) -> 0 | X27: =IF(NFI_Expiration=1,IF($A27<VLOOKUP(N$5,NFI,5,0),1,0)*Table_NFI[[#This Row],[Kitchen Set]],0) -> 0 | Y27: =IF(NFI_Expiration=1,IF($A27<VLOOKUP(O$5,NFI,5,0),1,0)*Table_NFI[[#This Row],[Complementary Kit]],0) -> 0 | Z27: =IF(NFI_Expiration=1,IF($A27<VLOOKUP(P$5,NFI,5,0),1,0)*Table_NFI[[#This Row],[Plastic Bucket]],0) -> 0 | AA27: =IF(NFI_Expiration=1,IF($A27<VLOOKUP(Q$5,NFI,5,0),1,0)*Table_NFI[[#This Row],[Plastic Mat]],0) -> 0 | AB27: =VLOOKUP(Table_NFI[[#This Row],[Camp Name]],Camp_List!N$5:AA$254,2,0) -> MMR012CMP006 | AC27: =VLOOKUP(Table_NFI[[#This Row],[Camp Name]],Camp_List!N$5:AA$254,14,0) -> Open | AD27: =VLOOKUP(Table_NFI[[#This Row],[Camp Name]],Camp_List!N$5:AC$254,1,1) -> Aung Taing
A28: 9.166666667 | B28: 2012-11-30 | C28: UNHCR | E28: Rakhine | F28: Minbya | G28: Aung Taing | L28: 46 | R28: =IF(NFI_Expiration=1,IF($A28<VLOOKUP(H$5,NFI,5,0),1,0)*Table_NFI[[#This Row],[Hygiene Kit]],0) -> 0 | S28: =IF(NFI_Expiration=1,IF($A28<VLOOKUP(I$5,NFI,5,0),1,0)*Table_NFI[[#This Row],[NFI Core Kit]],0) -> 0 | T28: =IF(NFI_Expiration=1,IF($A28<VLOOKUP(J$5,NFI,5,0),1,0)*Table_NFI[[#This Row],[Sanitary Kit]],0) -> 0 | U28: =IF(NFI_Expiration=1,IF($A28<VLOOKUP(K$5,NFI,5,0),1,0)*Table_NFI[[#This Row],[Mosquito net]],0) -> 0 | V28: =IF(NFI_Expiration=1,IF($A28<VLOOKUP(L$5,NFI,5,0),1,0)*Table_NFI[[#This Row],[Tarpaulin]],0) -> 46 | W28: =IF(NFI_Expiration=1,IF($A28<VLOOKUP(M$5,NFI,5,0),1,0)*Table_NFI[[#This Row],[Blanket]],0) -> 0 | X28: =IF(NFI_Expiration=1,IF($A28<VLOOKUP(N$5,NFI,5,0),1,0)*Table_NFI[[#This Row],[Kitchen Set]],0) -> 0 | Y28: =IF(NFI_Expiration=1,IF($A28<VLOOKUP(O$5,NFI,5,0),1,0)*Table_NFI[[#This Row],[Complementary Kit]],0) -> 0 | Z28: =IF(NFI_Expiration=1,IF($A28<VLOOKUP(P$5,NFI,5,0),1,0)*Table_NFI[[#This Row],[Plastic Bucket]],0) -> 0 | AA28: =IF(NFI_Expiration=1,IF($A28<VLOOKUP(Q$5,NFI,5,0),1,0)*Table_NFI[[#This Row],[Plastic Mat]],0) -> 0 | AB28: =VLOOKUP(Table_NFI[[#This Row],[Camp Name]],Camp_List!N$5:AA$254,2,0) -> MMR012CMP006 | AC28: =VLOOKUP(Table_NFI[[#This Row],[Camp Name]],Camp_List!N$5:AA$254,14,0) -> Open | AD28: =VLOOKUP(Table_NFI[[#This Row],[Camp Name]],Camp_List!N$5:AC$254,1,1) -> Aung Taing
A29: 8.666666667 | B29: 2012-12-15 | C29: UNHCR | E29: Rakhine | F29: Minbya | G29: Aung Taing | M29: 65 | R29: =IF(NFI_Expiration=1,IF($A29<VLOOKUP(H$5,NFI,5,0),1,0)*Table_NFI[[#This Row],[Hygiene Kit]],0) -> 0 | S29: =IF(NFI_Expiration=1,IF($A29<VLOOKUP(I$5,NFI,5,0),1,0)*Table_NFI[[#This Row],[NFI Core Kit]],0) -> 0 | T29: =IF(NFI_Expiration=1,IF($A29<VLOOKUP(J$5,NFI,5,0),1,0)*Table_NFI[[#This Row],[Sanitary Kit]],0) -> 0 | U29: =IF(NFI_Expiration=1,IF($A29<VLOOKUP(K$5,NFI,5,0),1,0)*Table_NFI[[#This Row],[Mosquito net]],0) -> 0 | V29: =IF(NFI_Expiration=1,IF($A29<VLOOKUP(L$5,NFI,5,0),1,0)*Table_NFI[[#This Row],[Tarpaulin]],0) -> 0 | W29: =IF(NFI_Expiration=1,IF($A29<VLOOKUP(M$5,NFI,5,0),1,0)*Table_NFI[[#This Row],[Blanket]],0) -> 65 | X29: =IF(NFI_Expiration=1,IF($A29<VLOOKUP(N$5,NFI,5,0),1,0)*Table_NFI[[#This Row],[Kitchen Set]],0) -> 0 | Y29: =IF(NFI_Expiration=1,IF($A29<VLOOKUP(O$5,NFI,5,0),1,0)*Table_NFI[[#This Row],[Complementary Kit]],0) -> 0 | Z29: =IF(NFI_Expiration=1,IF($A29<VLOOKUP(P$5,NFI,5,0),1,0)*Table_NFI[[#This Row],[Plastic Bucket]],0) -> 0 | AA29: =IF(NFI_Expiration=1,IF($A29<VLOOKUP(Q$5,NFI,5,0),1,0)*Table_NFI[[#This Row],[Plastic Mat]],0) -> 0 | AB29: =VLOOKUP(Table_NFI[[#This Row],[Camp Name]],Camp_List!N$5:AA$254,2,0) -> MMR012CMP006 | AC29: =VLOOKUP(Table_NFI[[#This Row],[Camp Name]],Camp_List!N$5:AA$254,14,0) -> Open | AD29: =VLOOKUP(Table_NFI[[#This Row],[Camp Name]],Camp_List!N$5:AC$254,1,1) -> Aung Taing
A30: 6.6 | B30: 2013-02-15 | C30: UNICEF | E30: Rakhine | F30: Minbya | G30: Aung Taing | H30: 90 | R30: =IF(NFI_Expiration=1,IF($A30<VLOOKUP(H$5,NFI,5,0),1,0)*Table_NFI[[#This Row],[Hygiene Kit]],0) -> 90 | S30: =IF(NFI_Expiration=1,IF($A30<VLOOKUP(I$5,NFI,5,0),1,0)*Table_NFI[[#This Row],[NFI Core Kit]],0) -> 0 | T30: =IF(NFI_Expiration=1,IF($A30<VLOOKUP(J$5,NFI,5,0),1,0)*Table_NFI[[#This Row],[Sanitary Kit]],0) -> 0 | U30: =IF(NFI_Expiration=1,IF($A30<VLOOKUP(K$5,NFI,5,0),1,0)*Table_NFI[[#This Row],[Mosquito net]],0) -> 0 | V30: =IF(NFI_Expiration=1,IF($A30<VLOOKUP(L$5,NFI,5,0),1,0)*Table_NFI[[#This Row],[Tarpaulin]],0) -> 0 | W30: =IF(NFI_Expiration=1,IF($A30<VLOOKUP(M$5,NFI,5,0),1,0)*Table_NFI[[#This Row],[Blanket]],0) -> 0 | X30: =IF(NFI_Expiration=1,IF($A30<VLOOKUP(N$5,NFI,5,0),1,0)*Table_NFI[[#This Row],[Kitchen Set]],0) -> 0 | Y30: =IF(NFI_Expiration=1,IF($A30<VLOOKUP(O$5,NFI,5,0),1,0)*Table_NFI[[#This Row],[Complementary Kit]],0) -> 0 | Z30: =IF(NFI_Expiration=1,IF($A30<VLOOKUP(P$5,NFI,5,0),1,0)*Table_NFI[[#This Row],[Plastic Bucket]],0) -> 0 | AA30: =IF(NFI_Expiration=1,IF($A30<VLOOKUP(Q$5,NFI,5,0),1,0)*Table_NFI[[#This Row],[Plastic Mat]],0) -> 0 | AB30: =VLOOKUP(Table_NFI[[#This Row],[Camp Name]],Camp_List!N$5:AA$254,2,0) -> MMR012CMP006 | AC30: =VLOOKUP(Table_NFI[[#This Row],[Camp Name]],Camp_List!N$5:AA$254,14,0) -> Open | AD30: =VLOOKUP(Table_NFI[[#This Row],[Camp Name]],Camp_List!N$5:AC$254,1,1) -> Aung Taing
A31: 4.066666667 | B31: 2013-05-02 | C31: UNHCR | E31: Rakhine | F31: Minbya | G31: Aung Taing | M31: 1 | R31: =IF(NFI_Expiration=1,IF($A31<VLOOKUP(H$5,NFI,5,0),1,0)*Table_NFI[[#This Row],[Hygiene Kit]],0) -> 0 | S31: =IF(NFI_Expiration=1,IF($A31<VLOOKUP(I$5,NFI,5,0),1,0)*Table_NFI[[#This Row],[NFI Core Kit]],0) -> 0 | T31: =IF(NFI_Expiration=1,IF($A31<VLOOKUP(J$5,NFI,5,0),1,0)*Table_NFI[[#This Row],[Sanitary Kit]],0) -> 0 | U31: =IF(NFI_Expiration=1,IF($A31<VLOOKUP(K$5,NFI,5,0),1,0)*Table_NFI[[#This Row],[Mosquito net]],0) -> 0 | V31: =IF(NFI_Expiration=1,IF($A31<VLOOKUP(L$5,NFI,5,0),1,0)*Table_NFI[[#This Row],[Tarpaulin]],0) -> 0 | W31: =IF(NFI_Expiration=1,IF($A31<VLOOKUP(M$5,NFI,5,0),1,0)*Table_NFI[[#This Row],[Blanket]],0) -> 1 | X31: =IF(NFI_Expiration=1,IF($A31<VLOOKUP(N$5,NFI,5,0),1,0)*Table_NFI[[#This Row],[Kitchen Set]],0) -> 0 | Y31: =IF(NFI_Expiration=1,IF($A31<VLOOKUP(O$5,NFI,5,0),1,0)*Table_NFI[[#This Row],[Complementary Kit]],0) -> 0 | Z31: =IF(NFI_Expiration=1,IF($A31<VLOOKUP(P$5,NFI,5,0),1,0)*Table_NFI[[#This Row],[Plastic Bucket]],0) -> 0 | AA31: =IF(NFI_Expiration=1,IF($A31<VLOOKUP(Q$5,NFI,5,0),1,0)*Table_NFI[[#This Row],[Plastic Mat]],0) -> 0 | AB31: =VLOOKUP(Table_NFI[[#This Row],[Camp Name]],Camp_List!N$5:AA$254,2,0) -> MMR012CMP006 | AC31: =VLOOKUP(Table_NFI[[#This Row],[Camp Name]],Camp_List!N$5:AA$254,14,0) -> Open | AD31: =VLOOKUP(Table_NFI[[#This Row],[Camp Name]],Camp_List!N$5:AC$254,1,1) -> Aung Taing
A32: 4.066666667 | B32: 2013-05-02 | C32: UNHCR | E32: Rakhine | F32: Minbya | G32: Aung Taing | L32: 1 | R32: =IF(NFI_Expiration=1,IF($A32<VLOOKUP(H$5,NFI,5,0),1,0)*Table_NFI[[#This Row],[Hygiene Kit]],0) -> 0 | S32: =IF(NFI_Expiration=1,IF($A32<VLOOKUP(I$5,NFI,5,0),1,0)*Table_NFI[[#This Row],[NFI Core Kit]],0) -> 0 | T32: =IF(NFI_Expiration=1,IF($A32<VLOOKUP(J$5,NFI,5,0),1,0)*Table_NFI[[#This Row],[Sanitary Kit]],0) -> 0 | U32: =IF(NFI_Expiration=1,IF($A32<VLOOKUP(K$5,NFI,5,0),1,0)*Table_NFI[[#This Row],[Mosquito net]],0) -> 0 | V32: =IF(NFI_Expiration=1,IF($A32<VLOOKUP(L$5,NFI,5,0),1,0)*Table_NFI[[#This Row],[Tarpaulin]],0) -> 1 | W32: =IF(NFI_Expiration=1,IF($A32<VLOOKUP(M$5,NFI,5,0),1,0)*Table_NFI[[#This Row],[Blanket]],0) -> 0 | X32: =IF(NFI_Expiration=1,IF($A32<VLOOKUP(N$5,NFI,5,0),1,0)*Table_NFI[[#This Row],[Kitchen Set]],0) -> 0 | Y32: =IF(NFI_Expiration=1,IF($A32<VLOOKUP(O$5,NFI,5,0),1,0)*Table_NFI[[#This Row],[Complementary Kit]],0) -> 0 | Z32: =IF(NFI_Expiration=1,IF($A32<VLOOKUP(P$5,NFI,5,0),1,0)*Table_NFI[[#This Row],[Plastic Bucket]],0) -> 0 | AA32: =IF(NFI_Expiration=1,IF($A32<VLOOKUP(Q$5,NFI,5,0),1,0)*Table_NFI[[#This Row],[Plastic Mat]],0) -> 0 | AB32: =VLOOKUP(Table_NFI[[#This Row],[Camp Name]],Camp_List!N$5:AA$254,2,0) -> MMR012CMP006 | AC32: =VLOOKUP(Table_NFI[[#This Row],[Camp Name]],Camp_List!N$5:AA$254,14,0) -> Open | AD32: =VLOOKUP(Table_NFI[[#This Row],[Camp Name]],Camp_List!N$5:AC$254,1,1) -> Aung Taing
A33: 1.8 | B33: 2013-07-09 | C33: UNHCR | D33: UNHCR | E33: Rakhine | F33: Minbya | G33: Aung Taing | R33: =IF(NFI_Expiration=1,IF($A33<VLOOKUP(H$5,NFI,5,0),1,0)*Table_NFI[[#This Row],[Hygiene Kit]],0) -> 0 | S33: =IF(NFI_Expiration=1,IF($A33<VLOOKUP(I$5,NFI,5,0),1,0)*Table_NFI[[#This Row],[NFI Core Kit]],0) -> 0 | T33: =IF(NFI_Expiration=1,IF($A33<VLOOKUP(J$5,NFI,5,0),1,0)*Table_NFI[[#This Row],[Sanitary Kit]],0) -> 0 | U33: =IF(NFI_Expiration=1,IF($A33<VLOOKUP(K$5,NFI,5,0),1,0)*Table_NFI[[#This Row],[Mosquito net]],0) -> 0 | V33: =IF(NFI_Expiration=1,IF($A33<VLOOKUP(L$5,NFI,5,0),1,0)*Table_NFI[[#This Row],[Tarpaulin]],0) -> 0 | W33: =IF(NFI_Expiration=1,IF($A33<VLOOKUP(M$5,NFI,5,0),1,0)*Table_NFI[[#This Row],[Blanket]],0) -> 0 | X33: =IF(NFI_Expiration=1,IF($A33<VLOOKUP(N$5,NFI,5,0),1,0)*Table_NFI[[#This Row],[Kitchen Set]],0) -> 0 | Y33: =IF(NFI_Expiration=1,IF($A33<VLOOKUP(O$5,NFI,5,0),1,0)*Table_NFI[[#This Row],[Complementary Kit]],0) -> 0 | Z33: =IF(NFI_Expiration=1,IF($A33<VLOOKUP(P$5,NFI,5,0),1,0)*Table_NFI[[#This Row],[Plastic Bucket]],0) -> 0 | AA33: =IF(NFI_Expiration=1,IF($A33<VLOOKUP(Q$5,NFI,5,0),1,0)*Table_NFI[[#This Row],[Plastic Mat]],0) -> 0 | AB33: =VLOOKUP(Table_NFI[[#This Row],[Camp Name]],Camp_List!N$5:AA$254,2,0) -> MMR012CMP006 | AC33: =VLOOKUP(Table_NFI[[#This Row],[Camp Name]],Camp_List!N$5:AA$254,14,0) -> Open | AD33: =VLOOKUP(Table_NFI[[#This Row],[Camp Name]],Camp_List!N$5:AC$254,1,1) -> Aung Taing
A34: 1.8 | B34: 2013-07-09 | C34: UNHCR | D34: UNHCR | E34: Rakhine | F34: Minbya | G34: Aung Taing | I34: 144 | K34: 288 | L34: 144 | M34: 288 | N34: 144 | O34: 144 | P34: 144 | Q34: 288 | R34: =IF(NFI_Expiration=1,IF($A34<VLOOKUP(H$5,NFI,5,0),1,0)*Table_NFI[[#This Row],[Hygiene Kit]],0) -> 0 | S34: =IF(NFI_Expiration=1,IF($A34<VLOOKUP(I$5,NFI,5,0),1,0)*Table_NFI[[#This Row],[NFI Core Kit]],0) -> 144 | T34: =IF(NFI_Expiration=1,IF($A34<VLOOKUP(J$5,NFI,5,0),1,0)*Table_NFI[[#This Row],[Sanitary Kit]],0) -> 0 | U34: =IF(NFI_Expiration=1,IF($A34<VLOOKUP(K$5,NFI,5,0),1,0)*Table_NFI[[#This Row],[Mosquito net]],0) -> 288 | V34: =IF(NFI_Expiration=1,IF($A34<VLOOKUP(L$5,NFI,5,0),1,0)*Table_NFI[[#This Row],[Tarpaulin]],0) -> 144 | W34: =IF(NFI_Expiration=1,IF($A34<VLOOKUP(M$5,NFI,5,0),1,0)*Table_NFI[[#This Row],[Blanket]],0) -> 288 | X34: =IF(NFI_Expiration=1,IF($A34<VLOOKUP(N$5,NFI,5,0),1,0)*Table_NFI[[#This Row],[Kitchen Set]],0) -> 144 | Y34: =IF(NFI_Expiration=1,IF($A34<VLOOKUP(O$5,NFI,5,0),1,0)*Table_NFI[[#This Row],[Complementary Kit]],0) -> 144 | Z34: =IF(NFI_Expiration=1,IF($A34<VLOOKUP(P$5,NFI,5,0),1,0)*Table_NFI[[#This Row],[Plastic Bucket]],0) -> 144 | AA34: =IF(NFI_Expiration=1,IF($A34<VLOOKUP(Q$5,NFI,5,0),1,0)*Table_NFI[[#This Row],[Plastic Mat]],0) -> 288 | AB34: =VLOOKUP(Table_NFI[[#This Row],[Camp Name]],Camp_List!N$5:AA$254,2,0) -> MMR012CMP006 | AC34: =VLOOKUP(Table_NFI[[#This Row],[Camp Name]],Camp_List!N$5:AA$254,14,0) -> Open | AD34: =VLOOKUP(Table_NFI[[#This Row],[Camp Name]],Camp_List!N$5:AC$254,1,1) -> Aung Taing
A35: 8.6 | B35: 2012-12-17 | C35: UNHCR | E35: Rakhine | F35: Minbya | G35: Thay Kan | L35: 33 | R35: =IF(NFI_Expiration=1,IF($A35<VLOOKUP(H$5,NFI,5,0),1,0)*Table_NFI[[#This Row],[Hygiene Kit]],0) -> 0 | S35: =IF(NFI_Expiration=1,IF($A35<VLOOKUP(I$5,NFI,5,0),1,0)*Table_NFI[[#This Row],[NFI Core Kit]],0) -> 0 | T35: =IF(NFI_Expiration=1,IF($A35<VLOOKUP(J$5,NFI,5,0),1,0)*Table_NFI[[#This Row],[Sanitary Kit]],0) -> 0 | U35: =IF(NFI_Expiration=1,IF($A35<VLOOKUP(K$5,NFI,5,0),1,0)*Table_NFI[[#This Row],[Mosquito net]],0) -> 0 | V35: =IF(NFI_Expiration=1,IF($A35<VLOOKUP(L$5,NFI,5,0),1,0)*Table_NFI[[#This Row],[Tarpaulin]],0) -> 33 | W35: =IF(NFI_Expiration=1,IF($A35<VLOOKUP(M$5,NFI,5,0),1,0)*Table_NFI[[#This Row],[Blanket]],0) -> 0 | X35: =IF(NFI_Expiration=1,IF($A35<VLOOKUP(N$5,NFI,5,0),1,0)*Table_NFI[[#This Row],[Kitchen Set]],0) -> 0 | Y35: =IF(NFI_Expiration=1,IF($A35<VLOOKUP(O$5,NFI,5,0),1,0)*Table_NFI[[#This Row],[Complementary Kit]],0) -> 0 | Z35: =IF(NFI_Expiration=1,IF($A35<VLOOKUP(P$5,NFI,5,0),1,0)*Table_NFI[[#This Row],[Plastic Bucket]],0) -> 0 | AA35: =IF(NFI_Expiration=1,IF($A35<VLOOKUP(Q$5,NFI,5,0),1,0)*Table_NFI[[#This Row],[Plastic Mat]],0) -> 0 | AB35: =VLOOKUP(Table_NFI[[#This Row],[Camp Name]],Camp_List!N$5:AA$254,2,0) -> MMR012CMP007 | AC35: =VLOOKUP(Table_NFI[[#This Row],[Camp Name]],Camp_List!N$5:AA$254,14,0) -> Close | AD35: =VLOOKUP(Table_NFI[[#This Row],[Camp Name]],Camp_List!N$5:AC$254,1,1) -> Thay Kan
A36: 6.6 | B36: 2013-02-15 | C36: UNICEF | E36: Rakhine | F36: Minbya | G36: Thay Kan | H36: 35 | R36: =IF(NFI_Expiration=1,IF($A36<VLOOKUP(H$5,NFI,5,0),1,0)*Table_NFI[[#This Row],[Hygiene Kit]],0) -> 35 | S36: =IF(NFI_Expiration=1,IF($A36<VLOOKUP(I$5,NFI,5,0),1,0)*Table_NFI[[#This Row],[NFI Core Kit]],0) -> 0 | T36: =IF(NFI_Expiration=1,IF($A36<VLOOKUP(J$5,NFI,5,0),1,0)*Table_NFI[[#This Row],[Sanitary Kit]],0) -> 0 | U36: =IF(NFI_Expiration=1,IF($A36<VLOOKUP(K$5,NFI,5,0),1,0)*Table_NFI[[#This Row],[Mosquito net]],0) -> 0 | V36: =IF(NFI_Expiration=1,IF($A36<VLOOKUP(L$5,NFI,5,0),1,0)*Table_NFI[[#This Row],[Tarpaulin]],0) -> 0 | W36: =IF(NFI_Expiration=1,IF($A36<VLOOKUP(M$5,NFI,5,0),1,0)*Table_NFI[[#This Row],[Blanket]],0) -> 0 | X36: =IF(NFI_Expiration=1,IF($A36<VLOOKUP(N$5,NFI,5,0),1,0)*Table_NFI[[#This Row],[Kitchen Set]],0) -> 0 | Y36: =IF(NFI_Expiration=1,IF($A36<VLOOKUP(O$5,NFI,5,0),1,0)*Table_NFI[[#This Row],[Complementary Kit]],0) -> 0 | Z36: =IF(NFI_Expiration=1,IF($A36<VLOOKUP(P$5,NFI,5,0),1,0)*Table_NFI[[#This Row],[Plastic Bucket]],0) -> 0 | AA36: =IF(NFI_Expiration=1,IF($A36<VLOOKUP(Q$5,NFI,5,0),1,0)*Table_NFI[[#This Row],[Plastic Mat]],0) -> 0 | AB36: =VLOOKUP(Table_NFI[[#This Row],[Camp Name]],Camp_List!N$5:AA$254,2,0) -> MMR012CMP007 | AC36: =VLOOKUP(Table_NFI[[#This Row],[Camp Name]],Camp_List!N$5:AA$254,14,0) -> Close | AD36: =VLOOKUP(Table_NFI[[#This Row],[Camp Name]],Camp_List!N$5:AC$254,1,1) -> Thay Kan
A37: 6.066666667 | B37: 2013-03-03 | C37: UNHCR | E37: Rakhine | F37: Minbya | G37: Thay Kan | M37: 33 | R37: =IF(NFI_Expiration=1,IF($A37<VLOOKUP(H$5,NFI,5,0),1,0)*Table_NFI[[#This Row],[Hygiene Kit]],0) -> 0 | S37: =IF(NFI_Expiration=1,IF($A37<VLOOKUP(I$5,NFI,5,0),1,0)*Table_NFI[[#This Row],[NFI Core Kit]],0) -> 0 | T37: =IF(NFI_Expiration=1,IF($A37<VLOOKUP(J$5,NFI,5,0),1,0)*Table_NFI[[#This Row],[Sanitary Kit]],0) -> 0 | U37: =IF(NFI_Expiration=1,IF($A37<VLOOKUP(K$5,NFI,5,0),1,0)*Table_NFI[[#This Row],[Mosquito net]],0) -> 0 | V37: =IF(NFI_Expiration=1,IF($A37<VLOOKUP(L$5,NFI,5,0),1,0)*Table_NFI[[#This Row],[Tarpaulin]],0) -> 0 | W37: =IF(NFI_Expiration=1,IF($A37<VLOOKUP(M$5,NFI,5,0),1,0)*Table_NFI[[#This Row],[Blanket]],0) -> 33 | X37: =IF(NFI_Expiration=1,IF($A37<VLOOKUP(N$5,NFI,5,0),1,0)*Table_NFI[[#This Row],[Kitchen Set]],0) -> 0 | Y37: =IF(NFI_Expiration=1,IF($A37<VLOOKUP(O$5,NFI,5,0),1,0)*Table_NFI[[#This Row],[Complementary Kit]],0) -> 0 | Z37: =IF(NFI_Expiration=1,IF($A37<VLOOKUP(P$5,NFI,5,0),1,0)*Table_NFI[[#This Row],[Plastic Bucket]],0) -> 0 | AA37: =IF(NFI_Expiration=1,IF($A37<VLOOKUP(Q$5,NFI,5,0),1,0)*Table_NFI[[#This Row],[Plastic Mat]],0) -> 0 | AB37: =VLOOKUP(Table_NFI[[#This Row],[Camp Name]],Camp_List!N$5:AA$254,2,0) -> MMR012CMP007 | AC37: =VLOOKUP(Table_NFI[[#This Row],[Camp Name]],Camp_List!N$5:AA$254,14,0) -> Close | AD37: =VLOOKUP(Table_NFI[[#This Row],[Camp Name]],Camp_List!N$5:AC$254,1,1) -> Thay Kan
A38: 1.8 | B38: 2013-07-09 | C38: UNHCR | D38: UNHCR | E38: Rakhine | F38: Minbya | G38: Thay Kan | R38: =IF(NFI_Expiration=1,IF($A38<VLOOKUP(H$5,NFI,5,0),1,0)*Table_NFI[[#This Row],[Hygiene Kit]],0) -> 0 | S38: =IF(NFI_Expiration=1,IF($A38<VLOOKUP(I$5,NFI,5,0),1,0)*Table_NFI[[#This Row],[NFI Core Kit]],0) -> 0 | T38: =IF(NFI_Expiration=1,IF($A38<VLOOKUP(J$5,NFI,5,0),1,0)*Table_NFI[[#This Row],[Sanitary Kit]],0) -> 0 | U38: =IF(NFI_Expiration=1,IF($A38<VLOOKUP(K$5,NFI,5,0),1,0)*Table_NFI[[#This Row],[Mosquito net]],0) -> 0 | V38: =IF(NFI_Expiration=1,IF($A38<VLOOKUP(L$5,NFI,5,0),1,0)*Table_NFI[[#This Row],[Tarpaulin]],0) -> 0 | W38: =IF(NFI_Expiration=1,IF($A38<VLOOKUP(M$5,NFI,5,0),1,0)*Table_NFI[[#This Row],[Blanket]],0) -> 0 | X38: =IF(NFI_Expiration=1,IF($A38<VLOOKUP(N$5,NFI,5,0),1,0)*Table_NFI[[#This Row],[Kitchen Set]],0) -> 0 | Y38: =IF(NFI_Expiration=1,IF($A38<VLOOKUP(O$5,NFI,5,0),1,0)*Table_NFI[[#This Row],[Complementary Kit]],0) -> 0 | Z38: =IF(NFI_Expiration=1,IF($A38<VLOOKUP(P$5,NFI,5,0),1,0)*Table_NFI[[#This Row],[Plastic Bucket]],0) -> 0 | AA38: =IF(NFI_Expiration=1,IF($A38<VLOOKUP(Q$5,NFI,5,0),1,0)*Table_NFI[[#This Row],[Plastic Mat]],0) -> 0 | AB38: =VLOOKUP(Table_NFI[[#This Row],[Camp Name]],Camp_List!N$5:AA$254,2,0) -> MMR012CMP007 | AC38: =VLOOKUP(Table_NFI[[#This Row],[Camp Name]],Camp_List!N$5:AA$254,14,0) -> Close | AD38: =VLOOKUP(Table_NFI[[#This Row],[Camp Name]],Camp_List!N$5:AC$254,1,1) -> Thay Kan
A39: 1.8 | B39: 2013-07-09 | C39: UNHCR | D39: UNHCR | E39: Rakhine | F39: Minbya | G39: Thay Kan | I39: 33 | K39: 66 | L39: 33 | M39: 66 | N39: 33 | O39: 33 | P39: 33 | Q39: 66 | R39: =IF(NFI_Expiration=1,IF($A39<VLOOKUP(H$5,NFI,5,0),1,0)*Table_NFI[[#This Row],[Hygiene Kit]],0) -> 0 | S39: =IF(NFI_Expiration=1,IF($A39<VLOOKUP(I$5,NFI,5,0),1,0)*Table_NFI[[#This Row],[NFI Core Kit]],0) -> 33 | T39: =IF(NFI_Expiration=1,IF($A39<VLOOKUP(J$5,NFI,5,0),1,0)*Table_NFI[[#This Row],[Sanitary Kit]],0) -> 0 | U39: =IF(NFI_Expiration=1,IF($A39<VLOOKUP(K$5,NFI,5,0),1,0)*Table_NFI[[#This Row],[Mosquito net]],0) -> 66 | V39: =IF(NFI_Expiration=1,IF($A39<VLOOKUP(L$5,NFI,5,0),1,0)*Table_NFI[[#This Row],[Tarpaulin]],0) -> 33 | W39: =IF(NFI_Expiration=1,IF($A39<VLOOKUP(M$5,NFI,5,0),1,0)*Table_NFI[[#This Row],[Blanket]],0) -> 66 | X39: =IF(NFI_Expiration=1,IF($A39<VLOOKUP(N$5,NFI,5,0),1,0)*Table_NFI[[#This Row],[Kitchen Set]],0) -> 33 | Y39: =IF(NFI_Expiration=1,IF($A39<VLOOKUP(O$5,NFI,5,0),1,0)*Table_NFI[[#This Row],[Complementary Kit]],0) -> 33 | Z39: =IF(NFI_Expiration=1,IF($A39<VLOOKUP(P$5,NFI,5,0),1,0)*Table_NFI[[#This Row],[Plastic Bucket]],0) -> 33 | AA39: =IF(NFI_Expiration=1,IF($A39<VLOOKUP(Q$5,NFI,5,0),1,0)*Table_NFI[[#This Row],[Plastic Mat]],0) -> 66 | AB39: =VLOOKUP(Table_NFI[[#This Row],[Camp Name]],Camp_List!N$5:AA$254,2,0) -> MMR012CMP007 | AC39: =VLOOKUP(Table_NFI[[#This Row],[Camp Name]],Camp_List!N$5:AA$254,14,0) -> Close | AD39: =VLOOKUP(Table_NFI[[#This Row],[Camp Name]],Camp_List!N$5:AC$254,1,1) -> Thay Kan
A40: =IF(ISBLANK(B40),"",(Report_Date-B40)/30) -> 9.466666667 | B40: 2012-11-21 | C40: UNHCR | E40: Rakhine | F40: Minbya | G40: Sam Ba Le | L40: 2 | R40: =IF(NFI_Expiration=1,IF($A40<VLOOKUP(H$5,NFI,5,0),1,0)*Table_NFI[[#This Row],[Hygiene Kit]],0) -> 0 | S40: =IF(NFI_Expiration=1,IF($A40<VLOOKUP(I$5,NFI,5,0),1,0)*Table_NFI[[#This Row],[NFI Core Kit]],0) -> 0 | T40: =IF(NFI_Expiration=1,IF($A40<VLOOKUP(J$5,NFI,5,0),1,0)*Table_NFI[[#This Row],[Sanitary Kit]],0) -> 0 | U40: =IF(NFI_Expiration=1,IF($A40<VLOOKUP(K$5,NFI,5,0),1,0)*Table_NFI[[#This Row],[Mosquito net]],0) -> 0 | V40: =IF(NFI_Expiration=1,IF($A40<VLOOKUP(L$5,NFI,5,0),1,0)*Table_NFI[[#This Row],[Tarpaulin]],0) -> 2 | W40: =IF(NFI_Expiration=1,IF($A40<VLOOKUP(M$5,NFI,5,0),1,0)*Table_NFI[[#This Row],[Blanket]],0) -> 0 | X40: =IF(NFI_Expiration=1,IF($A40<VLOOKUP(N$5,NFI,5,0),1,0)*Table_NFI[[#This Row],[Kitchen Set]],0) -> 0 | Y40: =IF(NFI_Expiration=1,IF($A40<VLOOKUP(O$5,NFI,5,0),1,0)*Table_NFI[[#This Row],[Complementary Kit]],0) -> 0 | Z40: =IF(NFI_Expiration=1,IF($A40<VLOOKUP(P$5,NFI,5,0),1,0)*Table_NFI[[#This Row],[Plastic Bucket]],0) -> 0 | AA40: =IF(NFI_Expiration=1,IF($A40<VLOOKUP(Q$5,NFI,5,0),1,0)*Table_NFI[[#This Row],[Plastic Mat]],0) -> 0 | AB40: =VLOOKUP(Table_NFI[[#This Row],[Camp Name]],Camp_List!N$5:AA$254,2,0) -> MMR012CMP008 | AC40: =VLOOKUP(Table_NFI[[#This Row],[Camp Name]],Camp_List!N$5:AA$254,14,0) -> Open | AD40: =VLOOKUP(Table_NFI[[#This Row],[Camp Name]],Camp_List!N$5:AC$254,1,1) -> Sam Ba Le
A41: 8.666666667 | B41: 2012-12-15 | C41: UNHCR | E41: Rakhine | F41: Minbya | G41: Sam Ba Le | M41: 109 | R41: =IF(NFI_Expiration=1,IF($A41<VLOOKUP(H$5,NFI,5,0),1,0)*Table_NFI[[#This Row],[Hygiene Kit]],0) -> 0 | S41: =IF(NFI_Expiration=1,IF($A41<VLOOKUP(I$5,NFI,5,0),1,0)*Table_NFI[[#This Row],[NFI Core Kit]],0) -> 0 | T41: =IF(NFI_Expiration=1,IF($A41<VLOOKUP(J$5,NFI,5,0),1,0)*Table_NFI[[#This Row],[Sanitary Kit]],0) -> 0 | U41: =IF(NFI_Expiration=1,IF($A41<VLOOKUP(K$5,NFI,5,0),1,0)*Table_NFI[[#This Row],[Mosquito net]],0) -> 0 | V41: =IF(NFI_Expiration=1,IF($A41<VLOOKUP(L$5,NFI,5,0),1,0)*Table_NFI[[#This Row],[Tarpaulin]],0) -> 0 | W41: =IF(NFI_Expiration=1,IF($A41<VLOOKUP(M$5,NFI,5,0),1,0)*Table_NFI[[#This Row],[Blanket]],0) -> 109 | X41: =IF(NFI_Expiration=1,IF($A41<VLOOKUP(N$5,NFI,5,0),1,0)*Table_NFI[[#This Row],[Kitchen Set]],0) -> 0 | Y41: =IF(NFI_Expiration=1,IF($A41<VLOOKUP(O$5,NFI,5,0),1,0)*Table_NFI[[#This Row],[Complementary Kit]],0) -> 0 | Z41: =IF(NFI_Expiration=1,IF($A41<VLOOKUP(P$5,NFI,5,0),1,0)*Table_NFI[[#This Row],[Plastic Bucket]],0) -> 0 | AA41: =IF(NFI_Expiration=1,IF($A41<VLOOKUP(Q$5,NFI,5,0),1,0)*Table_NFI[[#This Row],[Plastic Mat]],0) -> 0 | AB41: =VLOOKUP(Table_NFI[[#This Row],[Camp Name]],Camp_List!N$5:AA$254,2,0) -> MMR012CMP008 | AC41: =VLOOKUP(Table_NFI[[#This Row],[Camp Name]],Camp_List!N$5:AA$254,14,0) -> Open | AD41: =VLOOKUP(Table_NFI[[#This Row],[Camp Name]],Camp_List!N$5:AC$254,1,1) -> Sam Ba Le
A42: =IF(ISBLANK(B42),"",(Report_Date-B42)/30) -> 6.6 | B42: 2013-02-15 | C42: UNICEF | E42: Rakhine | F42: Minbya | G42: Sam Ba Le | H42: 230 | R42: =IF(NFI_Expiration=1,IF($A42<VLOOKUP(H$5,NFI,5,0),1,0)*Table_NFI[[#This Row],[Hygiene Kit]],0) -> 230 | S42: =IF(NFI_Expiration=1,IF($A42<VLOOKUP(I$5,NFI,5,0),1,0)*Table_NFI[[#This Row],[NFI Core Kit]],0) -> 0 | T42: =IF(NFI_Expiration=1,IF($A42<VLOOKUP(J$5,NFI,5,0),1,0)*Table_NFI[[#This Row],[Sanitary Kit]],0) -> 0 | U42: =IF(NFI_Expiration=1,IF($A42<VLOOKUP(K$5,NFI,5,0),1,0)*Table_NFI[[#This Row],[Mosquito net]],0) -> 0 | V42: =IF(NFI_Expiration=1,IF($A42<VLOOKUP(L$5,NFI,5,0),1,0)*Table_NFI[[#This Row],[Tarpaulin]],0) -> 0 | W42: =IF(NFI_Expiration=1,IF($A42<VLOOKUP(M$5,NFI,5,0),1,0)*Table_NFI[[#This Row],[Blanket]],0) -> 0 | X42: =IF(NFI_Expiration=1,IF($A42<VLOOKUP(N$5,NFI,5,0),1,0)*Table_NFI[[#This Row],[Kitchen Set]],0) -> 0 | Y42: =IF(NFI_Expiration=1,IF($A42<VLOOKUP(O$5,NFI,5,0),1,0)*Table_NFI[[#This Row],[Complementary Kit]],0) -> 0 | Z42: =IF(NFI_Expiration=1,IF($A42<VLOOKUP(P$5,NFI,5,0),1,0)*Table_NFI[[#This Row],[Plastic Bucket]],0) -> 0 | AA42: =IF(NFI_Expiration=1,IF($A42<VLOOKUP(Q$5,NFI,5,0),1,0)*Table_NFI[[#This Row],[Plastic Mat]],0) -> 0 | AB42: =VLOOKUP(Table_NFI[[#This Row],[Camp Name]],Camp_List!N$5:AA$254,2,0) -> MMR012CMP008 | AC42: =VLOOKUP(Table_NFI[[#This Row],[Camp Name]],Camp_List!N$5:AA$254,14,0) -> Open | AD42: =VLOOKUP(Table_NFI[[#This Row],[Camp Name]],Camp_List!N$5:AC$254,1,1) -> Sam Ba Le
A43: 1.8 | B43: 2013-07-09 | C43: UNHCR | D43: UNHCR | E43: Rakhine | F43: Minbya | G43: Sam Ba Le | R43: =IF(NFI_Expiration=1,IF($A43<VLOOKUP(H$5,NFI,5,0),1,0)*Table_NFI[[#This Row],[Hygiene Kit]],0) -> 0 | S43: =IF(NFI_Expiration=1,IF($A43<VLOOKUP(I$5,NFI,5,0),1,0)*Table_NFI[[#This Row],[NFI Core Kit]],0) -> 0 | T43: =IF(NFI_Expiration=1,IF($A43<VLOOKUP(J$5,NFI,5,0),1,0)*Table_NFI[[#This Row],[Sanitary Kit]],0) -> 0 | U43: =IF(NFI_Expiration=1,IF($A43<VLOOKUP(K$5,NFI,5,0),1,0)*Table_NFI[[#This Row],[Mosquito net]],0) -> 0 | V43: =IF(NFI_Expiration=1,IF($A43<VLOOKUP(L$5,NFI,5,0),1,0)*Table_NFI[[#This Row],[Tarpaulin]],0) -> 0 | W43: =IF(NFI_Expiration=1,IF($A43<VLOOKUP(M$5,NFI,5,0),1,0)*Table_NFI[[#This Row],[Blanket]],0) -> 0 | X43: =IF(NFI_Expiration=1,IF($A43<VLOOKUP(N$5,NFI,5,0),1,0)*Table_NFI[[#This Row],[Kitchen Set]],0) -> 0 | Y43: =IF(NFI_Expiration=1,IF($A43<VLOOKUP(O$5,NFI,5,0),1,0)*Table_NFI[[#This Row],[Complementary Kit]],0) -> 0 | Z43: =IF(NFI_Expiration=1,IF($A43<VLOOKUP(P$5,NFI,5,0),1,0)*Table_NFI[[#This Row],[Plastic Bucket]],0) -> 0 | AA43: =IF(NFI_Expiration=1,IF($A43<VLOOKUP(Q$5,NFI,5,0),1,0)*Table_NFI[[#This Row],[Plastic Mat]],0) -> 0 | AB43: =VLOOKUP(Table_NFI[[#This Row],[Camp Name]],Camp_List!N$5:AA$254,2,0) -> MMR012CMP008 | AC43: =VLOOKUP(Table_NFI[[#This Row],[Camp Name]],Camp_List!N$5:AA$254,14,0) -> Open | AD43: =VLOOKUP(Table_NFI[[#This Row],[Camp Name]],Camp_List!N$5:AC$254,1,1) -> Sam Ba Le
A44: 1.8 | B44: 2013-07-09 | C44: UNHCR | D44: UNHCR | E44: Rakhine | F44: Minbya | G44: Sam Ba Le | I44: 245 | K44: 490 | L44: 245 | M44: 490 | N44: 245 | O44: 245 | P44: 245 | Q44: 490 | R44: =IF(NFI_Expiration=1,IF($A44<VLOOKUP(H$5,NFI,5,0),1,0)*Table_NFI[[#This Row],[Hygiene Kit]],0) -> 0 | S44: =IF(NFI_Expiration=1,IF($A44<VLOOKUP(I$5,NFI,5,0),1,0)*Table_NFI[[#This Row],[NFI Core Kit]],0) -> 245 | T44: =IF(NFI_Expiration=1,IF($A44<VLOOKUP(J$5,NFI,5,0),1,0)*Table_NFI[[#This Row],[Sanitary Kit]],0) -> 0 | U44: =IF(NFI_Expiration=1,IF($A44<VLOOKUP(K$5,NFI,5,0),1,0)*Table_NFI[[#This Row],[Mosquito net]],0) -> 490 | V44: =IF(NFI_Expiration=1,IF($A44<VLOOKUP(L$5,NFI,5,0),1,0)*Table_NFI[[#This Row],[Tarpaulin]],0) -> 245 | W44: =IF(NFI_Expiration=1,IF($A44<VLOOKUP(M$5,NFI,5,0),1,0)*Table_NFI[[#This Row],[Blanket]],0) -> 490 | X44: =IF(NFI_Expiration=1,IF($A44<VLOOKUP(N$5,NFI,5,0),1,0)*Table_NFI[[#This Row],[Kitchen Set]],0) -> 245 | Y44: =IF(NFI_Expiration=1,IF($A44<VLOOKUP(O$5,NFI,5,0),1,0)*Table_NFI[[#This Row],[Complementary Kit]],0) -> 245 | Z44: =IF(NFI_Expiration=1,IF($A44<VLOOKUP(P$5,NFI,5,0),1,0)*Table_NFI[[#This Row],[Plastic Bucket]],0) -> 245 | AA44: =IF(NFI_Expiration=1,IF($A44<VLOOKUP(Q$5,NFI,5,0),1,0)*Table_NFI[[#This Row],[Plastic Mat]],0) -> 490 | AB44: =VLOOKUP(Table_NFI[[#This Row],[Camp Name]],Camp_List!N$5:AA$254,2,0) -> MMR012CMP008 | AC44: =VLOOKUP(Table_NFI[[#This Row],[Camp Name]],Camp_List!N$5:AA$254,14,0) -> Open | AD44: =VLOOKUP(Table_NFI[[#This Row],[Camp Name]],Camp_List!N$5:AC$254,1,1) -> Sam Ba Le
A45: 10.16666667 | B45: 2012-10-31 | C45: UNHCR | E45: Rakhine | F45: Mrauk_U | G45: Pa Rein | L45: 100 | R45: =IF(NFI_Expiration=1,IF($A45<VLOOKUP(H$5,NFI,5,0),1,0)*Table_NFI[[#This Row],[Hygiene Kit]],0) -> 0 | S45: =IF(NFI_Expiration=1,IF($A45<VLOOKUP(I$5,NFI,5,0),1,0)*Table_NFI[[#This Row],[NFI Core Kit]],0) -> 0 | T45: =IF(NFI_Expiration=1,IF($A45<VLOOKUP(J$5,NFI,5,0),1,0)*Table_NFI[[#This Row],[Sanitary Kit]],0) -> 0 | U45: =IF(NFI_Expiration=1,IF($A45<VLOOKUP(K$5,NFI,5,0),1,0)*Table_NFI[[#This Row],[Mosquito net]],0) -> 0 | V45: =IF(NFI_Expiration=1,IF($A45<VLOOKUP(L$5,NFI,5,0),1,0)*Table_NFI[[#This Row],[Tarpaulin]],0) -> 100 | W45: =IF(NFI_Expiration=1,IF($A45<VLOOKUP(M$5,NFI,5,0),1,0)*Table_NFI[[#This Row],[Blanket]],0) -> 0 | X45: =IF(NFI_Expiration=1,IF($A45<VLOOKUP(N$5,NFI,5,0),1,0)*Table_NFI[[#This Row],[Kitchen Set]],0) -> 0 | Y45: =IF(NFI_Expiration=1,IF($A45<VLOOKUP(O$5,NFI,5,0),1,0)*Table_NFI[[#This Row],[Complementary Kit]],0) -> 0 | Z45: =IF(NFI_Expiration=1,IF($A45<VLOOKUP(P$5,NFI,5,0),1,0)*Table_NFI[[#This Row],[Plastic Bucket]],0) -> 0 | AA45: =IF(NFI_Expiration=1,IF($A45<VLOOKUP(Q$5,NFI,5,0),1,0)*Table_NFI[[#This Row],[Plastic Mat]],0) -> 0 | AB45: =VLOOKUP(Table_NFI[[#This Row],[Camp Name]],Camp_List!N$5:AA$254,2,0) -> MMR012CMP009 | AC45: =VLOOKUP(Table_NFI[[#This Row],[Camp Name]],Camp_List!N$5:AA$254,14,0) -> Open | AD45: =VLOOKUP(Table_NFI[[#This Row],[Camp Name]],Camp_List!N$5:AC$254,1,1) -> Pa Rein
A46: 9.466666667 | B46: 2012-11-21 | C46: UNHCR | E46: Rakhine | F46: Mrauk_U | G46: Pa Rein | L46: 140 | R46: =IF(NFI_Expiration=1,IF($A46<VLOOKUP(H$5,NFI,5,0),1,0)*Table_NFI[[#This Row],[Hygiene Kit]],0) -> 0 | S46: =IF(NFI_Expiration=1,IF($A46<VLOOKUP(I$5,NFI,5,0),1,0)*Table_NFI[[#This Row],[NFI Core Kit]],0) -> 0 | T46: =IF(NFI_Expiration=1,IF($A46<VLOOKUP(J$5,NFI,5,0),1,0)*Table_NFI[[#This Row],[Sanitary Kit]],0) -> 0 | U46: =IF(NFI_Expiration=1,IF($A46<VLOOKUP(K$5,NFI,5,0),1,0)*Table_NFI[[#This Row],[Mosquito net]],0) -> 0 | V46: =IF(NFI_Expiration=1,IF($A46<VLOOKUP(L$5,NFI,5,0),1,0)*Table_NFI[[#This Row],[Tarpaulin]],0) -> 140 | W46: =IF(NFI_Expiration=1,IF($A46<VLOOKUP(M$5,NFI,5,0),1,0)*Table_NFI[[#This Row],[Blanket]],0) -> 0 | X46: =IF(NFI_Expiration=1,IF($A46<VLOOKUP(N$5,NFI,5,0),1,0)*Table_NFI[[#This Row],[Kitchen Set]],0) -> 0 | Y46: =IF(NFI_Expiration=1,IF($A46<VLOOKUP(O$5,NFI,5,0),1,0)*Table_NFI[[#This Row],[Complementary Kit]],0) -> 0 | Z46: =IF(NFI_Expiration=1,IF($A46<VLOOKUP(P$5,NFI,5,0),1,0)*Table_NFI[[#This Row],[Plastic Bucket]],0) -> 0 | AA46: =IF(NFI_Expiration=1,IF($A46<VLOOKUP(Q$5,NFI,5,0),1,0)*Table_NFI[[#This Row],[Plastic Mat]],0) -> 0 | AB46: =VLOOKUP(Table_NFI[[#This Row],[Camp Name]],Camp_List!N$5:AA$254,2,0) -> MMR012CMP009 | AC46: =VLOOKUP(Table_NFI[[#This Row],[Camp Name]],Camp_List!N$5:AA$254,14,0) -> Open | AD46: =VLOOKUP(Table_NFI[[#This Row],[Camp Name]],Camp_List!N$5:AC$254,1,1) -> Pa Rein
A47: 8.666666667 | B47: 2012-12-15 | C47: UNHCR | E47: Rakhine | F47: Mrauk_U | G47: Pa Rein | M47: 240 | R47: =IF(NFI_Expiration=1,IF($A47<VLOOKUP(H$5,NFI,5,0),1,0)*Table_NFI[[#This Row],[Hygiene Kit]],0) -> 0 | S47: =IF(NFI_Expiration=1,IF($A47<VLOOKUP(I$5,NFI,5,0),1,0)*Table_NFI[[#This Row],[NFI Core Kit]],0) -> 0 | T47: =IF(NFI_Expiration=1,IF($A47<VLOOKUP(J$5,NFI,5,0),1,0)*Table_NFI[[#This Row],[Sanitary Kit]],0) -> 0 | U47: =IF(NFI_Expiration=1,IF($A47<VLOOKUP(K$5,NFI,5,0),1,0)*Table_NFI[[#This Row],[Mosquito net]],0) -> 0 | V47: =IF(NFI_Expiration=1,IF($A47<VLOOKUP(L$5,NFI,5,0),1,0)*Table_NFI[[#This Row],[Tarpaulin]],0) -> 0 | W47: =IF(NFI_Expiration=1,IF($A47<VLOOKUP(M$5,NFI,5,0),1,0)*Table_NFI[[#This Row],[Blanket]],0) -> 240 | X47: =IF(NFI_Expiration=1,IF($A47<VLOOKUP(N$5,NFI,5,0),1,0)*Table_NFI[[#This Row],[Kitchen Set]],0) -> 0 | Y47: =IF(NFI_Expiration=1,IF($A47<VLOOKUP(O$5,NFI,5,0),1,0)*Table_NFI[[#This Row],[Complementary Kit]],0) -> 0 | Z47: =IF(NFI_Expiration=1,IF($A47<VLOOKUP(P$5,NFI,5,0),1,0)*Table_NFI[[#This Row],[Plastic Bucket]],0) -> 0 | AA47: =IF(NFI_Expiration=1,IF($A47<VLOOKUP(Q$5,NFI,5,0),1,0)*Table_NFI[[#This Row],[Plastic Mat]],0) -> 0 | AB47: =VLOOKUP(Table_NFI[[#This Row],[Camp Name]],Camp_List!N$5:AA$254,2,0) -> MMR012CMP009 | AC47: =VLOOKUP(Table_NFI[[#This Row],[Camp Name]],Camp_List!N$5:AA$254,14,0) -> Open | AD47: =VLOOKUP(Table_NFI[[#This Row],[Camp Name]],Camp_List!N$5:AC$254,1,1) -> Pa Rein
A48: 6.6 | B48: 2013-02-15 | C48: UNICEF | E48: Rakhine | F48: Mrauk_U | G48: Pa Rein | H48: 245 | R48: =IF(NFI_Expiration=1,IF($A48<VLOOKUP(H$5,NFI,5,0),1,0)*Table_NFI[[#This Row],[Hygiene Kit]],0) -> 245 | S48: =IF(NFI_Expiration=1,IF($A48<VLOOKUP(I$5,NFI,5,0),1,0)*Table_NFI[[#This Row],[NFI Core Kit]],0) -> 0 | T48: =IF(NFI_Expiration=1,IF($A48<VLOOKUP(J$5,NFI,5,0),1,0)*Table_NFI[[#This Row],[Sanitary Kit]],0) -> 0 | U48: =IF(NFI_Expiration=1,IF($A48<VLOOKUP(K$5,NFI,5,0),1,0)*Table_NFI[[#This Row],[Mosquito net]],0) -> 0 | V48: =IF(NFI_Expiration=1,IF($A48<VLOOKUP(L$5,NFI,5,0),1,0)*Table_NFI[[#This Row],[Tarpaulin]],0) -> 0 | W48: =IF(NFI_Expiration=1,IF($A48<VLOOKUP(M$5,NFI,5,0),1,0)*Table_NFI[[#This Row],[Blanket]],0) -> 0 | X48: =IF(NFI_Expiration=1,IF($A48<VLOOKUP(N$5,NFI,5,0),1,0)*Table_NFI[[#This Row],[Kitchen Set]],0) -> 0 | Y48: =IF(NFI_Expiration=1,IF($A48<VLOOKUP(O$5,NFI,5,0),1,0)*Table_NFI[[#This Row],[Complementary Kit]],0) -> 0 | Z48: =IF(NFI_Expiration=1,IF($A48<VLOOKUP(P$5,NFI,5,0),1,0)*Table_NFI[[#This Row],[Plastic Bucket]],0) -> 0 | AA48: =IF(NFI_Expiration=1,IF($A48<VLOOKUP(Q$5,NFI,5,0),1,0)*Table_NFI[[#This Row],[Plastic Mat]],0) -> 0 | AB48: =VLOOKUP(Table_NFI[[#This Row],[Camp Name]],Camp_List!N$5:AA$254,2,0) -> MMR012CMP009 | AC48: =VLOOKUP(Table_NFI[[#This Row],[Camp Name]],Camp_List!N$5:AA$254,14,0) -> Open | AD48: =VLOOKUP(Table_NFI[[#This Row],[Camp Name]],Camp_List!N$5:AC$254,1,1) -> Pa Rein
A49: 1.9 | B49: 2013-07-06 | C49: UNHCR | D49: UNHCR | E49: Rakhine | F49: Mrauk_U | G49: Pa Rein | R49: =IF(NFI_Expiration=1,IF($A49<VLOOKUP(H$5,NFI,5,0),1,0)*Table_NFI[[#This Row],[Hygiene Kit]],0) -> 0 | S49: =IF(NFI_Expiration=1,IF($A49<VLOOKUP(I$5,NFI,5,0),1,0)*Table_NFI[[#This Row],[NFI Core Kit]],0) -> 0 | T49: =IF(NFI_Expiration=1,IF($A49<VLOOKUP(J$5,NFI,5,0),1,0)*Table_NFI[[#This Row],[Sanitary Kit]],0) -> 0 | U49: =IF(NFI_Expiration=1,IF($A49<VLOOKUP(K$5,NFI,5,0),1,0)*Table_NFI[[#This Row],[Mosquito net]],0) -> 0 | V49: =IF(NFI_Expiration=1,IF($A49<VLOOKUP(L$5,NFI,5,0),1,0)*Table_NFI[[#This Row],[Tarpaulin]],0) -> 0 | W49: =IF(NFI_Expiration=1,IF($A49<VLOOKUP(M$5,NFI,5,0),1,0)*Table_NFI[[#This Row],[Blanket]],0) -> 0 | X49: =IF(NFI_Expiration=1,IF($A49<VLOOKUP(N$5,NFI,5,0),1,0)*Table_NFI[[#This Row],[Kitchen Set]],0) -> 0 | Y49: =IF(NFI_Expiration=1,IF($A49<VLOOKUP(O$5,NFI,5,0),1,0)*Table_NFI[[#This Row],[Complementary Kit]],0) -> 0 | Z49: =IF(NFI_Expiration=1,IF($A49<VLOOKUP(P$5,NFI,5,0),1,0)*Table_NFI[[#This Row],[Plastic Bucket]],0) -> 0 | AA49: =IF(NFI_Expiration=1,IF($A49<VLOOKUP(Q$5,NFI,5,0),1,0)*Table_NFI[[#This Row],[Plastic Mat]],0) -> 0 | AB49: =VLOOKUP(Table_NFI[[#This Row],[Camp Name]],Camp_List!N$5:AA$254,2,0) -> MMR012CMP009 | AC49: =VLOOKUP(Table_NFI[[#This Row],[Camp Name]],Camp_List!N$5:AA$254,14,0) -> Open | AD49: =VLOOKUP(Table_NFI[[#This Row],[Camp Name]],Camp_List!N$5:AC$254,1,1) -> Pa Rein
A50: 1.9 | B50: 2013-07-06 | C50: UNHCR | D50: UNHCR | E50: Rakhine | F50: Mrauk_U | G50: Pa Rein | I50: 300 | K50: 600 | L50: 300 | M50: 600 | N50: 300 | O50: 300 | P50: 300 | Q50: 600 | R50: =IF(NFI_Expiration=1,IF($A50<VLOOKUP(H$5,NFI,5,0),1,0)*Table_NFI[[#This Row],[Hygiene Kit]],0) -> 0 | S50: =IF(NFI_Expiration=1,IF($A50<VLOOKUP(I$5,NFI,5,0),1,0)*Table_NFI[[#This Row],[NFI Core Kit]],0) -> 300 | T50: =IF(NFI_Expiration=1,IF($A50<VLOOKUP(J$5,NFI,5,0),1,0)*Table_NFI[[#This Row],[Sanitary Kit]],0) -> 0 | U50: =IF(NFI_Expiration=1,IF($A50<VLOOKUP(K$5,NFI,5,0),1,0)*Table_NFI[[#This Row],[Mosquito net]],0) -> 600 | V50: =IF(NFI_Expiration=1,IF($A50<VLOOKUP(L$5,NFI,5,0),1,0)*Table_NFI[[#This Row],[Tarpaulin]],0) -> 300 | W50: =IF(NFI_Expiration=1,IF($A50<VLOOKUP(M$5,NFI,5,0),1,0)*Table_NFI[[#This Row],[Blanket]],0) -> 600 | X50: =IF(NFI_Expiration=1,IF($A50<VLOOKUP(N$5,NFI,5,0),1,0)*Table_NFI[[#This Row],[Kitchen Set]],0) -> 300 | Y50: =IF(NFI_Expiration=1,IF($A50<VLOOKUP(O$5,NFI,5,0),1,0)*Table_NFI[[#This Row],[Complementary Kit]],0) -> 300 | Z50: =IF(NFI_Expiration=1,IF($A50<VLOOKUP(P$5,NFI,5,0),1,0)*Table_NFI[[#This Row],[Plastic Bucket]],0) -> 300 | AA50: =IF(NFI_Expiration=1,IF($A50<VLOOKUP(Q$5,NFI,5,0),1,0)*Table_NFI[[#This Row],[Plastic Mat]],0) -> 600 | AB50: =VLOOKUP(Table_NFI[[#This Row],[Camp Name]],Camp_List!N$5:AA$254,2,0) -> MMR012CMP009 | AC50: =VLOOKUP(Table_NFI[[#This Row],[Camp Name]],Camp_List!N$5:AA$254,14,0) -> Open | AD50: =VLOOKUP(Table_NFI[[#This Row],[Camp Name]],Camp_List!N$5:AC$254,1,1) -> Pa Rein
A51: 9.466666667 | B51: 2012-11-21 | C51: UNHCR | E51: Rakhine | F51: Mrauk_U | G51: Yai Thei-Muslim | L51: 83 | R51: =IF(NFI_Expiration=1,IF($A51<VLOOKUP(H$5,NFI,5,0),1,0)*Table_NFI[[#This Row],[Hygiene Kit]],0) -> 0 | S51: =IF(NFI_Expiration=1,IF($A51<VLOOKUP(I$5,NFI,5,0),1,0)*Table_NFI[[#This Row],[NFI Core Kit]],0) -> 0 | T51: =IF(NFI_Expiration=1,IF($A51<VLOOKUP(J$5,NFI,5,0),1,0)*Table_NFI[[#This Row],[Sanitary Kit]],0) -> 0 | U51: =IF(NFI_Expiration=1,IF($A51<VLOOKUP(K$5,NFI,5,0),1,0)*Table_NFI[[#This Row],[Mosquito net]],0) -> 0 | V51: =IF(NFI_Expiration=1,IF($A51<VLOOKUP(L$5,NFI,5,0),1,0)*Table_NFI[[#This Row],[Tarpaulin]],0) -> 83 | W51: =IF(NFI_Expiration=1,IF($A51<VLOOKUP(M$5,NFI,5,0),1,0)*Table_NFI[[#This Row],[Blanket]],0) -> 0 | X51: =IF(NFI_Expiration=1,IF($A51<VLOOKUP(N$5,NFI,5,0),1,0)*Table_NFI[[#This Row],[Kitchen Set]],0) -> 0 | Y51: =IF(NFI_Expiration=1,IF($A51<VLOOKUP(O$5,NFI,5,0),1,0)*Table_NFI[[#This Row],[Complementary Kit]],0) -> 0 | Z51: =IF(NFI_Expiration=1,IF($A51<VLOOKUP(P$5,NFI,5,0),1,0)*Table_NFI[[#This Row],[Plastic Bucket]],0) -> 0 | AA51: =IF(NFI_Expiration=1,IF($A51<VLOOKUP(Q$5,NFI,5,0),1,0)*Table_NFI[[#This Row],[Plastic Mat]],0) -> 0 | AB51: =VLOOKUP(Table_NFI[[#This Row],[Camp Name]],Camp_List!N$5:AA$254,2,0) -> MMR012CMP010 | AC51: =VLOOKUP(Table_NFI[[#This Row],[Camp Name]],Camp_List!N$5:AA$254,14,0) -> Open | AD51: =VLOOKUP(Table_NFI[[#This Row],[Camp Name]],Camp_List!N$5:AC$254,1,1) -> Yai Thei-Muslim
A52: 8.666666667 | B52: 2012-12-15 | C52: UNHCR | E52: Rakhine | F52: Mrauk_U | G52: Yai Thei-Muslim | M52: 260 | R52: =IF(NFI_Expiration=1,IF($A52<VLOOKUP(H$5,NFI,5,0),1,0)*Table_NFI[[#This Row],[Hygiene Kit]],0) -> 0 | S52: =IF(NFI_Expiration=1,IF($A52<VLOOKUP(I$5,NFI,5,0),1,0)*Table_NFI[[#This Row],[NFI Core Kit]],0) -> 0 | T52: =IF(NFI_Expiration=1,IF($A52<VLOOKUP(J$5,NFI,5,0),1,0)*Table_NFI[[#This Row],[Sanitary Kit]],0) -> 0 | U52: =IF(NFI_Expiration=1,IF($A52<VLOOKUP(K$5,NFI,5,0),1,0)*Table_NFI[[#This Row],[Mosquito net]],0) -> 0 | V52: =IF(NFI_Expiration=1,IF($A52<VLOOKUP(L$5,NFI,5,0),1,0)*Table_NFI[[#This Row],[Tarpaulin]],0) -> 0 | W52: =IF(NFI_Expiration=1,IF($A52<VLOOKUP(M$5,NFI,5,0),1,0)*Table_NFI[[#This Row],[Blanket]],0) -> 260 | X52: =IF(NFI_Expiration=1,IF($A52<VLOOKUP(N$5,NFI,5,0),1,0)*Table_NFI[[#This Row],[Kitchen Set]],0) -> 0 | Y52: =IF(NFI_Expiration=1,IF($A52<VLOOKUP(O$5,NFI,5,0),1,0)*Table_NFI[[#This Row],[Complementary Kit]],0) -> 0 | Z52: =IF(NFI_Expiration=1,IF($A52<VLOOKUP(P$5,NFI,5,0),1,0)*Table_NFI[[#This Row],[Plastic Bucket]],0) -> 0 | AA52: =IF(NFI_Expiration=1,IF($A52<VLOOKUP(Q$5,NFI,5,0),1,0)*Table_NFI[[#This Row],[Plastic Mat]],0) -> 0 | AB52: =VLOOKUP(Table_NFI[[#This Row],[Camp Name]],Camp_List!N$5:AA$254,2,0) -> MMR012CMP010 | AC52: =VLOOKUP(Table_NFI[[#This Row],[Camp Name]],Camp_List!N$5:AA$254,14,0) -> Open | AD52: =VLOOKUP(Table_NFI[[#This Row],[Camp Name]],Camp_List!N$5:AC$254,1,1) -> Yai Thei-Muslim
A53: 6.6 | B53: 2013-02-15 | C53: UNICEF | E53: Rakhine | F53: Mrauk_U | G53: Yai Thei-Muslim | H53: 360 | R53: =IF(NFI_Expiration=1,IF($A53<VLOOKUP(H$5,NFI,5,0),1,0)*Table_NFI[[#This Row],[Hygiene Kit]],0) -> 360 | S53: =IF(NFI_Expiration=1,IF($A53<VLOOKUP(I$5,NFI,5,0),1,0)*Table_NFI[[#This Row],[NFI Core Kit]],0) -> 0 | T53: =IF(NFI_Expiration=1,IF($A53<VLOOKUP(J$5,NFI,5,0),1,0)*Table_NFI[[#This Row],[Sanitary Kit]],0) -> 0 | U53: =IF(NFI_Expiration=1,IF($A53<VLOOKUP(K$5,NFI,5,0),1,0)*Table_NFI[[#This Row],[Mosquito net]],0) -> 0 | V53: =IF(NFI_Expiration=1,IF($A53<VLOOKUP(L$5,NFI,5,0),1,0)*Table_NFI[[#This Row],[Tarpaulin]],0) -> 0 | W53: =IF(NFI_Expiration=1,IF($A53<VLOOKUP(M$5,NFI,5,0),1,0)*Table_NFI[[#This Row],[Blanket]],0) -> 0 | X53: =IF(NFI_Expiration=1,IF($A53<VLOOKUP(N$5,NFI,5,0),1,0)*Table_NFI[[#This Row],[Kitchen Set]],0) -> 0 | Y53: =IF(NFI_Expiration=1,IF($A53<VLOOKUP(O$5,NFI,5,0),1,0)*Table_NFI[[#This Row],[Complementary Kit]],0) -> 0 | Z53: =IF(NFI_Expiration=1,IF($A53<VLOOKUP(P$5,NFI,5,0),1,0)*Table_NFI[[#This Row],[Plastic Bucket]],0) -> 0 | AA53: =IF(NFI_Expiration=1,IF($A53<VLOOKUP(Q$5,NFI,5,0),1,0)*Table_NFI[[#This Row],[Plastic Mat]],0) -> 0 | AB53: =VLOOKUP(Table_NFI[[#This Row],[Camp Name]],Camp_List!N$5:AA$254,2,0) -> MMR012CMP010 | AC53: =VLOOKUP(Table_NFI[[#This Row],[Camp Name]],Camp_List!N$5:AA$254,14,0) -> Open | AD53: =VLOOKUP(Table_NFI[[#This Row],[Camp Name]],Camp_List!N$5:AC$254,1,1) -> Yai Thei-Muslim
A54: 1.9 | B54: 2013-07-06 | C54: UNHCR | D54: UNHCR | E54: Rakhine | F54: Mrauk_U | G54: Yai Thei-Muslim | R54: =IF(NFI_Expiration=1,IF($A54<VLOOKUP(H$5,NFI,5,0),1,0)*Table_NFI[[#This Row],[Hygiene Kit]],0) -> 0 | S54: =IF(NFI_Expiration=1,IF($A54<VLOOKUP(I$5,NFI,5,0),1,0)*Table_NFI[[#This Row],[NFI Core Kit]],0) -> 0 | T54: =IF(NFI_Expiration=1,IF($A54<VLOOKUP(J$5,NFI,5,0),1,0)*Table_NFI[[#This Row],[Sanitary Kit]],0) -> 0 | U54: =IF(NFI_Expiration=1,IF($A54<VLOOKUP(K$5,NFI,5,0),1,0)*Table_NFI[[#This Row],[Mosquito net]],0) -> 0 | V54: =IF(NFI_Expiration=1,IF($A54<VLOOKUP(L$5,NFI,5,0),1,0)*Table_NFI[[#This Row],[Tarpaulin]],0) -> 0 | W54: =IF(NFI_Expiration=1,IF($A54<VLOOKUP(M$5,NFI,5,0),1,0)*Table_NFI[[#This Row],[Blanket]],0) -> 0 | X54: =IF(NFI_Expiration=1,IF($A54<VLOOKUP(N$5,NFI,5,0),1,0)*Table_NFI[[#This Row],[Kitchen Set]],0) -> 0 | Y54: =IF(NFI_Expiration=1,IF($A54<VLOOKUP(O$5,NFI,5,0),1,0)*Table_NFI[[#This Row],[Complementary Kit]],0) -> 0 | Z54: =IF(NFI_Expiration=1,IF($A54<VLOOKUP(P$5,NFI,5,0),1,0)*Table_NFI[[#This Row],[Plastic Bucket]],0) -> 0 | AA54: =IF(NFI_Expiration=1,IF($A54<VLOOKUP(Q$5,NFI,5,0),1,0)*Table_NFI[[#This Row],[Plastic Mat]],0) -> 0 | AB54: =VLOOKUP(Table_NFI[[#This Row],[Camp Name]],Camp_List!N$5:AA$254,2,0) -> MMR012CMP010 | AC54: =VLOOKUP(Table_NFI[[#This Row],[Camp Name]],Camp_List!N$5:AA$254,14,0) -> Open | AD54: =VLOOKUP(Table_NFI[[#This Row],[Camp Name]],Camp_List!N$5:AC$254,1,1) -> Yai Thei-Muslim
A55: =IF(ISBLANK(B55),"",(Report_Date-B55)/30) -> 1.9 | B55: 2013-07-06 | C55: UNHCR | D55: UNHCR | E55: Rakhine | F55: Mrauk_U | G55: Yai Thei-Muslim | I55: 365 | K55: 730 | L55: 365 | M55: 730 | N55: 365 | O55: 365 | P55: 365 | Q55: 730 | R55: =IF(NFI_Expiration=1,IF($A55<VLOOKUP(H$5,NFI,5,0),1,0)*Table_NFI[[#This Row],[Hygiene Kit]],0) -> 0 | S55: =IF(NFI_Expiration=1,IF($A55<VLOOKUP(I$5,NFI,5,0),1,0)*Table_NFI[[#This Row],[NFI Core Kit]],0) -> 365 | T55: =IF(NFI_Expiration=1,IF($A55<VLOOKUP(J$5,NFI,5,0),1,0)*Table_NFI[[#This Row],[Sanitary Kit]],0) -> 0 | U55: =IF(NFI_Expiration=1,IF($A55<VLOOKUP(K$5,NFI,5,0),1,0)*Table_NFI[[#This Row],[Mosquito net]],0) -> 730 | V55: =IF(NFI_Expiration=1,IF($A55<VLOOKUP(L$5,NFI,5,0),1,0)*Table_NFI[[#This Row],[Tarpaulin]],0) -> 365 | W55: =IF(NFI_Expiration=1,IF($A55<VLOOKUP(M$5,NFI,5,0),1,0)*Table_NFI[[#This Row],[Blanket]],0) -> 730 | X55: =IF(NFI_Expiration=1,IF($A55<VLOOKUP(N$5,NFI,5,0),1,0)*Table_NFI[[#This Row],[Kitchen Set]],0) -> 365 | Y55: =IF(NFI_Expiration=1,IF($A55<VLOOKUP(O$5,NFI,5,0),1,0)*Table_NFI[[#This Row],[Complementary Kit]],0) -> 365 | Z55: =IF(NFI_Expiration=1,IF($A55<VLOOKUP(P$5,NFI,5,0),1,0)*Table_NFI[[#This Row],[Plastic Bucket]],0) -> 365 | AA55: =IF(NFI_Expiration=1,IF($A55<VLOOKUP(Q$5,NFI,5,0),1,0)*Table_NFI[[#This Row],[Plastic Mat]],0) -> 730 | AB55: =VLOOKUP(Table_NFI[[#This Row],[Camp Name]],Camp_List!N$5:AA$254,2,0) -> MMR012CMP010 | AC55: =VLOOKUP(Table_NFI[[#This Row],[Camp Name]],Camp_List!N$5:AA$254,14,0) -> Open | AD55: =VLOOKUP(Table_NFI[[#This Row],[Camp Name]],Camp_List!N$5:AC$254,1,1) -> Yai Thei-Muslim
A56: 8.1 | B56: 2013-01-01 | C56: ABCD | D56: ABCD | E56: Rakhine | F56: Minbya | G56: Myat Buddha Mandine Monastery | H56: 50 | R56: =IF(NFI_Expiration=1,IF($A56<VLOOKUP(H$5,NFI,5,0),1,0)*Table_NFI[[#This Row],[Hygiene Kit]],0) -> 50 | S56: =IF(NFI_Expiration=1,IF($A56<VLOOKUP(I$5,NFI,5,0),1,0)*Table_NFI[[#This Row],[NFI Core Kit]],0) -> 0 | T56: =IF(NFI_Expiration=1,IF($A56<VLOOKUP(J$5,NFI,5,0),1,0)*Table_NFI[[#This Row],[Sanitary Kit]],0) -> 0 | U56: =IF(NFI_Expiration=1,IF($A56<VLOOKUP(K$5,NFI,5,0),1,0)*Table_NFI[[#This Row],[Mosquito net]],0) -> 0 | V56: =IF(NFI_Expiration=1,IF($A56<VLOOKUP(L$5,NFI,5,0),1,0)*Table_NFI[[#This Row],[Tarpaulin]],0) -> 0 | W56: =IF(NFI_Expiration=1,IF($A56<VLOOKUP(M$5,NFI,5,0),1,0)*Table_NFI[[#This Row],[Blanket]],0) -> 0 | X56: =IF(NFI_Expiration=1,IF($A56<VLOOKUP(N$5,NFI,5,0),1,0)*Table_NFI[[#This Row],[Kitchen Set]],0) -> 0 | Y56: =IF(NFI_Expiration=1,IF($A56<VLOOKUP(O$5,NFI,5,0),1,0)*Table_NFI[[#This Row],[Complementary Kit]],0) -> 0 | Z56: =IF(NFI_Expiration=1,IF($A56<VLOOKUP(P$5,NFI,5,0),1,0)*Table_NFI[[#This Row],[Plastic Bucket]],0) -> 0 | AA56: =IF(NFI_Expiration=1,IF($A56<VLOOKUP(Q$5,NFI,5,0),1,0)*Table_NFI[[#This Row],[Plastic Mat]],0) -> 0 | AB56: =VLOOKUP(Table_NFI[[#This Row],[Camp Name]],Camp_List!N$5:AA$254,2,0) -> MMR012CMP011 | AC56: =VLOOKUP(Table_NFI[[#This Row],[Camp Name]],Camp_List!N$5:AA$254,14,0) -> Open | AD56: =VLOOKUP(Table_NFI[[#This Row],[Camp Name]],Camp_List!N$5:AC$254,1,1) -> Myat Buddha Mandine Monastery
A57: 6.6 | B57: 2013-02-15 | C57: UNICEF | E57: Rakhine | F57: Mrauk_U | G57: Myat Buddha Mandine Monastery | H57: 35 | R57: =IF(NFI_Expiration=1,IF($A57<VLOOKUP(H$5,NFI,5,0),1,0)*Table_NFI[[#This Row],[Hygiene Kit]],0) -> 35 | S57: =IF(NFI_Expiration=1,IF($A57<VLOOKUP(I$5,NFI,5,0),1,0)*Table_NFI[[#This Row],[NFI Core Kit]],0) -> 0 | T57: =IF(NFI_Expiration=1,IF($A57<VLOOKUP(J$5,NFI,5,0),1,0)*Table_NFI[[#This Row],[Sanitary Kit]],0) -> 0 | U57: =IF(NFI_Expiration=1,IF($A57<VLOOKUP(K$5,NFI,5,0),1,0)*Table_NFI[[#This Row],[Mosquito net]],0) -> 0 | V57: =IF(NFI_Expiration=1,IF($A57<VLOOKUP(L$5,NFI,5,0),1,0)*Table_NFI[[#This Row],[Tarpaulin]],0) -> 0 | W57: =IF(NFI_Expiration=1,IF($A57<VLOOKUP(M$5,NFI,5,0),1,0)*Table_NFI[[#This Row],[Blanket]],0) -> 0 | X57: =IF(NFI_Expiration=1,IF($A57<VLOOKUP(N$5,NFI,5,0),1,0)*Table_NFI[[#This Row],[Kitchen Set]],0) -> 0 | Y57: =IF(NFI_Expiration=1,IF($A57<VLOOKUP(O$5,NFI,5,0),1,0)*Table_NFI[[#This Row],[Complementary Kit]],0) -> 0 | Z57: =IF(NFI_Expiration=1,IF($A57<VLOOKUP(P$5,NFI,5,0),1,0)*Table_NFI[[#This Row],[Plastic Bucket]],0) -> 0 | AA57: =IF(NFI_Expiration=1,IF($A57<VLOOKUP(Q$5,NFI,5,0),1,0)*Table_NFI[[#This Row],[Plastic Mat]],0) -> 0 | AB57: =VLOOKUP(Table_NFI[[#This Row],[Camp Name]],Camp_List!N$5:AA$254,2,0) -> MMR012CMP011 | AC57: =VLOOKUP(Table_NFI[[#This Row],[Camp Name]],Camp_List!N$5:AA$254,14,0) -> Open | AD57: =VLOOKUP(Table_NFI[[#This Row],[Camp Name]],Camp_List!N$5:AC$254,1,1) -> Myat Buddha Mandine Monastery
A58: 3.166666667 | B58: 2013-05-29 | C58: UNHCR | E58: Rakhine | F58: Mrauk_U | G58: Raw Ma Ni Sin Oe | H58: 0 | R58: =IF(NFI_Expiration=1,IF($A58<VLOOKUP(H$5,NFI,5,0),1,0)*Table_NFI[[#This Row],[Hygiene Kit]],0) -> 0 | S58: =IF(NFI_Expiration=1,IF($A58<VLOOKUP(I$5,NFI,5,0),1,0)*Table_NFI[[#This Row],[NFI Core Kit]],0) -> 0 | T58: =IF(NFI_Expiration=1,IF($A58<VLOOKUP(J$5,NFI,5,0),1,0)*Table_NFI[[#This Row],[Sanitary Kit]],0) -> 0 | U58: =IF(NFI_Expiration=1,IF($A58<VLOOKUP(K$5,NFI,5,0),1,0)*Table_NFI[[#This Row],[Mosquito net]],0) -> 0 | V58: =IF(NFI_Expiration=1,IF($A58<VLOOKUP(L$5,NFI,5,0),1,0)*Table_NFI[[#This Row],[Tarpaulin]],0) -> 0 | W58: =IF(NFI_Expiration=1,IF($A58<VLOOKUP(M$5,NFI,5,0),1,0)*Table_NFI[[#This Row],[Blanket]],0) -> 0 | X58: =IF(NFI_Expiration=1,IF($A58<VLOOKUP(N$5,NFI,5,0),1,0)*Table_NFI[[#This Row],[Kitchen Set]],0) -> 0 | Y58: =IF(NFI_Expiration=1,IF($A58<VLOOKUP(O$5,NFI,5,0),1,0)*Table_NFI[[#This Row],[Complementary Kit]],0) -> 0 | Z58: =IF(NFI_Expiration=1,IF($A58<VLOOKUP(P$5,NFI,5,0),1,0)*Table_NFI[[#This Row],[Plastic Bucket]],0) -> 0 | AA58: =IF(NFI_Expiration=1,IF($A58<VLOOKUP(Q$5,NFI,5,0),1,0)*Table_NFI[[#This Row],[Plastic Mat]],0) -> 0 | AB58: =VLOOKUP(Table_NFI[[#This Row],[Camp Name]],Camp_List!N$5:AA$254,2,0) -> MMR012CMP012 | AC58: =VLOOKUP(Table_NFI[[#This Row],[Camp Name]],Camp_List!N$5:AA$254,14,0) -> Open | AD58: =VLOOKUP(Table_NFI[[#This Row],[Camp Name]],Camp_List!N$5:AC$254,1,1) -> Raw Ma Ni Sin Oe
A59: 3.166666667 | B59: 2013-05-29 | C59: UNHCR | E59: Rakhine | F59: Mrauk_U | G59: Raw Ma Ni Sin Oe | H59: 0 | I59: 10 | K59: 20 | L59: 10 | M59: 20 | N59: 10 | O59: 10 | P59: 10 | Q59: 20 | R59: =IF(NFI_Expiration=1,IF($A59<VLOOKUP(H$5,NFI,5,0),1,0)*Table_NFI[[#This Row],[Hygiene Kit]],0) -> 0 | S59: =IF(NFI_Expiration=1,IF($A59<VLOOKUP(I$5,NFI,5,0),1,0)*Table_NFI[[#This Row],[NFI Core Kit]],0) -> 10 | T59: =IF(NFI_Expiration=1,IF($A59<VLOOKUP(J$5,NFI,5,0),1,0)*Table_NFI[[#This Row],[Sanitary Kit]],0) -> 0 | U59: =IF(NFI_Expiration=1,IF($A59<VLOOKUP(K$5,NFI,5,0),1,0)*Table_NFI[[#This Row],[Mosquito net]],0) -> 20 | V59: =IF(NFI_Expiration=1,IF($A59<VLOOKUP(L$5,NFI,5,0),1,0)*Table_NFI[[#This Row],[Tarpaulin]],0) -> 10 | W59: =IF(NFI_Expiration=1,IF($A59<VLOOKUP(M$5,NFI,5,0),1,0)*Table_NFI[[#This Row],[Blanket]],0) -> 20 | X59: =IF(NFI_Expiration=1,IF($A59<VLOOKUP(N$5,NFI,5,0),1,0)*Table_NFI[[#This Row],[Kitchen Set]],0) -> 10 | Y59: =IF(NFI_Expiration=1,IF($A59<VLOOKUP(O$5,NFI,5,0),1,0)*Table_NFI[[#This Row],[Complementary Kit]],0) -> 10 | Z59: =IF(NFI_Expiration=1,IF($A59<VLOOKUP(P$5,NFI,5,0),1,0)*Table_NFI[[#This Row],[Plastic Bucket]],0) -> 10 | AA59: =IF(NFI_Expiration=1,IF($A59<VLOOKUP(Q$5,NFI,5,0),1,0)*Table_NFI[[#This Row],[Plastic Mat]],0) -> 20 | AB59: =VLOOKUP(Table_NFI[[#This Row],[Camp Name]],Camp_List!N$5:AA$254,2,0) -> MMR012CMP012 | AC59: =VLOOKUP(Table_NFI[[#This Row],[Camp Name]],Camp_List!N$5:AA$254,14,0) -> Open | AD59: =VLOOKUP(Table_NFI[[#This Row],[Camp Name]],Camp_List!N$5:AC$254,1,1) -> Raw Ma Ni Sin Oe
A60: 9.166666667 | B60: 2012-11-30 | C60: UNHCR | E60: Rakhine | F60: Meybon | G60: Kan Thar Htwat Wa | L60: 44 | R60: =IF(NFI_Expiration=1,IF($A60<VLOOKUP(H$5,NFI,5,0),1,0)*Table_NFI[[#This Row],[Hygiene Kit]],0) -> 0 | S60: =IF(NFI_Expiration=1,IF($A60<VLOOKUP(I$5,NFI,5,0),1,0)*Table_NFI[[#This Row],[NFI Core Kit]],0) -> 0 | T60: =IF(NFI_Expiration=1,IF($A60<VLOOKUP(J$5,NFI,5,0),1,0)*Table_NFI[[#This Row],[Sanitary Kit]],0) -> 0 | U60: =IF(NFI_Expiration=1,IF($A60<VLOOKUP(K$5,NFI,5,0),1,0)*Table_NFI[[#This Row],[Mosquito net]],0) -> 0 | V60: =IF(NFI_Expiration=1,IF($A60<VLOOKUP(L$5,NFI,5,0),1,0)*Table_NFI[[#This Row],[Tarpaulin]],0) -> 44 | W60: =IF(NFI_Expiration=1,IF($A60<VLOOKUP(M$5,NFI,5,0),1,0)*Table_NFI[[#This Row],[Blanket]],0) -> 0 | X60: =IF(NFI_Expiration=1,IF($A60<VLOOKUP(N$5,NFI,5,0),1,0)*Table_NFI[[#This Row],[Kitchen Set]],0) -> 0 | Y60: =IF(NFI_Expiration=1,IF($A60<VLOOKUP(O$5,NFI,5,0),1,0)*Table_NFI[[#This Row],[Complementary Kit]],0) -> 0 | Z60: =IF(NFI_Expiration=1,IF($A60<VLOOKUP(P$5,NFI,5,0),1,0)*Table_NFI[[#This Row],[Plastic Bucket]],0) -> 0 | AA60: =IF(NFI_Expiration=1,IF($A60<VLOOKUP(Q$5,NFI,5,0),1,0)*Table_NFI[[#This Row],[Plastic Mat]],0) -> 0 | AB60: =VLOOKUP(Table_NFI[[#This Row],[Camp Name]],Camp_List!N$5:AA$254,2,0) -> MMR012CMP013 | AC60: =VLOOKUP(Table_NFI[[#This Row],[Camp Name]],Camp_List!N$5:AA$254,14,0) -> Open | AD60: =VLOOKUP(Table_NFI[[#This Row],[Camp Name]],Camp_List!N$5:AC$254,1,1) -> Kan Thar Htwat Wa
A61: 6.833333333 | B61: 2013-02-08 | C61: UNICEF | E61: Rakhine | F61: Meybon | G61: Kan Thar Htwat Wa | H61: 45 | R61: =IF(NFI_Expiration=1,IF($A61<VLOOKUP(H$5,NFI,5,0),1,0)*Table_NFI[[#This Row],[Hygiene Kit]],0) -> 45 | S61: =IF(NFI_Expiration=1,IF($A61<VLOOKUP(I$5,NFI,5,0),1,0)*Table_NFI[[#This Row],[NFI Core Kit]],0) -> 0 | T61: =IF(NFI_Expiration=1,IF($A61<VLOOKUP(J$5,NFI,5,0),1,0)*Table_NFI[[#This Row],[Sanitary Kit]],0) -> 0 | U61: =IF(NFI_Expiration=1,IF($A61<VLOOKUP(K$5,NFI,5,0),1,0)*Table_NFI[[#This Row],[Mosquito net]],0) -> 0 | V61: =IF(NFI_Expiration=1,IF($A61<VLOOKUP(L$5,NFI,5,0),1,0)*Table_NFI[[#This Row],[Tarpaulin]],0) -> 0 | W61: =IF(NFI_Expiration=1,IF($A61<VLOOKUP(M$5,NFI,5,0),1,0)*Table_NFI[[#This Row],[Blanket]],0) -> 0 | X61: =IF(NFI_Expiration=1,IF($A61<VLOOKUP(N$5,NFI,5,0),1,0)*Table_NFI[[#This Row],[Kitchen Set]],0) -> 0 | Y61: =IF(NFI_Expiration=1,IF($A61<VLOOKUP(O$5,NFI,5,0),1,0)*Table_NFI[[#This Row],[Complementary Kit]],0) -> 0 | Z61: =IF(NFI_Expiration=1,IF($A61<VLOOKUP(P$5,NFI,5,0),1,0)*Table_NFI[[#This Row],[Plastic Bucket]],0) -> 0 | AA61: =IF(NFI_Expiration=1,IF($A61<VLOOKUP(Q$5,NFI,5,0),1,0)*Table_NFI[[#This Row],[Plastic Mat]],0) -> 0 | AB61: =VLOOKUP(Table_NFI[[#This Row],[Camp Name]],Camp_List!N$5:AA$254,2,0) -> MMR012CMP013 | AC61: =VLOOKUP(Table_NFI[[#This Row],[Camp Name]],Camp_List!N$5:AA$254,14,0) -> Open | AD61: =VLOOKUP(Table_NFI[[#This Row],[Camp Name]],Camp_List!N$5:AC$254,1,1) -> Kan Thar Htwat Wa
A62: 10.13333333 | B62: 2012-11-01 | C62: UNHCR | E62: Rakhine | F62: Meybon | G62: Taung Paw | L62: 400 | R62: =IF(NFI_Expiration=1,IF($A62<VLOOKUP(H$5,NFI,5,0),1,0)*Table_NFI[[#This Row],[Hygiene Kit]],0) -> 0 | S62: =IF(NFI_Expiration=1,IF($A62<VLOOKUP(I$5,NFI,5,0),1,0)*Table_NFI[[#This Row],[NFI Core Kit]],0) -> 0 | T62: =IF(NFI_Expiration=1,IF($A62<VLOOKUP(J$5,NFI,5,0),1,0)*Table_NFI[[#This Row],[Sanitary Kit]],0) -> 0 | U62: =IF(NFI_Expiration=1,IF($A62<VLOOKUP(K$5,NFI,5,0),1,0)*Table_NFI[[#This Row],[Mosquito net]],0) -> 0 | V62: =IF(NFI_Expiration=1,IF($A62<VLOOKUP(L$5,NFI,5,0),1,0)*Table_NFI[[#This Row],[Tarpaulin]],0) -> 400 | W62: =IF(NFI_Expiration=1,IF($A62<VLOOKUP(M$5,NFI,5,0),1,0)*Table_NFI[[#This Row],[Blanket]],0) -> 0 | X62: =IF(NFI_Expiration=1,IF($A62<VLOOKUP(N$5,NFI,5,0),1,0)*Table_NFI[[#This Row],[Kitchen Set]],0) -> 0 | Y62: =IF(NFI_Expiration=1,IF($A62<VLOOKUP(O$5,NFI,5,0),1,0)*Table_NFI[[#This Row],[Complementary Kit]],0) -> 0 | Z62: =IF(NFI_Expiration=1,IF($A62<VLOOKUP(P$5,NFI,5,0),1,0)*Table_NFI[[#This Row],[Plastic Bucket]],0) -> 0 | AA62: =IF(NFI_Expiration=1,IF($A62<VLOOKUP(Q$5,NFI,5,0),1,0)*Table_NFI[[#This Row],[Plastic Mat]],0) -> 0 | AB62: =VLOOKUP(Table_NFI[[#This Row],[Camp Name]],Camp_List!N$5:AA$254,2,0) -> MMR012CMP014 | AC62: =VLOOKUP(Table_NFI[[#This Row],[Camp Name]],Camp_List!N$5:AA$254,14,0) -> Open | AD62: =VLOOKUP(Table_NFI[[#This Row],[Camp Name]],Camp_List!N$5:AC$254,1,1) -> Taung Paw
A63: 9.166666667 | B63: 2012-11-30 | C63: UNHCR | E63: Rakhine | F63: Meybon | G63: Taung Paw | L63: 232 | R63: =IF(NFI_Expiration=1,IF($A63<VLOOKUP(H$5,NFI,5,0),1,0)*Table_NFI[[#This Row],[Hygiene Kit]],0) -> 0 | S63: =IF(NFI_Expiration=1,IF($A63<VLOOKUP(I$5,NFI,5,0),1,0)*Table_NFI[[#This Row],[NFI Core Kit]],0) -> 0 | T63: =IF(NFI_Expiration=1,IF($A63<VLOOKUP(J$5,NFI,5,0),1,0)*Table_NFI[[#This Row],[Sanitary Kit]],0) -> 0 | U63: =IF(NFI_Expiration=1,IF($A63<VLOOKUP(K$5,NFI,5,0),1,0)*Table_NFI[[#This Row],[Mosquito net]],0) -> 0 | V63: =IF(NFI_Expiration=1,IF($A63<VLOOKUP(L$5,NFI,5,0),1,0)*Table_NFI[[#This Row],[Tarpaulin]],0) -> 232 | W63: =IF(NFI_Expiration=1,IF($A63<VLOOKUP(M$5,NFI,5,0),1,0)*Table_NFI[[#This Row],[Blanket]],0) -> 0 | X63: =IF(NFI_Expiration=1,IF($A63<VLOOKUP(N$5,NFI,5,0),1,0)*Table_NFI[[#This Row],[Kitchen Set]],0) -> 0 | Y63: =IF(NFI_Expiration=1,IF($A63<VLOOKUP(O$5,NFI,5,0),1,0)*Table_NFI[[#This Row],[Complementary Kit]],0) -> 0 | Z63: =IF(NFI_Expiration=1,IF($A63<VLOOKUP(P$5,NFI,5,0),1,0)*Table_NFI[[#This Row],[Plastic Bucket]],0) -> 0 | AA63: =IF(NFI_Expiration=1,IF($A63<VLOOKUP(Q$5,NFI,5,0),1,0)*Table_NFI[[#This Row],[Plastic Mat]],0) -> 0 | AB63: =VLOOKUP(Table_NFI[[#This Row],[Camp Name]],Camp_List!N$5:AA$254,2,0) -> MMR012CMP014 | AC63: =VLOOKUP(Table_NFI[[#This Row],[Camp Name]],Camp_List!N$5:AA$254,14,0) -> Open | AD63: =VLOOKUP(Table_NFI[[#This Row],[Camp Name]],Camp_List!N$5:AC$254,1,1) -> Taung Paw
A64: 8.6 | B64: 2012-12-17 | C64: UNHCR | E64: Rakhine | F64: Meybon | G64: Taung Paw | L64: 73 | R64: =IF(NFI_Expiration=1,IF($A64<VLOOKUP(H$5,NFI,5,0),1,0)*Table_NFI[[#This Row],[Hygiene Kit]],0) -> 0 | S64: =IF(NFI_Expiration=1,IF($A64<VLOOKUP(I$5,NFI,5,0),1,0)*Table_NFI[[#This Row],[NFI Core Kit]],0) -> 0 | T64: =IF(NFI_Expiration=1,IF($A64<VLOOKUP(J$5,NFI,5,0),1,0)*Table_NFI[[#This Row],[Sanitary Kit]],0) -> 0 | U64: =IF(NFI_Expiration=1,IF($A64<VLOOKUP(K$5,NFI,5,0),1,0)*Table_NFI[[#This Row],[Mosquito net]],0) -> 0 | V64: =IF(NFI_Expiration=1,IF($A64<VLOOKUP(L$5,NFI,5,0),1,0)*Table_NFI[[#This Row],[Tarpaulin]],0) -> 73 | W64: =IF(NFI_Expiration=1,IF($A64<VLOOKUP(M$5,NFI,5,0),1,0)*Table_NFI[[#This Row],[Blanket]],0) -> 0 | X64: =IF(NFI_Expiration=1,IF($A64<VLOOKUP(N$5,NFI,5,0),1,0)*Table_NFI[[#This Row],[Kitchen Set]],0) -> 0 | Y64: =IF(NFI_Expiration=1,IF($A64<VLOOKUP(O$5,NFI,5,0),1,0)*Table_NFI[[#This Row],[Complementary Kit]],0) -> 0 | Z64: =IF(NFI_Expiration=1,IF($A64<VLOOKUP(P$5,NFI,5,0),1,0)*Table_NFI[[#This Row],[Plastic Bucket]],0) -> 0 | AA64: =IF(NFI_Expiration=1,IF($A64<VLOOKUP(Q$5,NFI,5,0),1,0)*Table_NFI[[#This Row],[Plastic Mat]],0) -> 0 | AB64: =VLOOKUP(Table_NFI[[#This Row],[Camp Name]],Camp_List!N$5:AA$254,2,0) -> MMR012CMP014 | AC64: =VLOOKUP(Table_NFI[[#This Row],[Camp Name]],Camp_List!N$5:AA$254,14,0) -> Open | AD64: =VLOOKUP(Table_NFI[[#This Row],[Camp Name]],Camp_List!N$5:AC$254,1,1) -> Taung Paw
A65: 6.833333333 | B65: 2013-02-08 | C65: UNICEF | E65: Rakhine | F65: Meybon | G65: Taung Paw | H65: 705 | R65: =IF(NFI_Expiration=1,IF($A65<VLOOKUP(H$5,NFI,5,0),1,0)*Table_NFI[[#This Row],[Hygiene Kit]],0) -> 705 | S65: =IF(NFI_Expiration=1,IF($A65<VLOOKUP(I$5,NFI,5,0),1,0)*Table_NFI[[#This Row],[NFI Core Kit]],0) -> 0 | T65: =IF(NFI_Expiration=1,IF($A65<VLOOKUP(J$5,NFI,5,0),1,0)*Table_NFI[[#This Row],[Sanitary Kit]],0) -> 0 | U65: =IF(NFI_Expiration=1,IF($A65<VLOOKUP(K$5,NFI,5,0),1,0)*Table_NFI[[#This Row],[Mosquito net]],0) -> 0 | V65: =IF(NFI_Expiration=1,IF($A65<VLOOKUP(L$5,NFI,5,0),1,0)*Table_NFI[[#This Row],[Tarpaulin]],0) -> 0 | W65: =IF(NFI_Expiration=1,IF($A65<VLOOKUP(M$5,NFI,5,0),1,0)*Table_NFI[[#This Row],[Blanket]],0) -> 0 | X65: =IF(NFI_Expiration=1,IF($A65<VLOOKUP(N$5,NFI,5,0),1,0)*Table_NFI[[#This Row],[Kitchen Set]],0) -> 0 | Y65: =IF(NFI_Expiration=1,IF($A65<VLOOKUP(O$5,NFI,5,0),1,0)*Table_NFI[[#This Row],[Complementary Kit]],0) -> 0 | Z65: =IF(NFI_Expiration=1,IF($A65<VLOOKUP(P$5,NFI,5,0),1,0)*Table_NFI[[#This Row],[Plastic Bucket]],0) -> 0 | AA65: =IF(NFI_Expiration=1,IF($A65<VLOOKUP(Q$5,NFI,5,0),1,0)*Table_NFI[[#This Row],[Plastic Mat]],0) -> 0 | AB65: =VLOOKUP(Table_NFI[[#This Row],[Camp Name]],Camp_List!N$5:AA$254,2,0) -> MMR012CMP014 | AC65: =VLOOKUP(Table_NFI[[#This Row],[Camp Name]],Camp_List!N$5:AA$254,14,0) -> Open | AD65: =VLOOKUP(Table_NFI[[#This Row],[Camp Name]],Camp_List!N$5:AC$254,1,1) -> Taung Paw
A66: 6.366666667 | B66: 2013-02-22 | C66: UNICEF | E66: Rakhine | F66: Pauktaw | G66: Ba Wan Chaung Wa Su | H66: 23 | I66: 0 | R66: =IF(NFI_Expiration=1,IF($A66<VLOOKUP(H$5,NFI,5,0),1,0)*Table_NFI[[#This Row],[Hygiene Kit]],0) -> 23 | S66: =IF(NFI_Expiration=1,IF($A66<VLOOKUP(I$5,NFI,5,0),1,0)*Table_NFI[[#This Row],[NFI Core Kit]],0) -> 0 | T66: =IF(NFI_Expiration=1,IF($A66<VLOOKUP(J$5,NFI,5,0),1,0)*Table_NFI[[#This Row],[Sanitary Kit]],0) -> 0 | U66: =IF(NFI_Expiration=1,IF($A66<VLOOKUP(K$5,NFI,5,0),1,0)*Table_NFI[[#This Row],[Mosquito net]],0) -> 0 | V66: =IF(NFI_Expiration=1,IF($A66<VLOOKUP(L$5,NFI,5,0),1,0)*Table_NFI[[#This Row],[Tarpaulin]],0) -> 0 | W66: =IF(NFI_Expiration=1,IF($A66<VLOOKUP(M$5,NFI,5,0),1,0)*Table_NFI[[#This Row],[Blanket]],0) -> 0 | X66: =IF(NFI_Expiration=1,IF($A66<VLOOKUP(N$5,NFI,5,0),1,0)*Table_NFI[[#This Row],[Kitchen Set]],0) -> 0 | Y66: =IF(NFI_Expiration=1,IF($A66<VLOOKUP(O$5,NFI,5,0),1,0)*Table_NFI[[#This Row],[Complementary Kit]],0) -> 0 | Z66: =IF(NFI_Expiration=1,IF($A66<VLOOKUP(P$5,NFI,5,0),1,0)*Table_NFI[[#This Row],[Plastic Bucket]],0) -> 0 | AA66: =IF(NFI_Expiration=1,IF($A66<VLOOKUP(Q$5,NFI,5,0),1,0)*Table_NFI[[#This Row],[Plastic Mat]],0) -> 0 | AB66: =VLOOKUP(Table_NFI[[#This Row],[Camp Name]],Camp_List!N$5:AA$254,2,0) -> MMR012CMP015 | AC66: =VLOOKUP(Table_NFI[[#This Row],[Camp Name]],Camp_List!N$5:AA$254,14,0) -> Open | AD66: =VLOOKUP(Table_NFI[[#This Row],[Camp Name]],Camp_List!N$5:AC$254,1,1) -> Ba Wan Chaung Wa Su
A67: 9.533333333 | B67: 2012-11-19 | C67: UNHCR | E67: Rakhine | F67: Pauktaw | G67: Ah Nauk Ywe | L67: 458 | R67: =IF(NFI_Expiration=1,IF($A67<VLOOKUP(H$5,NFI,5,0),1,0)*Table_NFI[[#This Row],[Hygiene Kit]],0) -> 0 | S67: =IF(NFI_Expiration=1,IF($A67<VLOOKUP(I$5,NFI,5,0),1,0)*Table_NFI[[#This Row],[NFI Core Kit]],0) -> 0 | T67: =IF(NFI_Expiration=1,IF($A67<VLOOKUP(J$5,NFI,5,0),1,0)*Table_NFI[[#This Row],[Sanitary Kit]],0) -> 0 | U67: =IF(NFI_Expiration=1,IF($A67<VLOOKUP(K$5,NFI,5,0),1,0)*Table_NFI[[#This Row],[Mosquito net]],0) -> 0 | V67: =IF(NFI_Expiration=1,IF($A67<VLOOKUP(L$5,NFI,5,0),1,0)*Table_NFI[[#This Row],[Tarpaulin]],0) -> 458 | W67: =IF(NFI_Expiration=1,IF($A67<VLOOKUP(M$5,NFI,5,0),1,0)*Table_NFI[[#This Row],[Blanket]],0) -> 0 | X67: =IF(NFI_Expiration=1,IF($A67<VLOOKUP(N$5,NFI,5,0),1,0)*Table_NFI[[#This Row],[Kitchen Set]],0) -> 0 | Y67: =IF(NFI_Expiration=1,IF($A67<VLOOKUP(O$5,NFI,5,0),1,0)*Table_NFI[[#This Row],[Complementary Kit]],0) -> 0 | Z67: =IF(NFI_Expiration=1,IF($A67<VLOOKUP(P$5,NFI,5,0),1,0)*Table_NFI[[#This Row],[Plastic Bucket]],0) -> 0 | AA67: =IF(NFI_Expiration=1,IF($A67<VLOOKUP(Q$5,NFI,5,0),1,0)*Table_NFI[[#This Row],[Plastic Mat]],0) -> 0 | AB67: =VLOOKUP(Table_NFI[[#This Row],[Camp Name]],Camp_List!N$5:AA$254,2,0) -> MMR012CMP016 | AC67: =VLOOKUP(Table_NFI[[#This Row],[Camp Name]],Camp_List!N$5:AA$254,14,0) -> Open | AD67: =VLOOKUP(Table_NFI[[#This Row],[Camp Name]],Camp_List!N$5:AC$254,1,1) -> Ah Nauk Ywe
A68: 8.366666667 | B68: 2012-12-24 | C68: UNHCR | E68: Rakhine | F68: Pauktaw | G68: Ah Nauk Ywe | L68: 758 | R68: =IF(NFI_Expiration=1,IF($A68<VLOOKUP(H$5,NFI,5,0),1,0)*Table_NFI[[#This Row],[Hygiene Kit]],0) -> 0 | S68: =IF(NFI_Expiration=1,IF($A68<VLOOKUP(I$5,NFI,5,0),1,0)*Table_NFI[[#This Row],[NFI Core Kit]],0) -> 0 | T68: =IF(NFI_Expiration=1,IF($A68<VLOOKUP(J$5,NFI,5,0),1,0)*Table_NFI[[#This Row],[Sanitary Kit]],0) -> 0 | U68: =IF(NFI_Expiration=1,IF($A68<VLOOKUP(K$5,NFI,5,0),1,0)*Table_NFI[[#This Row],[Mosquito net]],0) -> 0 | V68: =IF(NFI_Expiration=1,IF($A68<VLOOKUP(L$5,NFI,5,0),1,0)*Table_NFI[[#This Row],[Tarpaulin]],0) -> 758 | W68: =IF(NFI_Expiration=1,IF($A68<VLOOKUP(M$5,NFI,5,0),1,0)*Table_NFI[[#This Row],[Blanket]],0) -> 0 | X68: =IF(NFI_Expiration=1,IF($A68<VLOOKUP(N$5,NFI,5,0),1,0)*Table_NFI[[#This Row],[Kitchen Set]],0) -> 0 | Y68: =IF(NFI_Expiration=1,IF($A68<VLOOKUP(O$5,NFI,5,0),1,0)*Table_NFI[[#This Row],[Complementary Kit]],0) -> 0 | Z68: =IF(NFI_Expiration=1,IF($A68<VLOOKUP(P$5,NFI,5,0),1,0)*Table_NFI[[#This Row],[Plastic Bucket]],0) -> 0 | AA68: =IF(NFI_Expiration=1,IF($A68<VLOOKUP(Q$5,NFI,5,0),1,0)*Table_NFI[[#This Row],[Plastic Mat]],0) -> 0 | AB68: =VLOOKUP(Table_NFI[[#This Row],[Camp Name]],Camp_List!N$5:AA$254,2,0) -> MMR012CMP016 | AC68: =VLOOKUP(Table_NFI[[#This Row],[Camp Name]],Camp_List!N$5:AA$254,14,0) -> Open | AD68: =VLOOKUP(Table_NFI[[#This Row],[Camp Name]],Camp_List!N$5:AC$254,1,1) -> Ah Nauk Ywe
A69: 7.066666667 | B69: 2013-02-01 | C69: Save the Children | D69: Save the Children | E69: Rakhine | F69: Pauktaw | G69: Ah Nauk Ywe | H69: 803 | R69: =IF(NFI_Expiration=1,IF($A69<VLOOKUP(H$5,NFI,5,0),1,0)*Table_NFI[[#This Row],[Hygiene Kit]],0) -> 803 | S69: =IF(NFI_Expiration=1,IF($A69<VLOOKUP(I$5,NFI,5,0),1,0)*Table_NFI[[#This Row],[NFI Core Kit]],0) -> 0 | T69: =IF(NFI_Expiration=1,IF($A69<VLOOKUP(J$5,NFI,5,0),1,0)*Table_NFI[[#This Row],[Sanitary Kit]],0) -> 0 | U69: =IF(NFI_Expiration=1,IF($A69<VLOOKUP(K$5,NFI,5,0),1,0)*Table_NFI[[#This Row],[Mosquito net]],0) -> 0 | V69: =IF(NFI_Expiration=1,IF($A69<VLOOKUP(L$5,NFI,5,0),1,0)*Table_NFI[[#This Row],[Tarpaulin]],0) -> 0 | W69: =IF(NFI_Expiration=1,IF($A69<VLOOKUP(M$5,NFI,5,0),1,0)*Table_NFI[[#This Row],[Blanket]],0) -> 0 | X69: =IF(NFI_Expiration=1,IF($A69<VLOOKUP(N$5,NFI,5,0),1,0)*Table_NFI[[#This Row],[Kitchen Set]],0) -> 0 | Y69: =IF(NFI_Expiration=1,IF($A69<VLOOKUP(O$5,NFI,5,0),1,0)*Table_NFI[[#This Row],[Complementary Kit]],0) -> 0 | Z69: =IF(NFI_Expiration=1,IF($A69<VLOOKUP(P$5,NFI,5,0),1,0)*Table_NFI[[#This Row],[Plastic Bucket]],0) -> 0 | AA69: =IF(NFI_Expiration=1,IF($A69<VLOOKUP(Q$5,NFI,5,0),1,0)*Table_NFI[[#This Row],[Plastic Mat]],0) -> 0 | AB69: =VLOOKUP(Table_NFI[[#This Row],[Camp Name]],Camp_List!N$5:AA$254,2,0) -> MMR012CMP016 | AC69: =VLOOKUP(Table_NFI[[#This Row],[Camp Name]],Camp_List!N$5:AA$254,14,0) -> Open | AD69: =VLOOKUP(Table_NFI[[#This Row],[Camp Name]],Camp_List!N$5:AC$254,1,1) -> Ah Nauk Ywe
A70: 6.866666667 | B70: 2013-02-07 | C70: UNHCR | E70: Rakhine | F70: Pauktaw | G70: Ah Nauk Ywe | M70: 500 | R70: =IF(NFI_Expiration=1,IF($A70<VLOOKUP(H$5,NFI,5,0),1,0)*Table_NFI[[#This Row],[Hygiene Kit]],0) -> 0 | S70: =IF(NFI_Expiration=1,IF($A70<VLOOKUP(I$5,NFI,5,0),1,0)*Table_NFI[[#This Row],[NFI Core Kit]],0) -> 0 | T70: =IF(NFI_Expiration=1,IF($A70<VLOOKUP(J$5,NFI,5,0),1,0)*Table_NFI[[#This Row],[Sanitary Kit]],0) -> 0 | U70: =IF(NFI_Expiration=1,IF($A70<VLOOKUP(K$5,NFI,5,0),1,0)*Table_NFI[[#This Row],[Mosquito net]],0) -> 0 | V70: =IF(NFI_Expiration=1,IF($A70<VLOOKUP(L$5,NFI,5,0),1,0)*Table_NFI[[#This Row],[Tarpaulin]],0) -> 0 | W70: =IF(NFI_Expiration=1,IF($A70<VLOOKUP(M$5,NFI,5,0),1,0)*Table_NFI[[#This Row],[Blanket]],0) -> 500 | X70: =IF(NFI_Expiration=1,IF($A70<VLOOKUP(N$5,NFI,5,0),1,0)*Table_NFI[[#This Row],[Kitchen Set]],0) -> 0 | Y70: =IF(NFI_Expiration=1,IF($A70<VLOOKUP(O$5,NFI,5,0),1,0)*Table_NFI[[#This Row],[Complementary Kit]],0) -> 0 | Z70: =IF(NFI_Expiration=1,IF($A70<VLOOKUP(P$5,NFI,5,0),1,0)*Table_NFI[[#This Row],[Plastic Bucket]],0) -> 0 | AA70: =IF(NFI_Expiration=1,IF($A70<VLOOKUP(Q$5,NFI,5,0),1,0)*Table_NFI[[#This Row],[Plastic Mat]],0) -> 0 | AB70: =VLOOKUP(Table_NFI[[#This Row],[Camp Name]],Camp_List!N$5:AA$254,2,0) -> MMR012CMP016 | AC70: =VLOOKUP(Table_NFI[[#This Row],[Camp Name]],Camp_List!N$5:AA$254,14,0) -> Open | AD70: =VLOOKUP(Table_NFI[[#This Row],[Camp Name]],Camp_List!N$5:AC$254,1,1) -> Ah Nauk Ywe
A71: 6.766666667 | B71: 2013-02-10 | C71: UNHCR | E71: Rakhine | F71: Pauktaw | G71: Ah Nauk Ywe | M71: 273 | R71: =IF(NFI_Expiration=1,IF($A71<VLOOKUP(H$5,NFI,5,0),1,0)*Table_NFI[[#This Row],[Hygiene Kit]],0) -> 0 | S71: =IF(NFI_Expiration=1,IF($A71<VLOOKUP(I$5,NFI,5,0),1,0)*Table_NFI[[#This Row],[NFI Core Kit]],0) -> 0 | T71: =IF(NFI_Expiration=1,IF($A71<VLOOKUP(J$5,NFI,5,0),1,0)*Table_NFI[[#This Row],[Sanitary Kit]],0) -> 0 | U71: =IF(NFI_Expiration=1,IF($A71<VLOOKUP(K$5,NFI,5,0),1,0)*Table_NFI[[#This Row],[Mosquito net]],0) -> 0 | V71: =IF(NFI_Expiration=1,IF($A71<VLOOKUP(L$5,NFI,5,0),1,0)*Table_NFI[[#This Row],[Tarpaulin]],0) -> 0 | W71: =IF(NFI_Expiration=1,IF($A71<VLOOKUP(M$5,NFI,5,0),1,0)*Table_NFI[[#This Row],[Blanket]],0) -> 273 | X71: =IF(NFI_Expiration=1,IF($A71<VLOOKUP(N$5,NFI,5,0),1,0)*Table_NFI[[#This Row],[Kitchen Set]],0) -> 0 | Y71: =IF(NFI_Expiration=1,IF($A71<VLOOKUP(O$5,NFI,5,0),1,0)*Table_NFI[[#This Row],[Complementary Kit]],0) -> 0 | Z71: =IF(NFI_Expiration=1,IF($A71<VLOOKUP(P$5,NFI,5,0),1,0)*Table_NFI[[#This Row],[Plastic Bucket]],0) -> 0 | AA71: =IF(NFI_Expiration=1,IF($A71<VLOOKUP(Q$5,NFI,5,0),1,0)*Table_NFI[[#This Row],[Plastic Mat]],0) -> 0 | AB71: =VLOOKUP(Table_NFI[[#This Row],[Camp Name]],Camp_List!N$5:AA$254,2,0) -> MMR012CMP016 | AC71: =VLOOKUP(Table_NFI[[#This Row],[Camp Name]],Camp_List!N$5:AA$254,14,0) -> Open | AD71: =VLOOKUP(Table_NFI[[#This Row],[Camp Name]],Camp_List!N$5:AC$254,1,1) -> Ah Nauk Ywe
A72: 6.633333333 | B72: 2013-02-14 | C72: UNHCR | E72: Rakhine | F72: Pauktaw | G72: Ah Nauk Ywe | M72: 500 | R72: =IF(NFI_Expiration=1,IF($A72<VLOOKUP(H$5,NFI,5,0),1,0)*Table_NFI[[#This Row],[Hygiene Kit]],0) -> 0 | S72: =IF(NFI_Expiration=1,IF($A72<VLOOKUP(I$5,NFI,5,0),1,0)*Table_NFI[[#This Row],[NFI Core Kit]],0) -> 0 | T72: =IF(NFI_Expiration=1,IF($A72<VLOOKUP(J$5,NFI,5,0),1,0)*Table_NFI[[#This Row],[Sanitary Kit]],0) -> 0 | U72: =IF(NFI_Expiration=1,IF($A72<VLOOKUP(K$5,NFI,5,0),1,0)*Table_NFI[[#This Row],[Mosquito net]],0) -> 0 | V72: =IF(NFI_Expiration=1,IF($A72<VLOOKUP(L$5,NFI,5,0),1,0)*Table_NFI[[#This Row],[Tarpaulin]],0) -> 0 | W72: =IF(NFI_Expiration=1,IF($A72<VLOOKUP(M$5,NFI,5,0),1,0)*Table_NFI[[#This Row],[Blanket]],0) -> 500 | X72: =IF(NFI_Expiration=1,IF($A72<VLOOKUP(N$5,NFI,5,0),1,0)*Table_NFI[[#This Row],[Kitchen Set]],0) -> 0 | Y72: =IF(NFI_Expiration=1,IF($A72<VLOOKUP(O$5,NFI,5,0),1,0)*Table_NFI[[#This Row],[Complementary Kit]],0) -> 0 | Z72: =IF(NFI_Expiration=1,IF($A72<VLOOKUP(P$5,NFI,5,0),1,0)*Table_NFI[[#This Row],[Plastic Bucket]],0) -> 0 | AA72: =IF(NFI_Expiration=1,IF($A72<VLOOKUP(Q$5,NFI,5,0),1,0)*Table_NFI[[#This Row],[Plastic Mat]],0) -> 0 | AB72: =VLOOKUP(Table_NFI[[#This Row],[Camp Name]],Camp_List!N$5:AA$254,2,0) -> MMR012CMP016 | AC72: =VLOOKUP(Table_NFI[[#This Row],[Camp Name]],Camp_List!N$5:AA$254,14,0) -> Open | AD72: =VLOOKUP(Table_NFI[[#This Row],[Camp Name]],Camp_List!N$5:AC$254,1,1) -> Ah Nauk Ywe
A73: 3.166666667 | B73: 2013-05-29 | C73: Save the Children | D73: Save the Children | E73: Rakhine | F73: Pauktaw | G73: Ah Nauk Ywe | H73: 773 | R73: =IF(NFI_Expiration=1,IF($A73<VLOOKUP(H$5,NFI,5,0),1,0)*Table_NFI[[#This Row],[Hygiene Kit]],0) -> 773 | S73: =IF(NFI_Expiration=1,IF($A73<VLOOKUP(I$5,NFI,5,0),1,0)*Table_NFI[[#This Row],[NFI Core Kit]],0) -> 0 | T73: =IF(NFI_Expiration=1,IF($A73<VLOOKUP(J$5,NFI,5,0),1,0)*Table_NFI[[#This Row],[Sanitary Kit]],0) -> 0 | U73: =IF(NFI_Expiration=1,IF($A73<VLOOKUP(K$5,NFI,5,0),1,0)*Table_NFI[[#This Row],[Mosquito net]],0) -> 0 | V73: =IF(NFI_Expiration=1,IF($A73<VLOOKUP(L$5,NFI,5,0),1,0)*Table_NFI[[#This Row],[Tarpaulin]],0) -> 0 | W73: =IF(NFI_Expiration=1,IF($A73<VLOOKUP(M$5,NFI,5,0),1,0)*Table_NFI[[#This Row],[Blanket]],0) -> 0 | X73: =IF(NFI_Expiration=1,IF($A73<VLOOKUP(N$5,NFI,5,0),1,0)*Table_NFI[[#This Row],[Kitchen Set]],0) -> 0 | Y73: =IF(NFI_Expiration=1,IF($A73<VLOOKUP(O$5,NFI,5,0),1,0)*Table_NFI[[#This Row],[Complementary Kit]],0) -> 0 | Z73: =IF(NFI_Expiration=1,IF($A73<VLOOKUP(P$5,NFI,5,0),1,0)*Table_NFI[[#This Row],[Plastic Bucket]],0) -> 0 | AA73: =IF(NFI_Expiration=1,IF($A73<VLOOKUP(Q$5,NFI,5,0),1,0)*Table_NFI[[#This Row],[Plastic Mat]],0) -> 0 | AB73: =VLOOKUP(Table_NFI[[#This Row],[Camp Name]],Camp_List!N$5:AA$254,2,0) -> MMR012CMP016 | AC73: =VLOOKUP(Table_NFI[[#This Row],[Camp Name]],Camp_List!N$5:AA$254,14,0) -> Open | AD73: =VLOOKUP(Table_NFI[[#This Row],[Camp Name]],Camp_List!N$5:AC$254,1,1) -> Ah Nauk Ywe
A74: 9.533333333 | B74: 2012-11-19 | C74: UNHCR | E74: Rakhine | F74: Pauktaw | G74: Nget Chaung | L74: 506 | R74: =IF(NFI_Expiration=1,IF($A74<VLOOKUP(H$5,NFI,5,0),1,0)*Table_NFI[[#This Row],[Hygiene Kit]],0) -> 0 | S74: =IF(NFI_Expiration=1,IF($A74<VLOOKUP(I$5,NFI,5,0),1,0)*Table_NFI[[#This Row],[NFI Core Kit]],0) -> 0 | T74: =IF(NFI_Expiration=1,IF($A74<VLOOKUP(J$5,NFI,5,0),1,0)*Table_NFI[[#This Row],[Sanitary Kit]],0) -> 0 | U74: =IF(NFI_Expiration=1,IF($A74<VLOOKUP(K$5,NFI,5,0),1,0)*Table_NFI[[#This Row],[Mosquito net]],0) -> 0 | V74: =IF(NFI_Expiration=1,IF($A74<VLOOKUP(L$5,NFI,5,0),1,0)*Table_NFI[[#This Row],[Tarpaulin]],0) -> 506 | W74: =IF(NFI_Expiration=1,IF($A74<VLOOKUP(M$5,NFI,5,0),1,0)*Table_NFI[[#This Row],[Blanket]],0) -> 0 | X74: =IF(NFI_Expiration=1,IF($A74<VLOOKUP(N$5,NFI,5,0),1,0)*Table_NFI[[#This Row],[Kitchen Set]],0) -> 0 | Y74: =IF(NFI_Expiration=1,IF($A74<VLOOKUP(O$5,NFI,5,0),1,0)*Table_NFI[[#This Row],[Complementary Kit]],0) -> 0 | Z74: =IF(NFI_Expiration=1,IF($A74<VLOOKUP(P$5,NFI,5,0),1,0)*Table_NFI[[#This Row],[Plastic Bucket]],0) -> 0 | AA74: =IF(NFI_Expiration=1,IF($A74<VLOOKUP(Q$5,NFI,5,0),1,0)*Table_NFI[[#This Row],[Plastic Mat]],0) -> 0 | AB74: =VLOOKUP(Table_NFI[[#This Row],[Camp Name]],Camp_List!N$5:AA$254,2,0) -> MMR012CMP017 | AC74: =VLOOKUP(Table_NFI[[#This Row],[Camp Name]],Camp_List!N$5:AA$254,14,0) -> Open | AD74: =VLOOKUP(Table_NFI[[#This Row],[Camp Name]],Camp_List!N$5:AC$254,1,1) -> Nget Chaung
A75: 8.366666667 | B75: 2012-12-24 | C75: UNHCR | E75: Rakhine | F75: Pauktaw | G75: Nget Chaung | L75: 1306 | R75: =IF(NFI_Expiration=1,IF($A75<VLOOKUP(H$5,NFI,5,0),1,0)*Table_NFI[[#This Row],[Hygiene Kit]],0) -> 0 | S75: =IF(NFI_Expiration=1,IF($A75<VLOOKUP(I$5,NFI,5,0),1,0)*Table_NFI[[#This Row],[NFI Core Kit]],0) -> 0 | T75: =IF(NFI_Expiration=1,IF($A75<VLOOKUP(J$5,NFI,5,0),1,0)*Table_NFI[[#This Row],[Sanitary Kit]],0) -> 0 | U75: =IF(NFI_Expiration=1,IF($A75<VLOOKUP(K$5,NFI,5,0),1,0)*Table_NFI[[#This Row],[Mosquito net]],0) -> 0 | V75: =IF(NFI_Expiration=1,IF($A75<VLOOKUP(L$5,NFI,5,0),1,0)*Table_NFI[[#This Row],[Tarpaulin]],0) -> 1306 | W75: =IF(NFI_Expiration=1,IF($A75<VLOOKUP(M$5,NFI,5,0),1,0)*Table_NFI[[#This Row],[Blanket]],0) -> 0 | X75: =IF(NFI_Expiration=1,IF($A75<VLOOKUP(N$5,NFI,5,0),1,0)*Table_NFI[[#This Row],[Kitchen Set]],0) -> 0 | Y75: =IF(NFI_Expiration=1,IF($A75<VLOOKUP(O$5,NFI,5,0),1,0)*Table_NFI[[#This Row],[Complementary Kit]],0) -> 0 | Z75: =IF(NFI_Expiration=1,IF($A75<VLOOKUP(P$5,NFI,5,0),1,0)*Table_NFI[[#This Row],[Plastic Bucket]],0) -> 0 | AA75: =IF(NFI_Expiration=1,IF($A75<VLOOKUP(Q$5,NFI,5,0),1,0)*Table_NFI[[#This Row],[Plastic Mat]],0) -> 0 | AB75: =VLOOKUP(Table_NFI[[#This Row],[Camp Name]],Camp_List!N$5:AA$254,2,0) -> MMR012CMP017 | AC75: =VLOOKUP(Table_NFI[[#This Row],[Camp Name]],Camp_List!N$5:AA$254,14,0) -> Open | AD75: =VLOOKUP(Table_NFI[[#This Row],[Camp Name]],Camp_List!N$5:AC$254,1,1) -> Nget Chaung
A76: 6.366666667 | B76: 2013-02-22 | C76: UNICEF | E76: Rakhine | F76: Pauktaw | G76: Nget Chaung | H76: 1306 | I76: 0 | R76: =IF(NFI_Expiration=1,IF($A76<VLOOKUP(H$5,NFI,5,0),1,0)*Table_NFI[[#This Row],[Hygiene Kit]],0) -> 1306 | S76: =IF(NFI_Expiration=1,IF($A76<VLOOKUP(I$5,NFI,5,0),1,0)*Table_NFI[[#This Row],[NFI Core Kit]],0) -> 0 | T76: =IF(NFI_Expiration=1,IF($A76<VLOOKUP(J$5,NFI,5,0),1,0)*Table_NFI[[#This Row],[Sanitary Kit]],0) -> 0 | U76: =IF(NFI_Expiration=1,IF($A76<VLOOKUP(K$5,NFI,5,0),1,0)*Table_NFI[[#This Row],[Mosquito net]],0) -> 0 | V76: =IF(NFI_Expiration=1,IF($A76<VLOOKUP(L$5,NFI,5,0),1,0)*Table_NFI[[#This Row],[Tarpaulin]],0) -> 0 | W76: =IF(NFI_Expiration=1,IF($A76<VLOOKUP(M$5,NFI,5,0),1,0)*Table_NFI[[#This Row],[Blanket]],0) -> 0 | X76: =IF(NFI_Expiration=1,IF($A76<VLOOKUP(N$5,NFI,5,0),1,0)*Table_NFI[[#This Row],[Kitchen Set]],0) -> 0 | Y76: =IF(NFI_Expiration=1,IF($A76<VLOOKUP(O$5,NFI,5,0),1,0)*Table_NFI[[#This Row],[Complementary Kit]],0) -> 0 | Z76: =IF(NFI_Expiration=1,IF($A76<VLOOKUP(P$5,NFI,5,0),1,0)*Table_NFI[[#This Row],[Plastic Bucket]],0) -> 0 | AA76: =IF(NFI_Expiration=1,IF($A76<VLOOKUP(Q$5,NFI,5,0),1,0)*Table_NFI[[#This Row],[Plastic Mat]],0) -> 0 | AB76: =VLOOKUP(Table_NFI[[#This Row],[Camp Name]],Camp_List!N$5:AA$254,2,0) -> MMR012CMP017 | AC76: =VLOOKUP(Table_NFI[[#This Row],[Camp Name]],Camp_List!N$5:AA$254,14,0) -> Open | AD76: =VLOOKUP(Table_NFI[[#This Row],[Camp Name]],Camp_List!N$5:AC$254,1,1) -> Nget Chaung
A77: 4.333333333 | B77: 2013-04-24 | C77: Save the Children | D77: Save the Children | E77: Rakhine | F77: Pauktaw | G77: Nget Chaung | H77: 1338 | R77: =IF(NFI_Expiration=1,IF($A77<VLOOKUP(H$5,NFI,5,0),1,0)*Table_NFI[[#This Row],[Hygiene Kit]],0) -> 1338 | S77: =IF(NFI_Expiration=1,IF($A77<VLOOKUP(I$5,NFI,5,0),1,0)*Table_NFI[[#This Row],[NFI Core Kit]],0) -> 0 | T77: =IF(NFI_Expiration=1,IF($A77<VLOOKUP(J$5,NFI,5,0),1,0)*Table_NFI[[#This Row],[Sanitary Kit]],0) -> 0 | U77: =IF(NFI_Expiration=1,IF($A77<VLOOKUP(K$5,NFI,5,0),1,0)*Table_NFI[[#This Row],[Mosquito net]],0) -> 0 | V77: =IF(NFI_Expiration=1,IF($A77<VLOOKUP(L$5,NFI,5,0),1,0)*Table_NFI[[#This Row],[Tarpaulin]],0) -> 0 | W77: =IF(NFI_Expiration=1,IF($A77<VLOOKUP(M$5,NFI,5,0),1,0)*Table_NFI[[#This Row],[Blanket]],0) -> 0 | X77: =IF(NFI_Expiration=1,IF($A77<VLOOKUP(N$5,NFI,5,0),1,0)*Table_NFI[[#This Row],[Kitchen Set]],0) -> 0 | Y77: =IF(NFI_Expiration=1,IF($A77<VLOOKUP(O$5,NFI,5,0),1,0)*Table_NFI[[#This Row],[Complementary Kit]],0) -> 0 | Z77: =IF(NFI_Expiration=1,IF($A77<VLOOKUP(P$5,NFI,5,0),1,0)*Table_NFI[[#This Row],[Plastic Bucket]],0) -> 0 | AA77: =IF(NFI_Expiration=1,IF($A77<VLOOKUP(Q$5,NFI,5,0),1,0)*Table_NFI[[#This Row],[Plastic Mat]],0) -> 0 | AB77: =VLOOKUP(Table_NFI[[#This Row],[Camp Name]],Camp_List!N$5:AA$254,2,0) -> MMR012CMP017 | AC77: =VLOOKUP(Table_NFI[[#This Row],[Camp Name]],Camp_List!N$5:AA$254,14,0) -> Open | AD77: =VLOOKUP(Table_NFI[[#This Row],[Camp Name]],Camp_List!N$5:AC$254,1,1) -> Nget Chaung
A78: 3.166666667 | B78: 2013-05-29 | C78: Save the Children | D78: Save the Children | E78: Rakhine | F78: Pauktaw | G78: Nget Chaung | H78: 173 | R78: =IF(NFI_Expiration=1,IF($A78<VLOOKUP(H$5,NFI,5,0),1,0)*Table_NFI[[#This Row],[Hygiene Kit]],0) -> 173 | S78: =IF(NFI_Expiration=1,IF($A78<VLOOKUP(I$5,NFI,5,0),1,0)*Table_NFI[[#This Row],[NFI Core Kit]],0) -> 0 | T78: =IF(NFI_Expiration=1,IF($A78<VLOOKUP(J$5,NFI,5,0),1,0)*Table_NFI[[#This Row],[Sanitary Kit]],0) -> 0 | U78: =IF(NFI_Expiration=1,IF($A78<VLOOKUP(K$5,NFI,5,0),1,0)*Table_NFI[[#This Row],[Mosquito net]],0) -> 0 | V78: =IF(NFI_Expiration=1,IF($A78<VLOOKUP(L$5,NFI,5,0),1,0)*Table_NFI[[#This Row],[Tarpaulin]],0) -> 0 | W78: =IF(NFI_Expiration=1,IF($A78<VLOOKUP(M$5,NFI,5,0),1,0)*Table_NFI[[#This Row],[Blanket]],0) -> 0 | X78: =IF(NFI_Expiration=1,IF($A78<VLOOKUP(N$5,NFI,5,0),1,0)*Table_NFI[[#This Row],[Kitchen Set]],0) -> 0 | Y78: =IF(NFI_Expiration=1,IF($A78<VLOOKUP(O$5,NFI,5,0),1,0)*Table_NFI[[#This Row],[Complementary Kit]],0) -> 0 | Z78: =IF(NFI_Expiration=1,IF($A78<VLOOKUP(P$5,NFI,5,0),1,0)*Table_NFI[[#This Row],[Plastic Bucket]],0) -> 0 | AA78: =IF(NFI_Expiration=1,IF($A78<VLOOKUP(Q$5,NFI,5,0),1,0)*Table_NFI[[#This Row],[Plastic Mat]],0) -> 0 | AB78: =VLOOKUP(Table_NFI[[#This Row],[Camp Name]],Camp_List!N$5:AA$254,2,0) -> MMR012CMP017 | AC78: =VLOOKUP(Table_NFI[[#This Row],[Camp Name]],Camp_List!N$5:AA$254,14,0) -> Open | AD78: =VLOOKUP(Table_NFI[[#This Row],[Camp Name]],Camp_List!N$5:AC$254,1,1) -> Nget Chaung
A79: 9.533333333 | B79: 2012-11-19 | C79: UNHCR | E79: Rakhine | F79: Pauktaw | G79: Kyein Ni Pyin | L79: 369 | R79: =IF(NFI_Expiration=1,IF($A79<VLOOKUP(H$5,NFI,5,0),1,0)*Table_NFI[[#This Row],[Hygiene Kit]],0) -> 0 | S79: =IF(NFI_Expiration=1,IF($A79<VLOOKUP(I$5,NFI,5,0),1,0)*Table_NFI[[#This Row],[NFI Core Kit]],0) -> 0 | T79: =IF(NFI_Expiration=1,IF($A79<VLOOKUP(J$5,NFI,5,0),1,0)*Table_NFI[[#This Row],[Sanitary Kit]],0) -> 0 | U79: =IF(NFI_Expiration=1,IF($A79<VLOOKUP(K$5,NFI,5,0),1,0)*Table_NFI[[#This Row],[Mosquito net]],0) -> 0 | V79: =IF(NFI_Expiration=1,IF($A79<VLOOKUP(L$5,NFI,5,0),1,0)*Table_NFI[[#This Row],[Tarpaulin]],0) -> 369 | W79: =IF(NFI_Expiration=1,IF($A79<VLOOKUP(M$5,NFI,5,0),1,0)*Table_NFI[[#This Row],[Blanket]],0) -> 0 | X79: =IF(NFI_Expiration=1,IF($A79<VLOOKUP(N$5,NFI,5,0),1,0)*Table_NFI[[#This Row],[Kitchen Set]],0) -> 0 | Y79: =IF(NFI_Expiration=1,IF($A79<VLOOKUP(O$5,NFI,5,0),1,0)*Table_NFI[[#This Row],[Complementary Kit]],0) -> 0 | Z79: =IF(NFI_Expiration=1,IF($A79<VLOOKUP(P$5,NFI,5,0),1,0)*Table_NFI[[#This Row],[Plastic Bucket]],0) -> 0 | AA79: =IF(NFI_Expiration=1,IF($A79<VLOOKUP(Q$5,NFI,5,0),1,0)*Table_NFI[[#This Row],[Plastic Mat]],0) -> 0 | AB79: =VLOOKUP(Table_NFI[[#This Row],[Camp Name]],Camp_List!N$5:AA$254,2,0) -> MMR012CMP018 | AC79: =VLOOKUP(Table_NFI[[#This Row],[Camp Name]],Camp_List!N$5:AA$254,14,0) -> Open | AD79: =VLOOKUP(Table_NFI[[#This Row],[Camp Name]],Camp_List!N$5:AC$254,1,1) -> Kyein Ni Pyin
A80: 7.066666667 | B80: 2013-02-01 | C80: Save the Children | D80: Save the Children | E80: Rakhine | F80: Pauktaw | G80: Kyein Ni Pyin | H80: 858 | R80: =IF(NFI_Expiration=1,IF($A80<VLOOKUP(H$5,NFI,5,0),1,0)*Table_NFI[[#This Row],[Hygiene Kit]],0) -> 858 | S80: =IF(NFI_Expiration=1,IF($A80<VLOOKUP(I$5,NFI,5,0),1,0)*Table_NFI[[#This Row],[NFI Core Kit]],0) -> 0 | T80: =IF(NFI_Expiration=1,IF($A80<VLOOKUP(J$5,NFI,5,0),1,0)*Table_NFI[[#This Row],[Sanitary Kit]],0) -> 0 | U80: =IF(NFI_Expiration=1,IF($A80<VLOOKUP(K$5,NFI,5,0),1,0)*Table_NFI[[#This Row],[Mosquito net]],0) -> 0 | V80: =IF(NFI_Expiration=1,IF($A80<VLOOKUP(L$5,NFI,5,0),1,0)*Table_NFI[[#This Row],[Tarpaulin]],0) -> 0 | W80: =IF(NFI_Expiration=1,IF($A80<VLOOKUP(M$5,NFI,5,0),1,0)*Table_NFI[[#This Row],[Blanket]],0) -> 0 | X80: =IF(NFI_Expiration=1,IF($A80<VLOOKUP(N$5,NFI,5,0),1,0)*Table_NFI[[#This Row],[Kitchen Set]],0) -> 0 | Y80: =IF(NFI_Expiration=1,IF($A80<VLOOKUP(O$5,NFI,5,0),1,0)*Table_NFI[[#This Row],[Complementary Kit]],0) -> 0 | Z80: =IF(NFI_Expiration=1,IF($A80<VLOOKUP(P$5,NFI,5,0),1,0)*Table_NFI[[#This Row],[Plastic Bucket]],0) -> 0 | AA80: =IF(NFI_Expiration=1,IF($A80<VLOOKUP(Q$5,NFI,5,0),1,0)*Table_NFI[[#This Row],[Plastic Mat]],0) -> 0 | AB80: =VLOOKUP(Table_NFI[[#This Row],[Camp Name]],Camp_List!N$5:AA$254,2,0) -> MMR012CMP018 | AC80: =VLOOKUP(Table_NFI[[#This Row],[Camp Name]],Camp_List!N$5:AA$254,14,0) -> Open | AD80: =VLOOKUP(Table_NFI[[#This Row],[Camp Name]],Camp_List!N$5:AC$254,1,1) -> Kyein Ni Pyin
A81: 4.266666667 | B81: 2013-04-26 | C81: Save the Children | D81: Save the Children | E81: Rakhine | F81: Pauktaw | G81: Kyein Ni Pyin | H81: 1028 | R81: =IF(NFI_Expiration=1,IF($A81<VLOOKUP(H$5,NFI,5,0),1,0)*Table_NFI[[#This Row],[Hygiene Kit]],0) -> 1028 | S81: =IF(NFI_Expiration=1,IF($A81<VLOOKUP(I$5,NFI,5,0),1,0)*Table_NFI[[#This Row],[NFI Core Kit]],0) -> 0 | T81: =IF(NFI_Expiration=1,IF($A81<VLOOKUP(J$5,NFI,5,0),1,0)*Table_NFI[[#This Row],[Sanitary Kit]],0) -> 0 | U81: =IF(NFI_Expiration=1,IF($A81<VLOOKUP(K$5,NFI,5,0),1,0)*Table_NFI[[#This Row],[Mosquito net]],0) -> 0 | V81: =IF(NFI_Expiration=1,IF($A81<VLOOKUP(L$5,NFI,5,0),1,0)*Table_NFI[[#This Row],[Tarpaulin]],0) -> 0 | W81: =IF(NFI_Expiration=1,IF($A81<VLOOKUP(M$5,NFI,5,0),1,0)*Table_NFI[[#This Row],[Blanket]],0) -> 0 | X81: =IF(NFI_Expiration=1,IF($A81<VLOOKUP(N$5,NFI,5,0),1,0)*Table_NFI[[#This Row],[Kitchen Set]],0) -> 0 | Y81: =IF(NFI_Expiration=1,IF($A81<VLOOKUP(O$5,NFI,5,0),1,0)*Table_NFI[[#This Row],[Complementary Kit]],0) -> 0 | Z81: =IF(NFI_Expiration=1,IF($A81<VLOOKUP(P$5,NFI,5,0),1,0)*Table_NFI[[#This Row],[Plastic Bucket]],0) -> 0 | AA81: =IF(NFI_Expiration=1,IF($A81<VLOOKUP(Q$5,NFI,5,0),1,0)*Table_NFI[[#This Row],[Plastic Mat]],0) -> 0 | AB81: =VLOOKUP(Table_NFI[[#This Row],[Camp Name]],Camp_List!N$5:AA$254,2,0) -> MMR012CMP018 | AC81: =VLOOKUP(Table_NFI[[#This Row],[Camp Name]],Camp_List!N$5:AA$254,14,0) -> Open | AD81: =VLOOKUP(Table_NFI[[#This Row],[Camp Name]],Camp_List!N$5:AC$254,1,1) -> Kyein Ni Pyin
A82: 3.4 | B82: 2013-05-22 | C82: Save the Children | D82: Save the Children | E82: Rakhine | F82: Pauktaw | G82: Kyein Ni Pyin | H82: 903 | R82: =IF(NFI_Expiration=1,IF($A82<VLOOKUP(H$5,NFI,5,0),1,0)*Table_NFI[[#This Row],[Hygiene Kit]],0) -> 903 | S82: =IF(NFI_Expiration=1,IF($A82<VLOOKUP(I$5,NFI,5,0),1,0)*Table_NFI[[#This Row],[NFI Core Kit]],0) -> 0 | T82: =IF(NFI_Expiration=1,IF($A82<VLOOKUP(J$5,NFI,5,0),1,0)*Table_NFI[[#This Row],[Sanitary Kit]],0) -> 0 | U82: =IF(NFI_Expiration=1,IF($A82<VLOOKUP(K$5,NFI,5,0),1,0)*Table_NFI[[#This Row],[Mosquito net]],0) -> 0 | V82: =IF(NFI_Expiration=1,IF($A82<VLOOKUP(L$5,NFI,5,0),1,0)*Table_NFI[[#This Row],[Tarpaulin]],0) -> 0 | W82: =IF(NFI_Expiration=1,IF($A82<VLOOKUP(M$5,NFI,5,0),1,0)*Table_NFI[[#This Row],[Blanket]],0) -> 0 | X82: =IF(NFI_Expiration=1,IF($A82<VLOOKUP(N$5,NFI,5,0),1,0)*Table_NFI[[#This Row],[Kitchen Set]],0) -> 0 | Y82: =IF(NFI_Expiration=1,IF($A82<VLOOKUP(O$5,NFI,5,0),1,0)*Table_NFI[[#This Row],[Complementary Kit]],0) -> 0 | Z82: =IF(NFI_Expiration=1,IF($A82<VLOOKUP(P$5,NFI,5,0),1,0)*Table_NFI[[#This Row],[Plastic Bucket]],0) -> 0 | AA82: =IF(NFI_Expiration=1,IF($A82<VLOOKUP(Q$5,NFI,5,0),1,0)*Table_NFI[[#This Row],[Plastic Mat]],0) -> 0 | AB82: =VLOOKUP(Table_NFI[[#This Row],[Camp Name]],Camp_List!N$5:AA$254,2,0) -> MMR012CMP018 | AC82: =VLOOKUP(Table_NFI[[#This Row],[Camp Name]],Camp_List!N$5:AA$254,14,0) -> Open | AD82: =VLOOKUP(Table_NFI[[#This Row],[Camp Name]],Camp_List!N$5:AC$254,1,1) -> Kyein Ni Pyin
A83: 10.06666667 | B83: 2012-11-03 | C83: UNHCR | E83: Rakhine | F83: Pauktaw | G83: Sin Tet Maw | L83: 500 | R83: =IF(NFI_Expiration=1,IF($A83<VLOOKUP(H$5,NFI,5,0),1,0)*Table_NFI[[#This Row],[Hygiene Kit]],0) -> 0 | S83: =IF(NFI_Expiration=1,IF($A83<VLOOKUP(I$5,NFI,5,0),1,0)*Table_NFI[[#This Row],[NFI Core Kit]],0) -> 0 | T83: =IF(NFI_Expiration=1,IF($A83<VLOOKUP(J$5,NFI,5,0),1,0)*Table_NFI[[#This Row],[Sanitary Kit]],0) -> 0 | U83: =IF(NFI_Expiration=1,IF($A83<VLOOKUP(K$5,NFI,5,0),1,0)*Table_NFI[[#This Row],[Mosquito net]],0) -> 0 | V83: =IF(NFI_Expiration=1,IF($A83<VLOOKUP(L$5,NFI,5,0),1,0)*Table_NFI[[#This Row],[Tarpaulin]],0) -> 500 | W83: =IF(NFI_Expiration=1,IF($A83<VLOOKUP(M$5,NFI,5,0),1,0)*Table_NFI[[#This Row],[Blanket]],0) -> 0 | X83: =IF(NFI_Expiration=1,IF($A83<VLOOKUP(N$5,NFI,5,0),1,0)*Table_NFI[[#This Row],[Kitchen Set]],0) -> 0 | Y83: =IF(NFI_Expiration=1,IF($A83<VLOOKUP(O$5,NFI,5,0),1,0)*Table_NFI[[#This Row],[Complementary Kit]],0) -> 0 | Z83: =IF(NFI_Expiration=1,IF($A83<VLOOKUP(P$5,NFI,5,0),1,0)*Table_NFI[[#This Row],[Plastic Bucket]],0) -> 0 | AA83: =IF(NFI_Expiration=1,IF($A83<VLOOKUP(Q$5,NFI,5,0),1,0)*Table_NFI[[#This Row],[Plastic Mat]],0) -> 0 | AB83: =VLOOKUP(Table_NFI[[#This Row],[Camp Name]],Camp_List!N$5:AA$254,2,0) -> MMR012CMP019 | AC83: =VLOOKUP(Table_NFI[[#This Row],[Camp Name]],Camp_List!N$5:AA$254,14,0) -> Open | AD83: =VLOOKUP(Table_NFI[[#This Row],[Camp Name]],Camp_List!N$5:AC$254,1,1) -> Sin Tet Maw
A84: 9.533333333 | B84: 2012-11-19 | C84: UNHCR | E84: Rakhine | F84: Pauktaw | G84: Sin Tet Maw | L84: 362 | R84: =IF(NFI_Expiration=1,IF($A84<VLOOKUP(H$5,NFI,5,0),1,0)*Table_NFI[[#This Row],[Hygiene Kit]],0) -> 0 | S84: =IF(NFI_Expiration=1,IF($A84<VLOOKUP(I$5,NFI,5,0),1,0)*Table_NFI[[#This Row],[NFI Core Kit]],0) -> 0 | T84: =IF(NFI_Expiration=1,IF($A84<VLOOKUP(J$5,NFI,5,0),1,0)*Table_NFI[[#This Row],[Sanitary Kit]],0) -> 0 | U84: =IF(NFI_Expiration=1,IF($A84<VLOOKUP(K$5,NFI,5,0),1,0)*Table_NFI[[#This Row],[Mosquito net]],0) -> 0 | V84: =IF(NFI_Expiration=1,IF($A84<VLOOKUP(L$5,NFI,5,0),1,0)*Table_NFI[[#This Row],[Tarpaulin]],0) -> 362 | W84: =IF(NFI_Expiration=1,IF($A84<VLOOKUP(M$5,NFI,5,0),1,0)*Table_NFI[[#This Row],[Blanket]],0) -> 0 | X84: =IF(NFI_Expiration=1,IF($A84<VLOOKUP(N$5,NFI,5,0),1,0)*Table_NFI[[#This Row],[Kitchen Set]],0) -> 0 | Y84: =IF(NFI_Expiration=1,IF($A84<VLOOKUP(O$5,NFI,5,0),1,0)*Table_NFI[[#This Row],[Complementary Kit]],0) -> 0 | Z84: =IF(NFI_Expiration=1,IF($A84<VLOOKUP(P$5,NFI,5,0),1,0)*Table_NFI[[#This Row],[Plastic Bucket]],0) -> 0 | AA84: =IF(NFI_Expiration=1,IF($A84<VLOOKUP(Q$5,NFI,5,0),1,0)*Table_NFI[[#This Row],[Plastic Mat]],0) -> 0 | AB84: =VLOOKUP(Table_NFI[[#This Row],[Camp Name]],Camp_List!N$5:AA$254,2,0) -> MMR012CMP019 | AC84: =VLOOKUP(Table_NFI[[#This Row],[Camp Name]],Camp_List!N$5:AA$254,14,0) -> Open | AD84: =VLOOKUP(Table_NFI[[#This Row],[Camp Name]],Camp_List!N$5:AC$254,1,1) -> Sin Tet Maw
A85: 8.366666667 | B85: 2012-12-24 | C85: UNHCR | E85: Rakhine | F85: Pauktaw | G85: Sin Tet Maw | L85: 796 | R85: =IF(NFI_Expiration=1,IF($A85<VLOOKUP(H$5,NFI,5,0),1,0)*Table_NFI[[#This Row],[Hygiene Kit]],0) -> 0 | S85: =IF(NFI_Expiration=1,IF($A85<VLOOKUP(I$5,NFI,5,0),1,0)*Table_NFI[[#This Row],[NFI Core Kit]],0) -> 0 | T85: =IF(NFI_Expiration=1,IF($A85<VLOOKUP(J$5,NFI,5,0),1,0)*Table_NFI[[#This Row],[Sanitary Kit]],0) -> 0 | U85: =IF(NFI_Expiration=1,IF($A85<VLOOKUP(K$5,NFI,5,0),1,0)*Table_NFI[[#This Row],[Mosquito net]],0) -> 0 | V85: =IF(NFI_Expiration=1,IF($A85<VLOOKUP(L$5,NFI,5,0),1,0)*Table_NFI[[#This Row],[Tarpaulin]],0) -> 796 | W85: =IF(NFI_Expiration=1,IF($A85<VLOOKUP(M$5,NFI,5,0),1,0)*Table_NFI[[#This Row],[Blanket]],0) -> 0 | X85: =IF(NFI_Expiration=1,IF($A85<VLOOKUP(N$5,NFI,5,0),1,0)*Table_NFI[[#This Row],[Kitchen Set]],0) -> 0 | Y85: =IF(NFI_Expiration=1,IF($A85<VLOOKUP(O$5,NFI,5,0),1,0)*Table_NFI[[#This Row],[Complementary Kit]],0) -> 0 | Z85: =IF(NFI_Expiration=1,IF($A85<VLOOKUP(P$5,NFI,5,0),1,0)*Table_NFI[[#This Row],[Plastic Bucket]],0) -> 0 | AA85: =IF(NFI_Expiration=1,IF($A85<VLOOKUP(Q$5,NFI,5,0),1,0)*Table_NFI[[#This Row],[Plastic Mat]],0) -> 0 | AB85: =VLOOKUP(Table_NFI[[#This Row],[Camp Name]],Camp_List!N$5:AA$254,2,0) -> MMR012CMP019 | AC85: =VLOOKUP(Table_NFI[[#This Row],[Camp Name]],Camp_List!N$5:AA$254,14,0) -> Open | AD85: =VLOOKUP(Table_NFI[[#This Row],[Camp Name]],Camp_List!N$5:AC$254,1,1) -> Sin Tet Maw
A86: 7.133333333 | B86: 2013-01-30 | C86: Save the Children | D86: Save the Children | E86: Rakhine | F86: Pauktaw | G86: Sin Tet Maw | H86: 810 | R86: =IF(NFI_Expiration=1,IF($A86<VLOOKUP(H$5,NFI,5,0),1,0)*Table_NFI[[#This Row],[Hygiene Kit]],0) -> 810 | S86: =IF(NFI_Expiration=1,IF($A86<VLOOKUP(I$5,NFI,5,0),1,0)*Table_NFI[[#This Row],[NFI Core Kit]],0) -> 0 | T86: =IF(NFI_Expiration=1,IF($A86<VLOOKUP(J$5,NFI,5,0),1,0)*Table_NFI[[#This Row],[Sanitary Kit]],0) -> 0 | U86: =IF(NFI_Expiration=1,IF($A86<VLOOKUP(K$5,NFI,5,0),1,0)*Table_NFI[[#This Row],[Mosquito net]],0) -> 0 | V86: =IF(NFI_Expiration=1,IF($A86<VLOOKUP(L$5,NFI,5,0),1,0)*Table_NFI[[#This Row],[Tarpaulin]],0) -> 0 | W86: =IF(NFI_Expiration=1,IF($A86<VLOOKUP(M$5,NFI,5,0),1,0)*Table_NFI[[#This Row],[Blanket]],0) -> 0 | X86: =IF(NFI_Expiration=1,IF($A86<VLOOKUP(N$5,NFI,5,0),1,0)*Table_NFI[[#This Row],[Kitchen Set]],0) -> 0 | Y86: =IF(NFI_Expiration=1,IF($A86<VLOOKUP(O$5,NFI,5,0),1,0)*Table_NFI[[#This Row],[Complementary Kit]],0) -> 0 | Z86: =IF(NFI_Expiration=1,IF($A86<VLOOKUP(P$5,NFI,5,0),1,0)*Table_NFI[[#This Row],[Plastic Bucket]],0) -> 0 | AA86: =IF(NFI_Expiration=1,IF($A86<VLOOKUP(Q$5,NFI,5,0),1,0)*Table_NFI[[#This Row],[Plastic Mat]],0) -> 0 | AB86: =VLOOKUP(Table_NFI[[#This Row],[Camp Name]],Camp_List!N$5:AA$254,2,0) -> MMR012CMP019 | AC86: =VLOOKUP(Table_NFI[[#This Row],[Camp Name]],Camp_List!N$5:AA$254,14,0) -> Open | AD86: =VLOOKUP(Table_NFI[[#This Row],[Camp Name]],Camp_List!N$5:AC$254,1,1) -> Sin Tet Maw
A87: 4.8 | B87: 2013-04-10 | C87: UNHCR | E87: Rakhine | F87: Pauktaw | G87: Sin Tet Maw | M87: 91 | R87: =IF(NFI_Expiration=1,IF($A87<VLOOKUP(H$5,NFI,5,0),1,0)*Table_NFI[[#This Row],[Hygiene Kit]],0) -> 0 | S87: =IF(NFI_Expiration=1,IF($A87<VLOOKUP(I$5,NFI,5,0),1,0)*Table_NFI[[#This Row],[NFI Core Kit]],0) -> 0 | T87: =IF(NFI_Expiration=1,IF($A87<VLOOKUP(J$5,NFI,5,0),1,0)*Table_NFI[[#This Row],[Sanitary Kit]],0) -> 0 | U87: =IF(NFI_Expiration=1,IF($A87<VLOOKUP(K$5,NFI,5,0),1,0)*Table_NFI[[#This Row],[Mosquito net]],0) -> 0 | V87: =IF(NFI_Expiration=1,IF($A87<VLOOKUP(L$5,NFI,5,0),1,0)*Table_NFI[[#This Row],[Tarpaulin]],0) -> 0 | W87: =IF(NFI_Expiration=1,IF($A87<VLOOKUP(M$5,NFI,5,0),1,0)*Table_NFI[[#This Row],[Blanket]],0) -> 91 | X87: =IF(NFI_Expiration=1,IF($A87<VLOOKUP(N$5,NFI,5,0),1,0)*Table_NFI[[#This Row],[Kitchen Set]],0) -> 0 | Y87: =IF(NFI_Expiration=1,IF($A87<VLOOKUP(O$5,NFI,5,0),1,0)*Table_NFI[[#This Row],[Complementary Kit]],0) -> 0 | Z87: =IF(NFI_Expiration=1,IF($A87<VLOOKUP(P$5,NFI,5,0),1,0)*Table_NFI[[#This Row],[Plastic Bucket]],0) -> 0 | AA87: =IF(NFI_Expiration=1,IF($A87<VLOOKUP(Q$5,NFI,5,0),1,0)*Table_NFI[[#This Row],[Plastic Mat]],0) -> 0 | AB87: =VLOOKUP(Table_NFI[[#This Row],[Camp Name]],Camp_List!N$5:AA$254,2,0) -> MMR012CMP019 | AC87: =VLOOKUP(Table_NFI[[#This Row],[Camp Name]],Camp_List!N$5:AA$254,14,0) -> Open | AD87: =VLOOKUP(Table_NFI[[#This Row],[Camp Name]],Camp_List!N$5:AC$254,1,1) -> Sin Tet Maw
